{"text_format":"1","workbook":"xlsx","n_sheets":3,"sheets":["FVI","FVE - Cliente","FVE - Producto"],"not_rendered":{"charts":0,"images":12,"macros":1,"external_links":0,"defined_names":29,"comments":3,"pivot_tables":0},"unopened":[],"bounds":{"document_bytes":16777216,"sheet_cells":100000,"rows_first":2000,"rows_last":500,"rows_between":2000,"halvings":0,"cell_chars":16384,"cell_head_chars":4096},"cells_cut":2,"cells_raw":0,"read":"whole","date_system":"1900"}

{"sheet":"FVI","index":0,"n_rows":1502,"n_cols":116,"rows_kept":1502,"cut":false,"hidden":false,"merged":[[1202,2,1202,120],[1203,2,1203,120],[1204,2,1204,120],[1205,2,1205,120],[1206,2,1206,120],[1207,2,1207,120],[1208,2,1208,120],[1209,2,1209,120],[1120,3,1120,10],[318,6,318,15],[317,6,317,15],[26,68,26,120],[27,68,27,120],[1112,2,1112,120],[1113,2,1113,120],[1115,2,1115,120],[1116,2,1116,120],[1117,2,1117,120],[1132,2,1132,120],[1133,2,1133,120],[1134,2,1134,120],[1135,2,1135,120],[1136,2,1136,120],[1137,2,1137,120],[1138,2,1138,120],[1139,2,1139,120],[1140,2,1140,120],[1141,2,1141,120],[1174,2,1174,120],[1175,2,1175,120],[1092,2,1092,120],[1093,2,1093,120],[1094,2,1094,120],[1095,2,1095,120],[1096,2,1096,120],[1100,2,1100,120],[1101,2,1101,120],[1102,2,1102,120],[1103,2,1103,120],[1104,2,1104,120],[1105,2,1105,120],[1106,2,1106,120],[1107,2,1107,120],[1108,2,1108,120],[1109,2,1109,120],[1110,2,1110,120],[1111,2,1111,120],[1075,2,1075,120],[1076,2,1076,120],[1077,2,1077,120],[1078,2,1078,120],[1079,2,1079,120],[1080,2,1080,120],[1081,2,1081,120],[1082,2,1082,120],[1083,2,1083,120],[1084,2,1084,120],[1085,2,1085,120],[1086,2,1086,120],[1087,2,1087,120],[1088,2,1088,120],[1089,2,1089,120],[1090,2,1090,120],[1091,2,1091,120],[1058,2,1058,120],[1059,2,1059,120],[1060,2,1060,120],[1061,2,1061,120],[1062,2,1062,120],[1063,2,1063,120],[1064,2,1064,120],[1065,2,1065,120],[1066,2,1066,120],[1067,2,1067,120],[1068,2,1068,120],[1069,2,1069,120],[1070,2,1070,120],[1071,2,1071,120],[1072,2,1072,120],[1073,2,1073,120],[1074,2,1074,120],[1041,2,1041,120],[1042,2,1042,120],[1043,2,1043,120],[1044,2,1044,120],[1045,2,1045,120],[1046,2,1046,120],[1047,2,1047,120],[1048,2,1048,120],[1049,2,1049,120],[1050,2,1050,120],[1051,2,1051,120],[1052,2,1052,120],[1053,2,1053,120],[1054,2,1054,120],[1055,2,1055,120],[1056,2,1056,120],[1057,2,1057,120],[1024,2,1024,120],[1025,2,1025,120],[1026,2,1026,120],[1027,2,1027,120],[1028,2,1028,120],[1029,2,1029,120],[1030,2,1030,120],[1031,2,1031,120],[1032,2,1032,120],[1033,2,1033,120],[1034,2,1034,120],[1035,2,1035,120],[1036,2,1036,120],[1037,2,1037,120],[1038,2,1038,120],[1039,2,1039,120],[1040,2,1040,120],[1007,2,1007,120],[1008,2,1008,120],[1009,2,1009,120],[1010,2,1010,120],[1011,2,1011,120],[1012,2,1012,120],[1013,2,1013,120],[1014,2,1014,120],[1015,2,1015,120],[1016,2,1016,120],[1017,2,1017,120],[1018,2,1018,120],[1019,2,1019,120],[1020,2,1020,120],[1021,2,1021,120],[1022,2,1022,120],[1023,2,1023,120],[990,2,990,120],[991,2,991,120],[992,2,992,120],[993,2,993,120],[994,2,994,120],[995,2,995,120],[996,2,996,120],[997,2,997,120],[998,2,998,120],[999,2,999,120],[1000,2,1000,120],[1001,2,1001,120],[1002,2,1002,120],[1003,2,1003,120],[1004,2,1004,120],[1005,2,1005,120],[1006,2,1006,120],[973,2,973,120],[974,2,974,120],[975,2,975,120],[976,2,976,120],[977,2,977,120],[978,2,978,120],[979,2,979,120],[980,2,980,120],[981,2,981,120],[982,2,982,120],[983,2,983,120],[984,2,984,120],[985,2,985,120],[986,2,986,120],[987,2,987,120],[988,2,988,120],[989,2,989,120],[956,2,956,120],[957,2,957,120],[958,2,958,120],[959,2,959,120],[960,2,960,120],[961,2,961,120],[962,2,962,120],[963,2,963,120],[964,2,964,120],[965,2,965,120],[966,2,966,120],[967,2,967,120],[968,2,968,120],[969,2,969,120],[970,2,970,120],[971,2,971,120],[972,2,972,120],[936,2,936,120],[937,2,937,120],[938,2,938,120],[939,2,939,120],[940,2,940,120],[941,2,941,120],[942,2,942,120],[943,2,943,120],[947,2,947,120],[948,2,948,120],[949,2,949,120],[950,2,950,120],[951,2,951,120],[952,2,952,120],[953,2,953,120],[954,2,954,120],[955,2,955,120],[919,2,919,120],[920,2,920,120],[921,2,921,120],[922,2,922,120],[923,2,923,120],[924,2,924,120],[925,2,925,120],[926,2,926,120],[927,2,927,120],[928,2,928,120],[929,2,929,120],[930,2,930,120],[931,2,931,120],[932,2,932,120],[933,2,933,120],[934,2,934,120],[935,2,935,120],[902,2,902,120],[903,2,903,120],[904,2,904,120],[905,2,905,120],[906,2,906,120],[907,2,907,120],[908,2,908,120],[909,2,909,120],[910,2,910,120],[911,2,911,120],[912,2,912,120],[913,2,913,120],[914,2,914,120],[915,2,915,120],[916,2,916,120],[917,2,917,120],[918,2,918,120],[885,2,885,120],[886,2,886,120],[887,2,887,120],[888,2,888,120],[889,2,889,120],[890,2,890,120],[891,2,891,120],[892,2,892,120],[893,2,893,120],[894,2,894,120],[895,2,895,120],[896,2,896,120],[897,2,897,120],[898,2,898,120],[899,2,899,120],[900,2,900,120],[901,2,901,120],[868,2,868,120],[869,2,869,120],[870,2,870,120],[871,2,871,120],[872,2,872,120],[873,2,873,120],[874,2,874,120],[875,2,875,120],[876,2,876,120],[877,2,877,120],[878,2,878,120],[879,2,879,120],[880,2,880,120],[881,2,881,120],[882,2,882,120],[883,2,883,120],[884,2,884,120],[851,2,851,120],[852,2,852,120],[853,2,853,120],[854,2,854,120],[855,2,855,120],[856,2,856,120],[857,2,857,120],[858,2,858,120],[859,2,859,120],[860,2,860,120],[861,2,861,120],[862,2,862,120],[863,2,863,120],[864,2,864,120],[865,2,865,120],[866,2,866,120],[867,2,867,120],[834,2,834,120],[835,2,835,120],[836,2,836,120],[837,2,837,120],[838,2,838,120],[839,2,839,120],[840,2,840,120],[841,2,841,120],[842,2,842,120],[843,2,843,120],[844,2,844,120],[845,2,845,120],[846,2,846,120],[847,2,847,120],[848,2,848,120],[849,2,849,120],[850,2,850,120],[817,2,817,120],[818,2,818,120],[819,2,819,120],[820,2,820,120],[821,2,821,120],[822,2,822,120],[823,2,823,120],[824,2,824,120],[825,2,825,120],[826,2,826,120],[827,2,827,120],[828,2,828,120],[829,2,829,120],[830,2,830,120],[831,2,831,120],[832,2,832,120],[833,2,833,120],[800,2,800,120],[801,2,801,120],[802,2,802,120],[803,2,803,120],[804,2,804,120],[805,2,805,120],[806,2,806,120],[807,2,807,120],[808,2,808,120],[809,2,809,120],[810,2,810,120],[811,2,811,120],[812,2,812,120],[813,2,813,120],[814,2,814,120],[815,2,815,120],[816,2,816,120],[783,2,783,120],[784,2,784,120],[785,2,785,120],[786,2,786,120],[787,2,787,120],[788,2,788,120],[789,2,789,120],[790,2,790,120],[791,2,791,120],[792,2,792,120],[793,2,793,120],[794,2,794,120],[795,2,795,120],[796,2,796,120],[797,2,797,120],[798,2,798,120],[799,2,799,120],[766,2,766,120],[767,2,767,120],[768,2,768,120],[769,2,769,120],[770,2,770,120],[771,2,771,120],[772,2,772,120],[773,2,773,120],[774,2,774,120],[775,2,775,120],[776,2,776,120],[777,2,777,120],[778,2,778,120],[779,2,779,120],[780,2,780,120],[781,2,781,120],[782,2,782,120],[748,2,748,120],[749,2,749,120],[723,2,723,120],[753,2,753,120],[754,2,754,120],[755,2,755,120],[756,2,756,120],[757,2,757,120],[758,2,758,120],[759,2,759,120],[760,2,760,120],[761,2,761,120],[762,2,762,120],[763,2,763,120],[764,2,764,120],[765,2,765,120],[730,2,730,120],[731,2,731,120],[732,2,732,120],[733,2,733,120],[734,2,734,120],[735,2,735,120],[736,2,736,120],[737,2,737,120],[738,2,738,120],[739,2,739,120],[740,2,740,120],[741,2,741,120],[742,2,742,120],[743,2,743,120],[744,2,744,120],[745,2,745,120],[746,2,746,120],[711,2,711,120],[712,2,712,120],[713,2,713,120],[715,2,715,120],[716,2,716,120],[717,2,717,120],[718,2,718,120],[719,2,719,120],[720,2,720,120],[721,2,721,120],[722,2,722,120],[724,2,724,120],[725,2,725,120],[726,2,726,120],[727,2,727,120],[728,2,728,120],[729,2,729,120],[714,2,714,120],[694,2,694,120],[695,2,695,120],[696,2,696,120],[697,2,697,120],[698,2,698,120],[699,2,699,120],[700,2,700,120],[701,2,701,120],[702,2,702,120],[703,2,703,120],[704,2,704,120],[705,2,705,120],[706,2,706,120],[707,2,707,120],[708,2,708,120],[709,2,709,120],[710,2,710,120],[677,2,677,120],[678,2,678,120],[679,2,679,120],[680,2,680,120],[681,2,681,120],[682,2,682,120],[683,2,683,120],[684,2,684,120],[685,2,685,120],[686,2,686,120],[687,2,687,120],[688,2,688,120],[689,2,689,120],[690,2,690,120],[691,2,691,120],[692,2,692,120],[693,2,693,120],[658,2,658,120],[659,2,659,120],[660,2,660,120],[661,2,661,120],[662,2,662,120],[663,2,663,120],[664,2,664,120],[665,2,665,120],[669,2,669,120],[670,2,670,120],[671,2,671,120],[672,2,672,120],[673,2,673,120],[674,2,674,120],[675,2,675,120],[676,2,676,120],[641,2,641,120],[642,2,642,120],[643,2,643,120],[644,2,644,120],[645,2,645,120],[646,2,646,120],[647,2,647,120],[648,2,648,120],[649,2,649,120],[650,2,650,120],[651,2,651,120],[652,2,652,120],[653,2,653,120],[654,2,654,120],[655,2,655,120],[656,2,656,120],[657,2,657,120],[624,2,624,120],[625,2,625,120],[626,2,626,120],[627,2,627,120],[628,2,628,120],[629,2,629,120],[630,2,630,120],[631,2,631,120],[632,2,632,120],[633,2,633,120],[634,2,634,120],[635,2,635,120],[636,2,636,120],[637,2,637,120],[638,2,638,120],[639,2,639,120],[640,2,640,120],[607,2,607,120],[608,2,608,120],[609,2,609,120],[610,2,610,120],[611,2,611,120],[612,2,612,120],[613,2,613,120],[614,2,614,120],[615,2,615,120],[616,2,616,120],[617,2,617,120],[618,2,618,120],[619,2,619,120],[620,2,620,120],[621,2,621,120],[622,2,622,120],[623,2,623,120],[590,2,590,120],[591,2,591,120],[592,2,592,120],[593,2,593,120],[594,2,594,120],[595,2,595,120],[596,2,596,120],[597,2,597,120],[598,2,598,120],[599,2,599,120],[600,2,600,120],[601,2,601,120],[602,2,602,120],[603,2,603,120],[604,2,604,120],[605,2,605,120],[606,2,606,120],[573,2,573,120],[574,2,574,120],[575,2,575,120],[576,2,576,120],[577,2,577,120],[578,2,578,120],[579,2,579,120],[580,2,580,120],[581,2,581,120],[582,2,582,120],[583,2,583,120],[584,2,584,120],[585,2,585,120],[586,2,586,120],[587,2,587,120],[588,2,588,120],[589,2,589,120],[556,2,556,120],[557,2,557,120],[558,2,558,120],[559,2,559,120],[560,2,560,120],[561,2,561,120],[562,2,562,120],[563,2,563,120],[564,2,564,120],[565,2,565,120],[566,2,566,120],[567,2,567,120],[568,2,568,120],[569,2,569,120],[570,2,570,120],[571,2,571,120],[572,2,572,120],[555,2,555,120],[522,2,522,119],[523,2,523,119],[524,2,524,119],[525,2,525,119],[526,2,526,119],[527,2,527,119],[528,2,528,119],[529,2,529,119],[530,2,530,119],[531,2,531,119],[532,2,532,119],[533,2,533,119],[534,2,534,119],[535,2,535,119],[536,2,536,119],[537,2,537,119],[538,2,538,119],[518,2,518,119],[519,2,519,119],[520,2,520,119],[521,2,521,119],[539,2,539,119],[540,2,540,119],[541,2,541,119],[542,2,542,119],[546,2,546,120],[547,2,547,120],[548,2,548,120],[549,2,549,120],[550,2,550,120],[551,2,551,120],[552,2,552,120],[553,2,553,120],[554,2,554,120],[501,2,501,119],[502,2,502,119],[503,2,503,119],[504,2,504,119],[505,2,505,119],[506,2,506,119],[507,2,507,119],[508,2,508,119],[509,2,509,119],[510,2,510,119],[511,2,511,119],[512,2,512,119],[513,2,513,119],[514,2,514,119],[515,2,515,119],[516,2,516,119],[517,2,517,119],[484,2,484,119],[485,2,485,119],[486,2,486,119],[487,2,487,119],[488,2,488,119],[489,2,489,119],[490,2,490,119],[491,2,491,119],[492,2,492,119],[493,2,493,119],[494,2,494,119],[495,2,495,119],[496,2,496,119],[497,2,497,119],[498,2,498,119],[499,2,499,119],[500,2,500,119],[381,68,381,87],[468,2,468,119],[469,2,469,119],[470,2,470,119],[471,2,471,119],[472,2,472,119],[473,2,473,119],[474,2,474,119],[475,2,475,119],[476,2,476,119],[477,2,477,119],[478,2,478,119],[479,2,479,119],[480,2,480,119],[481,2,481,119],[482,2,482,119],[483,2,483,119],[404,2,404,120],[405,2,405,120],[406,2,406,120],[407,2,407,120],[408,2,408,120],[409,2,409,120],[410,2,410,120],[414,2,414,120],[415,2,415,120],[416,2,416,120],[417,2,417,120],[418,2,418,120],[419,2,419,120],[423,2,423,120],[382,34,382,47],[372,109,372,119],[374,112,374,119],[373,112,373,119],[372,2,372,83],[373,2,373,4],[373,5,373,18],[373,19,373,21],[373,22,373,35],[373,36,373,38],[373,39,373,52],[387,2,387,3],[387,7,387,8],[373,87,373,89],[373,90,373,103],[402,2,402,120],[412,2,412,120],[387,85,387,87],[387,88,387,101],[394,2,394,120],[396,2,396,27],[388,2,388,120],[389,2,389,119],[390,2,390,119],[391,2,391,119],[392,2,392,119],[397,2,397,3],[397,4,397,5],[397,7,397,8],[384,2,384,120],[386,2,386,41],[381,34,381,47],[381,48,381,67],[0,1,3,121],[4,1,5,121],[6,45,7,77],[10,2,10,120],[12,2,12,10],[12,11,12,26],[12,27,12,44],[12,45,12,120],[7,2,8,18],[14,11,14,14],[14,15,14,18],[14,19,14,26],[22,2,22,61],[21,2,21,61],[14,106,14,107],[14,108,14,120],[17,2,17,120],[19,2,19,90],[19,91,19,104],[19,105,19,120],[14,46,14,47],[14,48,14,63],[14,65,14,66],[14,67,14,88],[14,90,14,91],[14,92,14,104],[14,2,14,10],[14,28,14,29],[14,30,14,34],[14,36,14,37],[14,38,14,44],[21,62,21,91],[21,92,21,120],[22,62,22,91],[22,92,22,120],[20,53,20,54],[20,55,20,73],[20,91,20,104],[20,105,20,108],[20,109,20,112],[20,113,20,120],[20,18,20,19],[20,20,20,26],[20,28,20,29],[20,30,20,37],[20,39,20,40],[20,41,20,51],[20,3,20,4],[20,5,20,7],[20,8,20,9],[20,10,20,12],[20,13,20,14],[20,15,20,17],[28,2,28,25],[28,26,28,49],[28,50,28,60],[28,61,28,120],[29,2,29,25],[29,26,29,49],[29,51,29,52],[29,53,29,54],[29,56,29,57],[27,2,27,25],[27,26,27,29],[27,30,27,33],[27,34,27,41],[27,42,27,67],[24,2,24,120],[26,2,26,25],[26,26,26,41],[26,42,26,67],[29,110,29,113],[30,2,30,120],[31,3,31,4],[31,5,31,16],[31,17,31,18],[31,19,31,29],[31,31,31,32],[31,33,31,46],[31,48,31,49],[31,50,31,60],[29,80,29,86],[29,88,29,89],[29,90,29,96],[29,98,29,99],[29,100,29,106],[29,108,29,109],[29,58,29,59],[29,62,29,63],[29,64,29,68],[29,70,29,71],[29,72,29,76],[29,78,29,79],[33,53,33,58],[33,59,33,60],[33,61,33,67],[33,79,33,102],[33,103,33,120],[34,2,34,46],[34,47,34,70],[34,71,34,94],[34,95,34,120],[33,23,33,27],[33,29,33,30],[33,31,33,37],[33,39,33,40],[33,41,33,50],[33,51,33,52],[31,94,31,95],[31,96,31,100],[32,2,32,78],[32,79,32,102],[32,103,32,120],[33,3,33,4],[33,5,33,10],[33,11,33,12],[33,13,33,20],[33,21,33,22],[31,62,31,63],[31,64,31,71],[31,72,31,73],[31,74,31,82],[31,84,31,85],[31,86,31,92],[37,107,37,120],[38,2,38,26],[38,27,38,120],[39,3,39,4],[39,5,39,9],[39,10,39,11],[39,12,39,16],[39,18,39,19],[39,20,39,26],[39,28,39,29],[37,2,37,70],[37,71,37,78],[37,79,37,80],[37,82,37,95],[37,96,37,103],[37,104,37,105],[35,2,35,46],[35,47,35,70],[35,71,35,94],[35,95,35,120],[36,2,36,81],[36,82,36,106],[36,107,36,120],[39,83,39,90],[39,91,39,92],[39,93,39,96],[39,97,39,120],[43,2,43,120],[45,73,45,96],[45,97,45,120],[45,2,45,59],[45,61,45,62],[45,63,45,64],[39,54,39,60],[39,62,39,63],[39,64,39,73],[39,74,39,75],[39,76,39,79],[39,81,39,82],[39,30,39,34],[39,36,39,37],[39,38,39,43],[39,45,39,46],[39,47,39,50],[39,52,39,53],[42,2,42,120],[40,2,40,120],[41,5,41,9],[41,13,41,21],[41,25,41,56],[41,77,41,103],[41,106,41,110],[50,2,50,120],[52,2,52,85],[52,86,52,87],[52,89,52,90],[54,2,54,120],[56,2,56,43],[56,44,56,59],[56,60,56,75],[56,76,56,120],[45,65,45,66],[45,67,45,69],[46,73,46,96],[46,97,46,120],[47,73,47,96],[47,97,47,120],[48,73,48,96],[48,97,48,120],[46,2,46,58],[47,2,47,58],[60,2,60,120],[61,2,61,120],[63,2,63,120],[65,2,65,15],[65,16,65,106],[65,107,65,120],[57,76,57,120],[58,2,58,25],[58,81,58,82],[58,85,58,86],[59,2,59,25],[57,44,57,47],[57,48,57,51],[57,52,57,59],[57,60,57,63],[57,64,57,67],[57,68,57,75],[57,3,57,4],[57,5,57,10],[57,11,57,12],[57,13,57,21],[57,22,57,23],[57,24,57,33],[58,26,59,80],[58,83,59,84],[58,87,59,89],[68,43,68,69],[68,70,68,96],[68,97,68,120],[69,2,69,43],[69,44,69,59],[69,60,69,75],[69,76,69,120],[66,55,66,65],[66,67,66,68],[66,69,66,87],[66,107,66,120],[67,16,67,42],[67,43,67,69],[67,70,67,96],[67,97,67,120],[66,29,66,31],[66,32,66,33],[66,34,66,40],[66,42,66,43],[66,44,66,51],[66,53,66,54],[66,2,68,15],[66,17,66,18],[66,19,66,21],[66,22,66,23],[66,24,66,26],[66,27,66,28],[68,16,68,42],[70,76,70,120],[72,2,72,15],[72,16,72,106],[72,107,72,120],[73,2,75,15],[73,17,73,18],[73,19,73,21],[73,22,73,23],[73,24,73,26],[73,27,73,28],[70,44,70,47],[70,48,70,51],[70,52,70,59],[70,60,70,63],[70,64,70,67],[70,68,70,75],[70,3,70,4],[70,5,70,10],[70,11,70,12],[70,13,70,21],[70,22,70,23],[70,24,70,33],[75,16,75,42],[75,43,75,69],[75,70,75,96],[75,97,75,120],[76,2,76,43],[76,44,76,59],[76,60,76,75],[76,76,76,120],[73,55,73,65],[73,67,73,68],[73,69,73,87],[73,107,73,120],[74,16,74,42],[74,43,74,69],[74,70,74,96],[74,97,74,120],[73,29,73,31],[73,32,73,33],[73,34,73,40],[73,42,73,43],[73,44,73,51],[73,53,73,54],[77,76,77,120]],"merged_total":2530,"flags":["merged_cut"]}
["Mostrar","FTO-MIS-37 Formato unificado de vinculación para Persona Natural"]
[1]
[1]
[1]
[1,"Última modificación: 13/01/2025"]
[1]
[1,null,null,null,null,null,null,null,null,null,null,null,null,null,null,null,null,null,null,null,null,null,null,null,null,null,null,null,null,null,null,null,null,null,null,null,null,null,null,null,null,null,null,null,null,"FUERZA DE VENTAS INTERNA Y FIDUCIARIA"]
[1,null,"Soy fuerza de ventas externa:"]
[1]
[1]
[1,null,"SOLICITUD"]
[1]
[1,null,"Cod. oficina",null,null,null,null,null,null,null,null,"Fecha solicitud",null,null,null,null,null,null,null,null,null,null,null,null,null,null,null,"Solicitante",null,null,null,null,null,null,null,null,null,null,null,null,null,null,null,null,null,"Tipo solicitud"]
[1]
[1,null,null,null,null,null,null,null,null,null,null,null,null,null,null,null,null,null,null,null,null,null,null,null,null,null,null,null,null,null,"Cliente",null,null,null,null,null,null,null,"Codeudor",null,null,null,null,null,null,null,null,null,"Vinculación cliente nuevo",null,null,null,null,null,null,null,null,null,null,null,null,null,null,null,null,null,null,"Solicitud/mantenimiento de producto",null,null,null,null,null,null,null,null,null,null,null,null,null,null,null,null,null,null,null,null,null,null,null,null,"Actualización de datos",null,null,null,null,null,null,null,null,null,null,null,null,null,null,null,"Presentación cliente"]
[1]
[1]
[{"$f":"IF(OR(VinculacionClienteNuevo=\"Sí\",ActualizacionDatos=\"Sí\")=TRUE(),1,0)","v":0},null,"DATOS PERSONALES BÁSICOS"]
[0]
[0,null,"Tipo identificación",null,null,null,null,null,null,null,null,null,null,null,null,null,null,null,null,null,null,null,null,null,null,null,null,null,null,null,null,null,null,null,null,null,null,null,null,null,null,null,null,null,null,null,null,null,null,null,null,null,null,null,null,null,null,null,null,null,null,null,null,null,null,null,null,null,null,null,null,null,null,null,null,null,null,null,null,null,null,null,null,null,null,null,null,null,null,null,null,"N°. identificación",null,null,null,null,null,null,null,null,null,null,null,null,null,"Fecha expedición"]
[0,null,null,null,null,"CC",null,null,null,null,"CE",null,null,null,null,"TI",null,null,null,null,"Pasaporte",null,null,null,null,null,null,null,null,null,"Registro civil",null,null,null,null,null,null,null,null,null,null,"Carné diplomático",null,null,null,null,null,null,null,null,null,null,null,null,null,"Permiso de protección temporal"]
[0,null,"Nombres cliente",null,null,null,null,null,null,null,null,null,null,null,null,null,null,null,null,null,null,null,null,null,null,null,null,null,null,null,null,null,null,null,null,null,null,null,null,null,null,null,null,null,null,null,null,null,null,null,null,null,null,null,null,null,null,null,null,null,null,null,"Primer apellido",null,null,null,null,null,null,null,null,null,null,null,null,null,null,null,null,null,null,null,null,null,null,null,null,null,null,null,null,null,"Segundo apellido (si aplica)"]
[0]
[0]
[0,null,"DATOS PERSONALES COMPLEMENTARIOS"]
[0]
[0,null,"Lugar expedición identificación",null,null,null,null,null,null,null,null,null,null,null,null,null,null,null,null,null,null,null,null,null,null,null,"Fecha nacimiento",null,null,null,null,null,null,null,null,null,null,null,null,null,null,null,"País nacimiento",null,null,null,null,null,null,null,null,null,null,null,null,null,null,null,null,null,null,null,null,null,null,null,null,null,"Ciudad/departamento nacimiento"]
[0]
[0,null,"Nacionalidad 1",null,null,null,null,null,null,null,null,null,null,null,null,null,null,null,null,null,null,null,null,null,null,null,"Nacionalidad 2 (si aplica)",null,null,null,null,null,null,null,null,null,null,null,null,null,null,null,null,null,null,null,null,null,null,null,"Género",null,null,null,null,null,null,null,null,null,null,"Estado civil"]
[0,null,null,null,null,null,null,null,null,null,null,null,null,null,null,null,null,null,null,null,null,null,null,null,null,null,null,null,null,null,null,null,null,null,null,null,null,null,null,null,null,null,null,null,null,null,null,null,null,null,null,null,null,"M",null,null,null,null,"F",null,null,null,null,null,"Soltero",null,null,null,null,null,null,null,"Casado",null,null,null,null,null,null,null,"Unión libre",null,null,null,null,null,null,null,null,null,"Separado",null,null,null,null,null,null,null,null,null,"Divorciado",null,null,null,null,null,null,null,null,null,"Viudo"]
[0,null,"Ocupación"]
[0,null,null,null,null,"Empleado privado",null,null,null,null,null,null,null,null,null,null,null,null,null,"Empleado público",null,null,null,null,null,null,null,null,null,null,null,null,null,"Empleado con negocio",null,null,null,null,null,null,null,null,null,null,null,null,null,null,null,null,"Rentista de capital",null,null,null,null,null,null,null,null,null,null,null,null,null,"Pensionado",null,null,null,null,null,null,null,null,null,"Independiente",null,null,null,null,null,null,null,null,null,null,null,"Estudiante",null,null,null,null,null,null,null,null,null,"Hogar"]
[0,null,"Nivel estudios",null,null,null,null,null,null,null,null,null,null,null,null,null,null,null,null,null,null,null,null,null,null,null,null,null,null,null,null,null,null,null,null,null,null,null,null,null,null,null,null,null,null,null,null,null,null,null,null,null,null,null,null,null,null,null,null,null,null,null,null,null,null,null,null,null,null,null,null,null,null,null,null,null,null,null,null,"Profesión",null,null,null,null,null,null,null,null,null,null,null,null,null,null,null,null,null,null,null,null,null,null,null,"Personas a cargo (si aplica)"]
[0,null,null,null,null,"Primaria",null,null,null,null,null,null,null,"Secundaria",null,null,null,null,null,null,null,null,null,"Técnico",null,null,null,null,null,null,null,"Profesional",null,null,null,null,null,null,null,null,null,"Especialización",null,null,null,null,null,null,null,null,null,null,null,"Maestría",null,null,null,null,null,null,null,"Doctorado"]
[0,null,"Dirección residencia (especificar conjunto/edificio, N°. apto./casa)",null,null,null,null,null,null,null,null,null,null,null,null,null,null,null,null,null,null,null,null,null,null,null,null,null,null,null,null,null,null,null,null,null,null,null,null,null,null,null,null,null,null,null,null,"Barrio residencia",null,null,null,null,null,null,null,null,null,null,null,null,null,null,null,null,null,null,null,null,null,null,null,"Ciudad residencia",null,null,null,null,null,null,null,null,null,null,null,null,null,null,null,null,null,null,null,null,null,null,null,"País residencia"]
[{"$f":"IF(OR(VinculacionClienteNuevo=\"Sí\",ActualizacionDatos=\"Sí\")=TRUE(),1,0)","v":0}]
[0,null,"Correo electrónico (Dato seguro aplica en cuentas tradicionales)",null,null,null,null,null,null,null,null,null,null,null,null,null,null,null,null,null,null,null,null,null,null,null,null,null,null,null,null,null,null,null,null,null,null,null,null,null,null,null,null,null,null,null,null,null,null,null,null,null,null,null,null,null,null,null,null,null,null,null,null,null,null,null,null,null,null,null,null,null,null,null,null,null,null,null,null,null,null,null,"Celular (Dato seguro aplica en cuentas tradicionales)",null,null,null,null,null,null,null,null,null,null,null,null,null,null,null,null,null,null,null,null,null,null,null,null,"Teléfono residencia"]
[0,null,null,null,null,null,null,null,null,null,null,null,null,null,null,null,null,null,null,null,null,null,null,null,null,null,null,null,null,null,null,null,null,null,null,null,null,null,null,null,null,null,null,null,null,null,null,null,null,null,null,null,null,null,null,null,null,null,null,null,null,null,null,null,null,null,null,null,null,null,null,"Dato seguro",null,null,null,null,null,null,null,null,null,null,null,null,null,null,null,null,null,null,null,null,null,null,null,null,"Dato seguro"]
[0,null,"Tipo vivienda",null,null,null,null,null,null,null,null,null,null,null,null,null,null,null,null,null,null,null,null,null,null,null,null,"Discapacidad(es) (si aplica)"]
[0,null,null,null,null,"Propia",null,null,null,null,null,null,"Familiar",null,null,null,null,null,null,null,"Arrendada",null,null,null,null,null,null,null,null,null,"Auditiva",null,null,null,null,null,null,null,"Cognitiva",null,null,null,null,null,null,null,null,"Motriz",null,null,null,null,null,null,"Psicosocial",null,null,null,null,null,null,null,null,null,"Sordo-ceguera",null,null,null,null,null,null,null,null,null,null,null,"Visual",null,null,null,null,null,null,"Voz y habla",null,null,null,null,null,null,null,null,null,"Otra:"]
[0,null,"Grupo étnico"]
[0,null,null,null,null,"Indígena",null,null,null,null,null,null,null,"Gitano(a) o Rrom",null,null,null,null,null,null,null,null,null,null,null,"Raizal del Archipiélago de San Andrés, Providencia y Santa Catalina",null,null,null,null,null,null,null,null,null,null,null,null,null,null,null,null,null,null,null,null,null,null,null,null,null,null,null,null,null,null,null,null,null,null,"Palenquero(a) de San Basilio",null,null,null,null,null,null,null,null,null,null,null,null,null,null,null,null,"Negro(a), Mulato(a), Afrodescendiente, Afrocolombiano(a)",null,null,null,null,null,null,null,null,null,null,null,null,null,null,null,null,null,null,null,null,null,null,null,null,null,null,null,null,"Ninguno",null,null,null,null,null,null,"Sin información"]
[0]
[0,null,"FATCA/CRS"]
[0]
[0,null,"¿Es responsable de pago de impuestos o residente fiscal en EEUU (U.S. Person) u otro país diferente de Colombia?:",null,null,null,null,null,null,null,null,null,null,null,null,null,null,null,null,null,null,null,null,null,null,null,null,null,null,null,null,null,null,null,null,null,null,null,null,null,null,null,null,null,null,null,null,null,null,null,null,null,null,null,null,null,null,null,null,null,null,null,null,"Sí",null,null,null,"No",null,null,null,null,null,"País residencia fiscal 1",null,null,null,null,null,null,null,null,null,null,null,null,null,null,null,null,null,null,null,null,null,null,null,"País residencia fiscal 2 (si aplica)"]
[0,null,"*U.S. PERSON es una definición que incluye ciudadanos y residentes de los Estados Unidos (poseedores de una Green Card de los"]
[0,null,"Estados Unidos o que cumplen el requisito de presencia sustancial en los Estados Unidos mayor a 183 días durante los últimos tres años).",null,null,null,null,null,null,null,null,null,null,null,null,null,null,null,null,null,null,null,null,null,null,null,null,null,null,null,null,null,null,null,null,null,null,null,null,null,null,null,null,null,null,null,null,null,null,null,null,null,null,null,null,null,null,null,null,null,null,null,null,null,null,null,null,null,null,null,null,null,null,"N°. identificación tributaria",null,null,null,null,null,null,null,null,null,null,null,null,null,null,null,null,null,null,null,null,null,null,null,"N°. identificación tributaria (si aplica)"]
[0]
[0]
[0,null,"PERSONA POLÍTICAMENTE EXPUESTA (PEP)"]
[0]
[0,null,"¿Es una Persona Expuesta Políticamente (PEP) o tiene vínculo conyugal, familiar o asociado con personas que detenten la condición de PEP o administra recursos del Estado?:"]
[0]
[{"$f":"IF(PEP=\"Sí\",1,0)","v":0},null,"DATOS COMPLEMENTARIOS PEP"]
[0]
[0,null,"Tipo PEP",null,null,null,null,null,null,null,null,null,null,null,null,null,null,null,null,null,null,null,null,null,null,null,null,null,null,null,null,null,null,null,null,null,null,null,null,null,null,null,null,null,"Fecha posesión",null,null,null,null,null,null,null,null,null,null,null,null,null,null,null,"Fecha vigencia",null,null,null,null,null,null,null,null,null,null,null,null,null,null,null,"Cargo"]
[0,null,null,null,null,"No PEP",null,null,null,null,null,null,null,"PEP nacional",null,null,null,null,null,null,null,null,null,null,"PEP extranjero"]
[0,null,"Tipo de relación",null,null,null,null,null,null,null,null,null,null,null,null,null,null,null,null,null,null,null,null,null,null,null,"¿Existen cuentas financieras en algún país extranjero en las que tengo derecho o poder de firma o de otra índole?:",null,null,null,null,null,null,null,null,null,null,null,null,null,null,null,null,null,null,null,null,null,null,null,null,null,null,null,null,null,null,null,null,null,null,null,null,null,null,null,null,null,null,null,null,null,null,null,null,null,null,null,null,null,null,null,null,"Sí",null,null,null,"No"]
[0]
[0,null,"Nombres e identificación de las personas jurídicas o naturales, patrimonios autónomos o fiducias conforme lo dispuesto en el artículo 2.1.4.2.3. del Decreto 1081 de 2015"]
[0]
[0]
[0,null,"FAMILIARES DEL PEP"]
[0]
[0,null,"Parentesco",null,null,null,null,null,null,null,null,null,null,null,null,null,"Tipo identificación",null,null,null,null,null,null,null,null,null,null,null,null,null,null,null,null,null,null,null,null,null,null,null,null,null,null,null,null,null,null,null,null,null,null,null,null,null,null,null,null,null,null,null,null,null,null,null,null,null,null,null,null,null,null,null,null,null,null,null,null,null,null,null,null,null,null,null,null,null,null,null,null,null,null,null,null,null,null,null,null,null,null,null,null,null,null,null,null,null,null,"N°. identificación"]
[0,null,"Persona con la que se tiene sociedad conyugal, de hecho, o de derecho",null,null,null,null,null,null,null,null,null,null,null,null,null,null,null,null,"CC",null,null,null,null,"CE",null,null,null,null,"TI",null,null,null,null,"Pasaporte",null,null,null,null,null,null,null,null,null,"Registro civil",null,null,null,null,null,null,null,null,null,null,"Carné diplomático",null,null,null,null,null,null,null,null,null,null,null,null,null,"Permiso de protección temporal"]
[0,null,null,null,null,null,null,null,null,null,null,null,null,null,null,null,"Primer nombre",null,null,null,null,null,null,null,null,null,null,null,null,null,null,null,null,null,null,null,null,null,null,null,null,null,null,"Segundo nombre (si aplica)",null,null,null,null,null,null,null,null,null,null,null,null,null,null,null,null,null,null,null,null,null,null,null,null,null,null,"Primer apellido",null,null,null,null,null,null,null,null,null,null,null,null,null,null,null,null,null,null,null,null,null,null,null,null,null,null,"Segundo apellido (si aplica)"]
[0]
[0,null,"Tipo PEP",null,null,null,null,null,null,null,null,null,null,null,null,null,null,null,null,null,null,null,null,null,null,null,null,null,null,null,null,null,null,null,null,null,null,null,null,null,null,null,null,null,"Fecha posesión",null,null,null,null,null,null,null,null,null,null,null,null,null,null,null,"Fecha vigencia",null,null,null,null,null,null,null,null,null,null,null,null,null,null,null,"Cargo"]
[0,null,null,null,null,"No PEP",null,null,null,null,null,null,null,"PEP nacional",null,null,null,null,null,null,null,null,null,null,"PEP extranjero"]
[0]
[0,null,"Parentesco",null,null,null,null,null,null,null,null,null,null,null,null,null,"Tipo identificación",null,null,null,null,null,null,null,null,null,null,null,null,null,null,null,null,null,null,null,null,null,null,null,null,null,null,null,null,null,null,null,null,null,null,null,null,null,null,null,null,null,null,null,null,null,null,null,null,null,null,null,null,null,null,null,null,null,null,null,null,null,null,null,null,null,null,null,null,null,null,null,null,null,null,null,null,null,null,null,null,null,null,null,null,null,null,null,null,null,null,"N°. identificación"]
[0,null,"Padre",null,null,null,null,null,null,null,null,null,null,null,null,null,null,null,null,"CC",null,null,null,null,"CE",null,null,null,null,"TI",null,null,null,null,"Pasaporte",null,null,null,null,null,null,null,null,null,"Registro civil",null,null,null,null,null,null,null,null,null,null,"Carné diplomático",null,null,null,null,null,null,null,null,null,null,null,null,null,"Permiso de protección temporal"]
[0,null,null,null,null,null,null,null,null,null,null,null,null,null,null,null,"Primer nombre",null,null,null,null,null,null,null,null,null,null,null,null,null,null,null,null,null,null,null,null,null,null,null,null,null,null,"Segundo nombre (si aplica)",null,null,null,null,null,null,null,null,null,null,null,null,null,null,null,null,null,null,null,null,null,null,null,null,null,null,"Primer apellido",null,null,null,null,null,null,null,null,null,null,null,null,null,null,null,null,null,null,null,null,null,null,null,null,null,null,"Segundo apellido (si aplica)"]
[0]
[0,null,"Tipo PEP",null,null,null,null,null,null,null,null,null,null,null,null,null,null,null,null,null,null,null,null,null,null,null,null,null,null,null,null,null,null,null,null,null,null,null,null,null,null,null,null,null,"Fecha posesión",null,null,null,null,null,null,null,null,null,null,null,null,null,null,null,"Fecha vigencia",null,null,null,null,null,null,null,null,null,null,null,null,null,null,null,"Cargo"]
[0,null,null,null,null,"No PEP",null,null,null,null,null,null,null,"PEP nacional",null,null,null,null,null,null,null,null,null,null,"PEP extranjero"]
[0]
[0,null,"Parentesco",null,null,null,null,null,null,null,null,null,null,null,null,null,"Tipo identificación",null,null,null,null,null,null,null,null,null,null,null,null,null,null,null,null,null,null,null,null,null,null,null,null,null,null,null,null,null,null,null,null,null,null,null,null,null,null,null,null,null,null,null,null,null,null,null,null,null,null,null,null,null,null,null,null,null,null,null,null,null,null,null,null,null,null,null,null,null,null,null,null,null,null,null,null,null,null,null,null,null,null,null,null,null,null,null,null,null,null,"N°. identificación"]
[0,null,"Madre",null,null,null,null,null,null,null,null,null,null,null,null,null,null,null,null,"CC",null,null,null,null,"CE",null,null,null,null,"TI",null,null,null,null,"Pasaporte",null,null,null,null,null,null,null,null,null,"Registro civil",null,null,null,null,null,null,null,null,null,null,"Carné diplomático",null,null,null,null,null,null,null,null,null,null,null,null,null,"Permiso de protección temporal"]
[0,null,null,null,null,null,null,null,null,null,null,null,null,null,null,null,"Primer nombre",null,null,null,null,null,null,null,null,null,null,null,null,null,null,null,null,null,null,null,null,null,null,null,null,null,null,"Segundo nombre (si aplica)",null,null,null,null,null,null,null,null,null,null,null,null,null,null,null,null,null,null,null,null,null,null,null,null,null,null,"Primer apellido",null,null,null,null,null,null,null,null,null,null,null,null,null,null,null,null,null,null,null,null,null,null,null,null,null,null,"Segundo apellido (si aplica)"]
[0]
[0,null,"Tipo PEP",null,null,null,null,null,null,null,null,null,null,null,null,null,null,null,null,null,null,null,null,null,null,null,null,null,null,null,null,null,null,null,null,null,null,null,null,null,null,null,null,null,"Fecha posesión",null,null,null,null,null,null,null,null,null,null,null,null,null,null,null,"Fecha vigencia",null,null,null,null,null,null,null,null,null,null,null,null,null,null,null,"Cargo"]
[0,null,null,null,null,"No PEP",null,null,null,null,null,null,null,"PEP nacional",null,null,null,null,null,null,null,null,null,null,"PEP extranjero"]
[0]
[0,null,"Parentesco",null,null,null,null,null,null,null,null,null,null,null,null,null,"Tipo identificación",null,null,null,null,null,null,null,null,null,null,null,null,null,null,null,null,null,null,null,null,null,null,null,null,null,null,null,null,null,null,null,null,null,null,null,null,null,null,null,null,null,null,null,null,null,null,null,null,null,null,null,null,null,null,null,null,null,null,null,null,null,null,null,null,null,null,null,null,null,null,null,null,null,null,null,null,null,null,null,null,null,null,null,null,null,null,null,null,null,null,"N°. identificación"]
[0,null,"Hijo",null,null,null,null,null,null,null,null,null,null,null,null,null,null,null,null,"CC",null,null,null,null,"CE",null,null,null,null,"TI",null,null,null,null,"Pasaporte",null,null,null,null,null,null,null,null,null,"Registro civil",null,null,null,null,null,null,null,null,null,null,"Carné diplomático",null,null,null,null,null,null,null,null,null,null,null,null,null,"Permiso de protección temporal"]
[0,null,null,null,null,null,null,null,null,null,null,null,null,null,null,null,"Primer nombre",null,null,null,null,null,null,null,null,null,null,null,null,null,null,null,null,null,null,null,null,null,null,null,null,null,null,"Segundo nombre (si aplica)",null,null,null,null,null,null,null,null,null,null,null,null,null,null,null,null,null,null,null,null,null,null,null,null,null,null,"Primer apellido",null,null,null,null,null,null,null,null,null,null,null,null,null,null,null,null,null,null,null,null,null,null,null,null,null,null,"Segundo apellido (si aplica)"]
[{"$f":"IF(PEP=\"Sí\",1,0)","v":0}]
[0,null,"Tipo PEP",null,null,null,null,null,null,null,null,null,null,null,null,null,null,null,null,null,null,null,null,null,null,null,null,null,null,null,null,null,null,null,null,null,null,null,null,null,null,null,null,null,"Fecha posesión",null,null,null,null,null,null,null,null,null,null,null,null,null,null,null,"Fecha vigencia",null,null,null,null,null,null,null,null,null,null,null,null,null,null,null,"Cargo"]
[0,null,null,null,null,"No PEP",null,null,null,null,null,null,null,"PEP nacional",null,null,null,null,null,null,null,null,null,null,"PEP extranjero"]
[0]
[0,null,"Parentesco",null,null,null,null,null,null,null,null,null,null,null,null,null,"Tipo identificación",null,null,null,null,null,null,null,null,null,null,null,null,null,null,null,null,null,null,null,null,null,null,null,null,null,null,null,null,null,null,null,null,null,null,null,null,null,null,null,null,null,null,null,null,null,null,null,null,null,null,null,null,null,null,null,null,null,null,null,null,null,null,null,null,null,null,null,null,null,null,null,null,null,null,null,null,null,null,null,null,null,null,null,null,null,null,null,null,null,null,"N°. identificación"]
[0,null,"Hijo",null,null,null,null,null,null,null,null,null,null,null,null,null,null,null,null,"CC",null,null,null,null,"CE",null,null,null,null,"TI",null,null,null,null,"Pasaporte",null,null,null,null,null,null,null,null,null,"Registro civil",null,null,null,null,null,null,null,null,null,null,"Carné diplomático",null,null,null,null,null,null,null,null,null,null,null,null,null,"Permiso de protección temporal"]
[0,null,null,null,null,null,null,null,null,null,null,null,null,null,null,null,"Primer nombre",null,null,null,null,null,null,null,null,null,null,null,null,null,null,null,null,null,null,null,null,null,null,null,null,null,null,"Segundo nombre (si aplica)",null,null,null,null,null,null,null,null,null,null,null,null,null,null,null,null,null,null,null,null,null,null,null,null,null,null,"Primer apellido",null,null,null,null,null,null,null,null,null,null,null,null,null,null,null,null,null,null,null,null,null,null,null,null,null,null,"Segundo apellido (si aplica)"]
[0]
[0,null,"Tipo PEP",null,null,null,null,null,null,null,null,null,null,null,null,null,null,null,null,null,null,null,null,null,null,null,null,null,null,null,null,null,null,null,null,null,null,null,null,null,null,null,null,null,"Fecha posesión",null,null,null,null,null,null,null,null,null,null,null,null,null,null,null,"Fecha vigencia",null,null,null,null,null,null,null,null,null,null,null,null,null,null,null,"Cargo"]
[0,null,null,null,null,"No PEP",null,null,null,null,null,null,null,"PEP nacional",null,null,null,null,null,null,null,null,null,null,"PEP extranjero"]
[0]
[0,null,"Parentesco",null,null,null,null,null,null,null,null,null,null,null,null,null,"Tipo identificación",null,null,null,null,null,null,null,null,null,null,null,null,null,null,null,null,null,null,null,null,null,null,null,null,null,null,null,null,null,null,null,null,null,null,null,null,null,null,null,null,null,null,null,null,null,null,null,null,null,null,null,null,null,null,null,null,null,null,null,null,null,null,null,null,null,null,null,null,null,null,null,null,null,null,null,null,null,null,null,null,null,null,null,null,null,null,null,null,null,null,"N°. identificación"]
[0,null,"Hija",null,null,null,null,null,null,null,null,null,null,null,null,null,null,null,null,"CC",null,null,null,null,"CE",null,null,null,null,"TI",null,null,null,null,"Pasaporte",null,null,null,null,null,null,null,null,null,"Registro civil",null,null,null,null,null,null,null,null,null,null,"Carné diplomático",null,null,null,null,null,null,null,null,null,null,null,null,null,"Permiso de protección temporal"]
[0,null,null,null,null,null,null,null,null,null,null,null,null,null,null,null,"Primer nombre",null,null,null,null,null,null,null,null,null,null,null,null,null,null,null,null,null,null,null,null,null,null,null,null,null,null,"Segundo nombre (si aplica)",null,null,null,null,null,null,null,null,null,null,null,null,null,null,null,null,null,null,null,null,null,null,null,null,null,null,"Primer apellido",null,null,null,null,null,null,null,null,null,null,null,null,null,null,null,null,null,null,null,null,null,null,null,null,null,null,"Segundo apellido (si aplica)"]
[0]
[0,null,"Tipo PEP",null,null,null,null,null,null,null,null,null,null,null,null,null,null,null,null,null,null,null,null,null,null,null,null,null,null,null,null,null,null,null,null,null,null,null,null,null,null,null,null,null,"Fecha posesión",null,null,null,null,null,null,null,null,null,null,null,null,null,null,null,"Fecha vigencia",null,null,null,null,null,null,null,null,null,null,null,null,null,null,null,"Cargo"]
[0,null,null,null,null,"No PEP",null,null,null,null,null,null,null,"PEP nacional",null,null,null,null,null,null,null,null,null,null,"PEP extranjero"]
[0]
[0,null,"Parentesco",null,null,null,null,null,null,null,null,null,null,null,null,null,"Tipo identificación",null,null,null,null,null,null,null,null,null,null,null,null,null,null,null,null,null,null,null,null,null,null,null,null,null,null,null,null,null,null,null,null,null,null,null,null,null,null,null,null,null,null,null,null,null,null,null,null,null,null,null,null,null,null,null,null,null,null,null,null,null,null,null,null,null,null,null,null,null,null,null,null,null,null,null,null,null,null,null,null,null,null,null,null,null,null,null,null,null,null,"N°. identificación"]
[0,null,"Hija",null,null,null,null,null,null,null,null,null,null,null,null,null,null,null,null,"CC",null,null,null,null,"CE",null,null,null,null,"TI",null,null,null,null,"Pasaporte",null,null,null,null,null,null,null,null,null,"Registro civil",null,null,null,null,null,null,null,null,null,null,"Carné diplomático",null,null,null,null,null,null,null,null,null,null,null,null,null,"Permiso de protección temporal"]
[0,null,null,null,null,null,null,null,null,null,null,null,null,null,null,null,"Primer nombre",null,null,null,null,null,null,null,null,null,null,null,null,null,null,null,null,null,null,null,null,null,null,null,null,null,null,"Segundo nombre (si aplica)",null,null,null,null,null,null,null,null,null,null,null,null,null,null,null,null,null,null,null,null,null,null,null,null,null,null,"Primer apellido",null,null,null,null,null,null,null,null,null,null,null,null,null,null,null,null,null,null,null,null,null,null,null,null,null,null,"Segundo apellido (si aplica)"]
[0]
[0,null,"Tipo PEP",null,null,null,null,null,null,null,null,null,null,null,null,null,null,null,null,null,null,null,null,null,null,null,null,null,null,null,null,null,null,null,null,null,null,null,null,null,null,null,null,null,"Fecha posesión",null,null,null,null,null,null,null,null,null,null,null,null,null,null,null,"Fecha vigencia",null,null,null,null,null,null,null,null,null,null,null,null,null,null,null,"Cargo"]
[0,null,null,null,null,"No PEP",null,null,null,null,null,null,null,"PEP nacional",null,null,null,null,null,null,null,null,null,null,"PEP extranjero"]
[0]
[0,null,"Parentesco",null,null,null,null,null,null,null,null,null,null,null,null,null,"Tipo identificación",null,null,null,null,null,null,null,null,null,null,null,null,null,null,null,null,null,null,null,null,null,null,null,null,null,null,null,null,null,null,null,null,null,null,null,null,null,null,null,null,null,null,null,null,null,null,null,null,null,null,null,null,null,null,null,null,null,null,null,null,null,null,null,null,null,null,null,null,null,null,null,null,null,null,null,null,null,null,null,null,null,null,null,null,null,null,null,null,null,null,"N°. identificación"]
[0,null,"Hermano",null,null,null,null,null,null,null,null,null,null,null,null,null,null,null,null,"CC",null,null,null,null,"CE",null,null,null,null,"TI",null,null,null,null,"Pasaporte",null,null,null,null,null,null,null,null,null,"Registro civil",null,null,null,null,null,null,null,null,null,null,"Carné diplomático",null,null,null,null,null,null,null,null,null,null,null,null,null,"Permiso de protección temporal"]
[0,null,null,null,null,null,null,null,null,null,null,null,null,null,null,null,"Primer nombre",null,null,null,null,null,null,null,null,null,null,null,null,null,null,null,null,null,null,null,null,null,null,null,null,null,null,"Segundo nombre (si aplica)",null,null,null,null,null,null,null,null,null,null,null,null,null,null,null,null,null,null,null,null,null,null,null,null,null,null,"Primer apellido",null,null,null,null,null,null,null,null,null,null,null,null,null,null,null,null,null,null,null,null,null,null,null,null,null,null,"Segundo apellido (si aplica)"]
[0]
[0,null,"Tipo PEP",null,null,null,null,null,null,null,null,null,null,null,null,null,null,null,null,null,null,null,null,null,null,null,null,null,null,null,null,null,null,null,null,null,null,null,null,null,null,null,null,null,"Fecha posesión",null,null,null,null,null,null,null,null,null,null,null,null,null,null,null,"Fecha vigencia",null,null,null,null,null,null,null,null,null,null,null,null,null,null,null,"Cargo"]
[0,null,null,null,null,"No PEP",null,null,null,null,null,null,null,"PEP nacional",null,null,null,null,null,null,null,null,null,null,"PEP extranjero"]
[0]
[0,null,"Parentesco",null,null,null,null,null,null,null,null,null,null,null,null,null,"Tipo identificación",null,null,null,null,null,null,null,null,null,null,null,null,null,null,null,null,null,null,null,null,null,null,null,null,null,null,null,null,null,null,null,null,null,null,null,null,null,null,null,null,null,null,null,null,null,null,null,null,null,null,null,null,null,null,null,null,null,null,null,null,null,null,null,null,null,null,null,null,null,null,null,null,null,null,null,null,null,null,null,null,null,null,null,null,null,null,null,null,null,null,"N°. identificación"]
[0,null,"Hermano",null,null,null,null,null,null,null,null,null,null,null,null,null,null,null,null,"CC",null,null,null,null,"CE",null,null,null,null,"TI",null,null,null,null,"Pasaporte",null,null,null,null,null,null,null,null,null,"Registro civil",null,null,null,null,null,null,null,null,null,null,"Carné diplomático",null,null,null,null,null,null,null,null,null,null,null,null,null,"Permiso de protección temporal"]
[0,null,null,null,null,null,null,null,null,null,null,null,null,null,null,null,"Primer nombre",null,null,null,null,null,null,null,null,null,null,null,null,null,null,null,null,null,null,null,null,null,null,null,null,null,null,"Segundo nombre (si aplica)",null,null,null,null,null,null,null,null,null,null,null,null,null,null,null,null,null,null,null,null,null,null,null,null,null,null,"Primer apellido",null,null,null,null,null,null,null,null,null,null,null,null,null,null,null,null,null,null,null,null,null,null,null,null,null,null,"Segundo apellido (si aplica)"]
[{"$f":"IF(PEP=\"Sí\",1,0)","v":0}]
[0,null,"Tipo PEP",null,null,null,null,null,null,null,null,null,null,null,null,null,null,null,null,null,null,null,null,null,null,null,null,null,null,null,null,null,null,null,null,null,null,null,null,null,null,null,null,null,"Fecha posesión",null,null,null,null,null,null,null,null,null,null,null,null,null,null,null,"Fecha vigencia",null,null,null,null,null,null,null,null,null,null,null,null,null,null,null,"Cargo"]
[0,null,null,null,null,"No PEP",null,null,null,null,null,null,null,"PEP nacional",null,null,null,null,null,null,null,null,null,null,"PEP extranjero"]
[0]
[0,null,"Parentesco",null,null,null,null,null,null,null,null,null,null,null,null,null,"Tipo identificación",null,null,null,null,null,null,null,null,null,null,null,null,null,null,null,null,null,null,null,null,null,null,null,null,null,null,null,null,null,null,null,null,null,null,null,null,null,null,null,null,null,null,null,null,null,null,null,null,null,null,null,null,null,null,null,null,null,null,null,null,null,null,null,null,null,null,null,null,null,null,null,null,null,null,null,null,null,null,null,null,null,null,null,null,null,null,null,null,null,null,"N°. identificación"]
[0,null,"Hermana",null,null,null,null,null,null,null,null,null,null,null,null,null,null,null,null,"CC",null,null,null,null,"CE",null,null,null,null,"TI",null,null,null,null,"Pasaporte",null,null,null,null,null,null,null,null,null,"Registro civil",null,null,null,null,null,null,null,null,null,null,"Carné diplomático",null,null,null,null,null,null,null,null,null,null,null,null,null,"Permiso de protección temporal"]
[0,null,null,null,null,null,null,null,null,null,null,null,null,null,null,null,"Primer nombre",null,null,null,null,null,null,null,null,null,null,null,null,null,null,null,null,null,null,null,null,null,null,null,null,null,null,"Segundo nombre (si aplica)",null,null,null,null,null,null,null,null,null,null,null,null,null,null,null,null,null,null,null,null,null,null,null,null,null,null,"Primer apellido",null,null,null,null,null,null,null,null,null,null,null,null,null,null,null,null,null,null,null,null,null,null,null,null,null,null,"Segundo apellido (si aplica)"]
[0]
[0,null,"Tipo PEP",null,null,null,null,null,null,null,null,null,null,null,null,null,null,null,null,null,null,null,null,null,null,null,null,null,null,null,null,null,null,null,null,null,null,null,null,null,null,null,null,null,"Fecha posesión",null,null,null,null,null,null,null,null,null,null,null,null,null,null,null,"Fecha vigencia",null,null,null,null,null,null,null,null,null,null,null,null,null,null,null,"Cargo"]
[0,null,null,null,null,"No PEP",null,null,null,null,null,null,null,"PEP nacional",null,null,null,null,null,null,null,null,null,null,"PEP extranjero"]
[0]
[0,null,"Parentesco",null,null,null,null,null,null,null,null,null,null,null,null,null,"Tipo identificación",null,null,null,null,null,null,null,null,null,null,null,null,null,null,null,null,null,null,null,null,null,null,null,null,null,null,null,null,null,null,null,null,null,null,null,null,null,null,null,null,null,null,null,null,null,null,null,null,null,null,null,null,null,null,null,null,null,null,null,null,null,null,null,null,null,null,null,null,null,null,null,null,null,null,null,null,null,null,null,null,null,null,null,null,null,null,null,null,null,null,"N°. identificación"]
[0,null,"Hermana",null,null,null,null,null,null,null,null,null,null,null,null,null,null,null,null,"CC",null,null,null,null,"CE",null,null,null,null,"TI",null,null,null,null,"Pasaporte",null,null,null,null,null,null,null,null,null,"Registro civil",null,null,null,null,null,null,null,null,null,null,"Carné diplomático",null,null,null,null,null,null,null,null,null,null,null,null,null,"Permiso de protección temporal"]
[0,null,null,null,null,null,null,null,null,null,null,null,null,null,null,null,"Primer nombre",null,null,null,null,null,null,null,null,null,null,null,null,null,null,null,null,null,null,null,null,null,null,null,null,null,null,"Segundo nombre (si aplica)",null,null,null,null,null,null,null,null,null,null,null,null,null,null,null,null,null,null,null,null,null,null,null,null,null,null,"Primer apellido",null,null,null,null,null,null,null,null,null,null,null,null,null,null,null,null,null,null,null,null,null,null,null,null,null,null,"Segundo apellido (si aplica)"]
[0]
[0,null,"Tipo PEP",null,null,null,null,null,null,null,null,null,null,null,null,null,null,null,null,null,null,null,null,null,null,null,null,null,null,null,null,null,null,null,null,null,null,null,null,null,null,null,null,null,"Fecha posesión",null,null,null,null,null,null,null,null,null,null,null,null,null,null,null,"Fecha vigencia",null,null,null,null,null,null,null,null,null,null,null,null,null,null,null,"Cargo"]
[0,null,null,null,null,"No PEP",null,null,null,null,null,null,null,"PEP nacional",null,null,null,null,null,null,null,null,null,null,"PEP extranjero"]
[0]
[0,null,"Parentesco",null,null,null,null,null,null,null,null,null,null,null,null,null,"Tipo identificación",null,null,null,null,null,null,null,null,null,null,null,null,null,null,null,null,null,null,null,null,null,null,null,null,null,null,null,null,null,null,null,null,null,null,null,null,null,null,null,null,null,null,null,null,null,null,null,null,null,null,null,null,null,null,null,null,null,null,null,null,null,null,null,null,null,null,null,null,null,null,null,null,null,null,null,null,null,null,null,null,null,null,null,null,null,null,null,null,null,null,"N°. identificación"]
[0,null,"Abuelo paterno",null,null,null,null,null,null,null,null,null,null,null,null,null,null,null,null,"CC",null,null,null,null,"CE",null,null,null,null,"TI",null,null,null,null,"Pasaporte",null,null,null,null,null,null,null,null,null,"Registro civil",null,null,null,null,null,null,null,null,null,null,"Carné diplomático",null,null,null,null,null,null,null,null,null,null,null,null,null,"Permiso de protección temporal"]
[0,null,null,null,null,null,null,null,null,null,null,null,null,null,null,null,"Primer nombre",null,null,null,null,null,null,null,null,null,null,null,null,null,null,null,null,null,null,null,null,null,null,null,null,null,null,"Segundo nombre (si aplica)",null,null,null,null,null,null,null,null,null,null,null,null,null,null,null,null,null,null,null,null,null,null,null,null,null,null,"Primer apellido",null,null,null,null,null,null,null,null,null,null,null,null,null,null,null,null,null,null,null,null,null,null,null,null,null,null,"Segundo apellido (si aplica)"]
[0]
[0,null,"Tipo PEP",null,null,null,null,null,null,null,null,null,null,null,null,null,null,null,null,null,null,null,null,null,null,null,null,null,null,null,null,null,null,null,null,null,null,null,null,null,null,null,null,null,"Fecha posesión",null,null,null,null,null,null,null,null,null,null,null,null,null,null,null,"Fecha vigencia",null,null,null,null,null,null,null,null,null,null,null,null,null,null,null,"Cargo"]
[0,null,null,null,null,"No PEP",null,null,null,null,null,null,null,"PEP nacional",null,null,null,null,null,null,null,null,null,null,"PEP extranjero"]
[0]
[0,null,"Parentesco",null,null,null,null,null,null,null,null,null,null,null,null,null,"Tipo identificación",null,null,null,null,null,null,null,null,null,null,null,null,null,null,null,null,null,null,null,null,null,null,null,null,null,null,null,null,null,null,null,null,null,null,null,null,null,null,null,null,null,null,null,null,null,null,null,null,null,null,null,null,null,null,null,null,null,null,null,null,null,null,null,null,null,null,null,null,null,null,null,null,null,null,null,null,null,null,null,null,null,null,null,null,null,null,null,null,null,null,"N°. identificación"]
[0,null,"Abuela paterna",null,null,null,null,null,null,null,null,null,null,null,null,null,null,null,null,"CC",null,null,null,null,"CE",null,null,null,null,"TI",null,null,null,null,"Pasaporte",null,null,null,null,null,null,null,null,null,"Registro civil",null,null,null,null,null,null,null,null,null,null,"Carné diplomático",null,null,null,null,null,null,null,null,null,null,null,null,null,"Permiso de protección temporal"]
[0,null,null,null,null,null,null,null,null,null,null,null,null,null,null,null,"Primer nombre",null,null,null,null,null,null,null,null,null,null,null,null,null,null,null,null,null,null,null,null,null,null,null,null,null,null,"Segundo nombre (si aplica)",null,null,null,null,null,null,null,null,null,null,null,null,null,null,null,null,null,null,null,null,null,null,null,null,null,null,"Primer apellido",null,null,null,null,null,null,null,null,null,null,null,null,null,null,null,null,null,null,null,null,null,null,null,null,null,null,"Segundo apellido (si aplica)"]
[0]
[0,null,"Tipo PEP",null,null,null,null,null,null,null,null,null,null,null,null,null,null,null,null,null,null,null,null,null,null,null,null,null,null,null,null,null,null,null,null,null,null,null,null,null,null,null,null,null,"Fecha posesión",null,null,null,null,null,null,null,null,null,null,null,null,null,null,null,"Fecha vigencia",null,null,null,null,null,null,null,null,null,null,null,null,null,null,null,"Cargo"]
[0,null,null,null,null,"No PEP",null,null,null,null,null,null,null,"PEP nacional",null,null,null,null,null,null,null,null,null,null,"PEP extranjero"]
[0]
[0,null,"Parentesco",null,null,null,null,null,null,null,null,null,null,null,null,null,"Tipo identificación",null,null,null,null,null,null,null,null,null,null,null,null,null,null,null,null,null,null,null,null,null,null,null,null,null,null,null,null,null,null,null,null,null,null,null,null,null,null,null,null,null,null,null,null,null,null,null,null,null,null,null,null,null,null,null,null,null,null,null,null,null,null,null,null,null,null,null,null,null,null,null,null,null,null,null,null,null,null,null,null,null,null,null,null,null,null,null,null,null,null,"N°. identificación"]
[0,null,"Abuelo materno",null,null,null,null,null,null,null,null,null,null,null,null,null,null,null,null,"CC",null,null,null,null,"CE",null,null,null,null,"TI",null,null,null,null,"Pasaporte",null,null,null,null,null,null,null,null,null,"Registro civil",null,null,null,null,null,null,null,null,null,null,"Carné diplomático",null,null,null,null,null,null,null,null,null,null,null,null,null,"Permiso de protección temporal"]
[{"$f":"IF(PEP=\"Sí\",1,0)","v":0},null,null,null,null,null,null,null,null,null,null,null,null,null,null,null,"Primer nombre",null,null,null,null,null,null,null,null,null,null,null,null,null,null,null,null,null,null,null,null,null,null,null,null,null,null,"Segundo nombre (si aplica)",null,null,null,null,null,null,null,null,null,null,null,null,null,null,null,null,null,null,null,null,null,null,null,null,null,null,"Primer apellido",null,null,null,null,null,null,null,null,null,null,null,null,null,null,null,null,null,null,null,null,null,null,null,null,null,null,"Segundo apellido (si aplica)"]
[0]
[0,null,"Tipo PEP",null,null,null,null,null,null,null,null,null,null,null,null,null,null,null,null,null,null,null,null,null,null,null,null,null,null,null,null,null,null,null,null,null,null,null,null,null,null,null,null,null,"Fecha posesión",null,null,null,null,null,null,null,null,null,null,null,null,null,null,null,"Fecha vigencia",null,null,null,null,null,null,null,null,null,null,null,null,null,null,null,"Cargo"]
[0,null,null,null,null,"No PEP",null,null,null,null,null,null,null,"PEP nacional",null,null,null,null,null,null,null,null,null,null,"PEP extranjero"]
[0]
[0,null,"Parentesco",null,null,null,null,null,null,null,null,null,null,null,null,null,"Tipo identificación",null,null,null,null,null,null,null,null,null,null,null,null,null,null,null,null,null,null,null,null,null,null,null,null,null,null,null,null,null,null,null,null,null,null,null,null,null,null,null,null,null,null,null,null,null,null,null,null,null,null,null,null,null,null,null,null,null,null,null,null,null,null,null,null,null,null,null,null,null,null,null,null,null,null,null,null,null,null,null,null,null,null,null,null,null,null,null,null,null,null,"N°. identificación"]
[0,null,"Abuela materna",null,null,null,null,null,null,null,null,null,null,null,null,null,null,null,null,"CC",null,null,null,null,"CE",null,null,null,null,"TI",null,null,null,null,"Pasaporte",null,null,null,null,null,null,null,null,null,"Registro civil",null,null,null,null,null,null,null,null,null,null,"Carné diplomático",null,null,null,null,null,null,null,null,null,null,null,null,null,"Permiso de protección temporal"]
[0,null,null,null,null,null,null,null,null,null,null,null,null,null,null,null,"Primer nombre",null,null,null,null,null,null,null,null,null,null,null,null,null,null,null,null,null,null,null,null,null,null,null,null,null,null,"Segundo nombre (si aplica)",null,null,null,null,null,null,null,null,null,null,null,null,null,null,null,null,null,null,null,null,null,null,null,null,null,null,"Primer apellido",null,null,null,null,null,null,null,null,null,null,null,null,null,null,null,null,null,null,null,null,null,null,null,null,null,null,"Segundo apellido (si aplica)"]
[0]
[0,null,"Tipo PEP",null,null,null,null,null,null,null,null,null,null,null,null,null,null,null,null,null,null,null,null,null,null,null,null,null,null,null,null,null,null,null,null,null,null,null,null,null,null,null,null,null,"Fecha posesión",null,null,null,null,null,null,null,null,null,null,null,null,null,null,null,"Fecha vigencia",null,null,null,null,null,null,null,null,null,null,null,null,null,null,null,"Cargo"]
[0,null,null,null,null,"No PEP",null,null,null,null,null,null,null,"PEP nacional",null,null,null,null,null,null,null,null,null,null,"PEP extranjero"]
[0]
[0,null,"Parentesco",null,null,null,null,null,null,null,null,null,null,null,null,null,"Tipo identificación",null,null,null,null,null,null,null,null,null,null,null,null,null,null,null,null,null,null,null,null,null,null,null,null,null,null,null,null,null,null,null,null,null,null,null,null,null,null,null,null,null,null,null,null,null,null,null,null,null,null,null,null,null,null,null,null,null,null,null,null,null,null,null,null,null,null,null,null,null,null,null,null,null,null,null,null,null,null,null,null,null,null,null,null,null,null,null,null,null,null,"N°. identificación"]
[0,null,"Suegro",null,null,null,null,null,null,null,null,null,null,null,null,null,null,null,null,"CC",null,null,null,null,"CE",null,null,null,null,"TI",null,null,null,null,"Pasaporte",null,null,null,null,null,null,null,null,null,"Registro civil",null,null,null,null,null,null,null,null,null,null,"Carné diplomático",null,null,null,null,null,null,null,null,null,null,null,null,null,"Permiso de protección temporal"]
[0,null,null,null,null,null,null,null,null,null,null,null,null,null,null,null,"Primer nombre",null,null,null,null,null,null,null,null,null,null,null,null,null,null,null,null,null,null,null,null,null,null,null,null,null,null,"Segundo nombre (si aplica)",null,null,null,null,null,null,null,null,null,null,null,null,null,null,null,null,null,null,null,null,null,null,null,null,null,null,"Primer apellido",null,null,null,null,null,null,null,null,null,null,null,null,null,null,null,null,null,null,null,null,null,null,null,null,null,null,"Segundo apellido (si aplica)"]
[0]
[0,null,"Tipo PEP",null,null,null,null,null,null,null,null,null,null,null,null,null,null,null,null,null,null,null,null,null,null,null,null,null,null,null,null,null,null,null,null,null,null,null,null,null,null,null,null,null,"Fecha posesión",null,null,null,null,null,null,null,null,null,null,null,null,null,null,null,"Fecha vigencia",null,null,null,null,null,null,null,null,null,null,null,null,null,null,null,"Cargo"]
[0,null,null,null,null,"No PEP",null,null,null,null,null,null,null,"PEP nacional",null,null,null,null,null,null,null,null,null,null,"PEP extranjero"]
[0]
[0,null,"Parentesco",null,null,null,null,null,null,null,null,null,null,null,null,null,"Tipo identificación",null,null,null,null,null,null,null,null,null,null,null,null,null,null,null,null,null,null,null,null,null,null,null,null,null,null,null,null,null,null,null,null,null,null,null,null,null,null,null,null,null,null,null,null,null,null,null,null,null,null,null,null,null,null,null,null,null,null,null,null,null,null,null,null,null,null,null,null,null,null,null,null,null,null,null,null,null,null,null,null,null,null,null,null,null,null,null,null,null,null,"N°. identificación"]
[0,null,"Suegra",null,null,null,null,null,null,null,null,null,null,null,null,null,null,null,null,"CC",null,null,null,null,"CE",null,null,null,null,"TI",null,null,null,null,"Pasaporte",null,null,null,null,null,null,null,null,null,"Registro civil",null,null,null,null,null,null,null,null,null,null,"Carné diplomático",null,null,null,null,null,null,null,null,null,null,null,null,null,"Permiso de protección temporal"]
[0,null,null,null,null,null,null,null,null,null,null,null,null,null,null,null,"Primer nombre",null,null,null,null,null,null,null,null,null,null,null,null,null,null,null,null,null,null,null,null,null,null,null,null,null,null,"Segundo nombre (si aplica)",null,null,null,null,null,null,null,null,null,null,null,null,null,null,null,null,null,null,null,null,null,null,null,null,null,null,"Primer apellido",null,null,null,null,null,null,null,null,null,null,null,null,null,null,null,null,null,null,null,null,null,null,null,null,null,null,"Segundo apellido (si aplica)"]
[0]
[0,null,"Tipo PEP",null,null,null,null,null,null,null,null,null,null,null,null,null,null,null,null,null,null,null,null,null,null,null,null,null,null,null,null,null,null,null,null,null,null,null,null,null,null,null,null,null,"Fecha posesión",null,null,null,null,null,null,null,null,null,null,null,null,null,null,null,"Fecha vigencia",null,null,null,null,null,null,null,null,null,null,null,null,null,null,null,"Cargo"]
[0,null,null,null,null,"No PEP",null,null,null,null,null,null,null,"PEP nacional",null,null,null,null,null,null,null,null,null,null,"PEP extranjero"]
[0]
[{"$f":"IF(OR(VinculacionClienteNuevo=\"Sí\",ActualizacionDatos=\"Sí\")=TRUE(),1,0)","v":0},null,"DATOS LABORALES"]
[0]
[0,null,"Fecha ingreso",null,null,null,null,null,null,null,null,null,null,null,null,null,null,null,"Nombre empleador",null,null,null,null,null,null,null,null,null,null,null,null,null,null,null,null,null,null,null,null,null,null,null,null,null,null,null,null,null,null,null,null,null,null,null,null,null,null,null,null,null,null,null,null,null,null,null,null,null,null,null,null,null,null,null,null,null,null,null,null,null,null,null,null,null,null,null,null,null,null,null,null,null,null,"Cargo"]
[0]
[0,null,"Tipo vinculación/contrato",null,null,null,null,null,null,null,null,null,null,null,null,null,null,null,null,null,null,null,null,null,null,null,null,null,null,null,null,null,null,null,null,null,null,null,null,null,null,null,null,null,null,null,null,null,null,null,null,null,null,null,null,null,null,null,null,null,null,null,null,null,null,null,null,null,null,null,null,null,null,null,null,null,null,null,null,null,null,null,null,null,null,null,null,null,null,null,null,null,null,null,null,null,null,"Salario"]
[0,null,null,null,null,"Fijo",null,null,null,null,null,"Indefinido",null,null,null,null,null,null,null,null,"Prestación de servicios",null,null,null,null,null,null,null,null,null,null,null,null,null,null,null,null,"Labor contratada",null,null,null,null,null,null,null,null,null,null,null,null,"Otro:"]
[0,null,"Dirección empresa/oficina (especificar N°. de local u oficina, barrio) ",null,null,null,null,null,null,null,null,null,null,null,null,null,null,null,null,null,null,null,null,null,null,null,null,null,null,null,null,null,null,null,null,null,null,null,null,null,null,null,null,null,null,null,null,null,null,null,null,null,null,null,null,null,null,null,null,null,null,null,null,null,null,null,null,"Ciudad, departamento, país",null,null,null,null,null,null,null,null,null,null,null,null,null,null,null,null,null,null,null,null,null,null,null,null,null,null,null,null,null,null,"Teléfono",null,null,null,null,null,null,null,null,null,null,null,null,null,"Extensión"]
[0]
[0]
[0,null,"ESTABLECIMIENTO DE COMERCIO PERSONA NATURAL"]
[0]
[0,null,"Nombre comercial y N°. mercantil",null,null,null,null,null,null,null,null,null,null,null,null,null,null,null,null,null,null,null,null,null,null,null,null,null,null,null,null,null,null,null,null,null,null,null,null,null,null,null,null,null,null,null,null,null,null,null,null,null,null,null,null,null,null,null,null,null,null,null,null,null,null,null,null,null,null,null,null,null,null,null,null,null,null,null,null,null,null,null,null,null,null,null,null,null,null,null,null,null,null,null,null,null,null,null,null,null,null,null,null,null,null,null,null,"Código CIIU"]
[{"$f":"IF(OR(VinculacionClienteNuevo=\"Sí\",ActualizacionDatos=\"Sí\")=TRUE(),1,0)","v":0}]
[0,null,"Actividad económica"]
[0,null,null,null,null,"Agroprecuario",null,null,null,null,null,null,null,null,null,null,null,"Comercio",null,null,null,null,null,null,null,null,"Comunicaciones",null,null,null,null,null,null,null,null,null,null,null,null,null,"Construcción",null,null,null,null,null,null,null,null,null,null,null,"Financiero",null,null,null,null,null,null,null,null,null,"Insdustrial/Producción",null,null,null,null,null,null,null,null,null,null,null,null,null,null,null,null,"Minero",null,null,null,null,null,null,null,"Servicios",null,null,null,null,null,null,null,null,"Transporte"]
[0,null,"Tipo identificación",null,null,null,null,null,null,null,null,null,null,null,null,null,null,null,null,null,null,null,null,null,null,null,null,null,null,null,null,null,null,null,null,null,null,null,null,null,null,null,null,null,null,null,null,null,null,null,null,null,null,null,null,null,null,null,null,null,null,null,null,null,null,null,null,null,null,null,null,null,null,null,null,null,null,null,null,null,null,null,null,null,null,null,null,null,null,null,null,null,null,"N°. identificación",null,null,null,null,null,null,null,null,null,null,null,null,null,"Teléfono"]
[0,null,null,null,null,"RUT",null,null,null,null,null,"CC",null,null,null,null,"CE",null,null,null,null,"TI",null,null,null,null,"Pasaporte",null,null,null,null,null,null,null,null,null,"Registro civil",null,null,null,null,null,null,null,null,null,null,"Carné diplomático",null,null,null,null,null,null,null,null,null,null,null,null,null,"Permiso de protección temporal"]
[0,null,"Dirección (especificar N°. de local u oficina, barrio) ",null,null,null,null,null,null,null,null,null,null,null,null,null,null,null,null,null,null,null,null,null,null,null,null,null,null,null,null,null,null,null,null,null,null,null,null,null,null,null,null,null,null,null,null,null,null,"País",null,null,null,null,null,null,null,null,null,null,null,null,null,null,null,null,null,null,null,null,null,null,null,"Departamento",null,null,null,null,null,null,null,null,null,null,null,null,null,null,null,null,null,null,null,null,null,null,null,"Ciudad"]
[0]
[0]
[0,null,"DATOS FINANCIEROS EN PESOS"]
[0]
[0,null,"Ingresos/ventas mensuales",null,null,null,null,null,null,null,null,null,null,null,null,null,null,null,null,null,null,null,null,null,null,null,"Descricpión origen de fondos (detalle ocupación, oficio, profesión, actividad, etc.)",null,null,null,null,null,null,null,null,null,null,null,null,null,null,null,null,null,null,null,null,null,null,null,null,null,null,null,null,null,null,null,null,null,null,null,null,null,null,null,null,null,null,null,null,null,null,null,null,null,null,null,null,null,null,null,null,null,null,null,null,null,null,null,null,null,null,null,null,null,null,"Total activos (bienes, títulos valor...)"]
[0]
[0,null,"Otros ingresos mensuales",null,null,null,null,null,null,null,null,null,null,null,null,null,null,null,null,null,null,null,null,null,null,null,"Descricpión de otros ingresos",null,null,null,null,null,null,null,null,null,null,null,null,null,null,null,null,null,null,null,null,null,null,null,null,null,null,null,null,null,null,null,null,null,null,null,null,null,null,null,null,null,null,null,null,null,null,null,null,null,null,null,null,null,null,null,null,null,null,null,null,null,null,null,null,null,null,null,null,null,null,"Total pasivos (deudas)"]
[0]
[0,null,"Egresos mensuales",null,null,null,null,null,null,null,null,null,null,null,null,null,null,null,null,null,null,null,null,null,null,null,"¿Tiene productos de fiducia?:",null,null,null,null,null,null,null,null,null,null,null,null,null,null,null,null,null,null,null,null,null,null,"Sí",null,null,null,"No",null,null,"Descripción clase recursos e identificación bien entregado (fiducia)"]
[0]
[0]
[0,null,"NEGOCIOS INTERNACIONALES"]
[0]
[0,null,"¿Realiza negocios internacionales?:",null,null,null,null,null,null,null,null,null,null,null,null,null,null,null,null,null,null,null,null,null,null,null,"Sí",null,null,null,"No"]
[{"$f":"IF(OR(VinculacionClienteNuevo=\"Sí\",ActualizacionDatos=\"Sí\")=TRUE(),1,0)","v":0},null,"Tipo de negocio u operaciones en Moneda Extranjera que normalmente realiza:",null,null,null,null,null,null,null,null,null,null,null,null,null,null,null,null,null,null,null,null,null,null,null,null,null,null,null,null,null,null,null,null,null,null,null,null,null,null,null,null,null,null,"Exportación",null,null,null,null,null,null,null,null,null,"Importación",null,null,null,null,null,null,null,null,null,"Inversiones",null,null,null,null,null,null,null,null,null,"Pago de servicio",null,null,null,null,null,null,null,null,null,null,null,null,"Préstamos en M.E.",null,null,null,null,null,null,null,null,null,null,null,null,null,"Otro:"]
[0]
[0,null,"Tipo producto financiero",null,null,null,null,null,null,null,null,null,null,null,null,null,null,null,null,null,null,null,null,null,null,null,"Entidad producto",null,null,null,null,null,null,null,null,null,null,null,null,null,null,null,null,null,null,null,null,null,null,null,"Número producto",null,null,null,null,null,null,null,null,null,null,null,null,null,null,null,null,null,null,null,null,null,null,null,"Moneda producto",null,null,null,null,null,null,null,null,null,null,null,null,null,null,null,null,null,null,null,null,null,null,null,"Monto/saldo actual M.E."]
[0]
[0,null,"País producto",null,null,null,null,null,null,null,null,null,null,null,null,null,null,null,null,null,null,null,null,null,null,null,"Ciudad producto"]
[0]
[0]
[{"$f":"IF(OR(AND(VinculacionClienteNuevo=\"Sí\",ActualizacionDatos=\"No\"),AND(VinculacionClienteNuevo=\"Sí\",ActualizacionDatos=\"Sí\"),AND(VinculacionClienteNuevo=\"Sí\",ActualizacionDatos=\"\"))=TRUE(),1,0)","v":0},null,"NIVEL ESTIMADO DE TRANSACCIONALIDAD DEL CLIENTE"]
[0]
[0,null,null,null,null,null,null,null,null,null,null,null,null,null,null,null,null,null,null,null,null,null,null,null,null,null,null,null,null,null,null,null,null,null,null,null,null,"Retiros mensuales (débitos)",null,null,null,null,null,null,null,null,null,null,null,null,null,null,null,null,null,null,null,null,null,null,null,"Depósitos mensuales (créditos)"]
[0]
[0]
[0,null,"RELACIONADOS PERSONA NATURAL"]
[0]
[0,null,"Tipo de relación",null,null,null,null,null,null,null,null,null,null,null,null,null,null,null,null,null,null,null,null,null,null,null,null,null,null,null,null,null,null,null,null,null,null,null,null,null,null,null,null,null,null,null,null,null,null,null,null,null,null,"Nombres y apellidos",null,null,null,null,null,null,null,null,null,null,null,null,null,null,null,null,null,null,null,null,null,null,null,null,null,null,null,null,null,null,null,null,null,null,null,null,null,null,null,null,null,null,null,null,null,null,null,"Tipo identificación"]
[0,null,null,null,null,"Sociedad conyugal, de hecho o derecho",null,null,null,null,null,null,null,null,null,null,null,null,null,null,null,null,null,null,null,null,null,null,null,null,null,null,"Tutor o apoderado"]
[0,null,"N°. identificación",null,null,null,null,null,null,null,null,null,null,null,null,null,"Dato de contacto (celular, correo electrónico, dirección…)"]
[0]
[0]
[0,null,"REFERENCIA"]
[0]
[0,null,"Tipo de referencia",null,null,null,null,null,null,null,null,null,null,null,null,null,null,null,null,null,null,null,null,null,null,null,null,null,null,"Nombres y apellidos",null,null,null,null,null,null,null,null,null,null,null,null,null,null,null,null,null,null,null,null,null,null,null,null,null,null,null,null,null,null,null,null,null,null,null,null,null,null,null,null,null,null,null,null,null,null,null,"Teléfono",null,null,null,null,null,null,null,null,null,null,null,null,null,"Ciudad, departamento, país"]
[0,null,null,null,null,"Personal",null,null,null,null,null,null,null,null,"Familiar",null,null,null,null,null,null,null,"Comercial"]
[0]
[{"$f":"IF(SolicitudProductoMantenimiento=\"Sí\",1,0)","v":0},null,"SOLICITUD/MANTENIMIENTO DE PRODUCTO"]
[0]
[0,null,"PRODUCTOS/MODALIDADES"]
[0]
[0,null,null,null,"Préstamo Personal",null,null,null,null,null,null,null,null,null,null,null,null,"Cartera Ordinaria",null,null,null,null,null,null,null,null,null,null,null,"Crédito Rotativo",null,null,null,null,null,null,null,null,null,null,"Cuenta Activa Básica",null,null,null,null,null,null,null,null,null,null,null,null,null,"Cuenta Activa Crédito Rotativo",null,null,null,null,null,null,null,null,null,null,null,null,null,null,null,null,null,"Cuenta Activa Préstamo Personal",null,null,null,null,null,null,null,null,null,null,null,null,null,null,null,null,null,null,null,null,"Cuenta de Ahorros"]
[0]
[0,null,null,null,"Cuenta Corriente",null,null,null,null,null,null,null,null,null,null,null,"Tarjeta de Crédito",null,null,null,null,null,null,null,null,null,null,null,"Tarjeta de Crédito Amparada",null,null,null,null,null,null,null,null,null,null,null,null,null,null,null,null,"Productos/servicios Fiduciaria",null,null,null,null,null,null,null,null,null,null,null,null,null,null,null,null,"Portafolio Aval",null,null,null,null,null,null,null,null,null,null,"Cuenta corriente de uso exclusivo para colombianos en el exterior"]
[0]
[0,null,"Nota: en caso que mi solicitud de producto sea una cuenta corriente de uso exclusivo para colombianos en el exterior, me comprometo a que los recursos que ingresen en dicha cuenta serán destinados única y exclusivamente al pago de la"]
[0,null," operación de vivienda que me sea desembolsada por el Banco de Occidente."]
[0]
[0,null,"MANTENIMIENTOS"]
[0]
[0,null,null,null,"Aumento o disminución de cupo de tarjeta de crédito",null,null,null,null,null,null,null,null,null,null,null,null,null,null,null,null,null,null,null,null,null,null,null,null,null,null,null,"Unificación/traslado de cupos de Tarjeta de Crédito (titular o amparado)",null,null,null,null,null,null,null,null,null,null,null,null,null,null,null,null,null,null,null,null,null,null,null,null,null,null,null,null,null,null,null,null,null,null,null,null,"Codeudor sin plástico (Tarjeta de Crédito)",null,null,null,null,null,null,null,null,null,null,null,null,null,null,null,null,null,null,null,null,null,null,"Reactivación de Tarjeta de Crédito"]
[0]
[0,null,null,null,"Cambio de producto (Tarjeta de Crédito)"]
[0]
[{"$f":"IF(OR(PrestamoPersonal=\"Sí\",CarteraOrdinaria=\"Sí\",CreditoRotativo=\"Sí\",CuentaActivaBasica=\"Sí\",CuentaActivaCreditoRotativo=\"Sí\",CuentaActivaPrestamoPersonal=\"Sí\",TarjetaCredito=\"Sí\",TarjetaCreditoAmparada=\"Sí\",PortafolioAval=\"Sí\")=TRUE(),1,0)","v":0},null,"DETALLE DE ACTIVOS"]
[0]
[0,null,"Tipo inmueble",null,null,null,null,null,null,null,null,null,null,"Dirección",null,null,null,null,null,null,null,null,null,null,null,null,null,null,null,null,null,null,null,null,null,null,null,null,null,null,null,null,null,null,null,null,null,null,null,null,null,null,null,null,null,null,null,null,"Ciudad/Departamento",null,null,null,null,null,null,null,null,null,null,null,null,null,null,null,null,null,null,null,null,null,null,"Hipotecado a",null,null,null,null,null,null,null,null,null,null,null,null,null,null,null,null,"Valor comercial"]
[0]
[0,null,"Tipo inmueble",null,null,null,null,null,null,null,null,null,null,"Dirección",null,null,null,null,null,null,null,null,null,null,null,null,null,null,null,null,null,null,null,null,null,null,null,null,null,null,null,null,null,null,null,null,null,null,null,null,null,null,null,null,null,null,null,null,"Ciudad/Departamento",null,null,null,null,null,null,null,null,null,null,null,null,null,null,null,null,null,null,null,null,null,null,"Hipotecado a",null,null,null,null,null,null,null,null,null,null,null,null,null,null,null,null,"Valor comercial"]
[0]
[0,null,"Tipo vehículo",null,null,null,null,null,null,null,null,null,null,"Marca",null,null,null,null,null,null,null,null,null,null,null,null,null,null,null,null,null,null,null,"Línea",null,null,null,null,null,null,null,null,null,null,null,null,null,null,null,null,null,null,null,"Modelo",null,null,null,null,null,null,null,null,null,null,null,null,null,"Placa",null,null,null,null,null,null,null,null,null,null,null,null,null,"Pignorado a",null,null,null,null,null,null,null,null,null,null,null,null,null,null,null,null,"Valor comercial"]
[0]
[0,null,"Tipo vehículo",null,null,null,null,null,null,null,null,null,null,"Marca",null,null,null,null,null,null,null,null,null,null,null,null,null,null,null,null,null,null,null,"Línea",null,null,null,null,null,null,null,null,null,null,null,null,null,null,null,null,null,null,null,"Modelo",null,null,null,null,null,null,null,null,null,null,null,null,null,"Placa",null,null,null,null,null,null,null,null,null,null,null,null,null,"Pignorado a",null,null,null,null,null,null,null,null,null,null,null,null,null,null,null,null,"Valor comercial"]
[0]
[0]
[{"$f":"IF(OR(CuentaActivaBasica=\"Sí\",CuentaActivaCreditoRotativo=\"Sí\",CuentaActivaPrestamoPersonal=\"Sí\",TarjetaCredito=\"Sí\",TarjetaCreditoAmparada=\"Sí\",PortafolioAval=\"Sí\")=TRUE(),1,0)","v":0},null,"TARJETA DE CRÉDITO"]
[0]
[0,null,"Mastercard",null,null,null,null,null,null,null,null,null,null,null,null,null,null,null,null,null,null,null,null,null,null,null,null,null,null,null,null,null,null,"Visa",null,null,null,null,null,null,null,null,null,null,null,null,null,null,null,null,null,null,null,null,null,null,null,null,null,null,null,null,null,null,null,null,null,null,null,null,null,null,null,null,null,null,null,"Dirección entrega tarjeta(s)"]
[0]
[0,null,null,null,null,"Credencial Joven",null,null,null,null,null,null,null,null,null,null,null,null,null,null,"Marca compartida:",null,null,null,null,null,null,null,null,null,null,null,null,null,null,null,"Credencial Clásica",null,null,null,null,null,null,null,null,null,null,null,null,null,null,"Marcas compartidas:"]
[0,null,null,null,null,"Credencial Clásica",null,null,null,null,null,null,null,null,null,null,null,null,null,null,null,null,"UNICEF",null,null,null,null,null,null,null,null,null,null,null,null,null,"Credencial Gold",null,null,null,null,null,null,null,null,null,null,null,null,null,null,"Credencial LATAMPASS:",null,null,null,null,null,null,null,null,null,null,null,null,null,null,null,null,null,null,null,null,null,null,null,null,null,"Fecha de pago"]
[0,null,null,null,null,"Credencial Gold",null,null,null,null,null,null,null,null,null,null,null,null,null,null,null,null,"Otra:",null,null,null,null,null,null,null,null,null,null,null,null,null,"Credencial Platinum",null,null,null,null,null,null,null,null,null,null,null,null,null,null,null,null,"Clásica"]
[0,null,null,null,null,"Credencial Platinum",null,null,null,null,null,null,null,null,null,null,null,null,null,null,null,null,null,null,null,null,null,null,null,null,null,null,null,null,null,null,"Credencial Infinite",null,null,null,null,null,null,null,null,null,null,null,null,null,null,null,null,"Oro",null,null,null,null,null,null,null,null,null,null,null,null,null,null,null,null,null,null,null,null,null,null,null,null,null,null,"Mastercard a mediados de mes",null,null,null,null,null,null,null,null,null,null,null,null,null,null,null,null,null,null,"Visa a mediados de mes"]
[0,null,null,null,null,"Credencial Black",null,null,null,null,null,null,null,null,null,null,null,null,null,null,null,null,null,null,null,null,null,null,null,null,null,null,null,null,null,null,"Credencial Mascotas",null,null,null,null,null,null,null,null,null,null,null,null,null,null,null,null,"Platinum",null,null,null,null,null,null,null,null,null,null,null,null,null,null,null,null,null,null,null,null,null,null,null,null,null,null,"Mastercard a finales de mes",null,null,null,null,null,null,null,null,null,null,null,null,null,null,null,null,null,null,"Visa a finales de mes"]
[0,null,null,null,null,null,null,null,null,null,null,null,null,null,null,null,null,null,null,null,null,null,null,null,null,null,null,null,null,null,null,null,null,null,null,null,"Credencial Free",null,null,null,null,null,null,null,null,null,null,null,null,null,null,null,null,"Signature"]
[0,null,null,null,null,null,null,null,null,null,null,null,null,null,null,null,null,null,null,null,null,null,null,null,null,null,null,null,null,null,null,null,null,null,null,null,null,null,null,null,null,null,null,null,null,null,null,null,null,null,null,null,null,"Priority Pass"]
[0,null,null,null,null,null,null,null,null,null,null,null,null,null,null,null,null,null,null,null,null,null,null,null,null,null,null,null,null,null,null,null,null,null,null,null,null,null,null,null,null,null,null,null,null,null,null,null,null,null,null,null,null,"Credencial Centro Comercial Santafé",null,null,null,null,null,null,null,null,null,null,null,null,null,null,null,null,null,null,null,null,null,null,null,null,null,null,"¿Codeudor sin plástico?"]
[0,null,null,null,null,null,null,null,null,null,null,null,null,null,null,null,null,null,null,null,null,null,null,null,null,null,null,null,null,null,null,null,null,null,null,null,null,null,null,null,null,null,null,null,null,null,null,null,null,null,null,null,null,"Otra:"]
[0]
[0]
[{"$f":"IF(TarjetaCreditoAmparada=\"Sí\",1,0)","v":0},null,"TARJETA DE CRÉDITO AMPARADA"]
[0]
[0,null,"Realizar traslado de cupo de mi(s) tarjeta(s) de crédito para amparado(s) así:"]
[0]
[0,null,"N°. tarjeta crédito",null,null,null,null,null,null,null,null,null,null,null,null,null,"Tipo identificación",null,null,null,null,null,null,null,null,null,null,null,null,"N°. identificación",null,null,null,null,null,null,null,null,null,null,null,null,null,"Por valor:",null,null,null,null,null,null,null,null,null,null,null,null,null,null,null,null,null,null,null,null,"Unificar",null,null,null,null,null,"Franquicia deseada",null,null,null,null,null,null,null,null,null,null,null,null,null,null,null,null,null,null,null,"Dirección lugar entrega"]
[0,null,"N°. del titular"]
[0,null,"N°. del titular"]
[0,null,"N°. del titular"]
[0,null,"N°. del titular"]
[0,null,"N°. del titular"]
[0,null,"N°. del titular"]
[0]
[{"$f":"IF(OR(ProductosServiciosFiduciaria=\"Sí\",PortafolioAval=\"Sí\")=TRUE(),1,0)","v":0},null,"PRODUCTOS/SERVICIOS FIDUCIARIOS"]
[0]
[0,null,"CO-TITULARES"]
[0]
[0,null,"Nombres y apellidos-Razón social",null,null,null,null,null,null,null,null,null,null,null,null,null,null,null,null,null,null,null,null,null,null,null,null,null,null,null,null,null,null,null,null,null,null,null,null,null,null,null,null,null,null,null,null,null,null,null,null,null,null,null,null,null,null,null,null,null,null,null,null,null,null,null,null,null,null,null,null,null,null,null,"N°. identificación",null,null,null,null,null,null,null,null,null,null,null,null,null,null,null,null,"Y"]
[0,null,null,null,null,null,null,null,null,null,null,null,null,null,null,null,null,null,null,null,null,null,null,null,null,null,null,null,null,null,null,null,null,null,null,null,null,null,null,null,null,null,null,null,null,null,null,null,null,null,null,null,null,null,null,null,null,null,null,null,null,null,null,null,null,null,null,null,null,null,null,null,null,null,null,null,null,null,null,null,null,null,null,null,null,null,null,null,null,null,null,"O"]
[0]
[0,null,"FONDO DE INVERSIÓN COLECTIVA"]
[0,null,null,null,null,null,null,null,null,null,null,null,null,null,null,null,null,null,null,null,null,"N\" inversión",null,null,null,null,null,null,null,null,null,null,null,null,null,null,null,null,null,null,null,null,null,null,null,null,null,null,null,null,null,null,null,null,null,null,null,null,null,null,null,null,null,null,null,null,null,null,null,null,null,null,null,null,null,null,null,null,null,null,null,null,"N\" inversión"]
[0]
[0,null,null,null,"Nombre fondo",null,null,null,null,null,null,null,null,null,null,null,null,null,null,null,null,"Fondo de inversión",null,null,null,null,null,null,null,null,null,null,null,null,null,"Cod. oficina",null,null,null,null,null,null,null,null,null,null,"N°. inversión",null,null,null,null,null,null,null,null,null,null,null,null,null,null,null,null,null,null,"Nombre fondo",null,null,null,null,null,null,null,null,null,null,null,null,null,null,null,null,"Fondo de inversión",null,null,null,null,null,null,null,null,null,null,null,null,null,"Cod. oficina",null,null,null,null,null,null,null,null,null,null,"N°. inversión"]
[0]
[0,null,null,null,null,null,null,null,null,null,null,null,null,null,null,null,null,null,null,null,null,{"$f":"IFERROR(VLOOKUP(E308,$CT$1236:$CW$1245,2,0),\"\")","v":""},null,null,null,{"$f":"IFERROR(VLOOKUP(E308,$CT$1236:$CW$1245,3,0),\"\")","v":""},null,null,null,{"$f":"IFERROR(VLOOKUP(E308,$CT$1236:$CW$1245,4,0),\"\")","v":""},null,null,null,"-",null,null,null,null,null,null,null,null,null,null,"-",null,null,null,null,null,null,null,null,null,null,null,null,null,null,null,null,null,null,null,null,null,null,null,null,null,null,null,null,null,null,null,null,null,null,null,null,null,{"$f":"IFERROR(VLOOKUP(BN308,$CT$1236:$CW$1245,2,0),\"\")","v":""},null,null,null,{"$f":"IFERROR(VLOOKUP(BN308,$CT$1236:$CW$1245,3,0),\"\")","v":""},null,null,null,{"$f":"IFERROR(VLOOKUP(BN308,$CT$1236:$CW$1245,4,0),\"\")","v":""},null,null,null,"-",null,null,null,null,null,null,null,null,null,null,"-"]
[0]
[0,null,null,null,null,null,null,null,null,null,null,null,null,null,null,null,null,null,null,null,null,{"$f":"IFERROR(VLOOKUP(E310,$CT$1236:$CW$1245,2,0),\"\")","v":""},null,null,null,{"$f":"IFERROR(VLOOKUP(E310,$CT$1236:$CW$1245,3,0),\"\")","v":""},null,null,null,{"$f":"IFERROR(VLOOKUP(E310,$CT$1236:$CW$1245,4,0),\"\")","v":""},null,null,null,"-",null,null,null,null,null,null,null,null,null,null,"-",null,null,null,null,null,null,null,null,null,null,null,null,null,null,null,null,null,null,null,null,null,null,null,null,null,null,null,null,null,null,null,null,null,null,null,null,null,{"$f":"IFERROR(VLOOKUP(BN310,$CT$1236:$CW$1245,2,0),\"\")","v":""},null,null,null,{"$f":"IFERROR(VLOOKUP(BN310,$CT$1236:$CW$1245,3,0),\"\")","v":""},null,null,null,{"$f":"IFERROR(VLOOKUP(BN310,$CT$1236:$CW$1245,4,0),\"\")","v":""},null,null,null,"-",null,null,null,null,null,null,null,null,null,null,"-"]
[0]
[0,null,null,null,null,null,null,null,null,null,null,null,null,null,null,null,null,null,null,null,null,{"$f":"IFERROR(VLOOKUP(E312,$CT$1236:$CW$1245,2,0),\"\")","v":""},null,null,null,{"$f":"IFERROR(VLOOKUP(E312,$CT$1236:$CW$1245,3,0),\"\")","v":""},null,null,null,{"$f":"IFERROR(VLOOKUP(E312,$CT$1236:$CW$1245,4,0),\"\")","v":""},null,null,null,"-",null,null,null,null,null,null,null,null,null,null,"-",null,null,null,null,null,null,null,null,null,null,null,null,null,null,null,null,null,null,null,null,null,null,null,null,null,null,null,null,null,null,null,null,null,null,null,null,null,{"$f":"IFERROR(VLOOKUP(BN312,$CT$1236:$CW$1245,2,0),\"\")","v":""},null,null,null,{"$f":"IFERROR(VLOOKUP(BN312,$CT$1236:$CW$1245,3,0),\"\")","v":""},null,null,null,{"$f":"IFERROR(VLOOKUP(BN312,$CT$1236:$CW$1245,4,0),\"\")","v":""},null,null,null,"-",null,null,null,null,null,null,null,null,null,null,"-"]
[0]
[0,null,null,null,null,null,null,null,null,null,null,null,null,null,null,null,null,null,null,null,null,{"$f":"IFERROR(VLOOKUP(E314,$CT$1236:$CW$1245,2,0),\"\")","v":""},null,null,null,{"$f":"IFERROR(VLOOKUP(E314,$CT$1236:$CW$1245,3,0),\"\")","v":""},null,null,null,{"$f":"IFERROR(VLOOKUP(E314,$CT$1236:$CW$1245,4,0),\"\")","v":""},null,null,null,"-",null,null,null,null,null,null,null,null,null,null,"-",null,null,null,null,null,null,null,null,null,null,null,null,null,null,null,null,null,null,null,null,null,null,null,null,null,null,null,null,null,null,null,null,null,null,null,null,null,{"$f":"IFERROR(VLOOKUP(BN314,$CT$1236:$CW$1245,2,0),\"\")","v":""},null,null,null,{"$f":"IFERROR(VLOOKUP(BN314,$CT$1236:$CW$1245,3,0),\"\")","v":""},null,null,null,{"$f":"IFERROR(VLOOKUP(BN314,$CT$1236:$CW$1245,4,0),\"\")","v":""},null,null,null,"-",null,null,null,null,null,null,null,null,null,null,"-"]
[0]
[0,null,null,null,null,null,null,null,null,null,null,null,null,null,null,null,null,null,null,null,null,{"$f":"IFERROR(VLOOKUP(E316,$CT$1236:$CW$1245,2,0),\"\")","v":""},null,null,null,{"$f":"IFERROR(VLOOKUP(E316,$CT$1236:$CW$1245,3,0),\"\")","v":""},null,null,null,{"$f":"IFERROR(VLOOKUP(E316,$CT$1236:$CW$1245,4,0),\"\")","v":""},null,null,null,"-",null,null,null,null,null,null,null,null,null,null,"-",null,null,null,null,null,null,null,null,null,null,null,null,null,null,null,null,null,null,null,null,null,null,null,null,null,null,null,null,null,null,null,null,null,null,null,null,null,{"$f":"IFERROR(VLOOKUP(BN316,$CT$1236:$CW$1245,2,0),\"\")","v":""},null,null,null,{"$f":"IFERROR(VLOOKUP(BN316,$CT$1236:$CW$1245,3,0),\"\")","v":""},null,null,null,{"$f":"IFERROR(VLOOKUP(BN316,$CT$1236:$CW$1245,4,0),\"\")","v":""},null,null,null,"-",null,null,null,null,null,null,null,null,null,null,"-"]
[0]
[0,null,null,null,null,null,"Tipo de participación",null,null,null,null,null,null,null,null,null,null,null,null,"Acumulativa",null,null,null,null,null,null,null,null,null,null,"Entrega de prospecto del fondo de inversión colectiva:"]
[0,null,null,null,null,null,"(aplica para RFR)",null,null,null,null,null,null,null,null,null,null,null,null,"Distributiva",null,null,null,null,null,null,null,null,null,null,"Confirmo que he recibido el prospecto del Fondo de Inversion Colectiva de manera: ",null,null,null,null,null,null,null,null,null,null,null,null,null,null,null,null,null,null,null,null,null,null,null,null,null,null,null,null,null,null,null,null,null,null,null,null,null,null,null,null,null,null,"Digital",null,null,null,null,null,null,"Física"]
[0]
[{"$f":"IF(OR(PrestamoPersonal=\"Sí\",CarteraOrdinaria=\"Sí\",CreditoRotativo=\"Sí\",CuentaActivaBasica=\"Sí\",CuentaActivaCreditoRotativo=\"Sí\",CuentaActivaPrestamoPersonal=\"Sí\",CuentaAhorros=\"Sí\",CuentaCorriente=\"Sí\",TarjetaCredito=\"Sí\",TarjetaCreditoAmparada=\"Sí\",ProductosServiciosFiduciaria=\"Sí\",PortafolioAval=\"Sí\",CuentaCorrienteColombianosExt=\"Sí\")=TRUE(),1,0)","v":0},null,"DECLARACIONES:"]
[0,null,"Al firmar el presente documento confirmo que he comprendido y/o he recibido la siguiente información:"]
[0,null,"- Declaro(mos) que he(mos) recibido y entendido y por lo tanto aceptamos; el prospecto, el reglamento, la información del defensor del consumidor financiero y la información del código de ética y conducta, así como, las medidas de seguridad a tener en "]
[0,null,"cuenta cuando realice operaciones a través de los canales dispuestos para el efecto por la Fiduciaria de Occidente S.A.."]
[0,null,"- El inversionista podrá designar una o varias personas para que manejen o dispongan de los recursos invertidos en los FIC (co-titulares). Si la designación se realiza bajo la conjunción “Y” la disposición de los recursos requerirá del consenso del inversionista "]
[0,null,"y todos los co-titulares. Si la designación se realiza bajo la conjunción “O” el manejo y disposición de los recursos de la inversión podrá provenir del inversionista o cualquiera de sus co-titulares. "]
[0,null,"- Para todos los efectos legales, los co-titulares no se encuentran vinculados al FIC ni son clientes o usuarios de la FIDUCIARIA DE OCCIDENTE S.A. Todas los derechos y obligaciones aplicables derivados de la inversión en los FIC serán cumplidos por la "]
[0,null,"FIDUCIARIA DE OCCIDENTE S.A. exclusivamente frente al inversionista, sin perjuicio de la autorización otorgada a los co-titulares de disponer o manejar los recursos invertidos."]
[0,null,"- La FIDUCIARIA DE OCCIDENTE S.A. ha celebrado con el BANCO DE OCCIDENTE S.A. un contrato de uso de red con el objetivo de que éste realice una labor de distribución de ciertos productos de la fiduciaria. En virtud de lo anterior, el BANCO DE "]
[0,null,"OCCIDENTE S.A. sólo se responsabiliza por el cumplimiento de la labor de distribución de los productos en los términos establecidos en el contrato de uso de red y la normativa "]
[0,null,"aplicable. El consumidor financiero se vincula como cliente a la FIDUCIARIA DE OCCIDENTE S.A. y, en ese sentido, cualquier queja, recamo o sugerencia debe ser dirigido a dicha entidad. Con respecto a los recursos que el BANCO DE OCCIDENTE S.A. "]
[0,null,"recibirá en desarrollo del contrato de uso de red señalado, la ley no contempla el amparo del seguro de depósito."]
[0,null,"- Los datos de teléfono celular y correo electrónico registrados en la sección de Datos Personales de la Solicitud de Vinculación Persona Natural pueden ser utilizados como mecanismo de autenticación segura al momento de realizar las transacciones a "]
[0,null,"través de los canales digitales que disponga la fiduciaria."]
[0,null,"- Que el listado de las entidades financieras donde los fondos de inversión colectiva tienen cuentas recaudadoras se pueden consultar en la página web de la Fiduciaria www.fiduoccidente.com.co, ícono de Información al Consumidor Financiero sección de "]
[0,null,"Información Relevante para Operar los FICS o en su defecto solicitar la impresión de los mismos en la Oficina; por lo cual declaro conocer que cualquier retiro o aporte que realice desde o hacia una cuenta en una entidad bancaria donde el fondo no tenga "]
[0,null,"convenio, será gravado con el GMF, el cual deberá ser asumido en su totalidad por el titular de la inversión."]
[0,null,"- Los procesos, medios y horarios de las operaciones, la generación del GMF por retiro en efectivo y cheque, y demás información de los productos y servicios de la Fiduciaria de Occidente la cual puede ser consultada en la página web de la Fiduciaria "]
[0,null,"www.fiduoccidente.com.co, ícono de Información al Consumidor Financiero sección de Información Relevante para Operar los FICS."]
[0]
[{"$f":"IF(AumentoDisminucionCupoTC=\"Sí\",1,0)","v":0},null,"AUMENTO O DISMINUCIÓN DE CUPO DE TARJETA DE CRÉDITO"]
[0]
[0,null,"Realizar aumento o diminución de cupo de mi(s) tarjeta(s) de crédito como principal y/o de las tarjetas amparadas así:"]
[0]
[0,null,null,null,null,null,null,null,null,null,null,null,null,null,null,null,null,null,null,null,null,null,null,null,null,null,null,null,null,null,null,null,null,null,null,null,null,"Para titular",null,null,null,null,null,null,null,null,null,"Para amparado",null,null,null,null,null,null,null,null,null,null,null,null,"Aumento de cupo",null,null,null,null,null,null,null,null,null,null,null,null,null,"Disminución de cupo"]
[0]
[0,null,null,null,null,null,null,null,null,null,null,null,null,null,null,null,null,null,null,null,"N°. tarjeta crédito",null,null,null,null,null,null,null,null,null,null,null,null,null,"Tipo identificación",null,null,null,null,null,null,null,null,null,null,null,null,"N°. identificación",null,null,null,null,null,null,null,null,null,null,null,null,null,"Cupo inicial",null,null,null,null,null,null,null,null,null,null,null,null,null,null,null,null,null,null,null,null,"Cupo nuevo"]
[0,null,null,null,null,null,null,null,null,null,null,null,null,null,null,null,null,null,null,null,null,null,null,null,null,null,null,null,null,null,null,null,null,null,null,null,null,null,null,null,null,null,null,null,null,null,null,"Solo amparados",null,null,null,null,null,null,null,null,null,null,null,null,null,"Solo en disminución",null,null,null,null,null,null,null,null,null,null,null,null,null,null,null,null,null,null,null,null,"Solo en disminución"]
[0,null,null,null,null,null,null,null,null,null,null,null,null,null,null,null,null,null,null,null,null,null,null,null,null,null,null,null,null,null,null,null,null,null,null,null,null,null,null,null,null,null,null,null,null,null,null,"Solo amparados",null,null,null,null,null,null,null,null,null,null,null,null,null,"Solo en disminución",null,null,null,null,null,null,null,null,null,null,null,null,null,null,null,null,null,null,null,null,"Solo en disminución"]
[0,null,null,null,null,null,null,null,null,null,null,null,null,null,null,null,null,null,null,null,null,null,null,null,null,null,null,null,null,null,null,null,null,null,null,null,null,null,null,null,null,null,null,null,null,null,null,"Solo amparados",null,null,null,null,null,null,null,null,null,null,null,null,null,"Solo en disminución",null,null,null,null,null,null,null,null,null,null,null,null,null,null,null,null,null,null,null,null,"Solo en disminución"]
[0,null,null,null,null,null,null,null,null,null,null,null,null,null,null,null,null,null,null,null,null,null,null,null,null,null,null,null,null,null,null,null,null,null,null,null,null,null,null,null,null,null,null,null,null,null,null,"Solo amparados",null,null,null,null,null,null,null,null,null,null,null,null,null,"Solo en disminución",null,null,null,null,null,null,null,null,null,null,null,null,null,null,null,null,null,null,null,null,"Solo en disminución"]
[0]
[{"$f":"IF(UnificacionTrasladoCupoTC=\"Sí\",1,0)","v":0},null,"UNIFICACIÓN/TRASLADO CUPOS (TARJETA DE CRÉDITO: TITULAR O AMPARADO)"]
[0]
[0,null,"Realizar traslado del cupo de mi tarjeta de crédito así:"]
[0,null,null,null,null,null,null,null,null,null,null,null,null,null,null,null,null,null,null,null,null,null,null,null,null,null,null,null,null,null,null,null,null,null,null,null,null,"Desde",null,null,null,null,null,null,null,null,null,null,null,null,null,"Hacia"]
[0,null,null,null,null,null,null,null,null,null,null,null,null,null,null,null,null,null,null,null,null,null,null,null,null,null,null,null,null,null,null,null,null,null,null,null,null,"N°. tarjeta crédito",null,null,null,null,null,null,null,null,null,null,null,null,null,"N°. tarjeta crédito",null,null,null,null,null,null,null,null,null,null,null,null,null,"Por valor:"]
[0]
[0]
[0]
[0]
[0]
[{"$f":"IF(CodeudorSinPlasticoTC=\"Sí\",1,0)","v":0},null,"CODEUDOR SIN PLÁSTICO (TARJETA DE CRÉDITO)"]
[0]
[0,null,"Después de realizar la entrega del plástico correspondiente a mi (s) tarjeta(s) de crédito Master/Visa N°.",null,null,null,null,null,null,null,null,null,null,null,null,null,null,null,null,null,null,null,null,null,null,null,null,null,null,null,null,null,null,null,null,null,null,null,null,null,null,null,null,null,null,null,null,null,null,null,null,null,null,null,null,null,null,null,null,null,null,null,null,null,", deseo continuar respaldando el pago de las siguientes tarjetas amparadas:"]
[0,null,"N°.",null,null,null,null,null,null,null,null,null,null,null,null,null,null,null,null,", N°.",null,null,null,null,null,null,null,null,null,null,null,null,null,null,null,null,", N°.",null,null,null,null,null,null,null,null,null,null,null,null,null,null,null,null,", N°.",null,null,null,null,null,null,null,null,null,null,null,null,null,null,null,null,", N°."]
[0]
[0,null,"Codeudor sin plástico: después de la entrega del plástico correspondiente a mi (s) tarjeta(s) de crédito  Mastercard/Visa como se indica anteriormente, deseo continuar respaldando el pago de las tarjetas amparadas mencionadas, declaro que mantengo mi responsabilidad solidaria respecto"]
[0,null,"al pago  de dichas tarjetas, por lo cual todo documento, garantía personal o real o contragarantía conserva su vigencia."]
[0]
[{"$f":"IF(ReactivacionTC=\"Sí\",1,0)","v":0},null,"REACTIVACIÓN TARJETA DE CRÉDITO"]
[0]
[0,null,"Realizar reactivación de mi(s) tarjeta (s) como principal, las cuales fueron incineradas (E) o devueltas (D) y que sean enviadas a la oficina.",null,null,null,null,null,null,null,null,null,null,null,null,null,null,null,null,null,null,null,null,null,null,null,null,null,null,null,null,null,null,null,null,null,null,null,null,null,null,null,null,null,null,null,null,null,null,null,null,null,null,null,null,null,null,null,null,null,null,null,null,null,null,null,null,null,null,null,null,null,null,null,null,null,null,null,null,null,null,null,null,null,null,null,null,null,null,null,null,null,null,null,null,null,null,null,null,null,null,null,null,null,null,null,null,null,null,"Marcar solo una"]
[0,null,"N°.",null,null,null,null,null,null,null,null,null,null,null,null,null,null,null,null,", N°.",null,null,null,null,null,null,null,null,null,null,null,null,null,null,null,null,", N°.",null,null,null,null,null,null,null,null,null,null,null,null,null,null,null,null,", N°.",null,null,null,null,null,null,null,null,null,null,null,null,null,null,null,null,", N°.",null,null,null,null,null,null,null,null,null,null,null,null,null,null,null,null,", N°.",null,null,null,null,null,null,null,null,null,null,null,null,null,null,null,null,null,null,null,null,null,null,null,null,"Para titular"]
[0,null,null,null,null,null,null,null,null,null,null,null,null,null,null,null,null,null,null,null,null,null,null,null,null,null,null,null,null,null,null,null,null,null,null,null,null,null,null,null,null,null,null,null,null,null,null,null,null,null,null,null,null,null,null,null,null,null,null,null,null,null,null,null,null,null,null,null,null,null,null,null,null,null,null,null,null,null,null,null,null,null,null,null,null,null,null,null,null,null,null,null,null,null,null,null,null,null,null,null,null,null,null,null,null,null,null,null,null,null,null,null,"Para amparado"]
[0]
[{"$f":"IF(CambioProductoTC=\"Sí\",1,0)","v":0},null,"CAMBIO DE PRODUCTO (TARJETA DE CRÉDITO)"]
[0]
[0,null,"Efectuar cambio de productos de mi(s) tarjeta(s) así, según el producto a cambiar de la franquicia correpondiente:"]
[0]
[0,null,null,null,null,null,null,null,null,null,null,null,null,null,null,null,null,null,null,null,null,null,null,null,null,null,null,null,null,null,null,null,null,null,"N°. tarjeta crédito",null,null,null,null,null,null,null,null,null,null,null,null,null,"Franquicia deseada",null,null,null,null,null,null,null,null,null,null,null,null,null,null,null,null,null,null,null,"Otro"]
[0]
[0]
[0]
[{"$f":"IF(OR(CuentaActivaBasica=\"Sí\",CuentaActivaCreditoRotativo=\"Sí\",CuentaActivaPrestamoPersonal=\"Sí\",CuentaAhorros=\"Sí\",PortafolioAval=\"Sí\")=TRUE(),1,0)","v":0},null,"CUENTAS DE AHORROS"]
[0]
[0,null,"Autorización Exención de Gravamen Movimiento Financiero (GMF)"]
[0,null,null,null,"Sí",null,null,null,null,"No",null,"solicito  a ustedes la aplicación de la exención del Gravamen a los Movimientos Financieros prevista en el numeral 1 del Artículo 879 del Estatuto tributario a la cuenta",null,null,null,null,null,null,null,null,null,null,null,null,null,null,null,null,null,null,null,null,null,null,null,null,null,null,null,null,null,null,null,null,null,null,null,null,null,null,null,null,null,null,null,null,null,null,null,null,null,null,null,null,null,null,null,null,null,null,null,null,null,null,null,null,null,null,null,null,null,null,null,null,null,"N°.",null,null,null,null,null,null,null,null,null,null,null,null,null,null,null,null,"para tal fin manifiesto que:"]
[0,null,"1. Conozco y acepto que  la exención prevista en el numeral 1 del Artículo 879 del Estatuto Tributario, solo se puede aplicar a una cuenta de ahorros por persona, siempre y cuando se trate de un único titular. 2. Soy  único titular de la cuenta de ahorros"]
[0,null,"en el BANCO DE OCCIDENTE la cual identifico en la presente comunicación. 3. Manifiesto bajo la gravedad del juramento que realizo la presente solicitud de exención, en razón de que a la fecha no gozo del beneficio tributario en ninguna otra cuenta"]
[0,null,"de ahorros  del BANCO DE OCCIDDENTE ni en otra entidad financiera, comprometiéndome a no solicitar dicha exención en otra entidad financiera mientras exista la exención sobre la cuenta de ahorros, respecto de la cual estoy solicitando el beneficio"]
[0,null,"tributario. 4. Autorizo al BANCO DE OCCIDENTE para validar en el sistema financiero que no existe alguna otra cuenta de ahorros a mi nombre marcada para este fin y en consecuencia  proceda con la marcación de la cuenta a partir de la fecha en que sea"]
[0,null,"recepcionada esta comunicación. 5. En caso de estar en proceso de apertura la cuenta de ahorros en el BANCO DE OCCIDENTE, autorizo diligenciar el espacio de este formato con el número asignado y marcarla para acceder al beneficio tributario."]
[0]
[{"$f":"IF(OR(CuentaActivaBasica=\"Sí\",CuentaActivaCreditoRotativo=\"Sí\",CuentaActivaPrestamoPersonal=\"Sí\",CuentaAhorros=\"Sí\",CuentaCorriente=\"Sí\",PortafolioAval=\"Sí\",CuentaCorrienteColombianosExt=\"Sí\")=TRUE(),1,0)","v":0},null,"CUENTAS DE AHORROS Y CUENTAS CORRIENTES"]
[{"$f":"IF(OR(CuentaActivaBasica=\"Sí\",CuentaActivaCreditoRotativo=\"Sí\",CuentaActivaPrestamoPersonal=\"Sí\",CuentaAhorros=\"Sí\",CuentaCorriente=\"Sí\",PortafolioAval=\"Sí\",CuentaCorrienteColombianosExt=\"Sí\")=TRUE(),1,0)","v":0}]
[0,null,"Asignación de topes en apertura de cuenta"]
[0,null,null,null,"Sí",null,null,null,null,"No",null,"solicito asignar los topes mensuales establecidos por defecto para mi nueva Cuenta de Ahorro o Corriente así: "]
[0,null,"- Pagos de servicios, públicos, privados, impuestos, PSE, pagos detelefonía celular: $1.200.003"]
[0,null,"- Transferencias entre cuentas Banco de Occidente: $400.003 y transferencias a cuentas de entidades AVAL y otras entidades: $ 400.003. Dichos topes le permitirán realizar hasta un máximo de 10 transacciones monetarias mensuales en los canales "]
[0,null,"transaccionales. Estos valores podrán ser modificados a través de Oficina o en el Portal Transaccional."]
[0]
[{"$f":"IF(OR(CuentaActivaBasica=\"Sí\",CuentaActivaCreditoRotativo=\"Sí\",CuentaActivaPrestamoPersonal=\"Sí\",TarjetaCredito=\"Sí\",TarjetaCreditoAmparada=\"Sí\",PortafolioAval=\"Sí\")=TRUE(),1,0)","v":0},null,"AUTORIZACIÓN PARA REPORTAR DATOS COMERCIALES MARCAS COMPARTIDAS (TARJETA DE CRÉDITO)"]
[0]
[0,null,"En calidad de titular de mi información personal, actuando libre y voluntariamente, autorizo de manera expresa e irrevocable al BANCO DE OCCIDENTE S.A o a quien represente sus derechos a suministrar, reportar, procesar y divulgar a la empresa "]
[0,null,"encargada del programa de Fidelización del cual hace parte la Tarjeta de Marca Compartida, lo concerniente a mi información personal y datos de contacto, así como mi información de carácter comercial, financiero, crediticio y de servicios, con el fin de que "]
[0,null,"se me pueda ofrecer la debida diligencia en la inscripción y presentación del producto del Programa de Fidelización de la marca, en especial aquello correspondiente a los beneficios, ofertas, estados de cuenta y todo aquello relacionado con el mercadeo y "]
[0,null,"la publicidad. Igualmente, autorizo recibir por cualquier medio la información concerniente al producto Tarjeta de Crédito y del Aliado. Mis derechos y mis obligaciones, así como la permanencia de mi información en las bases de datos corresponden a lo "]
[0,null,"determinado por el otorgamiento jurídico aplicable del cual, por ser de carácter público, estoy enterado."]
[0,null,"La información sobre el Programa de Fidelización puede ser consultada y se encuentra disponible en las páginas web de los Aliados. La información, términos y condiciones contenidos en la página web de los Aliados, así como la calidad, cumplimiento y "]
[0,null,"entrega de sus beneficios y/o productos son de responsabilidad única y exclusiva del Aliado y no del Banco de Occidente."]
[0]
[0,null,"INFORMACIÓN ADICIONAL (TARJETA DE CRÉDITO)"]
[0]
[0,null,"En caso de ser aprobada (s) su (s) Tarjeta (s) de Crédito Credencial, se otorgará la siguiente exoneración: Un (1) año de exoneración de cuota de manejo para Tarjeta Portafolio Estándar, Semimasiva o Marcas Compartidas Visa o Mastercard, seis(6) "]
[0,null,"meses de exoneración de  cuota de manejo para  Tarjeta Mastercard Joven y Tarjeta Visa Centro Comercial Santafé y Exoneración Permanente (Sin Cuota de Manejo) para la Tarjeta Free de la Franquicia Visa. El único cargo que se verá reflejado es el "]
[0,null,"Seguro Vida Deudor por valor de $2.280 el cual NO es exonerable (ajustable con cada renovación de Póliza). Valor que se verá reflejado de forma mensual para todas las tarjetas. Una vez finalizado el periodo de exoneración de la cuota de manejo, el "]
[0,null,"cobro  total (cuota de manejo más seguro) se efectuará de  forma mensual anticipada según el producto aprobado. En caso de adquirir la dualidad (Mastercard y Visa Tradicional), la exoneración de cuota de manejo será permanente en solo uno de los dos "]
[0,null,"productos, siempre y cuando las dos tarjetas se encuentren vigentes, el único cargo que se verá reflejado corresponde al Seguro Vida Deudor y su cobro será mensual anticipado. Para mayor información consultar  en  la página "]
[0,null,"www.bancodeoccidente.com.co - Para Personas - Sección Tarjeta de Crédito Credencial. Tasas y Tarifas."]
[0]
[{"$f":"IF(OR(CuentaActivaBasica=\"Sí\",CuentaActivaCreditoRotativo=\"Sí\",CuentaActivaPrestamoPersonal=\"Sí\",CreditoRotativo=\"Sí\")=TRUE(),1,0)","v":0},null,"CUENTA ACTIVA, CUENTA ACTIVA BÁSICA Y CRÉDITO ROTATIVO"]
[0]
[0,null,"Si desea relacionar sus productos a su Cuenta Activa o Cuenta Activa Básica, diligenciar los siguientes campos:"]
[0]
[0,null,null,null,null,null,null,null,null,null,null,null,null,null,null,null,null,null,null,null,null,null,null,null,null,null,null,null,"Producto",null,null,null,null,null,null,null,null,null,null,null,null,null,null,null,null,null,null,"N°. producto",null,null,null,null,null,null,null,null,null,null,null,null,null,null,null,"Relacionar la fecha de pago de su Crédito Rotativo:"]
[0,null,null,null,null,null,null,null,null,null,null,null,null,null,null,null,null,null,null,null,null,null,null,null,null,null,null,null,"Cuenta Corriente"]
[0,null,null,null,null,null,null,null,null,null,null,null,null,null,null,null,null,null,null,null,null,null,null,null,null,null,null,null,"Cuenta de Ahoros",null,null,null,null,null,null,null,null,null,null,null,null,null,null,null,null,null,null,null,null,null,null,null,null,null,null,null,null,null,null,null,null,null,null,null,null,2,null,null,null,null,3,null,null,null,null,4,null,null,null,null,16,null,null,null,null,null,17,null,null,null,null,null,18]
[0,null,null,null,null,null,null,null,null,null,null,null,null,null,null,null,null,null,null,null,null,null,null,null,null,null,null,null,"Tarjeta Débito"]
[0,null,null,null,null,null,null,null,null,null,null,null,null,null,null,null,null,null,null,null,null,null,null,null,null,null,null,null,"Tarjeta de Crédito Mastercard"]
[0,null,null,null,null,null,null,null,null,null,null,null,null,null,null,null,null,null,null,null,null,null,null,null,null,null,null,null,"Tarjeta de Crédito Visa"]
[0]
[{"$f":"IF(OR(PrestamoPersonal=\"Sí\",CarteraOrdinaria=\"Sí\",CreditoRotativo=\"Sí\",CuentaActivaBasica=\"Sí\",CuentaActivaCreditoRotativo=\"Sí\",CuentaActivaPrestamoPersonal=\"Sí\",CuentaAhorros=\"Sí\",CuentaCorriente=\"Sí\",TarjetaCredito=\"Sí\",TarjetaCreditoAmparada=\"Sí\",PortafolioAval=\"Sí\",CuentaCorrienteColombianosExt=\"Sí\")=TRUE(),1,0)","v":0},null,"AUTORIZACIÓN GUÍAS DE USO (SOLO PRODUCTOS DEL BANCO)"]
[0]
[0,null,"Con la firma del presente documento, manifiesto haber sido informado de la existencia de (las) guías de uso del(los) producto(s) y servicios solicitado(s), las cuales contienen los términos, condiciones y explicaciones de los productos, por considerarla de suma"]
[0,null,"importancia para la seguridad y manejo adecuado del producto, las cuales puedo consultar y/o descargar si es el caso en la página www.bancodeoccidente.com.co; o en su defecto solicitar la impresión de los mismos en la Oficina o Credicentro."]
[0]
[0,null,"ACEPTACIÓN VALOR TOTAL UNIFICADO (VTU)"]
[0]
[0,null,"Aplica la entrega del VTU:",null,null,null,null,null,null,null,null,null,null,null,null,null,null,"Sí",null,null,null,null,"No"]
[0,null,"Con la firma del presente documento, manifiesto haber sido informado del cálculo del Valor Total Unificado (VTU), el cual corresponde a:"]
[0,null,"Una TIR % de:",null,null,null,null,null,null,null,null,null,null,null,null,null,null,"y un valor en pesos de:"]
[0]
[{"$f":"IF(OR(VinculacionClienteNuevo=\"Sí\",ActualizacionDatos=\"Sí\")=TRUE(),1,0)","v":0},null,"AUTORIZACIONES Y DECLARACIONES"]
[0]
[0,null,"De acuerdo con lo establecido por la ley y sus reglamentos, la Superintendencia Financiera de Colombia y demás autoridades pertinentes declaro que:"]
[0,null,"1. SUMINISTRO Y ACTUALIZACIÓN DE LA INFORMACIÓN. EL CLIENTE se obliga con EL BANCO DE OCCIDENTE / FIDUCIARIA DE OCCIDENTE S.A. (en adelante “LAS ENTIDADES”) a entregar información veraz y verificable y a actualizar su "]
[0,null,"información personal, comercial y financiera, por lo menos una (1) vez al año, o cada vez que así lo soliciten LAS ENTIDADES, suministrando la totalidad de los soportes documentales exigidos. El incumplimiento de esta obligación, faculta a LAS "]
[0,null,"ENTIDADES para terminar de manera inmediata y unilateral cualquier tipo de relación que tenga con EL CLIENTE."]
[0,null,"2. DECLARACIONES DE ORIGEN DE FONDOS Y/O BIENES. Yo, identificado con el nombre y documento de identidad expedidos en el lugar y fecha establecidos, tal como lo he diligenciado en este documento, obrando en nombre propio, de manera "]
[0,null,"voluntaria y dando certeza que todo lo aquí consignado es cierto, realizo la siguiente declaración de origen de fondos y/o bienes al LAS ENTIDADES., con el propósito de dar cumplimiento a las disposiciones legales: A. El origen de los dineros que deposito "]
[0,null,"en mi cuenta y demás operaciones que tramito a través de LAS ENTIDADES, proceden del giro ordinario de actividades lícitas.B. No admitiré que terceros efectúen depósitos en mis cuentas con fondos provenientes de actividades ilícitas contempladas en "]
[0,null,"el Código Penal Colombiano o en cualquier norma que lo modifique o adicione, ni efectuaré transacciones destinadas a tales actividades o a favor de personas relacionadas con las mismas.C. Autorizo saldar las cuentas y depósitos que mantenga en esta "]
[0,null,"institución, en el caso de infracción de cualquiera de los numerales contenidos en este documento, eximiendo a la Entidad de toda responsabilidad que se derive por información errónea, falsa e inexacta que hubiere proporcionado."]
[0,null,"3. AUTORIZACIÓN PARA LA CONSULTA, REPORTE Y PROCESAMIENTO DE DATOS PERSONALES CREDITICIOS, FINANCIEROS, COMERCIALES, DE SERVICIOS Y DE TERCEROS PAISES A LOS OPERADORES DE INFORMACIÓN Y A "]
[0,null,"CUALQUIER OTRA ENTIDAD PÚBLICA O PRIVADA QUE HAGA SUS VECES. En mi calidad de titular de información, actuando libre y voluntariamente, autorizo de manera expresa e irrevocable a LAS ENTIDADES, o a quien represente sus derechos, a "]
[0,null,"consultar, solicitar, suministrar reportar, procesar y divulgar toda la información que se refiera a mi comportamiento crediticio, financiero, comercial, de servicios y de terceros países de la misma naturaleza, a los operadores de información o a cualquier otra "]
[0,null,"entidad pública o privada que administre o maneje bases de datos. Igualmente, autorizo irrevocablemente a LAS ENTIDADES a compartir con las filiales del Banco la información aquí suministrada así como los documentos aportados, cuando las mismas "]
[0,null,"los soliciten para vinculación a sus productos. Conozco que el alcance de esta autorización implica que el comportamiento frente a mis obligaciones será registrado con el objeto de suministrar información suficiente y adecuada al mercado sobre el estado "]
[0,null,"de mis obligaciones financieras, comerciales, crediticias, de servicios y la proveniente de terceros países de la misma naturaleza. En consecuencia, quienes se encuentren afiliados y/o tengan acceso a los operadores de información  o a cualquier otra "]
[0,null,"entidad pública o privada que administre o maneje bases de datos podrán conocer esta información, de conformidad con la legislación y jurisprudencia aplicable. La información podrá ser igualmente utilizada para efectos estadísticos, evaluación de riesgo, "]
[0,null,"y gestión de cobranza. Mis derechos y obligaciones así como la permanencia de mi información en las bases de datos corresponden a lo determinado por el ordenamiento jurídico aplicable del cual, por ser de carácter público, estoy enterado."]
[0,null,"En caso de que, en el futuro, el autorizado y sus filiales  en este documento efectúe(n), a favor de un tercero, una venta de cartera o una cesión a cualquier título de las obligaciones y/o productos a mi cargo, los efectos de la presente autorización se "]
[0,null,"extenderán al comprador o cesionario  en los mismos términos y condiciones."]
[0,null,"4.AUTORIZACION PARA EL MANEJO DE DATOS PERSONALES. En adición y complemento de las autorizaciones previamente otorgadas, autorizo de manera expresa y previa sin lugar a pagos ni retribuciones a BANCO DE OCCIDENTE / FIDUCIARIA "]
[0,null,"DE OCCIDENTE SA, cesionarios o a quien represente los derechos, para que efectúe el Tratamiento de mis Datos Personales de la manera y para las finalidades que se señalan a continuación. Para efectos de la presente autorización, se entiende por "]
[0,null,"“Datos Personales” la información personal de carácter financiero, crediticio, comercial, profesional, sensible (definidas en la ley tales como mis huellas, imagen o voz entre otros), técnico y administrativo, privada, semiprivada pasada, presente o futura, "]
[0,null,"contenida en medios físicos, digitales o electrónicos y por “Tratamiento de datos personales” todo tipo de actividad, acción, operación o proceso, incluyendo pero sin limitarse a: recolectar, consultar, recopilar, evaluar, catalogar, clasificar, ordenar, grabar, "]
[0,null,"almacenar, actualizar, modificar, aclarar, reportar, informar, analizar, utilizar, compartir, circularizar, suministrar, suprimir, procesar, solicitar, verificar, intercambiar, retirar, transferir, transmitir, disponer, organizar, ajustar, modelar, unir, consolidar, fusionar, "]
[0,null,"combinar, agregar, resumir, digitalizar, explotar, rentabilizar, aprovechar, emplear y/o divulgar, y, efectuar operaciones sobre mis Datos Personales. "]
[0,null,"Esta autorización para el Tratamiento de mis Datos Personales se hace extensiva a las entidades que conforman el Conglomerado Financiero Aval, listadas en la Resolución 0155 de 2019 expedida por la Superintendencia Financiera de Colombia o "]
[0,null,"cualquier otra norma que la modifique, adicione o reemplace, así como a las entidades que forman parte del Grupo Empresarial Sarmiento Angulo, listadas en el Certificado de Existencia y Representación Legal de BANCO DE OCCIDENTE / FIDUCIARIA "]
[0,null,"DE OCCIDENTE SA expedido por la Cámara de Comercio de Bogotá (en conjunto “LAS ENTIDADES AUTORIZADAS”). "]
[0,null,"La autorización que otorgo a BANCO DE OCCIDENTE / FIDUCIARIA DE OCCIDENTE SA y a LAS ENTIDADES AUTORIZADAS por el presente medio para el Tratamiento de mis Datos Personales tendrá las siguientes finalidades: "]
[{"$f":"IF(OR(VinculacionClienteNuevo=\"Sí\",ActualizacionDatos=\"Sí\")=TRUE(),1,0)","v":0},null,"a.Promocionar, comercializar u ofrecer, de manera individual o conjunta productos y/o servicios propios u ofrecidos en alianza comercial, a través de los canales autorizados en la ley o contrato, o para complementar, optimizar o profundizar el portafolio de "]
[0,null,"productos y/o servicios actualmente ofrecidos. "]
[0,null,"b.Como elemento de análisis en etapas pre-contractuales, contractuales y post-contractuales para establecer y/o mantener relaciones contractuales, incluyendo como parte de ello, los siguientes propósitos: "]
[0,null,"i.Evaluar riesgos derivados de la relación contractual potencial, vigente o concluida,"]
[0,null,"ii.Realizar, validar, autorizar o verificar transacciones incluyendo, cuando sea requerido, la consulta y reproducción de datos sensibles tales como mi huella, imagen o voz, "]
[0,null,"iii.Obtener conocimiento de mi perfil comercial o transaccional. "]
[0,null,"iv.Conocer sobre el nacimiento, modificación, celebración, extinción, novedades, hábitos de pago, comportamiento crediticio o cumplimiento de obligaciones directas, contingentes o indirectas, de las obligaciones vigentes, activas o pasivas, o las que en el "]
[0,null,"futuro llegue a celebrar, incluyendo información referente al manejo, estado, cumplimiento de mis obligaciones de pago derivadas de las relaciones, contratos y servicios, hábitos de pago, incluyendo aportes al sistema de seguridad social, obligaciones y "]
[0,null,"las deudas vigentes, vencidas sin cancelar, procesos, o la utilización indebida de servicios financieros, en bases de datos administradas directamente por las partes contratantes, por operadores de información financiera, autoridades o entidades estatales, "]
[0,null,"operadores de información y/o entidades que formen parte del Sistema de Seguridad Social Integral, empresas prestadoras de servicios públicos y de telefonía móvil, o administrador de bases de datos o entidades similares que en un futuro se establezca y "]
[0,null,"que tenga por objeto alguna de las anteriores actividades. "]
[0,null,"v.Ejercer mis derechos, incluyendo los referentes a actividades de cobranza judicial y extrajudicial y las gestiones conexas para obtener el pago de las obligaciones a mi cargo  o de mi empleador."]
[0,null,"vi.Recolectar y entregar información a autoridades extranjeras con competencia sobre BANCO DE OCCIDENTE/FIDUCIARIA DE OCCIDENTE SA, LAS ENTIDADES AUTORIZADAS o sobre sus actividades, productos y/o servicios, cuando se requiera "]
[0,null,"para dar cumplimiento a sus deberes legales o reglamentarios, incluyendo dentro de éstos, aquellos referentes a la prevención de la evasión fiscal, lavado de activos y financiación del terrorismo u otros propósitos similares."]
[0,null,"Para efectos de lo dispuesto en el presente literal b, BANCO DE OCCIDENTE / FIDUCIARIA DE OCCIDENTE SA en lo que resulte aplicable, podrá efectuar el Tratamiento de mis Datos Personales ante entidades de consulta, que manejen o administren "]
[0,null,"bases de datos para los fines legalmente definidos, domiciliadas en Colombia o en el exterior, sean personas naturales o jurídicas, colombianas o extranjeras, c.Realizar ventas cruzadas de productos y/o servicios ofrecidos por BANCO DE OCCIDENTE / "]
[0,null,"FIDUCIARIA DE OCCIDENTE SA o por alguna de LAS ENTIDADES AUTORIZADAS o sus aliados comerciales, incluyendo la celebración de convenios de marca compartida, d.Elaborar y reportar información contenida en encuestas de satisfacción, "]
[0,null,"estudios y análisis de mercado, para lo cual autorizo la posibilidad de contactarme para dichos propósitos, e.Enviar mensajes a través de medios físicos o digitales, sobre promociones, campañas comerciales, publicitarias, de mercadeo, sorteos, eventos u "]
[0,null,"otros beneficios, así como dar a conocer otros servicios y/o productos ofrecidos por BANCO DE OCCIDENTE / FIDUCIARIA DE OCCIDENTE SA; LAS ENTIDADES AUTORIZADAS o sus aliados comerciales,f.Enviar notificaciones a través de medios "]
[0,null,"físicos o digitales, para remitir extractos, campañas institucionales o de educación financiera e informar acerca de las innovaciones o modificaciones efectuadas en sus productos y/o servicios, dar a conocer las mejoras o cambios en sus canales de "]
[0,null,"atención, g.Para que mis Datos Personales puedan ser utilizados como medio de prueba. "]
[0,null,"Mis Datos Personales podrán consultarse, circular, transmitirse y/o transferirse a la totalidad de las áreas de BANCO DE OCCIDENTE / FIDUCIARIA DE OCCIDENTE SA así como a los proveedores de servicios, entidades públicas o que presten servicios "]
[0,null,"públicos tales como notarías, Registraduría nacional del Estado  Civil, Contraloría, Procuraduría, DIAN, oficinas de registro, cajas de compensación, administradoras de fondos de pensiones y de cesantías, operadores de información a través de las cuales "]
[0,null,"se liquidan cesantías, aportes a seguridad social y parafiscales (tales como Aportes en Línea, SOI, SIMPLE), usuarios de red, redes de distribución y personas que realicen la promoción de sus productos y servicios, incluidos call centers, domiciliados en "]
[0,null,"Colombia o en el exterior, sean personas naturales o jurídicas, colombianas o extranjeras a su fuerza comercial, equipos de telemercadeo y/o procesadores de datos que trabajen en nombre de BANCO DE OCCIDENTE / FIDUCIARIA DE OCCIDENTE SA, "]
[0,null,"incluyendo contratistas, delegados, outsourcing, tercerización, red de oficinas o aliados, con el objeto de desarrollar servicios de alojamiento de sistemas, de mantenimiento, servicios de análisis, servicios de mensajería por e-mail o correo físico, servicios "]
[0,null,"de entrega, gestión de transacciones de pago y cobranza, implementación de software o servicios tecnológicos (en adelante los “Terceros”) los cuales están obligados a garantizar la reserva de la información de acuerdo con lo estipulado en la Ley 1581 de "]
[0,null,"2012.  En consecuencia, como titular, entiendo y acepto que mediante la presente autorización concedo a estos Terceros, autorización para: "]
[0,null,"-Acceder a mis Datos Personales en la medida en que así lo requieran para la prestación de los servicios para los cuales fueron contratados y sujeto al cumplimiento de los deberes que les correspondan como encargados del Tratamiento de mis Datos "]
[0,null,"Personales. "]
[0,null,"-Compartir mis Datos Personales con las entidades gremiales a las que pertenezca la entidad, para fines comerciales, estadísticos y de estudio y análisis de mercadeo. "]
[0,null,"Es entendido que las personas naturales y jurídicas, nacionales y extrajeras mencionadas anteriormente ante las cuales BANCO DE OCCIDENTE / FIDUCIARIA DE OCCIDENTE SA puede llevar a cabo el Tratamiento de mis Datos Personales, también 9. "]
[{"$f":"IF(OR(VinculacionClienteNuevo=\"Sí\",ActualizacionDatos=\"Sí\")=TRUE(),1,0)","v":0},null,"ACEPTACIÓN TÉRMINOS CONTRATO PRODUCTOS Y SERVICIOS. Con la firma del presente documento, manifiesto que conozco y acepto que el producto objeto de esta solicitud, se regirá bajo los términos del contrato de productos y servicios "]
[0,null,"previamente suscrito en Banco de Occidente, junto con sus adiciones, modificaciones y aclaraciones.el suministro de la presente autorización es voluntaria, razón por la cual no me encuentro obligado a otorgar la presente autorización, que conozco y "]
[0,null,"entiendo que mediante la simple presentación de una comunicación escrita puedo limitar en todo o en parte el alcance de la presente autorización, y(iii)haber sido informado sobre mis derechos a conocer, actualizar y rectificar mis Datos Personales, el "]
[0,null,"carácter facultativo de mis respuestas a las preguntas que sean hechas cuando versen sobre datos sensibles o sobre datos de los niños, niñas o adolescentes, solicitar prueba de la autorización otorgada para su tratamiento, ser informado sobre el uso que "]
[0,null,"se ha dado a los mismos, presentar quejas ante la autoridad competente por infracción a la ley una vez haya agotado el trámite de consulta o reclamo ante BANCO DE OCCIDENTE / FIDUCIARIA DE OCCIDENTE SA, revocar la presente autorización, "]
[0,null,"solicitar la supresión de mis datos en los casos en que sea procedente y ejercer en forma gratuita mis derechos y garantías constitucionales y legales. El tratamiento de mis Datos Personales se efectuará de acuerdo con la política de BANCO DE "]
[0,null,"OCCIDENTE SA en la materia, la cual puede ser consultada en www.bancodeoccidente.com.co.Para el ejercicio de mis derechos, y la atención de consultas y reclamos, podré acercarme a las oficinas de BANCO DE OCCIDENTE a nivel nacional o usar la "]
[0,null,"línea de servicio al cliente Bogotá 3902058, Cali 4851113, Medellín 6052020, Barranquilla 3869772 y en el resto del país 018000514652  o al correo electrónico: datospersonales@bancodeoccidente.com.co y a la Defensoría del Consumidor Financiero de "]
[0,null,"BANCO DE OCCIDENTE.  Por su parte, FIDUCIARIA DE OCCIDENTE SA informa que el tratamiento de sus Datos Personales se efectuará de acuerdo con la política de la entidad en esta materia, la cual puede ser consultada en www.fiduoccidente.com . "]
[0,null,"Para el ejercicio de sus derechos, y la atención de consultas y reclamos, puede acercarse a la Dirección General en la cra. 13 No. 26ª-47 piso 9 de Bogotá, usar la línea de servicio al cliente 01 8000 521 144 y en Bogotá al 2 97 30 60 o al correo "]
[0,null,"electrónico: atencionalconsumidor@fiduoccidente.com.co y a la Defensoría del Consumidor Financiero de FIDUCIARIA DE OCCIDENTE."]
[0,null,"5. AUTORIZACIÓN PARA EL TRATAMIENTO DE DATOS DE SEGURIDAD SOCIAL. En adición a las autorizaciones previamente otorgadas, autorizo de manera expresa, inequívoca, voluntaria y suficiente a LAS ENTIDADES para solicitar, tratar, "]
[0,null,"consultar, recolectar, almacenar, analizar, verificar, usar o circular la información personal o comercial  relativa a mis ingresos y aportes obligatorios y/o voluntarios en salud, pensión, y cesantías de las entidades de seguridad social, fondos de pensiones o "]
[0,null,"cesantías y/o otra entidad similar en que se encuentre afiliado, que reposa o sea administrada por los operadores de información (PILA), aliados tecnológicos y demás entidades que formen parte del sistema de Seguridad Social, y a éstos a su vez para "]
[0,null,"que le suministren a LAS ENTIDADES, por el medio que considere pertinente y seguro, mis datos personales relacionados con la afiliación y pago de los aportes al Sistema de Seguridad Social Integral, tales como ingreso base de cotización y demás "]
[0,null,"información relacionada con mi situación laboral y empleador. LAS ENTIDADES podrán conocer dicha información cuantas veces lo requiera, mantenerla actualizada y en general tratarla, directamente o través de un encargado, con la finalidad de analizar "]
[0,null,"mi perfil crediticio en aras de establecer una  relación comercial y/o de servicios conmigo, actualizar la información personal, incluyendo datos de contacto y/o localización (v.g. dirección, teléfonos y correo electrónico), para ofrecerme productos o servicios "]
[0,null,"que se adecuen a mi perfil crediticio y gestión de Cobranza."]
[0,null,"6. AUTORIZACIÓN DE ENVÍO DE INFORMACIÓN COMERCIAL, FINANCIERA Y DEPRODUCTOS Y SERVICIOS. Autorizo a LAS ENTIDADES el envío de información comercial, financiera, de productos y servicios a mi terminal móvil, correo electrónico "]
[0,null,"y/o cualquier otra aplicación disponible para teléfonos inteligentes. Así mismo, autorizo enviar los extractos de todos los productos, estados de cuenta o cualquier notificación del CLIENTE a la dirección de correo electrónico registrada o en su defecto a la "]
[0,null,"dirección de residencia o trabajo, cuando no cuente con correo electrónico. He sido informado que la actualización de información de correspondencia o contacto se puede realizar en cualquier momento en la red de Oficinas del Banco."]
[0,null,"7. CANALES DE CONTACTO. Para los efectos de la Ley 2300 de 2023 y las demás normas que la modifiquen, adicionen o complementen, autorizo expresamente a BANCO DE OCCIDENTE / FIDUCIARIA DE OCCIDENTE S.A., para ser contactado y "]
[0,null,"recibir información por todos los canales habilitados por dichas entidades, entre ellos, pero sin limitarse a los siguientes: llamadas telefónicas, WhatsApp, correo electrónico, mensaje de texto (SMS) y correspondencia física. Asimismo, declaro que he sido "]
[0,null,"informado que cualquier modificación referente a esta autorización podré realizarla en cualquier momento a través de la página web del banco www.bancodeoccidente.com.co en la sección \"Contáctanos\" y para FIDUCIARIA DE OCCIDENTE S.A. a través "]
[0,null,"de su página web www.fiduoccidente.com.co, en su oficina ubicada en la Carrera 13 No. 26a – 47 Piso 9 en Bogotá D.C., o en la línea de atención al Consumidor Financiero: a nivel nacional al 01 8000 521 144 y en Bogotá al 297 30 60. Fax 297 30 33."]
[0,null,"8. AUTORIZACIÓN GUÍAS DE USO. Con la firma del presente documento, manifiesto haber sido informado de la existencia de (las) guías de uso del(los) producto(s) y servicios solicitado(s), las cuales contienen los términos, condiciones y explicaciones "]
[0,null,"de los productos, por considerarla de suma importancia para la seguridad y manejo adecuado del producto, las cuales puedo consultar y/o descargar si es el caso en la página www.bancodeoccidente.com.co; o en su defecto solicitar la impresión de los "]
[0,null,"mismos en la Oficina o Credicentro."]
[0,null,"9. ACEPTACIÓN TÉRMINOS CONTRATO PRODUCTOS Y SERVICIOS. Con la firma del presente documento, manifiesto que conozco y acepto que el producto objeto de esta solicitud, se regirá bajo los términos del contrato de productos y servicios "]
[0,null,"previamente suscrito en Banco de Occidente, junto con sus adiciones, modificaciones y aclaraciones."]
[0,null,"10. AUTORIZACIÓN PARA REPORTAR DATOS COMERCIALES MARCA COMPARTIDA. En calidad de titular de mi información personal, actuando libre y voluntariamente, autorizo de manera expresa e irrevocable al BANCO DE OCCIDENTE S.A o a "]
[0,null,"quien represente sus derechos a suministrar, reportar, procesar y divulgar a la empresa encargada del programa de Fidelización del cual hace parte la Tarjeta de Marca Compartida, lo concerniente a mi información personal y datos de contacto, así como "]
[0,null,"mi información de carácter comercial, financiero, crediticio y de servicios, con el fin de que se me pueda ofrecer la debida diligencia en la inscripción y presentación del producto del Programa de Fidelización de la marca, en especial aquello correspondiente "]
[0,null,"a los beneficios, ofertas, estados de cuenta y todo aquello relacionado con el mercadeo y la publicidad. Igualmente, autorizo recibir por cualquier medio la información concerniente al producto Tarjeta de Crédito y del Aliado. Mis derechos y mis obligaciones "]
[0,null,"así como la permanencia de mi información en las bases de datos corresponden a lo determinado por el otorgamiento jurídico aplicable del cual, por ser de carácter público, estoy enterado."]
[0,null,"La información sobre el Programa de Fidelización puede ser consultada y se encuentra disponible en las páginas web de los Aliados. La información, términos y condiciones contenidos en la página web de los Aliados, así como la calidad, cumplimiento y "]
[0,null,"entrega de sus beneficios y/o productos son de responsabilidad única y exclusiva del Aliado y no del Banco de Occidente."]
[0]
[{"$f":"IF(OR(CuentaActivaBasica=\"Sí\",CuentaActivaCreditoRotativo=\"Sí\",CuentaActivaPrestamoPersonal=\"Sí\",TarjetaCredito=\"Sí\",TarjetaCreditoAmparada=\"Sí\",PortafolioAval=\"Sí\")=TRUE(),1,0)","v":0},null,"CONTRATO DE APERTURA Y UTILIZACIÓN DE LA TARJETA DE CRÉDITO CREDENCIAL DE USO LOCAL E INTERNACIONAL"]
[0]
[0,null,"Quien suscribe el presente documento, identificado como aparece al pie de su firma, quien en adelante y para los efectos del Contrato que se concluya, se denominará el Tarjetahabiente, formula oferta comercial de contrato de apertura y utilización de la "]
[0,null,"Tarjeta de Crédito Credencial de uso local e internacional, emitida por El Banco, establecimiento bancario legalmente constituido, quien en adelante y para los efectos del contrato que se concluya, se denominará El Banco, bajo las siguientes cláusulas:"]
[0,null,"Cláusula primera. La entrega de la tarjeta Credencial de uso local e internacional se hará en consideración a las condiciones personales del Tarjetahabiente, por ello, es personal e intransferible y en consecuencia este no la podrá ceder a ningún título ni "]
[0,null,"hacerse sustituir por terceros en el ejercicio de los derechos que el contrato le confiere, salvo lo señalado en el parágrafo de la presente cláusula. La tarjeta de crédito Credencial de uso local e internacional, es de propiedad de El Banco y El Tarjetahabiente "]
[0,null,"se obliga a custodiarla con la mayor diligencia y cuidado y a devolverla o a no utilizarla en el momento en que El Banco lo solicite."]
[0,null,"Parágrafo. En caso de solicitar la renovación del plástico, El Tarjetahabiente podrá solicitar y autorizar bajo su responsabilidad ante El Banco la entrega de su tarjeta a un tercero, para lo cual El Tarjetahabiente deberá otorgar un poder especial, que cumpla "]
[0,null,"con las condiciones establecidas por El Banco, entre las cuales se encuentra la obligación de definir y expresar claramente en tal documento las facultades adicionales que le concede al tercero para el recibo de su tarjeta, tales como firmas de pagaré, "]
[0,null,"recepción de claves y/o solicitud de activación."]
[0,null,"Cláusula segunda. El Tarjetahabiente, mediante la exhibición de su tarjeta y su plena identificación, podrá firmar comprobantes de venta o facturas cambiarias correspondientes al valor de los bienes o servicios que obtenga en cualquiera de los establecimientos "]
[0,null,"afiliados a El Banco, que operan en el país y en el extranjero, a las redes Visa o MasterCard Internacional, según el tipo de tarjeta, hasta por el monto máximo que El Banco en forma de cupo le autorice, tanto en moneda legal como en moneda extranjera. "]
[0,null,"El Tarjetahabiente también podrá obtener dinero y cambio de cheques personales por dinero en efectivo, en cualquiera de las oficinas de El Banco, sus corresponsales o establecimientos que El Banco indique, hasta por la cantidad que este o Visa o "]
[0,null,"MasterCard, según sea el caso, le asigne, pagando el valor que El Banco haya señalado para el momento de utilizar estos servicios. Los valores así utilizados, deberán ser reembolsados a la presentación del estado de cuenta respectivo. Igualmente, El "]
[0,null,"Tarjetahabiente podrá efectuar compras de bienes o servicios telefónicamente, por Internet o cualquier otro medio electrónico, suministrando al establecimiento autorizado por El Banco la información que se detalla en la cláusula cuarta de esta oferta."]
[0,null,"Parágrafo. Habrá de entenderse que en todos estos casos, pero particularmente en el caso de compras telefónicas, por Internet o cualquier otro medio electrónico, El Tarjetahabiente efectuará las transacciones con suma diligencia y cuidado, en consecuencia "]
[0,null,"entiende y acepta el riesgo derivado de la operación, así como de la entrega de la información señalada en la cláusula cuarta."]
[0,null,"Cláusula tercera. El Tarjetahabiente no podrá sobrepasar en ningún caso el cupo de crédito asignado por El Banco, tanto en moneda legal como en moneda extranjera y en caso que lo hiciere, habrá lugar a la cancelación de la tarjeta y a exigir por parte de "]
[0,null,"El Banco, previo informe al tarjetahabiente dentro del término mínimo legal establecido para ello, el pago inmediato de las sumas pendientes, sin perjuicio de las acciones legales pertinentes."]
[0,null,"Cláusula cuarta. El Tarjetahabiente, para pagar bienes o servicios, solicitar cambio de cheques o avances en efectivo, al amparo de la tarjeta Credencial de uso local e internacional, deberá presentarla personalmente, firmar con tinta cada uno de los "]
[0,null,"comprobantes respectivos, previa verificación de su cuantía e identificarse plenamente ante el establecimiento afiliado o ante El Banco, según el caso. Así mismo podrá efectuar compra de bienes o servicios telefónicamente, por Internet o cualquier otro "]
[0,null,"medio electrónico, para lo cual será necesario que comunique al establecimiento afiliado al Banco debidamente autorizado por El Banco, su nombre completo, número de su tarjeta Credencial, el número de su documento de identidad, fecha de vencimiento "]
[0,null,"de la tarjeta, fecha de vinculación al Banco, dirección registrada en El Banco, digito de verificación de la tarjeta, número de teléfono de su residencia y de su oficina y fecha de nacimiento. Igualmente, podrá efectuar avances en efectivo en los cajeros "]
[0,null,"automáticos indicados por El Banco, dentro de los cupos establecidos por El Banco para el efecto, además de los servicios de consulta, pagos, mensajes, conforme a las condiciones de uso de los cajeros automáticos, las cuales declara conocer y aceptar, "]
[0,null,"toda vez que le fueron entregados o puestos a su disposición."]
[0,null,"Cláusula quinta. El Banco mensualmente mediante un \"estado de cuenta\" liquidará de acuerdo con las condiciones del servicio las sumas que resulte a deber El Tarjetahabiente, las cuales deberá cancelar en las fechas establecidas para tal efecto, aceptando "]
[0,null,"desde ahora los plazos y condiciones fijados en aquel. Sobre el monto de cada avance El Banco liquidará intereses a la tasa que conforme a las disposiciones legales y reglamentarias se hubieren fijado para estas operaciones. Para compras en moneda "]
[0,null,"extranjera con la tarjeta MasterCard, el valor correspondiente a “pago en pesos” del estado de cuenta es proyectado con una tasa promedio, sin embargo, al momento en que el Tarjetahabiente realice el pago, se tomará la Tasa Representativa del Mercado "]
[0,null,"(TRM) del día del pago, por lo que en el siguiente estado de cuenta podrá incluirse un ajuste a favor o en contra por esta diferencia."]
[0,null,"Cláusula sexta. El cupo fijado en moneda extranjera, en ningún caso podrá sobrepasar los límites fijados por las autoridades monetarias como tope máximo a ser utilizado en el año. El Banco se reserva la facultad para que en caso de que el cupo para "]
[0,null,"viajeros sea aumentado a su discreción proceda a aumentar o no el cupo de crédito en moneda extranjera de la tarjeta de crédito Credencial de uso local e internacional. "]
[{"$f":"IF(OR(CuentaActivaBasica=\"Sí\",CuentaActivaCreditoRotativo=\"Sí\",CuentaActivaPrestamoPersonal=\"Sí\",TarjetaCredito=\"Sí\",TarjetaCreditoAmparada=\"Sí\",PortafolioAval=\"Sí\")=TRUE(),1,0)","v":0},null,"Cláusula séptima. Cuando los consumos realizados por El Tarjetahabiente con su tarjeta Credencial de uso local e internacional, en establecimientos asociados del país, se afectará el cupo otorgado en moneda legal y cuando estos sean realizados en el "]
[0,null,"exterior se afectará el cupo otorgado en moneda extranjera."]
[0,null,"Cláusula octava. Si el estado de cuenta no se llegare a recibir en la dirección de correspondencia física o electrónica registrada por el Tarjetahabiente a pesar de haber sido remitida oportunamente por el Banco, El Tarjetahabiente podrá realizar la consulta "]
[0,null,"del mismo a través de los canales digitales (Banca Móvil, Portal Banco), al igual que de la red de oficinas de El Banco o por la línea de atención al cliente, en donde podrá solicitar el extracto y también confirmar el medio y datos de envío de correspondencia."]
[0,null,"Cláusula novena. Cuando El Tarjetahabiente desee acogerse al crédito diferido que conceda El Banco, deberá cancelar por lo menos el valor que para tal efecto se indique en el estado de cuenta. En consecuencia, si oportunamente no cancela la cuota "]
[0,null,"correspondiente, el Banco podrá exigir el pago total a su cargo junto con los intereses de mora, lo cual se informará previamente al tarjetahabiente."]
[0,null,"Cláusula décima. El Tarjetahabiente acepta en cuanto a intereses de mora, corrientes y cualquier otra suma que se liquide, las tasas que para estos efectos establezca El Banco, dentro de los límites permitidos por las autoridades pertinentes y por la ley. "]
[0,null,"Igualmente acepta las fijadas por El Banco como cuota de manejo, costo de reposición, seguro, comisiones por cambio de cheques todos aquellos que resulten del uso de cajeros o sistemas electrónicos y aquel que establezcan las normas legales vigentes. "]
[0,null,"Según aplique, las tarifas se entenderán aceptadas por El Tarjetahabiente: a) en los casos que específicamente estén regulados en la ley, si transcurrido el término legal El Tarjetahabiente no manifiesta su no aceptación; o b) en los demás casos, si anunciada "]
[0,null,"una tarifa El Tarjetahabiente no se presenta a dar por terminado el contrato y continúa en la ejecución del mismo, se entenderá como hecho inequívoco que acepta incondicionalmente las tarifas o modificaciones introducidas."]
[0,null,"Cláusula décima primera. La mora en el pago de una cualquiera de las obligaciones a cargo de El Trajetahabiente suspende su derecho al uso de la tarjeta y da derecho a El Banco a exigir la totalidad de las obligaciones pendientes a cargo de El "]
[0,null,"Tarjetahabiente, lo cual será informado previamente al tarjetahabiente dentro del término mínimo legal establecido para ello. El pago extemporáneo no purga la mora; en consecuencia, el Banco, fuera del cobro de los intereses moratorios sobre el saldo, "]
[0,null,"podrá exigir el pago inmediato del total que se adeuda."]
[0,null,"Cláusula décima segunda. El Tarjetahabiente autoriza irrevocablemente a El Banco para cargar en su cuenta corriente o de ahorros o para debitar de cualquier suma o depósito que tenga, sin previo aviso, todas las sumas que por cualquier concepto esté "]
[0,null,"adeudando a El Banco."]
[0,null,"Cláusula décima tercera. El Banco podrá cancelar, descontinuar, limitar, modificar, suprimir o adicionar los términos y condiciones de esta oferta, mediante aviso enviado al Tarjetahabiente en tal sentido por cualquier medio o por aquel que establezcan las "]
[0,null,"normas legales vigentes. Según aplique, las modificaciones se entenderán aceptadas por el Tarjetahabiente: a) en los casos que específicamente estén regulados en la ley, si transcurrido el término legal el Tarjetahabiente no manifiesta su no aceptación; o "]
[0,null,"b) en los demás casos, si anunciada una modificación el Tarjetahabiente no se presenta a dar por terminado el contrato y continúa en la ejecución del mismo, se entenderá como hecho inequívoco que acepta incondicionalmente las modificaciones introducidas. "]
[0,null,"Igualmente, las partes podrán en cualquier tiempo terminar unilateralmente el presente contrato, caso en el cual El Tarjetahabiente devolverá inmediatamente la tarjeta y se harán exigibles de inmediato la totalidad de las sumas de dinero que adeude a El "]
[0,null,"Banco, incluidas las sumas estipuladas en la cláusula décima de la presente oferta. La terminación unilateral del presente contrato por parte de El Banco se sustentará en criterios objetivos y razonables."]
[0,null,"Cláusula décima cuarta. El Banco no asume responsabilidad en caso de que cualquier establecimiento afiliado al sistema Credencial MasterCard o al sistema Visa, de uso local e internacional, se niegue a admitir el uso de la misma, tampoco será responsable "]
[0,null,"de la cantidad, calidad, marca, prestación o cualquier otro aspecto de las mercancías o servicios que adquiera u obtenga El Tarjetahabiente con la tarjeta, asuntos todos que deberán ser resueltos directamente con el proveedor o afiliado."]
[0,null,"Cláusula décima quinta. El recibo de la tarjeta Credencial de uso local e internacional impone la obligación de firmarla inmediatamente y de custodiarla de modo que ninguna otra persona pueda hacer uso de ella, siendo de su responsabilidad el uso de la "]
[0,null,"misma. En caso de extravío o hurto de la tarjeta, El Tarjetahabiente se obliga a formular la denuncia correspondiente y a dar aviso inmediato y por escrito a las oficinas del Banco."]
[0,null,"Cláusula décima sexta. El Tarjetahabiente se obliga a registrar su dirección y domicilio en El Banco y notificar por escrito a la oficina respectiva de El Banco todo cambio de dirección y cuando se ausente temporal o definitivamente, a indicar con la debida "]
[0,null,"anticipación la persona y dirección a donde deban remitirse los estados de cuenta para su pago."]
[0,null,"Cláusula décima séptima. El Banco podrá cancelar anticipadamente la tarjeta, y por tanto el contrato que se constituya, caso en el cual se declarará de plazo vencido la totalidad de las deudas a cargo de El Tarjetahabiente y este debe restituir inmediatamente "]
[0,null,"la tarjeta, en los siguientes casos:"]
[0,null,"a) El incumplimiento de cualquiera de las obligaciones a cargo de El Tarjetahabiente, lo cual será informado previamente al tarjetahabiente dentro del término mínimo legal establecido; b) El no pago oportuno dentro de los términos y condiciones"]
[0,null,"concedidos en el estado de cuenta de la cuota que se adeude, lo cual será informado previamente al tarjetahabiente; c) El uso de la tarjeta para fines no previstos o en cuantía superior a los límites autorizados por El Banco; d) El giro de cheques a favor de "]
[0,null,"El Banco que resulten impagados total o parcialmente; e) En caso que El Tarjetahabiente fuere perseguido judicialmente y/o se le embarguen sus bienes o garantías otorgadas a favor de El Banco; f) En caso de negociación de deudas de persona natural no "]
[0,null,"comerciante de ser el caso y/o liquidación judicial, patrimonial, voluntaria o administrativa o la mala situación económica de El Tarjetahabiente según la información suministrada al Banco, o en su defecto, en el evento en que sea legalmente posible de "]
[{"$f":"IF(OR(CuentaActivaBasica=\"Sí\",CuentaActivaCreditoRotativo=\"Sí\",CuentaActivaPrestamoPersonal=\"Sí\",TarjetaCredito=\"Sí\",TarjetaCreditoAmparada=\"Sí\",PortafolioAval=\"Sí\")=TRUE(),1,0)","v":0},null,"acuerdo a la normatividad vigente; g) Cuando le sea cancelada cualquiera de las tarjetas de crédito que posea; h) Por muerte de El Tarjetahabiente, lo cual dará derecho a El Banco para exigir la totalidad de la deuda a cualquiera de sus herederos; i) El "]
[0,null,"suministrar informes inexactos en balances, solicitud, declaraciones o documentos que presente a El Banco; j) Cuando El Tarjetahabiente no reclame oportunamente la tarjeta extendida a su favor, a juicio de El Banco; k) En caso de desmejora de la garantía "]
[0,null,"otorgada a favor de El Banco; l) Por ser vinculado El Tarjetahabiente, por parte de las autoridades competentes, a cualquier tipo de investigación por delitos evidenciados en el código penal en el capítulo V – del lavado de Activos- o sea (n) incluido(s) en "]
[0,null,"listas para el control y prevención de lavado de activos y la financiación del terrorismo administradas por cualquier autoridad nacional o extranjera, tales como la Oficina de Control de Activos en el Exterior (OFAC) del Departamento del Tesoro de los Estados "]
[0,null,"Unidos de América y la emitida por el concejo de seguridad de las naciones unidas (ONU), o condenado(s) por parte de las autoridades competentes en cualquier tipo de proceso judicial relacionado con la comisión de cualquier hecho punible; m) por cualquier "]
[0,null,"otro motivo que constituya justa causa de acuerdo con la ley."]
[0,null,"Cláusula décima octava. El Tarjetahabiente concede las siguientes autorizaciones voluntarias e irrevocables a El Banco: a) Para que tanto El Banco, como los establecimientos afiliados a los servicios de la tarjeta, con sujeción a las normas que se impartan, "]
[0,null,"puedan retener la tarjeta; b) Para llenar los espacios en blanco en los comprobantes de venta que firme; c) Para ceder los comprobantes de venta; d) Para trasladar a su nueva tarjeta el saldo pendiente por utilización de la tarjeta extraviada siempre y cuando "]
[0,null,"se autorice dicha expedición, la cual quedará cobijada por los términos del presente contrato; e) Para que cobre ejecutivamente cualquier saldo a su cargo, incluyendo intereses moratorios a la tasa más alta que legalmente sea posible, con la sola presentación "]
[0,null,"del estado de cuenta; f) Que se incluya el código de su tarjeta en el boletín de deudores morosos que se reporta a los establecimientos afiliados, cuando incurra en mora superior a 60 días o sobrepase el cupo asignado por El Banco, con el fin que se le "]
[0,null,"niegue el derecho al uso de la tarjeta temporal o definitivamente."]
[0,null,"Cláusula décima novena. El Tarjetahabiente declara que la información suministrada por él y la que en el futuro suministre a El Banco, a través de cualquier medio, sea esta comercial, profesional, técnica, administrativa o financiera, es veraz, actual, "]
[0,null,"verificable, completa y exacta, obligándose a actualizarla, por lo menos una (1) vez al año, o cada vez que así lo solicite El Banco, suministrando la totalidad de los soportes documentales exigidos. El incumplimiento de esta obligación, faculta a El Banco "]
[0,null,"para terminar de manera inmediata y unilateral el presente contrato. En calidad de titular de su información personal, incluida la de carácter financiero, crediticio, comercial, de servicios, datos biométricos, la documentación aportada y la proveniente de "]
[0,null,"terceros países, actuando libre y voluntariamente, El Tarjetahabiente autoriza de manera previa y expresa para que directamente o a través de terceros el Banco, su matriz, las filiales, subordinadas y/o asociadas de dicha matriz, las filiales, subordinadas y/o "]
[0,null,"asociadas del Banco y en general las sociedades y demás entidades vinculadas, o quien represente sus derechos, sea como cesionario, beneficiario de estos derechos o en cualquier otro carácter, realice (n) el siguiente tratamiento, manejo y administración "]
[0,null,"de dicha información, sin que esto de lugar a pagos ni retribuciones de ningún tipo a su favor:"]
[0,null,"1. La almacene(n), consulte(n), analice(n), evalúe(n), compare(n), procese(n), reporte(n), obtenga(n), actualice(n), compile(n), trate(n), envíe(n), actualice(n), rectifique(n), emplee(n), elimine(n), suministre(n), ordene(n), catalogue(n), clasifique(n), grabe(n), conserve(n)."]
[0,null,"2. La divulgue(n) a los operadores, centrales o bases de información y burós de crédito y/o a cualquier otra Entidad nacional o extranjera que tenga los mismos o similares fines a los expresados en el presente escrito."]
[0,null,"3. La verifique(n), confirme(n), valide(n), actualice(n), y/o investigue(n) con los datos que obtenga y los que disponga(n) legítimamente."]
[0,null,"4. La suministre(n) a contratistas o terceras personas nacionales o extranjeras, quienes desarrollen procesos operativos propios del objeto o de administración de riesgos."]
[0,null,"5. Para que acceda(n), consulte(n), compare(n) y analice(n) mi información almacenada en bases de datos de centrales de riesgo crediticio, financiero, de antecedentes judiciales o de seguridad legítimamente constituidas, de naturaleza estatal o privada, "]
[0,null,"nacional o extranjera, o en cualquier base de datos comercial o de servicios que permita establecer de manera completa e histórica su comportamiento como deudor, codeudor, usuario, cliente, garante, endosante, afiliado, asociado, beneficiario, suscriptor, "]
[0,null,"contribuyente y/o como titular de servicios, financieros, comerciales o de cualquier otra índole. Las finalidades de las actividades de tratamiento, manejo y administración de dicha información que realice(n) directamente o a través de terceros el Banco, su "]
[0,null,"matriz, las filiales, subordinadas y/o asociadas de dicha matriz, las filiales, subordinadas y/o asociadas del Banco y en general las sociedades y demás Entidades vinculadas, o quien represente sus derechos, sea como cesionario, beneficiario de estos "]
[0,null,"derechos o en cualquier otro carácter, son las siguientes:"]
[0,null,"a) Para establecer y mantener una relación contractual cualquiera que sea su naturaleza."]
[0,null,"b) Para efectuar evaluación de riesgos derivados de una relación contractual potencial y/o vigente."]
[0,null,"c) Adelantar estudios de mercadeo, investigaciones comerciales y/o estadísticas."]
[0,null,"d) Ofrecer de manera individual o conjunta con terceros, productos y servicios propios o de terceros, así como para realizar campañas de promoción propias o de terceros."]
[0,null,"e) Adelantar cualquier trámite ante autoridad pública o persona privada, incluido el cobro de cartera."]
[0,null,"f) Transmitir la información y datos a autoridades locales y/o entidades extranjeras que lo requieran en cumplimiento de obligaciones surgidas en normas y convenios."]
[{"$f":"IF(OR(CuentaActivaBasica=\"Sí\",CuentaActivaCreditoRotativo=\"Sí\",CuentaActivaPrestamoPersonal=\"Sí\",TarjetaCredito=\"Sí\",TarjetaCreditoAmparada=\"Sí\",PortafolioAval=\"Sí\")=TRUE(),1,0)","v":0},null,"g) El envío de notificaciones, alertas e información legal y de seguridad al terminal móvil, correo electrónico, aplicaciones de mensajería para teléfono inteligente y/o cualquier otro mecanismo de contacto."]
[0,null,"Por último, El Tarjetahabiente declara que es consciente que sus derechos y obligaciones así como la permanencia de su información en las bases de datos corresponden a lo determinado por el ordenamiento jurídico aplicable, del cual, por ser de carácter "]
[0,null,"público, está enterado; y que la presente autorización hace parte de la relación contractual que establezca con la entidad para la adquisición de uno de sus productos o servicios."]
[0,null,"Cláusula vigésima. Condiciones de la gestión de cobranza prejudicial: En caso de mora en el pago de las obligaciones del Cliente, el Banco a partir del primer día de vencimiento iniciará las gestiones de cobro prejudiciales tendientes a la normalización o "]
[0,null,"pago total de la misma. Una vez iniciada la gestión de cobro se generarán honorarios y/o gastos de cobranza de hasta el 20% dependiendo de la gestión realizada. Los honorarios se liquidarán sobre el valor del pago. Los gastos y honorarios serán asumidos "]
[0,null,"por el Cliente. Igualmente, el Banco podrá proceder con el bloqueo del plástico en este caso."]
[0,null,"Cláusula vigésima primera. El Banco podrá entregar por cuenta de El Tarjetahabiente y mediante solicitud escrita tarjetas amparadas con este contrato, con indicación de los nombres, apellidos e identificación de cada una de las personas, las que se "]
[0,null,"denominarán Los Beneficiarios, los cuales gozarán de los mismos derechos hasta el cupo que El Banco asigne. Las obligaciones las asume íntegramente El Tarjetahabiente que solicitó su expedición, pues las reconoce desde ahora como propias. Igualmente "]
[0,null,"el (los) beneficiario(s) responderá(n) solidariamente con El Tarjetahabiente frente a El Banco por el uso que haga(n) con la(s) tarjeta(s) así expedida(s)."]
[0,null,"Parágrafo. En el evento que se expidan tarjetas amparadas a favor de menores de edad bajo la responsabilidad solidaria de El Tarjetahabiente, se entiende que con la presente oferta son otorgadas las autorizaciones que exige la ley."]
[0,null,"Cláusula vigésima segunda. Con la presentación de la solicitud que acompaña la presente oferta, debidamente diligenciada y suscrita por el solicitante, El Banco podrá, en caso de aceptar la oferta expedir una tarjeta o tarjetas a nombre del oferente y/o de"]
[0,null,"las personas que designe, caso en el cual el oferente adquiere los derechos y contrae las obligaciones contenidas en el presente documento."]
[0,null,"Cláusula vigésima tercera. El Tarjetahabiente certifica que los datos suministrados en la solicitud de apertura y utilización de la tarjeta de Crédito son exactos y verídicos, obligándose a comunicar a El Banco por escrito cualquier cambio que se presente, "]
[0,null,"debiendo actualizarlos por lo menos una vez al año. El incumplimiento de esta obligación por parte del Tarjetahabiente dará derecho a El Banco a dar por terminado el Contrato de Apertura y utilización de la Tarjeta de Crédito, conforme a lo establecido en "]
[0,null,"el literal a) de la cláusula décima séptima del presente contrato."]
[0,null,"Cláusula vigésima cuarta. La presente oferta tiene validez de tres meses y se entiende aceptada por El Banco a la expedición de la tarjeta o tarjetas, El Banco no estará obligado a informar a El Tarjetahabiente las razones de la no aceptación de esta oferta."]
[0,null,"Cláusula vigésima quinta. Declaro que los recursos que utilizaré para el pago de las utilizaciones de la(s) tarjeta(s) de crédito, no provienen de ninguna actividad ilícita de las contempladas en el Código Penal Colombiano o en cualquier norma que lo modifique "]
[0,null,"o adicione."]
[0,null,"Cláusula vigésima sexta. El Tarjetahabiente autoriza a El Banco para que sean cargados a su tarjeta los registros o cuentas que tenga El Banco a la vista, relativos a la compra de bienes o prestación de servicios transmitidos por los comerciantes a cargo "]
[0,null,"del Tarjetahabiente incluso en la ausencia de comprobantes firmados por El Tarjetahabiente o de la utilización del código secreto. El Tarjetahabiente autoriza a El Banco para que cargue a su tarjeta las compras de bienes o servicios que El Tarjetahabiente "]
[0,null,"ha realizado, presentando o comunicando previamente al comerciante o prestador del servicio (arrendamiento de vehículos, prestaciones hoteleras: reservaciones, ausencia rápida, consumos no cancelados antes de la salida) y que tenga su origen entre "]
[0,null,"otros en: teléfono, fax, aparatos de video, facturas."]
[0,null,"Cláusula vigésima séptima. El Tarjetahabiente es responsable de hacer una revisión minuciosa de su estado de cuenta del respectivo período que le haya sido enviado por el Banco, y en caso de evidenciar alguna inconsistencia notificar oportunamente al "]
[0,null,"Banco, y si es del caso, presentar la reclamación respectiva, -preferiblemente dentro de los noventa (90) días después de efectuadas las transacciones en Colombia o en el extranjero cuando la inconsistencia esté relacionada con los consumos de bienes y "]
[0,null,"servicios realizados a través de su tarjeta de crédito, atendiendo los términos establecidos en los reglamentos de las franquicias (Visa y Mastercad) para tal efecto."]
[0,null,"Cláusula vigésima octava. El Banco se reserva el derecho de bloquear la tarjeta o disminuir el cupo asignado como medida de seguridad en interés de El Tarjetahabiente o de El Banco sin que haya lugar a indemnización alguna. Esta disminución de cupo "]
[0,null,"situación será previamente informada al Tarjetahabiente."]
[0]
[{"$f":"IF(OR(CreditoRotativo=\"Sí\",CuentaActivaCreditoRotativo=\"Sí\")=TRUE(),1,0)","v":0},null,"CONTRATO DE APERTURA DE CRÉDITO ROTATIVO"]
[{"$f":"IF(OR(CreditoRotativo=\"Sí\",CuentaActivaCreditoRotativo=\"Sí\")=TRUE(),1,0)","v":0}]
[0,null,"El Banco de Occidente S.A. (“el Banco”), debidamente facultado por el Estatuto Orgánico del Sistema Financiero y demás disposiciones legales concordantes, y el Cliente identificado como aparece al pie de su firma, celebran el presente Contrato de "]
[0,null,"Apertura de Crédito Rotativo, de acuerdo con las siguientes cláusulas:"]
[0,null,"Cláusula primera. El Banco abrió al Cliente una línea de crédito rotativo, del cual podrá disponer en los términos y condiciones señalados en el presente contrato. "]
[0,null,"El monto del cupo de crédito y las condiciones particulares de éste, serán comunicados por el Banco al Cliente a través de comunicación(es) escrita(s) la(s) cual(es) se entenderá(n) que hace(n) parte integral de este contrato. "]
[0,null,"Parágrafo primero. No obstante lo anterior, podrá incrementarse el valor del cupo de crédito asignado en el presente contrato, a discreción del Banco o mediante solicitud escrita efectuada por el Cliente al Banco, quien una vez realizado el análisis "]
[0,null,"financiero requerido y si su situación de tesorería se lo permite, ampliará el precitado monto. "]
[0,null,"Parágrafo segundo. Igualmente, el Banco con base en el análisis financiero que en cualquier tiempo deba efectuar el Cliente o por situaciones de tesorería, podrá disminuir la cuantía del cupo del crédito e incluso cancelarlo, de lo cual comunicará "]
[0,null,"previamente por escrito al Cliente."]
[0,null,"Parágrafo tercero. La apertura de crédito a que se refiere el presente contrato, determina en todo caso una disponibilidad rotatoria revocable para el Cliente, según lo previsto en el artículo 1401 del Código de Comercio, lo que significa que los reembolsos "]
[0,null,"hechos por el Cliente al Banco, dentro de los términos aquí previstos, serán de nuevo utilizables por el Cliente, durante la vigencia del mismo."]
[0,null,"Cláusula segunda. El cupo asignado, será desembolsado por el Banco mediante el uso del Cliente del servicio Audio Línea de Occidente A.L.O. o a través de cualquier otro medio o servicio que el Banco acuerde con el Cliente, quien no podrá girar en "]
[0,null,"exceso del saldo disponible del cupo aprobado por el Banco. Las ordenes provenientes del Cliente y que excedan del monto de las atribuciones otorgadas, serán rechazadas por fondos insuficientes."]
[0,null,"Cláusula tercera. Las utilizaciones del cupo de crédito serán pagadas por el Cliente en un plazo de 48 meses. Cualquier utilización del cupo de crédito otorgado por el Banco al Cliente, causará intereses a la tasa vigente en la cartelera del banco al "]
[0,null,"momento de la utilización. La cuota mensual a cargo del Cliente estará compuesta por una cuota fija a capital, más los intereses sobre el saldo y los intereses moratorios a que haya lugar, según lo pactado en este contrato. En todo caso, el Banco podrá "]
[0,null,"modificar la tasa pactada dentro de los límites que estén autorizados por éste para tales operaciones. Dicha modificación será notificada mediante aviso enviado al Cliente en tal sentido por cualquier medio o por aquel que establezcan las normas legales "]
[0,null,"vigentes. Según aplique, las modificaciones se entenderán aceptadas por el Cliente: a) en los casos que específicamente estén regulados en la ley, si transcurrido el término legal el Cliente no manifiesta su no aceptación; o b) en los demás casos, si "]
[0,null,"anunciada una modificación el Cliente no se presenta a dar por terminado el contrato y continúa en la ejecución del mismo, se entenderá como hecho inequívoco que acepta incondicionalmente las modificaciones introducidas."]
[0,null,"Cláusula cuarta. Las utilizaciones del cupo de crédito deberán ser pagadas por el Cliente en forma mensual, en el plazo establecido por el Banco, los cuales se indicarán en el extracto del producto. Estos pagos podrán realizarse en cualquiera de las "]
[0,null,"oficinas del Banco o mediante débito automático de la cuenta(s) corriente o de ahorros o de cualquier otro depósito de que sea titular el Cliente, para lo cual autoriza de manera expresa e irrevocable al Banco para debitar las sumas adeudadas de los "]
[0,null,"saldos que el Cliente tenga en otros depósitos en el Banco o compensar las obligaciones con cualquier otra suma que el Banco le adeuda al Cliente por cualquier concepto."]
[0,null,"Cláusula quinta. En caso de mora en el incumplimiento de sus obligaciones y mientras subsista, el Cliente pagará al Banco intereses a la tasa máxima legal vigente. En el evento de incurrir el Cliente en mora de una cualquiera de las obligaciones a su "]
[0,null,"cargo y a favor del Banco, éste podrá declarar vencido el plazo de todas y cada una de las obligaciones, haciéndolas exigibles inmediatamente. "]
[0,null,"Parágrafo primero. El Cliente se obliga frente a cualquier insuficiencia de garantías o de contragarantías a suscribir inmediatamente aquellas que sean requeridas por el Banco. "]
[0,null,"Parágrafo segundo. El Cliente manifiesta expresamente que si ocurre la prórroga, novación o modificación de la obligación contraída en razón de la apertura de crédito a que se refiere este contrato, acepta que continúen vigentes todas y cada una de las "]
[0,null,"garantías reales o personales que estén amparando estas obligaciones, garantías que se entenderán ampliadas a la nueva que pueda seguir de conformidad con lo previsto en el artículo 1708 del Código Civil. "]
[0,null,"Parágrafo tercero. Para el cobro de las sumas utilizadas en desarrollo de este contrato, el Banco podrá llenar los espacios en blanco del pagaré y/o contragarantía suscritos por el Cliente a favor del Banco para este efecto, según las instrucciones por él "]
[0,null,"impartidas. Por el solo hecho de que el Banco decida entregar para su cobro judicial o extrajudicial el presente documento junto con el título antes mencionado, cualquiera que sea la causa, será de cargo del Cliente el valor de los honorarios profesionales "]
[0,null,"y gastos de cobranza. "]
[0,null,"Cláusula sexta. Condiciones de la gestión de cobranza prejudicial: En caso de mora en el pago de las obligaciones del Cliente, el Banco a partir del primer día de vencimiento iniciará las gestiones de cobro prejudiciales tendientes a la normalización o pago "]
[{"$f":"IF(OR(CreditoRotativo=\"Sí\",CuentaActivaCreditoRotativo=\"Sí\")=TRUE(),1,0)","v":0},null,"total de la misma. Una vez iniciada la gestión de cobro se generarán honorarios y/o gastos de cobranza de hasta el 20% dependiendo de la gestión realizada. Los honorarios se liquidarán sobre el valor del pago. Los gastos y honorarios serán asumidos por "]
[0,null,"el Cliente."]
[0,null,"Cláusula séptima. El presente contrato tendrá una vigencia indefinida a partir de la fecha en que se firme el presente documento. No obstante, el Banco estará facultado para dar por terminado el presente contrato en cualquier tiempo y sin justa causa, "]
[0,null,"dando aviso de tal decisión al Cliente a través de comunicación escrita con cinco (5) días de antelación a la fecha prevista para antelación a la fecha prevista para que se dé por terminado el contrato. Por ende, a partir de la fecha señalada por el Banco en "]
[0,null,"el documento de terminación, el Cliente dejará de contar con la disponibilidad de fondos a que se refiere el presente contrato. En este evento, el Cliente se obliga a seguir cancelando las utilizaciones del cupo que se encuentran pendientes de pago en los "]
[0,null,"términos y condiciones pactados con el Banco y deberá cancelar inmediatamente comisiones, cuotas de manejo, seguros y en general los gastos derivados del presente contrato."]
[0,null,"Cláusula octava. Sin perjuicio de lo establecido en la cláusula anterior, el Banco podrá dar por terminado este contrato en cualquier tiempo y declarar el plazo vencido de todas las obligaciones derivadas de él que se encuentren vigentes a cargo del "]
[0,null,"Cliente, así como proceder a exigir judicial o extrajudicialmente, la inmediata cancelación de las deudas y sus accesorios en el momento en que ocurriere cualquiera de los siguientes eventos: a) Por el no pago oportuno de alguna utilización y en general, el "]
[0,null,"no pago dentro de los términos y condiciones fijadas por el Banco. b) Por el incumplimiento de cualquiera de las obligaciones contraídas por el Cliente en virtud de este contrato. c) Por el manejo inadecuado de las cuentas de las que sea titular."]
[0,null,"El Cliente en el Banco. d) Si en forma separada o conjuntamente el Cliente fuera perseguido judicialmente por cualquier persona y en ejercicio de cualquier acción. e) Por factores de naturaleza financiera que determinen la inconveniencia para el Banco de "]
[0,null,"continuar con el contrato de conformidad con lo señalado en el artículo 868 del Código de Comercio. f) Por cualquier decisión de las autoridades que con lleven a una restricción en la disponibilidad de recursos por parte del Banco. g) Por la admisión en "]
[0,null,"concordato preventivo, declaratoria de quiebra, concurso de acreedores o liquidación administrativa del Cliente. h) Por muerte del Cliente o de sus codeudores. i) Por suministra informes inexactos en balances, solicitud, declaraciones o documentos que "]
[0,null,"presente al Banco. j) En caso de desmejora de la garantía otorgada a favor del Banco. k) Por ser vinculado El Tarjetahabiente, por parte de las autoridades competentes, a cualquier tipo de investigación por delitos evidenciados en el código penal en el "]
[0,null,"capítulo V - del lavado de Activos- o sea(n) incluido(s) en listas para el control y prevención de lavado de activos y la financiación del terrorismo administradas por cualquier autoridad nacional o extranjera, tales como la Oficina de Control de Activos en el "]
[0,null,"Exterior (OFAC) del Departamento del Tesoro de los Estados Unidos de América y la emitida por el Concejo de Seguridad de las Naciones Unidas (ONU), o condenado(s) por parte de las autoridades competentes en cualquier tipo de proceso judicial "]
[0,null,"relacionado con la comisión de cualquier hecho punible. l) Por cualquier otro motivo que constituya justa causa de acuerdo con la ley."]
[null,null,"Cláusula novena. Todos los gastos y tributos que genere el perfeccionamiento, legalización, ejecución y/o liquidación del presente contrato serán de cargo del Cliente, los cuales podrán ser cargados al valor del crédito, en el evento que"]
[0,null,"El Banco deba cancelarlos."]
[0,null,"Cláusula décima. El Cliente declara que la información suministrada por él y la que en el futuro suministre a El Banco, a través de cualquier medio, sea esta comercial, profesional, técnica, administrativa o financiera, es veraz, actual, verificable, completa y "]
[0,null,"exacta, obligándose a actualizarla, por lo menos una (1) vez al año, o cada vez que así lo solicite el Banco, suministrando la totalidad de los soportes documentales exigidos. El incumplimiento de esta obligación, faculta al Banco para terminar de manera "]
[0,null,"inmediata y unilateral el presente contrato. En calidad de titular de su información personal, incluida la de carácter financiero, crediticio, comercial, de servicios, datos biométricos, la documentación aportada y la proveniente de terceros países, actuando "]
[0,null,"libre y voluntariamente, el Cliente autoriza de manera previa y expresa para que directamente o a través de terceros el Banco, su matriz, las filiales, subordinadas y/o asociadas de dicha matriz, las filiales, subordinadas y/o asociadas del Banco y en general "]
[0,null,"las sociedades y demás entidades vinculadas, o quien represente sus derechos, sea como cesionario, beneficiario de estos derechos o en cualquier otro carácter, realice(n) el siguiente tratamiento, manejo y administración de dicha información, sin que "]
[0,null,"esto de lugar a pagos ni retribuciones de ningún tipo a su favor:"]
[0,null,"1. La almacene(n), consulte(n), analice(n), evalúe(n), compare(n), procese(n), reporte(n), obtenga(n), actualice(n), compile(n), trate(n), envíe(n), actualice(n), rectifique(n), emplee(n), elimine(n), suministre(n), ordene(n), catalogue(n), clasifique(n), grabe(n),","La almacene(n), consulte(n), analice(n), evalúe(n), compare(n), procese(n), reporte(n), obtenga(n), actualice(n), compile(n), trate(n), envíe(n), actualice(n), rectifique(n), emplee(n), elimine(n), suministre(n), ordene(n), catalogue(n), clasifique(n), grabe(n), conserve(n). "]
[0,null,"conserve(n)."]
[0,null,"2. La divulgue(n) a los operadores, centrales o bases de información y burós de crédito y/o a cualquier otra entidad nacional o extranjera que tenga los mismos o similares fines a los expresados en el presente escrito.","La divulgue(n) a los operadores, centrales o bases de información y burós de crédito y/o a cualquier otra entidad nacional o extranjera que tenga los mismos o similares fines a los expresados en el presente escrito. "]
[0,null,"3. La verifique(n), confirme(n), valide(n), actualice(n), y/o investigue(n) con los datos que obtenga y los que disponga(n) legítimamente.","La verifique(n), confirme(n), valide(n), actualice(n), y/o investigue(n) con los datos que obtenga y los que disponga(n) legítimamente."]
[0,null,"4. La suministre(n) a contratistas o terceras personas nacionales o extranjeras, quienes desarrollen procesos operativos propios del objeto o de administración de riesgos.","La suministre(n) a contratistas o terceras personas nacionales o extranjeras, quienes desarrollen procesos operativos propios del objeto o de administración de riesgos. "]
[0,null,"5. Para que acceda(n), consulte(n), compare(n) y analice(n) mi información almacenada en bases de datos de centrales de riesgo crediticio, financiero, de antecedentes judiciales o de seguridad legítimamente constituidas, de naturaleza estatal o","Para que acceda(n), consulte(n), compare(n) y analice(n) mi información almacenada en bases de datos de centrales de riesgo crediticio, financiero, de antecedentes judiciales o de seguridad legítimamente constituidas, de naturaleza estatal o "]
[0,null,"privada, nacional o extranjera, o en cualquier base de datos comercial o de servicios que permita establecer de manera completa e histórica su comportamiento como deudor, codeudor, usuario, cliente, garante, endosante, afiliado, asociado, beneficiario, "]
[0,null,"suscriptor, contribuyente y/o como titular de servicios, financieros, comerciales o de cualquier otra índole."]
[0,null,"Las finalidades de las actividades de tratamiento, manejo y administración de dicha información que realice (n) directamente o a través de terceros el Banco, su matriz, las filiales, subordinadas y/o asociadas de dicha matriz, las filiales, subordinadas y/o "]
[0,null,"asociadas del Banco y en general las sociedades y demás Entidades vinculadas, o quien represente sus derechos, sea como cesionario, beneficiario de estos derechos o en cualquier otro carácter, son las siguientes:"]
[0,null,"a. Para establecer y mantener una relación contractual cualquiera que sea su naturaleza.","Para establecer y mantener una relación contractual cualquiera que sea su naturaleza."]
[0,null,"b. Para efectuar evaluación de riesgos derivados de una relación contractual potencial y/o vigente.","Para efectuar evaluación de riesgos derivados de una relación contractual potencial y/o vigente."]
[0,null,"c. Adelantar estudios de mercadeo, investigaciones comerciales y/o estadísticas.","Adelantar estudios de mercadeo, investigaciones comerciales y/o estadísticas."]
[0,null,"d. Ofrecer de manera individual o conjunta con terceros, productos y servicios propios o de terceros, así como para realizar campañas de promoción propias o de terceros.","Ofrecer de manera individual o conjunta con terceros, productos y servicios propios o de terceros, así como para realizar campañas de promoción propias o de terceros."]
[0,null,"e. Adelantar cualquier trámite ante autoridad pública o persona privada, incluido el cobro de cartera.","Adelantar cualquier trámite ante autoridad pública o persona privada, incluido el cobro de cartera."]
[0,null,"f. Transmitir la información y datos a autoridades locales y/o entidades extranjeras que lo requieran en cumplimiento de obligaciones surgidas en normas y convenios.","Transmitir la información y datos a autoridades locales y/o entidades extranjeras que lo requieran en cumplimiento de obligaciones surgidas en normas y convenios."]
[0,null,"g. El envío de notificaciones, alertas e información legal y de seguridad al terminal móvil, correo electrónico, aplicaciones de mensajería para teléfono inteligente y/o cualquier otro mecanismo de contacto.","El envío de notificaciones, alertas e información legal y de seguridad al terminal móvil, correo electrónico, aplicaciones de mensajería para teléfono inteligente y/o cualquier otro mecanismo de contacto."]
[0,null,"Por último el Cliente declara que es consciente que sus derechos y obligaciones así como la permanencia de su información en las bases de datos corresponden a lo determinado por el ordenamiento jurídico aplicable, del cual, por ser de carácter público, "]
[0,null,"está enterado; y que la presente autorización hace parte de la relación contractual que establezca con la entidad para la adquisición de uno de sus productos o servicios. "]
[0,null,"Cláusula décima primera. El Banco podrá modificar las condiciones del presente contrato mediante aviso enviado al Cliente en tal sentido por cualquier medio o por aquel que establezcan las normas legales vigentes. Según aplique, las modificaciones se "]
[0,null,"entenderán aceptadas por el Cliente: a) en los casos que específicamente estén regulados en la ley, si transcurrido el término legal el Cliente no manifiesta su no aceptación; o b) en los demás casos, si anunciada una modificación el Cliente no se presenta "]
[0,null,"a dar por terminado el contrato y continúa en la ejecución del mismo, se entenderá como hecho inequívoco que acepta incondicionalmente las modificaciones introducidas a través de comunicación escrita dirigida al Cliente, las cuales se entenderán "]
[0,null,"aceptadas si éste no manifiesta lo contrario por escrito dentro de los cinco (5) días siguientes a la fecha de la comunicación del Banco."]
[0,null,"Cláusula décima segunda. El Banco podrá realizar bloqueo de los cupos de crédito cuando el Cliente se encuentre en Mora de uno o más productos, o cuando presente en el análisis de crédito que realiza el Banco, un deterioro en su comportamiento "]
[0,null,"crediticio. Asimismo, podrá evaluar y modificar los cupos de crédito en el evento que el Cliente presente deterioro en los reportes de las centrales de riesgo."]
[0,null,"Cláusula décima tercera. Para todos los efectos legales las partes fijan como domicilio la ciudad de",null,null,null,null,null,null,null,null,null,null,null,null,null,null,null,null,null,null,null,null,null,null,null,null,null,null,null,null,null,null,null,null,null,null,null,null,null,null,null,null,null,null,null,null,null,null,null,null,null,null,null,null,null,null,null,null,null,null,null,null,null,null,null,null,null,"."]
[0,null,"Autorizo irrevocablemente al Banco de Occidente S.A., para realizar en forma mensual, débito automático con cargo a mi(s) cuenta(s) corriente(s) y sobregiros o a mi(s) cuenta(s) de ahorros de la(s) cual(es) soy titular, por el valor total de la cuota a pagar "]
[0,null,"correspondiente a mi crédito. Lo anterior, en el entendido que es entera discreción del Banco la concesión del(los) sobregiro(s), así como su incremento."]
[0]
[{"$f":"IF(OR(CuentaActivaBasica=\"Sí\",CuentaActivaCreditoRotativo=\"Sí\",CuentaActivaPrestamoPersonal=\"Sí\",CuentaCorriente=\"Sí\",CuentaCorrienteColombianosExt=\"Sí\")=TRUE(),1,0)","v":0},null,"CONTRATO DE CUENTA CORRIENTE"]
[0]
[0,null,"2El Banco de Occidente S.A. (“el Banco”), debidamente facultado por el Estatuto Orgánico del Sistema Financiero y demás disposiciones legales concordantes, y el Cliente identificado como aparece al pie de su firma, celebran el presente Contrato de "]
[0,null,"Cuenta Corriente, de acuerdo con las siguientes cláusulas:"]
[0,null,"Cláusula primera. El Cliente se obliga a mantener en poder del Banco fondos suficientes para atender el pago total de los cheques que libre contra el Banco y éste, de acuerdo con las disposiciones legales y las cláusulas contractuales, se obliga a pagar "]
[0,null,"los cheques que han sido librados en la chequera entregada o autorizada al titular de la cuenta a menos que exista justa causa para su devolución o que presenten a juicio del Banco apariencias de falsificación o adulteración apreciables a simple vista. Se "]
[0,null,"entienden por justas causas además de las causales de devolución convenidas entre los bancos, que constan en los acuerdos interbancarios los cuales se consideran incorporados a este contrato, todas aquellas que impliquen una razonable previsión "]
[0,null,"enderezada a verificar las circunstancias en que el cheque fue girado o negociado. El Banco solamente atenderá las órdenes de no pago cuando provengan del girador o de autoridad competente y las reciba por escrito en las circunstancias previstas por la"]
[0,null,"ley."]
[0,null,"Cláusula segunda. El Banco, teniendo en cuenta la naturaleza y modalidad del presente contrato y la relación que de éste se desprende para con el cliente, suministrará a éste las chequeras debidamente identificadas, previa solicitud escrita, quien a su "]
[0,null,"recibo está obligado a hacer la verificación con suma diligencia y cuidado y manifestar de manera inmediata cualquier observación al respecto. Para el movimiento de la cuenta, el Banco suministrará o autorizará al cliente formularios de cheques "]
[0,null,"debidamente identificados, mediante solicitud escrita en comprobante especial que entregará el Banco para tal fin, salvo pacto escrito entre las partes. De igual manera, el Banco podrá entregar al cliente otros medios de manejo, previamente acordados "]
[0,null,"con éste. El Banco entregará chequeras a los titulares de las cuentas corrientes, o a terceros debidamente autorizados por éstos para el efecto. En este caso, serán entregadas únicamente mediante orden escrita del titular o de su representante legal o "]
[0,null,"apoderado, acompañada de su correspondiente cédula de ciudadanía u otro documento legal de identificación. Tanto para la entrega a terceros como para la ratificación de que tratan los incisos anteriores, el Banco estará facultado para exigir las "]
[0,null,"seguridades que estime convenientes e incluso que se autentiquen las firmas por los medios previstos por la ley. Tratándose de personas jurídicas, empresas, etc., los gerentes o representantes legales respectivos deberán comunicar por escrito al Banco "]
[0,null,"previamente el nombre e identificación de la persona autorizada para retirar sus chequeras, comunicación cuyas firmas y sellos deberán ser controlados a su recibo y que permanecerán para consulta en cada caso en poder del funcionario designado que "]
[0,null,"autorice la entrega de chequeras a terceras personas. Respecto a los sellos secos el Banco únicamente verificará la existencia de los mismos sin validar su texto y características por cuanto su verificación no es posible por medios electrónicos. El Banco "]
[0,null,"estará obligado en sus relaciones con el cliente a ofrecer al tenedor del cheque el pago parcial cuando no hubiere fondos suficientes para cubrirlo totalmente, salvo que se presenten, en lo conducente, las circunstancias a que se refiere el numeral anterior. "]
[0,null,"En el evento que la oferta sea aceptada, el cliente acepta las posibles demoras que se ocasionen como consecuencia de las medidas de seguridad y demás precauciones que se tengan que adoptar para la verificación de tal pago o la devolución del "]
[0,null,"instrumento."]
[0,null,"Cláusula tercera. Las chequeras especiales, es decir aquellas que el cliente manda a imprimir con determinadas características que no aparecen en las chequeras ordinarias, deberán ser autorizadas por el Banco y serán impresas en el papel y con las "]
[0,null,"medidas de seguridad empleadas en la elaboración de las chequeras ordinarias. Para tal efecto se firmará convenio escrito adicional a este contrato."]
[0,null,"Cláusula cuarta. Se prohíbe el uso de chequeras universales o sea aquellas que sirven para librar contra distintos bancos. En este caso, el cliente autoriza al Banco para rechazar a juicio de éste último, el pago de tales instrumentos."]
[0,null,"Cláusula quinta. El recibo de la chequera y de los formularios para solicitar nueva provisión de cheques implica para el cliente la obligación de custodiar, con suma diligencia y cuidado, aquellas y éstos de manera que ninguna otra persona pueda hacer uso "]
[0,null,"de ellos. El cliente acepta y entiende los posibles riesgos inherentes al uso indebido que de cualquier cheque se haga. El Banco podrá proceder a destruir las chequeras que no hayan sido reclamadas por el cliente transcurridos dos (2) meses después de "]
[0,null,"la solicitud sin que haya lugar a reembolso o indemnización alguna por parte del Banco al cliente. Cuando la falsedad o alteración de los cheques se debiere a culpa del Cliente o a la de sus dependientes, factores o representantes, esta se presumirá por "]
[0,null,"estar girados los cheques en formularios suministrados por el Banco. En los casos de sustracción o extravío de uno o más cheques o del formulario para solicitar nueva provisión de los mismos, el titular de la cuenta deberá dar aviso inmediato y por escrito "]
[0,null,"al Banco y se hará responsable ante éste de los perjuicios que ocasione la deficiente custodia de la chequera y de sus formularios, obligándose a la vez a presentar inmediatamente la respectiva denuncia ante la autoridad competente."]
[0,null,"Cláusula sexta. El Banco ha asignado a la cuenta corriente un número de identificación bancaria o código de cuenta para todos los efectos, el cual constituye la identidad de la cuenta del cliente para todas sus relaciones con el Banco. El cliente se obliga a "]
[0,null,"utilizar en todas sus transacciones y correspondencia con el Banco dicho número de identificación, que será el único medio válido y aceptable por el Banco, siendo su obligación el correcto diligenciamiento de los formularios, directamente o por conducto "]
[0,null,"de sus factores, empleados o dependientes."]
[0,null,"Cláusula séptima. El cliente podrá disponer del saldo de su cuenta corriente e impartir instrucciones al banco a través del sistema telefax o cualquier otro que acuerden las partes. Para tal efecto el Cliente debe entregar al Banco una carta que cumpla con "]
[0,null,"las formalidades que el Banco le indique al Cliente, y que contenga la(s) firma(s) autorizada(s) y las condiciones para el manejo de las cuenta(s) que el cliente afiliará para este servicio. Para que el banco atienda la respectiva instrucción será necesario que "]
[0,null,"la comunicación, sea suscrito por la(s) persona(s) cuya(s) firma(s) se registra(n) para el manejo general de la cuenta. Todo fax transmitido en las condiciones aquí pactadas deberá ser atendido por el banco sin ninguna otra formalidad."]
[0,null,"Cláusula octava. Igualmente el Banco podrá autorizar el uso y manejo de la Tarjeta Débito y el sistema de Audio Línea de Occidente del Banco. El recibo de la tarjeta obliga al usuario a cumplir estrictamente con todas y cada una de las cláusulas que a "]
[0,null,"continuación se expresan:"]
[0,null,"1. El Banco podrá discrecionalmente entregar al cliente una Tarjeta Débito de propiedad del Banco y una clave secreta, denominada en este Contrato, N.I.P., que es personal e intransferible, por medio de la cual el cliente específicamente podrá: "]
[0,null,"a) Disponer de su saldo en cuenta corriente, a través de los cajeros automáticos de los cuales sea socio o se encuentre afiliado el Banco."]
[0,null,"b) Efectuar los pagos de bienes y/o servicios en los establecimientos afiliados al Banco."]
[0,null,"c) Efectuar pagos y transferencias por medio de los cajeros automáticos o por medio telefónico a través de Audio Línea de Occidente o a través de cualquier otro medio electrónico dispuesto por el Banco, bajo las condiciones aquí establecidas."]
[0,null,"2. Para que el cliente pueda hacer uso de los servicios que se prestan en los cajeros automáticos y el servicio de Audio Línea de Occidente, o cualquier otro medio electrónico dispuesto por el Banco se requiere de un número de identificación personal "]
[0,null,"N.I.P., que será asignado por el Banco. Este número es confidencial; quedando el cliente obligado a mantenerlo en absoluta reserva."]
[0,null,"3. La disponibilidad del cliente para efectuar retiros en cajeros automáticos se limita al cupo diario máximo asignado por el Banco, el cual será comunicado por escrito. Este cupo será disponible siempre y cuando el saldo de la cuenta corriente lo permita o "]
[0,null,"el Banco haya autorizado un descubierto o sobregiro. El saldo disponible para el servicio de Audio Línea de Occidente o en cualquier otro medio electrónico dispuesto por el Banco será el saldo líquido de la cuenta al momento exacto de la operación y/o el "]
[0,null,"sobregiro que el Banco le haya autorizado al cliente para cubrir el valor de sus operaciones, los tributos aplicables y las comisiones correspondientes, sujeto a los montos máximos que el Banco establezca para estas transacciones."]
[0,null,"4. En caso que el valor de los retiros, pagos o transferencias sea superior a los fondos existentes en la cuenta corriente el cliente deberá consignar el valor faltante en efectivo dentro de las veinticuatro (24) horas siguientes al retiro, pago o transferencia. "]
[0,null,"Durante este plazo, o uno mayor, si así lo autoriza expresamente el Banco, el cliente reconocerá intereses a la tasa remuneratoria máxima permitida por la ley vigente al inicio de cada mes calendario. Si el cliente no consigna esta suma dentro del término "]
[0,null,"antes fijado, reconoce y se compromete a pagar al Banco el monto a su cargo por concepto del retiro, pago o transferencia, efectuado por encima de los fondos existentes en su cuenta, más los intereses de mora liquidados a la tasa máxima moratoria "]
[0,null,"permitida por la ley para cada uno de los meses respectivos, al igual que los impuestos, honorarios y gastos de cobranza a que hubiere lugar. En caso que el cliente efectúe retiros para el correspondiente pago en establecimientos afiliados al Banco se "]
[0,null,"obliga a presentar personalmente su tarjeta, firmar con tinta cada uno de los comprobantes respectivos previa verificación de su cuantía e identificarse plenamente ante el establecimiento afiliado a Banco."]
[0,null,"5. La Tarjeta Débito y el N.I.P., así como cualquier otro medio de disposición de recurso que el Banco acuerde con el cliente, son de carácter personal e intransferible. En consecuencia, el Cliente se obliga a mantener bajo su permanente custodia y "]
[0,null,"cuidado dichos medios de manejo, dándoles el debido uso. Será de responsabilidad del cliente el uso, retiro o transferencias de fondos que se hagan mediante el empleo de su tarjeta y N.I.P., cualquiera sea la forma en que éstas se realicen."]
[0,null,"6. El Banco podrá emitir a solicitud del cliente una(s) tarjeta(s) asociada(s) para ser utilizada(s) por la(s) persona(s) autorizada(s) por él contra su propia cuenta corriente. Esta(s) tarjeta(s) es (son) igualmente personal(es) e intransferible(s) y está(n) "]
[0,null,"sujeta(s) a los términos y condiciones establecidos en el presente contrato. El cliente titular de la cuenta podrá, si así lo solicita al Banco disponer de sus fondos en cuenta de ahorros, mediante la utilización de la Tarjeta Débito en los cajeros automáticos o "]
[0,null,"en cualquier otro medio electrónico dispuesto por el Banco, para lo cual debe comunicar al Banco el número de Cuenta de Ahorros de que es titular y ésta será considerada como una cuenta relacionada de la cual, como quedó dicho, el cliente podrá "]
[0,null,"disponer de su saldo mediante la utilización de su Tarjeta Débito de cuenta corriente, sujeto a las condiciones del presente contrato."]
[0,null,"7. En caso de pérdida, extravío, hurto o sustracción de la tarjeta, el tarjeta-habiente deberá informarlo al Banco a la mayor brevedad posible, mediante comunicación telefónica y confirmación escrita la cual se entenderá rendida bajo gravedad de juramento, "]
[0,null,"con el fin de que el Banco proceda a bloquear la tarjeta. El Cliente remitirá al Banco la notificación escrita, dentro de un término máximo de setenta y dos (72) horas siguientes a la pérdida, extravío o hurto."]
[0,null,"8. El Banco no se hará responsable por la cantidad, calidad, marca, prestación o cualquier otro aspecto de las mercancías o servicios que adquiera u obtenga el cliente con los pagos realizados con la tarjeta, asuntos todos que deberá ser resueltos "]
[0,null,"directamente con el proveedor."]
[0,null,"9. En ningún caso la entrega de la tarjeta y la sujeción a este Contrato implica en forma alguna el otorgamiento de crédito o cupo de crédito alguno por parte del Banco."]
[0,null,"10. El Banco podrá proponer en cualquier tiempo al Cliente, adicionar, modificar o suprimir las condiciones del presente Contrato. Dichos cambios serán notificados al Cliente, por cualquier medio o por aquel que establezcan las normas legales vigentes. "]
[0,null,"Según aplique, las modificaciones se entenderán aceptadas por el Cliente: a) en los casos que específicamente estén regulados en la ley, si transcurrido el término legal el Cliente no manifiesta su no aceptación; o b) en los demás casos, si anunciada una "]
[{"$f":"IF(OR(CuentaActivaBasica=\"Sí\",CuentaActivaCreditoRotativo=\"Sí\",CuentaActivaPrestamoPersonal=\"Sí\",CuentaCorriente=\"Sí\",CuentaCorrienteColombianosExt=\"Sí\")=TRUE(),1,0)","v":0},null,"modificación el Cliente no se presenta a dar por terminado el contrato y continua en la ejecución del mismo, se entenderá como hecho inequívoco que acepta incondicionalmente las modificaciones introducidas."]
[0,null,"11. El Banco podrá dar por terminado el servicio por el cual permite el uso y manejo de la tarjeta débito y el sistema de Audio Línea de Occidente, o de cualquier otro medio electrónico dispuesto por el Banco, en cualquier momento, sin necesidad de "]
[0,null,"justificar esa determinación o en los siguientes casos: a) Cuando se cancele o se salde la cuenta corriente. b). Cuando el Banco a su juicio considere que el uso de la tarjeta y su N.I.P. o del sistema Audio Línea de Occidente o de cualquier otro medio "]
[0,null,"electrónico dispuesto por el Banco han sido indebidos. c) Cuando considere que no se ha dado cumplimiento al Contrato. d) Por muerte del usuario. e) Por devolución de la tarjeta. El cliente se obliga a informar al Banco con un día hábil bancario de "]
[0,null,"anticipación y por escrito, su intención de cancelar su cuenta corriente, lo cual conlleva a la cancelación de su Tarjeta Débito y su N.I.P. procediendo de inmediato a la devolución de la tarjeta."]
[0,null,"12. El cliente autoriza expresa e irrevocablemente al Banco para efectuar cargos administrativos contra su cuenta corriente tales como cuota de uso de cajero, cargo de manejo de tarjeta, seguros de tarjeta y valor de servicios, consultas o transferencias, "]
[0,null,"aun creando o incrementando sobregiro."]
[0,null,"13. Las operaciones electrónicas efectuadas por el cliente relativas a órdenes de no pago de cheques y solicitudes de expedición de chequeras, no requerirán de comunicación escrita por parte del cliente para su trámite. En consecuencia, el cliente y el "]
[0,null,"Banco aceptan como medio de prueba idóneo de dichas órdenes de no pago de cheques y de solicitud de chequeras, los medios magnéticos y/o los listados y/o los registros producidos por los sistemas de computación del Banco, cualquiera que sea la "]
[0,null,"forma en que ellos se presenten u obtengan. Lo anterior tratándose de la aplicación del sistema denominado Audio Línea de Occidente o de cualquier otro medio electrónico dispuesto por el Banco a que se refiere este Contrato."]
[0,null,"14. El sólo hecho de la entrega de la tarjeta dará derecho al Banco para cobrar al tenedor de la misma una suma fija periódica que le será comunicada por escrito al cliente como cuota de administración, la cual podrá variarse previa comunicación al "]
[0,null,"cliente. Dicha cuota será cobrada anticipadamente. El no uso de la tarjeta no exime al tenedor de la misma del pago de dicha cuota. El Banco, en igual forma, podrá cobrar por cada transacción realizada con la tarjeta a través de cualquiera de los sistemas "]
[0,null,"puestos a disposición del cliente, incluido el sistema de Audio Línea de Occidente, previa comunicación al tenedor de la misma sobre el costo de cada transacción. Cuando la cuenta permanezca inactiva, el Banco podrá dar por terminado el contrato de "]
[0,null,"cuenta corriente."]
[0,null,"15. El cliente se obliga para con el Banco a hacer un debido uso de la Tarjeta Débito y del Sistema de Audio Línea de Occidente, o de cualquier otro medio electrónico dispuesto por el Banco y en especial a no impartir instrucciones imprecisas, "]
[0,null,"indeterminables o inexactas. El Banco se reserva el derecho de autorizar o no una operación solicitada por el cliente, cuando ésta, a juicio del Banco, no sea clara, precisa o determinable, reserva que el cliente acepta. Igualmente el cliente faculta al Banco, "]
[0,null,"sin reserva de ninguna naturaleza, para que éste asiente en los registros que para el efecto tenga dispuestos, los movimientos y operaciones efectuadas conforme a este Contrato. El cliente manifiesta que conoce el presente Contrato y que lo acepta "]
[0,null,"íntegramente. El texto del presente Contrato le ha sido entregado al Cliente en el momento de su firma, y es puesto a su disposición en la página web del Banco."]
[0,null,"Cláusula novena. Igualmente podrá efectuar transferencias a otras cuentas del mismo Banco o de otra entidad financiera, o en general, disponer de los fondos en cualquier forma, mediante comunicación escrita que deberá contener las firmas y sellos "]
[0,null,"registrados para el manejo de la cuenta a través del cheque. En tal caso, el Banco deberá verificar que las condiciones impuestas en la comunicación sean similares a las registradas por el cliente para el giro de cheques y en tal caso sólo responderá por "]
[0,null,"falsedad aparente."]
[0,null,"Cláusula décima. El cliente y el Banco aceptan, como prueba idónea de las operaciones efectuadas, los registros magnéticos y/o las constancias de las llamadas telefónicas para pagos, retiros o transferencias, los comprobantes contables y/o los registros "]
[0,null,"magnéticos que contengan los datos de las operaciones realizadas o las cantidades allí consagradas, sea que se trate de operaciones efectuadas a través de cajeros automáticos o establecimientos afiliados al Banco o del sistema de Audio Línea de "]
[0,null,"Occidente o de cualquier otro medio electrónico dispuesto por el Banco. El cobro judicial de las sumas retiradas por encima del valor de los fondos existentes en la cuenta del cliente lo efectuará el Banco con el original del presente contrato acompañado "]
[0,null,"del comprobante firmado o del registro magnético y de los comprobantes contables que reflejen las operaciones; o con la contragarantía firmada con espacios en blanco conforme a lo previsto en el Artículo 622 del Código de Comercio, que el cliente ha "]
[0,null,"suscrito."]
[0,null,"Cláusula décima primera. El cliente autoriza al Banco para afectar su cuenta corriente por el valor de las operaciones realizadas por medio de la Tarjeta Débito a través del sistema de Audio Línea de Occidente, o cualquier otro medio autorizado, aun "]
[0,null,"creando o incrementando sobregiro, aceptando como prueba de ello las respectivas comunicaciones, los registros electromagnéticos y/o las constancias de las llamadas telefónicas para realizar u obtener la autorización respectiva o el comprobante firmado "]
[0,null,"en cada operación, según el sistema operado por el Banco para estos fines."]
[0,null,"Cláusula décima segunda. El cliente se obliga a emplear el máximo de diligencia y cuidado durante la operación y manejo de los cajeros automáticos y/o el servicio de Audio Línea de Occidente o de cualquier otro medio electrónico dispuesto por el Banco, "]
[0,null,"y/o las transferencias o disposición de fondos efectuadas por medio de comunicación escrita, en las condiciones señaladas en este contrato. Así mismo, el Cliente manifiesta que conoce los riesgos inherentes al manejo de dichos medios."]
[0,null,"Cláusula décima tercera. El Banco se hace responsable por la disponibilidad de fondos del Cliente por cualquiera de los medios dispuestos para el efecto, salvo en caso de fallas en los sistemas, las comunicaciones, incluyendo Audio Línea de Occidente o"]
[0,null,"defectos de la tarjeta o porque los cajeros automáticos no dispongan de efectivo en el momento de solicitar el retiro, por suspensión del servicio por otras causas o porque algún establecimiento afiliado Banco se niegue a admitir el uso de la tarjeta."]
[0,null,"Cláusula décima cuarta. Los cheques deberán girarse claramente en números y letras, o en reemplazo de estas últimas se podrá usar un protector previamente registrado y sin dejar espacios en blanco que permitan hacer intercalaciones. En el evento de "]
[0,null,"que el valor del importe del cheque expresado en cifras y/o en letras no coincida con el valor expresado en el protector, se dará como válida la suma indicada en esta última forma. Los cheques se girarán bajo las condiciones que sean registradas por el "]
[0,null,"titular de la cuenta. El Banco podrá autorizar que la(s) firma(s) registrada(s) sea(n) sustituida(s) por un signo o contraseña incluso mecánicamente impuesto, bajo la total responsabilidad del creador del título."]
[0,null,"Cláusula décima quinta. Las consignaciones se harán en formularios que el Banco suministre, obligándose el depositante a llenar en forma correcta todos los detalles que dichos formularios contengan. El Banco no asume responsabilidad alguna por "]
[0,null,"errores causados en el deficiente o equivocado diligenciamiento del formulario. El valor timbrado por la máquina, corresponderá a la cantidad total anotada por el depositante en el original de su consignación y todos los cheques relacionados en el citado "]
[0,null,"original son recibidos sujetos a verificación posterior, en lo que se refiere a valores y sumas de la consignación. Las diferencias, en caso de haberlas, serán abonadas o cargadas a la cuenta corriente del cliente. Las consignaciones que reciba el Banco "]
[0,null,"serán abonadas en consideración únicamente al número de cuenta corriente que aparezca anotada en el formulario de consignación."]
[0,null,"Cláusula décima sexta. Las consignaciones hechas en cheques serán acreditadas definitivamente en la cuenta del cliente después de que éstos sean pagados total o parcialmente. Es entendido que el cliente autoriza expresamente al Banco para debitar "]
[0,null,"de su cuenta, aun creando o incrementando sobregiro, el importe de los cheques que habiendo sido consignados no resultaren pagados. Es obligación del cliente reclamar los cheques devueltos dentro de los tres (3) días siguientes a su devolución; si así "]
[0,null,"no lo hiciere el Banco podrá remitirlo por correo a la dirección registrada o apartado aéreo, sin responsabilidad para el Banco por las demoras o extravíos en el servicio de correo."]
[0,null,"Cláusula décima séptima. Mientras la cuenta esté activa, El Banco enviará al cliente, por lo menos una vez al mes, un extracto del movimiento de su cuenta en el respectivo período, conservando los cheques originales que haya pagado, los cuales se "]
[0,null,"entenderán a disposición del titular de la cuenta desde la fecha de corte de la cuenta. El Cliente se obliga a hacer una revisión minuciosa del extracto del respectivo período que le haya sido enviado por el Banco, a fin de notificar oportunamente cualquier "]
[0,null,"inconsistencia dentro de los quince (15) días para su siguiente entrega. En caso de que el cliente quisiera retirar los cheques o solicitar su envío por el Banco, deberá convenir por escrito con éste los términos y condiciones en que tal entrega o remisión "]
[0,null,"deberá llevarse a cabo, siendo entendido, desde luego, que será a costa y bajo la responsabilidad del peticionario. Para el efecto de la remisión del o los documentos mencionados en esta cláusula, el cliente deberá registrar en el Banco su dirección e "]
[0,null,"informar por escrito sobre cualquier cambio que se produzca. "]
[0,null,"Cláusula décima octava. Cuando el Banco autorice la apertura de una cuenta corriente bancaria a nombre de dos o más personas contra la que cualquiera de estas pueda disponer del saldo, el Banco atenderá las órdenes judiciales de embargo, afectando "]
[0,null,"el saldo hasta por su valor total aun cuando dicha orden haya sido impartida respecto de uno sólo de los cuentacorrentistas, siendo esto aceptado por el Cliente."]
[0,null,"Cláusula décima novena. Cuando el Banco inicie una acción judicial originada en un descubierto de una cuenta corriente, abierta a nombre de dos o más personas y cualquiera que sea la forma acordada para el manejo de la misma, podrá dirigirse contra "]
[0,null,"uno o cualquiera de los titulares por el total del descubierto, o contra varios o todos los titulares por partes iguales o desiguales a elección del Banco."]
[0,null,"Cláusula vigésima. El girador autoriza a su apoderado, representante legal o persona a quien haya delegado para el efecto girar sobre su cuenta y acepta que los actos de estas personas lo comprometen."]
[0,null,"Cláusula vigésima primera. El cliente faculta y deja en libertad al Banco para que todos los cheques en caso de ser presentados para su certificación sean cambiados por cheques de gerencia. Cuando excepcionalmente el Banco decida certificarlos, lo "]
[0,null,"hará dentro de los plazos de presentación fijados por la ley. Verificada la certificación, sus efectos se extinguirán al vencimiento de dichos plazos. Para el cómputo de los mismos se entenderán como días inhábiles los cierres debidamente autorizados por "]
[0,null,"la Superintendencia Financiera. El Banco debitará de inmediato y mientras subsistan los efectos de la certificación, la cuenta corriente del girador por el valor del cheque o cheques certificados."]
[0,null,"Cláusula vigésima segunda. Si el Banco decide otorgar al cliente un crédito abonando a esta cuenta corriente el importe de un cheque de otra plaza (remesa), el Banco queda autorizado para debitar su valor a partir de los diez (10) días de su consignación,"]
[0,null,"aún causando o incrementando sobregiro, en los casos en que no haya recibido confirmación de pago o antes si recibe aviso de extravío o devolución por cualquier causa. En caso de no existir fondos suficientes en la cuenta, el Banco queda autorizado "]
[0,null,"para diligenciar el pagaré suscrito por el cliente con espacios en blanco de acuerdo a las instrucciones en él incorporadas."]
[0,null,"Cláusula vigésima tercera. En caso de débitos de remesas, el Banco cargará los intereses correspondientes desde el día en que se efectúe el débito hasta el día en que se verifique el respectivo reintegro sobre la suma impagada, siendo entendido que la "]
[0,null,"tasa de dicho interés será la moratoria máxima legal."]
[0,null,"Cláusula vigésima cuarta. En cumplimiento de lo dispuesto en el artículo 1382 del Código de Comercio Colombiano, el cliente autoriza al Banco en forma expresa e irrevocable para debitar de los fondos disponibles de su cuenta corriente hasta por una "]
[0,null,"cuantía equivalente al importe total o parcial de aquellos cheques que hayan sido extraviados, hurtados o destruidos en poder del banco consignatario, siempre y cuando éste presente solicitud suscrita por dos firmas autorizadas, acompañada de los "]
[0,null,"siguientes documentos."]
[{"$f":"IF(OR(CuentaActivaBasica=\"Sí\",CuentaActivaCreditoRotativo=\"Sí\",CuentaActivaPrestamoPersonal=\"Sí\",CuentaCorriente=\"Sí\",CuentaCorrienteColombianosExt=\"Sí\")=TRUE(),1,0)","v":0},null,"1. Microfilm del cheque y a falta de éste, reproducción del título mediante cualquier sistema idóneo que sirva para probar su existencia, de conformidad con el artículo 8 y 9 Capítulo III de los acuerdos interbancarios."]
[0,null,"2. Denuncia instaurada por extravío o hurto según el caso, o copia auténtica de la declaración de destrucción rendidas bajo la gravedad del juramento, en cualquier caso, ante autoridad competente."]
[0,null,"3. Carta de Responsabilidad, Garantía Bancaria, Póliza de Seguros o cualquier otra Garantía que ampare los perjuicios que se llegaren a derivar para el Banco, en especial por las sumas de dinero que se viere obligado a pagar en caso de presentación del "]
[0,null,"cheque extraviado, hurtado o destruido por un tercero de buena fe. En desarrollo de la presente cláusula, el Banco asumirá el pago de documentos hasta por una cuantía que no exceda los ciento once (111) salarios mínimos legales mensuales vigentes a "]
[0,null,"la fecha en que haya ocurrido dicho suceso. Cuando se trate de cheques que excedan esta cuantía, quedará a juicio del Banco acogerse al procedimiento indicado en esta cláusula."]
[0,null,"Parágrafo. Desde ahora el cliente se obliga a dar orden de no pago del cheque extraviado, hurtado o destruido en poder del banco consignatario una vez se hubiere dispuesto de los fondos existentes en su cuenta corriente conforme a lo establecido en "]
[0,null,"esta cláusula, a solicitud del Banco."]
[0,null,"Cláusula vigésima quinta. El cliente autoriza expresamente al Banco para que en su calidad de endosatario al cobro, no acepte el pago parcial de cheques consignados en su cuenta a cargo de otros Bancos, salvo en aquellos casos en los cuales el "]
[0,null,"cuentacorrentista manifieste lo contrario insertando en el reverso del título la frase: “Acepto pago parcial” u otra equivalente."]
[0,null,"Cláusula vigésima sexta. El Banco pagará a la vista los cheques postdatados."]
[{"$f":"IF(OR(CuentaActivaBasica=\"Sí\",CuentaActivaCreditoRotativo=\"Sí\",CuentaActivaPrestamoPersonal=\"Sí\",CuentaCorriente=\"Sí\",CuentaCorrienteColombianosExt=\"Sí\")=TRUE(),1,0)","v":0},null,"Cláusula vigésima séptima. El Banco se reserva el derecho de no admitir para su depósito en cuenta corriente bancaria, títulos o documentos representativos de dinero distintos de los cheques."]
[0,null,"Cláusula vigésima octava. El Banco se abstendrá de recibir cheques que ya han sido tramitados por canje por conducto de otro banco, si los sellos respectivos no tienen indicación de haber sido anulados por firmas autorizadas."]
[0,null,"Cláusula vigésima novena. El endoso en blanco de un cheque girado a la orden se llenará con la sola firma que le imponga el tenedor en señal de recibo de pago."]
[0,null,"Cláusula trigésima. Será potestativo del Banco la concesión de sobregiros. Por lo tanto, el(los) cliente(s) deberá(n) solicitar previamente la autorización para sobregirar su cuenta, comprometiéndose a cubrir su valor en el plazo de un día, durante "]
[0,null,"el cual pagará(n) la tasa de interés de ley vigente, aceptando el cargo mínimo estipulado por el Banco para la prestación de dicho servicio. A partir del segundo día el(los) cliente(s) pagarán el interés moratorio establecido por la ley, sin perjuicio de las "]
[0,null,"acciones judiciales correspondientes."]
[0,null,"Cláusula trigésima primera. El titular de la cuenta autoriza irrevocablemente al Banco para debitar del saldo de su cuenta, aun creando o incrementando sobregiro, los valores causados por las siguientes razones."]
[0,null,"1. Obligaciones a su cargo, sea como deudor, codeudor o fiador provenientes de pagarés, letras, utilización de cartas de crédito, garantías bancarias, bonos, sobregiros en otras cuentas de las cuales sea titular, originadas en cualquier oficina u operación "]
[0,null,"con el Banco."]
[0,null,"2. Intereses sobre pagarés, letras, sobregiros o descubierto en cuenta corriente, cartas de crédito o por cualquiera otra causa."]
[0,null,"3. Comisiones por el abono anticipado de remesas, por garantías, consignación nacional y en general por cualquier servicio que le preste el Banco, incluyendo las mencionadas en este contrato."]
[0,null,"4. Cheques consignados en su cuenta corriente que resulten impagados y las remesas que resulten impagadas."]
[0,null,"5. Todo saldo que resulte a cargo del cliente por apertura y/o utilización de cartas de crédito, pago de avales y/o garantías y por cualquier concepto que sea contabilizado a su cargo en la cuenta “Cuentas por cobrar”."]
[0,null,"6. El valor de los cheques certificados por el Banco."]
[0,null,"7. El valor de los impuestos de timbre nacional o cualquier tributo que se ocasione en operaciones celebradas con el Banco."]
[0,null,"8. Cualquier saldo que aparezca a cargo del cliente en los libros del Banco, por cualquier concepto derivado de sus operaciones con el Banco, por ejemplo, valor de chequeras, comisiones, portes, honorarios, gastos de expedición de garantías bancarias."]
[0,null,"Cláusula trigésima segunda. En el evento que el cliente tenga parentesco en 4o. grado de consanguinidad, 2o. de afinidad o único civil con los miembros de la Junta directiva del Banco, deberá notificarlo."]
[0,null,"Cláusula trigésima tercera. El cliente declara que la información suministrada por él y la que en el futuro suministre a el Banco, a través de cualquier medio, sea este comercial, profesional, técnica, administrativa o financiera, es veraz, actual, verificable, "]
[0,null,"completa y exacta obligándose a actualizarla por lo menos (1) vez al año, o cada vez que así lo solicite el Banco, suministrando la totalidad de los soportes documentales exigidos. El incumplimiento de esta obligación, faculta a el Banco para terminar de "]
[0,null,"manera inmediata y unilateral el presente contrato. En calidad de titular de su información personal, incluida la de carácter financiero crediticio, comercial, de servicios, datos biométricos, la documentación aportada y la proveniente de terceros países , "]
[0,null,"actuando libre y voluntariamente, el Cliente autoriza de manera previa y expresa para que directamente o a través de terceros el Banco, su matriz, las filiales,subordinadas y/o asociadas del Banco y en general las sociedades y demás entidades "]
[0,null,"vinculadas, o quien represente sus derechos, sea como cesionario, beneficiario de estos derechos o en cualquier otro carácter, realice(n) el siguiente tratamiento, manejo y administración de dicha información, sin que esto de lugar a pagos ni retribuciones "]
[0,null,"de ningún tipo a su favor:"]
[0,null,"1. La almacene(n), consulte(n), analice(n), evalué(n), compare(n), procese(n), reporte(n), obtenga(n), actualice(n), compile(n), trate(n), envié(n), actualice(n), rectifique(n), emplee(n), elimine(n), suministre(n), ordene(n), catalogue(n), clasifique(n); grabe(n), "]
[0,null,"conserve(n)."]
[0,null,"2. La divulgue(n) a los operadores, centrales o bases de información y buros de crédito y/o a cualquier otra Entidad nacional o extranjera que tenga los mismos o similares fines expresados en el presente escrito."]
[0,null,"3. La verifique(n), confirme(n), valide(n), actualice(n), y/o investigue(n) con los datos que obtenga y los que disponga(n) legítimamente."]
[0,null,"4. La suministre(n) a contratistas o terceras personas nacionales o extranjeras, quienes desarrollen procesos operativos propios del objeto o de administración de riesgos."]
[0,null,"5. Para que acceda(n), consulte(n), compare(n) y analice(n) mi información almacenada en bases de datos de centrales de riesgo crediticio, financiero, de antecedentes judiciales o de seguridad legítimamente constituidas, de naturaleza estatal o privada, "]
[0,null,"nacional o extranjera, o en cualquier base de datos comercial o de servicios que permita establecer de manera completa e histórica su comportamiento como deudor, codeudor, usuario, cliente , garante, endosante, afiliado, asociado, beneficiario, "]
[0,null,"suscriptor, contribuyente y/o como titular de servicios, financieros, comerciales o de cualquier otra índole. Las finalidades de las actividades de tratamiento, manejo y administración de dicha información que realice(n) directamente o a través de terceros el "]
[0,null,"Banco, su matriz, las filiales, subordinadas y/o asociadas de dicha matriz, las filiales, subordinadas y/o asociadas del Banco y en general las sociedades y demás Entidades vinculadas, o quien represente sus derechos, sea como cesionario, beneficiario de "]
[0,null,"estos derechos o en cualquier otro carácter, son las siguientes:"]
[0,null,"a) Para establecer y mantener una relación contractual cualquiera que sea su naturaleza."]
[0,null,"b) Para efectuar evaluación de riesgos derivados de una relación contractual potencial y/o vigente."]
[0,null,"c) Adelantar estudios de mercadeo, investigaciones comerciales y/o estadísticas."]
[0,null,"d) Ofrecer de manera individual o conjunta con terceros, productos y servicios propios o de terceros, así como para realizar campañas de promoción propias o de terceros."]
[0,null,"e) Adelantar cualquier trámite ante autoridad pública o persona privada, incluido el cobro de cartera."]
[0,null,"f) Transmitir la información y datos a autoridades locales y/o entidades extranjeras que lo requieran en cumplimiento de obligaciones surgidas en normas y convenios."]
[0,null,"g) El envío de notificaciones, alertas e información legal y de seguridad al terminal móvil, correo electrónico, aplicaciones de mensajería para teléfono inteligente y/o cualquier otro mecanismo de contacto."]
[0,null,"Por último el Cliente declara que es consciente que sus derechos y obligaciones así como la permanencia de su información en las bases de datos corresponden a lo determinado por el ordenamiento jurídico aplicable, del cual, por ser de carácter púbico, "]
[0,null,"está enterado; y que la presente autorización hace parte de la relación contractual que establezca con la entidad para la adquisición de uno de sus productos o servicios."]
[0,null,"Cláusula trigésima cuarta. El Cliente autoriza al Banco para que reverse las transacciones y/o retenga, reintegre, debite o bloquee los recursos que se hayan acreditado en sus cuentas de manera errónea o fraudulenta, a criterio del Banco."]
[0,null,"Parágrafo. En caso de que no sea posible el reintegro de los dineros, el Cliente se obliga a devolverlos al Banco dentro de los cinco (5) días hábiles siguientes a la solicitud realizada por el Banco sin necesidad de requerimientos adicionales autorizando de "]
[0,null,"manera irrevocable al Banco a debitar el valor respectivo de cualquier suma de dinero a su favor que se encuentre en el Banco. El incumplimiento de lo previsto anteriormente dará lugar a que el Banco inicie los procesos judiciales correspondientes con "]
[0,null,"base en sus registros contables."]
[0,null,"Cláusula trigésima quinta. Condiciones de la gestión de cobranza prejudicial: En caso de mora en el pago de las obligaciones del Cliente, el Banco a partir del primer día de vencimiento iniciara las gestiones de cobro prejudiciales tendientes a la "]
[0,null,"normalización o pago total de la misma. Una vez iniciada la gestión de cobro se generarán honorarios y/o gastos de cobranza de hasta el 20% dependiendo de la gestión realizada. Los honorarios se liquidarán sobre el valor del pago. Los gastos y "]
[0,null,"honorarios serán asumidos por el Cliente."]
[0,null,"Cláusula trigésima sexta. El término del contrato de depósito en cuenta corriente bancaria es indefinido pero cualquiera de las partes puede darlo por terminado en cualquier tiempo, dando aviso escrito a la otra parte de tal decisión. El cliente se obliga a "]
[0,null,"informar al Banco con un día hábil bancario de anticipación y por escrito, en cuyo caso el cliente devolverá al Banco los cheques que no hubiere utilizado, y si así no lo hiciere responderá de todos los perjuicios que ocasione la utilización indebida de los "]
[0,null,"cheques no devueltos. El Banco podrá saldar la cuenta mediante aviso escrito a la última dirección registrada por el cliente. Adicionalmente el Banco se reserva el derecho de cancelar la cuenta corriente cuyo manejo se haga en forma incorrecta o "]
[0,null,"descuidada, o cuando su titular no cumpla con las obligaciones legales o con las señaladas en este Contrato y, en especial, cuando gire uno o más cheques sin la suficiente provisión de fondos, bastando para ello informar por escrito a la última dirección "]
[0,null,"registrada por el cuentacorrentista, sin perjuicio del ejercicio de la facultad prevista en el artículo 1389 del código de comercio."]
[0,null,"Cláusula trigésima séptima. El Banco podrá realizar bloqueo de los cupos de crédito cuando el Cliente se encuentre en Mora de uno o más productos, o cuando presente en el análisis de crédito que realiza el Banco, un deterioro en su comportamiento "]
[0,null,"crediticio. Asimismo, podrá evaluar y modificar los cupos de crédito en el evento que el Cliente presente deterioro en los reportes de las centrales de riesgo."]
[0]
[{"$f":"IF(OR(CuentaActivaBasica=\"Sí\",CuentaActivaCreditoRotativo=\"Sí\",CuentaActivaPrestamoPersonal=\"Sí\",CuentaAhorros=\"Sí\",CuentaCorriente=\"Sí\",PortafolioAval=\"Sí\",CuentaCorrienteColombianosExt=\"Sí\")=TRUE(),1,0)","v":0},null,"REGLAMENTO DE AHORROS"]
[0]
[0,null,"El Banco de Occidente S.A. (“el Banco”), autorizado por la Superintendencia Financiera, puede recibir Depósitos de Ahorro de acuerdo con el Estatuto Orgánico del Sistema Financiero y demás disposiciones legales concordantes y según el siguiente reglamento:"]
[0,null,"1. Condiciones para la Apertura de Cuenta."]
[0,null,"1.1. A solicitud del Cuentahabiente, el Banco le entregará un Talonario de Ahorros, en el cual se denominará el número de la cuenta y se registrarán los depósitos, retiros, intereses y movimiento. El Banco podrá cobrar a sus Cuentahabientes el Talonario "]
[0,null,"de Ahorros. Así mismo, constituirán prueba de sus depósitos los comprobantes de consignación, diferentes a los del talonario, debidamente diligenciados por el Cuentahabiente y timbrados por el Banco para tal fin. No obstante lo anterior, el titular de la "]
[0,null,"cuenta de ahorros podrá a su elección hacer uso de otro medio o documento ofrecido por el Banco para reemplazar el Talonario de Ahorros."]
[0,null,"1.2. Podrá ser Cuentahabiente de Ahorros toda Persona Natural o Jurídica, cualquiera sea su Edad, Sexo, Estado o Nacionalidad."]
[0,null,"1.3. La consignación inicial, lo mismo que el saldo mínimo a favor de un Cuentahabiente, no podrá ser inferior al límite reglamentado por el Banco y comunicado al Cuentahabiente. El Banco informa al cliente a través de su página web el monto de dicho "]
[0,null,"saldo mínimo y consignación mínima inicial. Cualquier modificación al saldo mínimo se regirá por lo dispuesto en el numeral 6.11 del presente reglamento."]
[0,null,"1.4. Todo titular de una Cuenta de Ahorros está obligado a presentar al Banco su Cédula de Ciudadanía, Tarjeta de Identidad, Certificado de Existencia y Representación Legal, u otro documento legalmente válido de identificación, los datos referentes a su "]
[0,null,"profesión u oficio, la dirección de su residencia y los demás datos o documentos que el Banco considere necesarios para su completa identificación. Lo anterior, sin perjuicio del cumplimiento de los requisitos mínimos establecidos por la Superintendencia "]
[0,null,"Financiera para vinculación de clientes y para el control y prevención de lavado de activos."]
[0,null,"1.5. El Banco aceptará consignaciones que haga cualquier persona para la cuenta de un Cuentahabiente, en cualquier oficina del país, ya sea en efectivo, cheque propio o de otros bancos locales, para lo cual se podrá utilizar el respectivo Talonario, "]
[0,null,"diligenciar la papelería que para tal efecto haya dispuesto el Banco o utilizar cualquiera de los medios tecnológicos dispuestos por el Banco para este fin, los que constituirán en cada caso prueba suficiente de la operación. Toda consignación nacional "]
[0,null,"tendrá un cargo correspondiente a la tarifa que se encuentre vigente al momento de realizar la transacción."]
[0,null,"1.6. El monto de los depósitos serán de cuantía ilimitada pero el Banco podrá limitarlos en cualquier tiempo a la suma que estime conveniente, previa notificación al Cuentahabiente por cualquier medio."]
[0,null,"1.7. El Cuentahabiente se obliga a guardar cuidadosamente el Talonario y/o el otro medio o documento que reemplace el Talonario de Ahorros e igualmente se obliga a avisar inmediatamente por escrito al Banco en caso de pérdida o extravío del (de los) "]
[0,null,"mismo(s) o de una de sus partes, formulando la correspondiente denuncia ante autoridad competente. Así mismo, se obliga a entregar al Banco los comprobantes, seguridades y garantía que éste exija para la entrega de un nuevo Talonario que reemplace "]
[0,null,"el perdido y/o que sustituya el otro medio o documento ofrecido por el Banco para reemplazar el Talonario de Ahorros."]
[0,null,"1.8. La Apertura y Retiro de Cuenta de Ahorros por parte de una persona que no pudiera o supiere firmar deberá cumplir los siguientes requisitos:"]
[0,null,"a) Identificación del Solicitante con su Cédula de Ciudadanía, Tarjeta de Identidad, u otro documento legalmente válido de identificación, según el caso."]
[0,null,"b) Se solicitará que otra persona firme a ruego, dando fe de ello dos testigos."]
[0,null,"c) Se imprimirá en el documento las huellas digitales o plantales del cuentahorrista."]
[0,null,"1.9 El Cuentahabiente se obliga a dar aviso al Banco cuando perdiere su Talonario o el otro medio o documento ofrecido por el Banco para reemplazarlo y/o el Documento de Identidad. En consecuencia, el Banco se hará responsable por el retiro de los "]
[0,null,"fondos por personas distintas al Cuentahabiente siempre y cuando el aviso de tal hecho se diere al Banco con anterioridad al pago efectuado, y el Cuentahabiente haya cumplido sus deberes legales y contractuales. Lo anterior, sin perjuicio de las acciones "]
[0,null,"legales que puede interponer el Cuentahabiente."]
[0,null,"2. Condiciones para el Abono y Pago de Intereses."]
[0,null,"La tasa, periodicidad y modalidad para el abono y pago de intereses serán comunicados mediante cartelera fijada en las oficinas del Banco y avisos en medios de comunicación al público en general conforme a lo establecido por la ley."]
[0,null,"2.1. El Banco no efectuará retención en la fuente si los intereses que se generan son inferiores a la suma señalada periódicamente por la ley."]
[0,null,"2.2. El Banco reconocerá y liquidará intereses sobre las sumas depositadas siempre que la cuenta presente saldos, de conformidad con las tasas determinadas por éste."]
[0,null,"3. Condiciones para el Retiro de Fondos."]
[0,null,"3.1. Para solicitar retiros de una parte o la totalidad del depósito en oficinas, es condición indispensable la presentación del Talonario y/o del otro medio o documento ofrecido por el Banco para reemplazar el Talonario de Ahorros y el Documento de "]
[0,null,"Identidad del Titular. Cuando falte la Cédula de Ciudadanía, Tarjeta de Identidad, u otro documento legalmente válido de identificación, queda a juicio del Banco aceptar en su reemplazo la impresión de las huellas dactilares del titular u otro documento que "]
[0,null,"compruebe su derecho sobre el Depósito. En todos los casos, podrá exigir las informaciones, referencias y comprobaciones previstas en el reglamento y las acostumbradas en la práctica bancaria para identificar al titular, y mientras por éste no se "]
[0,null,"suministre, el Banco no estará obligado a atender la solicitud del retiro. Se podrán efectuar retiros parciales del depósito con la presentación del respectivo talonario o el otro medio o documento ofrecido por el Banco para reemplazar el Talonario de "]
[0,null,"Ahorros y el cumplimiento de los demás requisitos aquí enunciados desde cualquier oficina del Banco. Igualmente podrá el Cuentahabiente efectuar retiros o autorizar débitos a su(s) Cuenta(s) de Ahorro(s) mediante instrucción expresa y escrita del "]
[0,null,"cuentahabiente acompañada de su firma registrada."]
[0,null,"3.2. El Banco no pagará retiros a personas distintas del Titular o de su Representante Legal (Madre, Padre, Tutor o Curador) cuando sea éste quien maneje el Depósito, salvo orden escrita del titular a favor de la persona determinada capaz, mayor de "]
[0,null,"edad, que sepa firmar y posea cédula de ciudadanía. En este caso además de la autorización escrita será necesaria la presentación del respectivo Talonario y de los documentos de identidad del Titular y del Autorizado. El Banco a su juicio, podrá exigir la "]
[0,null,"autenticación de la autorización."]
[0,null,"3.3. Cualquier autorización por escrito para retiros mayores de la cifra que establezca el Banco y comunicada al Cuentahabiente, podrá ser rechazada por el Banco, a su juicio. En caso de cancelación de la Cuenta de Ahorros la autorización deberá ser "]
[0,null,"autenticada ante Notario."]
[0,null,"3.4. Los retiros mayores a la suma señalada por el Banco y comunicada al Cuentahabiente, serán pagados en Cheque de Gerencia, cuyo costo será debitado de la respectiva cuenta."]
[0,null,"3.5. Cuentas de Menores: El depósito constituido por un Menor de Edad, o a nombre de éste por un Tercero que puede ser su Representante Legal (Madre, Padre, Tutor o Curador) será mantenido a la orden y en beneficio exclusivo del menor. El retiro "]
[0,null,"parcial o total sólo será pagado a su representante legal o al menor."]
[0,null,"3.6. Cuentas Conjuntas: De los depósitos recibidos en Cuentas de Ahorros, a nombre de dos o más personas, podrá disponer cualquiera de ellas, a menos que se haya pactado otra cosa al abrir la cuenta."]
[0,null,"3.7. El Banco podrá exigir cuando lo considere indispensable en defensa de sus intereses y el de los Cuentahabientes pruebas que acrediten suficientemente la representación legal o convencional de quienes solicitan retiros de dinero de Cuentas de "]
[0,null,"Ahorro o a nombre de otro."]
[0,null,"3.8. El Banco pagará a la vista los fondos que el Cuentahabiente quiere retirar, pero se reserva el derecho que le otorga la ley de exigir aviso anticipado hasta de sesenta (60) días para cualquier retiro."]
[0,null,"3.9 El depósito constituido a nombre de una persona declarada interdicto, deberá ser realizada por su curador designado por autoridad judicial competente, y será mantenido a la orden y en beneficio exclusivo del interdicto. La declaración de interdicción y "]
[0,null,"la designación del curador deberán constar en el registro civil del interdicto."]
[0,null,"3.10 Para la apertura de cuentas de ahorro a nombre de extranjeros se exigirá la documentación establecida en la Ley."]
[0,null,"4. Disposiciones Varias."]
[0,null,"4.1. El Banco aceptará Consignaciones, incluyendo Remesas al Cobro, para la Cuenta de un Cuentahabiente en cualquiera de sus oficinas a nivel nacional. En consecuencia los Cheques Locales recibidos en consignación podrán ser efectivos, cuarenta y "]
[0,null,"ocho (48) horas continuas después de la consignación, salvo circunstancias de fuerza mayor o caso fortuito. Los cheques sobre otras plazas solo serán efectivos, una vez recibida su conformidad. Los que devuelvan los bancos serán cargados en la "]
[0,null,"Cuenta del Cuentahabiente y puestos a su disposición para retiro."]
[0,null,"4.2. Igualmente el Banco podrá atender traslados de las Cuentas de Ahorro entre Sucursales y Agencias a solicitud del Cuentahabiente. Los traslados de fondos causarán la comisión establecida, más los gastos del mensaje o aviso a la oficina respectiva."]
[0,null,"4.3. El Banco podrá prestar a todos sus Cuentahabientes de Ahorros el servicio de traspasos postales o telegráficos, mediante el reconocimiento de las comisiones y gastos vigentes."]
[0,null,"4.4. Todo Cuentahabiente que Cancele la Cuenta dentro de los treinta (30) días siguientes al de su apertura, deberá pagar el valor correspondiente por gastos de papelería y administración. Así mismo el Cuentahabiente está obligado a devolver el "]
[0,null,"Talonario con los formularios no utilizados y/o el otro medio o documento ofrecido por el Banco para reemplazar el Talonario de Ahorros en el momento de Cancelar la Cuenta."]
[0,null,"4.5. Es obligación del Cuentahabiente diligenciar completa y correctamente los talonarios del depósito o retiro de fondos, así como hacer uso correcto del medio o documento que fue aceptado por el Cuentahabiente para reemplazar el Talonario de "]
[0,null,"Ahorros."]
[{"$f":"IF(OR(CuentaActivaBasica=\"Sí\",CuentaActivaCreditoRotativo=\"Sí\",CuentaActivaPrestamoPersonal=\"Sí\",CuentaAhorros=\"Sí\",CuentaCorriente=\"Sí\",PortafolioAval=\"Sí\",CuentaCorrienteColombianosExt=\"Sí\")=TRUE(),1,0)","v":0},null,"4.6. El Banco enviará al Cuentahabiente, por lo menos una vez al mes, un extracto del movimiento de su cuenta en el respectivo período, a la última dirección registrada por el Cuentahabiente para el envío de correspondencia, o por el medio de "]
[0,null,"comunicación que éste haya escogido e informado al Banco. El Cuentahabiente se obliga a hacer una revisión minuciosa del extracto del respectivo período que le haya sido enviado por el Banco, a fin de notificar oportunamente cualquier inconsistencia."]
[0,null,"4.7. Las sumas Depositadas en Cuentas de Ahorros son inembargables en la cuantía que establece el Gobierno Nacional, situación que le corresponde excepcionar al afectado con la medida."]
[0,null,"4.8. Los saldos en Cuentas de Ahorros, en la cuantía máxima que señale el Gobierno Nacional pueden ser pagados a juicio del Banco, directamente al cónyuge sobreviviente, o a los herederos, o a unos y otros conjuntamente, según el caso, sin necesidad "]
[0,null,"de proceso de sucesión mediante la presentación de los documentos que el Banco estime convenientes, tales como: certificados de registro civil, declaraciones juradas respecto a las partes interesadas, la presentación de las debidas renuncias, la "]
[0,null,"expedición de un documento de garantía por la persona a quien el pago se haga y el recibo del caso, como constancia del pago."]
[0,null,"4.9. El Banco podrá trasladar recursos entre cuentas de ahorros o con destino a Cuentas Corrientes a solicitud documental del Cuentahabiente, que para cada traslado deberá efectuar. Este servicio tendrá un costo por operación y cargo del Cuentahorrista "]
[0,null,"establecido por el Banco y dado a conocer al Cuentahabiente."]
[0,null,"4.10. El Cuentahabiente podrá efectuar traslados electrónicos entre Cuentas de Ahorro o con destino a Cuentas Corrientes propias y efectuar abonos en cuentas de terceros por el sistema denominado “Occired”, cuyas características aparecen en el "]
[0,null,"contrato que ha de suscribirse con el Banco."]
[0,null,"5. Cuentas Occidía."]
[0,null,"A las Cuentas de Ahorros Occidía con saldo se les liquidará intereses diarios, de conformidad con lo determinado por el Banco, al igual que no se efectuará descuento de Retención en la Fuente a los que generen intereses diarios inferiores a la suma que "]
[0,null,"señale periódicamente la ley."]
[0,null,"6. La firma que figura en el presente documento constituye el conocimiento y la aceptación expresa e incondicional del Cuentahabiente de las condiciones de este Reglamento por las cuales se regirá el uso y manejo de la Tarjeta Débito a través de cajero "]
[0,null,"automático, establecimientos afiliados a Credencial, Datáfonos o Puntos de Venta POS o a cualquier otro servicio que se implemente y al servicio Audio Línea de Occidente (ALO), Internet, Banca Móvil, o cualquier otro, en el caso de ser concedidos por el "]
[0,null,"Banco. El Cuentahabiente podrá consultar el mismo en nuestra página web www.bancodeoccidente.com.co. El Banco podrá solicitar datos biométricos del Cuentahabiente para fines operativos y de seguridad.El recibo de la tarjeta obliga al Cuentahabiente "]
[0,null,"a cumplir estrictamente con todas y cada una de las cláusulas que a continuación se expresan:"]
[0,null,"6.1. El Banco, previo el estudio de la solicitud, podrá discrecionalmente entregar al Cuentahabiente una tarjeta débito de propiedad del Banco, con su respectiva clave secreta, acá denominada N.I.P., personal e intransferible, por medio de la"]
[0,null,"cual el Cuentahabiente específicamente podrá:"]
[0,null,"6.1.1. Disponer de su saldo, efectuar transferencias y consultas de saldos en cuenta de ahorros, a través de los cajeros automáticos de propiedad del Banco o a través de aquellos cajeros afiliados al Banco, o en establecimientos afiliados a la Tarjeta de "]
[0,null,"Crédito Credencial; o en puntos de venta afiliados a otras redes tecnológicas a las que se encuentre afiliado el Banco."]
[0,null,"6.1.2. Efectuar los pagos de bienes y/o servicios en los establecimientos afiliados al Banco o en puntos de venta afiliados a otras redes tecnológicas a las que se encuentre afiliado el Banco."]
[0,null,"6.1.3. Efectuar transacciones por medio telefónico que el servicio Audio Línea de Occidente (ALO) - ofrece bajo las condiciones aquí establecidas."]
[0,null,"6.2. Para que el Cuentahabiente pueda hacer uso de los servicios que se prestan en los cajeros automáticos, establecimientos afiliados a Credencial, puntos de venta afiliados a otras redes tecnológicas a las que se encuentre afiliado el Banco y el servicio "]
[0,null,"de Audio Línea de Occidente (ALO), se requiere de un número de identificación personal, N.I.P., número que será asignado por el Banco. Este número es confidencial quedando el Cuentahabiente obligado a mantenerlo en absoluta reserva."]
[0,null,"6.3. El Cuentahabiente autoriza al Banco para afectar su(s) Cuenta(s) de Ahorro(s) por el valor de las operaciones realizadas a través de los medios antes indicados."]
[0,null,"6.4. La disponibilidad diaria del Cuentahabiente para efectuar pagos o retiros se limita al cupo diario máximo definido por el Banco, mediante nota dirigida a la dirección registrada por aquél, debiendo conservar el saldo mínimo conforme al reglamento de "]
[0,null,"Cuenta de Ahorros. El Cuentahabiente se obliga a no retirar, transferir o pagar valores en cuantía superior al saldo disponible existente en su Cuenta de Ahorros al momento de cada operación. Para los efectos de este Reglamento de Ahorros, en cada "]
[0,null,"transacción se entenderá por saldo disponible todas las sumas efectivamente depositadas en la(s) Cuenta(s) de Ahorro(s) del Cuentahabiente, restado el saldo mínimo, las comisiones y gastos a que haya lugar por realización de la transacción, y los "]
[0,null,"tributos que graven la misma."]
[0,null,"6.5. En caso que el valor de los retiros, pagos o transferencias sea superior a los fondos existentes en la Cuenta de Ahorros, o cuando en los mismos no se reconozcan las comisiones, gastos y/o tributos a que haya lugar; ocasionados por errores "]
[0,null,"operativos o del sistema, el Cuentahabiente deberá consignar el valor faltante en efectivo dentro de los diez días hábiles siguientes a la fecha de notificación por parte del Banco de dicho retiro, pago o transferencia. Si el Cuentahabiente no consigna esta "]
[0,null,"suma dentro del término antes fijado, reconoce y se obliga a pagar al Banco el monto a su cargo por concepto del retiro, pago o transferencia efectuado por encima de los fondos existentes en su cuenta, más intereses. En caso que el Cuentahabiente "]
[0,null,"efectúe retiros en establecimientos afiliados a Credencial del Banco, se obliga a presentar personalmente su tarjeta, firmar con tinta cada uno de los comprobantes respectivos previa verificación de su cuantía e identificarse plenamente ante el "]
[0,null,"establecimiento afiliado al Banco. El cobro judicial de las sumas retiradas por encima del valor de los fondos existentes en la cuenta del Cuentahabiente, lo podrá efectuar el Banco, con el original del presente Contrato acompañado del Comprobante "]
[0,null,"Firmado y/o del Registro Magnético y/o de los Comprobantes Contables que reflejen las Operaciones y/o los Comprobantes de Compra en puntos de ventas afiliados a otras redes tecnológicas a las que se encuentre afiliado el Banco y/o con la "]
[0,null,"Contragarantía Firmada con espacios en blanco conforme a lo previsto en el Artículo 622 del Código de Comercio, que el Cuentahabiente ha suscrito."]
[0,null,"6.6. El Cuentahabiente y el Banco aceptan y reconocen como prueba de las operaciones efectuadas, los registros magnéticos y/o las constancias de las Llamadas Telefónicas para Pagos, Retiros o Transferencias y/o los Comprobantes Contables internos "]
[0,null,"del Banco y/o los Registros Magnéticos que contengan los datos de las operaciones realizadas por las cantidades allá consagradas y/o los Comprobantes de Compra obtenidos en puntos de venta afiliados a otras redes tecnológicas a las que se encuentre "]
[0,null,"afiliado el Banco, sea que se trate de operaciones efectuadas a través de cajeros automáticos o de establecimientos afiliados a Credencial, o de compras efectuadas en puntos de venta afiliados a otras redes tecnológicas a las que se encuentre afiliado el "]
[0,null,"Banco o de los sistemas de Audio Línea de Occidente (ALO), Internet, Banca Móvil, o cualquier otro. Lo anterior se entiende sin perjuicio de la posibilidad de controvertir la prueba."]
[0,null,"6.7. La Tarjeta Débito y su N.I.P., así como cualquier otro medio de disposición de recursos que el Banco entregue al Cuentahabiente, son de carácter personal e intransferibles. En consecuencia, el Cuentahabiente se obliga a mantener bajo su "]
[0,null,"permanente custodia y cuidado dichos medios de manejo, dándoles el debido uso."]
[0,null,"6.8. El Banco, podrá emitir a solicitud del Cuentahabiente una(s) Tarjeta(s) Asociada(s) para ser utilizada(s) por la(s) persona(s) autorizada(s) por él contra su propia Cuenta de Ahorros. Esta(s) Tarjeta(s) es(son) igualmente personal(es) e intransferible(s) y "]
[0,null,"está(n) sujeta(s) a los términos y condiciones establecidas en el presente reglamento. Cada Cuentahabiente asociado tendrá una Clave de Identificación diferente a la del Cuentahabiente Principal, Titular de la Cuenta de Ahorros. Cada Tarjeta llevará un "]
[0,null,"extracto separado. El Cuentahabiente Titular de la Cuenta de Ahorros podrá, si así lo solicita al Banco, disponer de sus fondos en Cuenta Corriente mediante la utilización de la Tarjeta Débito en los Cajeros Automáticos, para lo cual debe comunicar al "]
[0,null,"Banco, el número de Cuenta Corriente de que es titular, y ésta será considerada como una cuenta relacionada, de la cual, como quedó dicho, el Cuentahabiente podrá disponer de su saldo mediante la utilización de su Tarjeta Débito de Cuenta de Ahorros "]
[0,null,"sujeto a las condiciones del presente reglamento."]
[0,null,"6.9. El Banco se hace responsable por la disponibilidad de los fondos del Cuentahabiente por cualquiera de los medios dispuestos para el efecto, salvo en caso de fallas de los sistemas y/o las comunicaciones, no imputables al Banco, incluyendo el "]
[0,null,"sistema de Audio Línea de Occidente (ALO), Internet, Banca Móvil y cualquier otro, y/o por defectos en los Datáfonos y/o por defectos de la Tarjeta, y/o por que los Cajeros Automáticos no disponen de efectivo en el momento de solicitar el retiro, y/o por "]
[0,null,"imposibilidad de establecer comunicación con los sistemas autorizados, y/o por suspensión del servicio, y/o por otras causas, y/o por que algún establecimiento afiliado al Banco, se niega a admitir el uso de la tarjeta, y/o cuando existe incompatibilidad "]
[0,null,"tecnológica. En caso de pérdida, extravío, hurto o sustracción de la Tarjeta, el Cuentahabiente deberá informarlo al Banco, a la mayor brevedad posible a través de alguno de los mecanismos que el Banco ha dispuesto para ello. Bastará con la sola "]
[0,null,"afirmación del Cuentahabiente sobre tal circunstancia, la cual se entenderá efectuada bajo la gravedad del juramento, para que el Banco proceda a bloquear la tarjeta. Esta afirmación podrá ser grabada, en caso de efectuarse a través del Contact Center, o "]
[0,null,"el Banco podrá solicitarle al Cuentahabiente la declaración escrita de la misma. La responsabilidad del Cuentahabiente cesa a partir del día hábil siguiente de que el Cuentahabiente solicita el bloqueo de la tarjeta."]
[0,null,"Por último el Banco, no se hará responsable por la cantidad, calidad, marca, prestación o cualquier otro aspecto de las mercancías o servicios que adquiera u obtenga el Cuentahabiente con los pagos realizados con la tarjeta, asuntos que deberán ser "]
[0,null,"resueltos directamente con el proveedor de los mismos."]
[0,null,"6.10. El Cuentahabiente se obliga a emplear el máximo de diligencia y cuidado durante la operación y manejo de los Cajeros Automáticos, y/o el servicio de Audio Línea de Occidente (ALO), Internet, Banca Móvil, o cualquier otro, y/o en los puntos de venta "]
[0,null,"afiliados a otras redes tecnológicas a las que se encuentre afiliado el Banco, evitando actos o hechos dañinos para él o para el Banco. "]
[0,null,"Parágrafo. Queda entendido que en ningún caso la entrega de la tarjeta y su sujeción a este reglamento implica en forma alguna el otorgamiento de crédito o cupo de crédito alguno por parte del Banco."]
[0,null,"6.11. El Banco podrá en cualquier tiempo proponer al Cuentahabiente adicionar, modificar o suprimir las condiciones del presente reglamento. Dichos cambios serán notificados al Cuentahabiente, por cualquier medio o por aquel que establezcan las "]
[0,null,"normas legales vigentes. Según aplique, las modificaciones se entenderán aceptadas por el Cuentahabiente: a) en los casos que específicamente estén regulados en la ley, si transcurrido el término legal el Cuentahabiente no manifiesta su no aceptación; "]
[0,null,"o b) en los demás casos, si anunciada una modificación el Cuentahabiente no se presenta a dar por terminado el contrato y continúa en la ejecución del mismo, se entenderá como hecho inequívoco que acepta incondicionalmente las modificaciones "]
[0,null,"introducidas."]
[0,null,"6.12. El convenio que se regula por el presente reglamento tendrá una duración indefinida pero terminará por la cancelación de la cuenta de ahorros, o cuando el Cuentahabiente del Banco desee saldarla o el Banco a su juicio considere que el uso de la "]
[{"$f":"IF(OR(CuentaActivaBasica=\"Sí\",CuentaActivaCreditoRotativo=\"Sí\",CuentaActivaPrestamoPersonal=\"Sí\",CuentaAhorros=\"Sí\",CuentaCorriente=\"Sí\",PortafolioAval=\"Sí\",CuentaCorrienteColombianosExt=\"Sí\")=TRUE(),1,0)","v":0},null,"Tarjeta o del sistema Audio Línea de Occidente (ALO), Internet, Banca Móvil, o cualquier otro que esté a disposición del Cuentahabiente, ha sido indebido o que no se ha dado cumplimiento al reglamento. También, por muerte del usuario o por devolución "]
[0,null,"de la Tarjeta, y en todo caso por decisión unilateral del Banco que se notificará al Cuentahabiente. El Cuentahabiente se obliga a informar al Banco, con veinticuatro (24) horas de anticipación y por escrito, su intención de cancelar su Cuenta de Ahorros, lo "]
[0,null,"cual conlleva la Cancelación de su Tarjeta Débito y su N.I.P y la aplicación de la previsión del párrafo anterior, debiendo en consecuencia devolver la(s) tarjeta(s) débito(s) tanto del titular como de la(s) extendida(s), las tarjeta(s) asociada(s), el Talonario de "]
[0,null,"la Cuenta de Ahorros y/o el otro medio o documento ofrecido por el Banco para reemplazar el Talonario de Ahorros."]
[0,null,"6.13. El Banco, efectuará los cargos administrativos contra las Cuentas de Ahorros, tales como cuota de uso de cajero, cargo de manejo de tarjeta, seguro de tarjeta y valor de los servicios, consultas y otras operaciones."]
[0,null,"6.14. El sólo hecho de la entrega de cualquiera de los medios ofrecidos para la disposición del depósito, tales como Tarjeta, Talonario, claves, etc., dará derecho al Banco, para cobrar al tenedor de la misma, una suma fija trimestral que le será comunicada "]
[0,null,"por escrito al Cuentahabiente como cuota de administración, la cual podrá variarse con comunicación al Cuentahabiente. El no uso de los medios no exime al tenedor de la misma del pago de dicha cuota, salvo los casos establecidos en la Ley. El Banco, "]
[{"$f":"IF(OR(CuentaActivaBasica=\"Sí\",CuentaActivaCreditoRotativo=\"Sí\",CuentaActivaPrestamoPersonal=\"Sí\",CuentaAhorros=\"Sí\",CuentaCorriente=\"Sí\",PortafolioAval=\"Sí\",CuentaCorrienteColombianosExt=\"Sí\")=TRUE(),1,0)","v":0},null,"en igual forma podrá cobrar por cada transacción realizada con la tarjeta a través de cualquiera de los sistemas puestos a disposición del Cuentahabiente previa comunicación dirigida al tenedor de la misma, sobre el costo de cada transacción. El "]
[0,null,"Cuentahabiente, manifiesta que conoce el presente Reglamento y que lo acepta íntegramente. El texto del presente Reglamento de Ahorros le ha sido entregado al Cuentahabiente en el momento de su firma, y es puesto a su disposición en la página web "]
[0,null,"del Banco. Cuando la cuenta se califique como inactiva por el Banco, éste último podrá dar por terminado el contrato de cuenta de ahorro. Estas cuentas no generan costos administrativos a cargo del Cuentahabiente."]
[0,null,"6.15. El Cuentahabiente del Banco, se obliga para con éste a hacer un debido uso de los Cajeros Automáticos ATM, Datáfonos puntos de venta POS y del sistema de Audio Línea de Occidente (ALO) y en especial a no impartir instrucciones imprecisas, "]
[0,null,"indeterminables o inexactas. El Banco, se reserva el derecho de autorizar o no una operación solicitada por el Cuentahabiente, cuando ésta, a juicio del Banco, no sea clara, precisa y determinable, reserva que el Cuentahabiente acepta. Igualmente el "]
[0,null,"Cuentahabiente faculta al Banco, para que éste asiente en los registros que para el efecto tenga dispuestos, los movimientos y/o operaciones efectuados, conforme a este reglamento."]
[0,null,"6.16. Para el desarrollo del contrato de depósito que rige este reglamento se tendrá en cuenta lo siguiente:"]
[0,null,"6.16.1. El Banco, no se responsabiliza de las operaciones que no puedan realizarse por causas atribuidas al Cuentahabiente, tales como, falta o insuficiencia de Fondos en la(s) Cuenta(s) Bancaria(s) del Cuentahabiente."]
[0,null,"6.16.2. En ningún caso el Banco se tendrá como responsable por hechos de la naturaleza, caso fortuito, fuerza mayor o hechos de terceros."]
[0,null,"6.17. El Cuentahabiente, a través de la Tarjeta Débito, podrá efectuar las operaciones aludidas, siempre que se encuentre dentro del país y se efectúen a través de los medios técnicos de rigor. No obstante podrá utilizar la Tarjeta Débito a nivel "]
[0,null,"internacional, haciendo uso de los recursos que tenga disponibles en la Cuenta de Ahorros, accediendo a los Cajeros Automáticos de la Red Cirrus y en los establecimientos y Bancos afiliados a MasterCard."]
[0,null,"6.18. Para los efectos de este documento, cualquier correspondencia o notificación será enviada al Cuentahabiente a la dirección registrada en los sistemas de información del Banco, alimentado por las novedades que deberá indicar el Cuentahabiente "]
[0,null,"cada vez que lo considere conveniente. El Cuentahabiente certifica que los datos e información suministrada en la Solicitud de Apertura del Contrato de Cuenta de Ahorros son exactos y verídicos. En consecuencia, autoriza al Banco para que los verifique "]
[0,null,"a fin de comprobar su moralidad, honestidad y nivel de endeudamiento frente a otras entidades y ante aquellas sometidas a la vigilancia de la Superintendencia Financiera."]
[0,null,"7. El Cuentahabiente autoriza al Banco para que reverse las transacciones y/o retenga, reintegre, debite o bloquee los recursos que se hayan acreditado en su cuenta de manera errónea."]
[0,null,"Parágrafo. En caso de que no sea posible el reintegro de los dineros, el Cuentahabiente se obliga a devolverlos al Banco, dentro de los cinco (5) días hábiles siguientes a la solicitud realizada por el Banco, sin necesidad de requerimientos adicionales, "]
[0,null,"autorizando al Banco a debitar el valor respectivo de cualquier suma de dinero que a su favor se encuentra en el Banco. El incumplimiento de lo previsto anteriormente, dará lugar a que el Banco inicie los procesos judiciales correspondientes con base en "]
[0,null,"sus registros contables. En caso que el débito se realice por errores imputables al Banco, éste se obliga a abonar inmediatamente dicho monto a favor del Cuentahabiente."]
[0]
[0,null,"AUTORIZACIÓN PARA TRATAMIENTO DE DATOS - REGLAMENTO DE AHORROS"]
[0]
[0,null,"El Cuentahabiente, en su calidad de titular de información, actuando libre y voluntariamente, autoriza de manera expresa al Banco, o a quien represente sus derechos, a almacenar, consultar, analizar, evaluar, comparar, procesar, reportar, obtener, "]
[0,null,"actualizar, compilar, tratar, enviar, rectificar, emplear, eliminar, suministrar, ordenar, catalogar, clasificar, grabar, y conservar sus datos personales, biométricos, público, semiprivado y privado e información que se refiera a su comportamiento crediticio, "]
[0,null,"financiero, comercial, de servicios y de terceros países de la misma naturaleza, así como a entregar cualquier de ellos a la Central de Información CIFIN o a cualquier otra entidad pública o privada que administre o maneje bases de datos. Así mismo, el "]
[0,null,"Cuentahabiente autoriza al Banco a divulgar, compartir, comercializar o intercambiar, de forma verbal o escrita, dichos datos, para fines comerciales, operativos y de seguridad, o para cualquier otro fin, con la matriz, las filiales y las vinculadas del Banco, "]
[0,null,"sin que esto de lugar a pagos ni retribuciones de ningún tipo a favor del cliente."]
[0,null,"El Cuentahabiente conoce que el alcance de esta autorización implica que el comportamiento frente a sus obligaciones será registrado con el objeto de suministrar información suficiente y adecuada al mercado sobre el estado de sus obligaciones "]
[0,null,"financieras, comerciales, crediticias, de servicios y la proveniente de terceros países de la misma naturaleza. En consecuencia, quienes se encuentren afiliados y/o tengan acceso a la Central de Información CIFIN o a cualquier otra entidad pública o "]
[0,null,"privada que administre o maneje bases de datos podrán conocer esta información, de conformidad con la legislación y jurisprudencia aplicable. La información podrá ser igualmente utilizada para efectos estadísticos."]
[0,null,"De igual manera, el Cuentahabiente autoriza expresa e inequívocamente la transmisión de la información y datos atrás descritos, a autoridades locales o extranjeras que lo requieran; teniendo como finalidad el cumplimiento de obligaciones surgidas en "]
[0,null,"normas o convenios."]
[0,null,"Los derechos y obligaciones del Cuentahabiente así como la permanencia de su información en las bases de datos corresponden a lo determinado por el ordenamiento jurídico aplicable del cual, por ser de carácter público, está enterado. En caso de que, "]
[0,null,"en el futuro, el Banco efectúe, a favor de un tercero, una venta de cartera o una cesión a cualquier título de las obligaciones a cargo del Cuentahabiente, los efectos de la presente autorización se extenderán a éste en los mismos términos y condiciones. "]
[0,null,"Así mismo, el Cuentahabiente autoriza a la Central de Información a que, en su calidad de operador, ponga la información del Cuentahabiente a disposición de otros operadores nacionales o extranjeros, en los términos que establece la ley, siempre y "]
[0,null,"cuando su objeto sea similar al aquí establecido."]
[0]
[{"$f":"IF(OR(CreditoRotativo=\"Sí\",CuentaActivaBasica=\"Sí\",CuentaActivaCreditoRotativo=\"Sí\",CuentaActivaPrestamoPersonal=\"Sí\",CuentaAhorros=\"Sí\",CuentaCorriente=\"Sí\",TarjetaCredito=\"Sí\",TarjetaCreditoAmparada=\"Sí\",PortafolioAval=\"Sí\",CuentaCorrienteColombianosExt=\"Sí\")=TRUE(),1,0)","v":0},null,"En señal de aceptación del (los) contrato(s) y autorizaciones del(los) siguiente(s) producto(s); así como de haber leído y entendido sus términos, condiciones y explicaciones por considerarla de suma importancia para la seguridad y manejo adecuado"]
[0,null,"del producto (en especial pero sin limitarse a los que se encuentran en caracteres resaltados), los cuales puedo consultar y descargar si es el caso en la página www.bancodeoccidente.com.co; o en su defecto solicitar la impresión de los mismos en Oficina."]
[0,null,"Se firma el presente documento:"]
[0]
[{"$f":"IF(OR(VinculacionClienteNuevo=\"Sí\",SolicitudProductoMantenimiento=\"Sí\",ActualizacionDatos=\"Sí\")=TRUE(),1,0)","v":0}]
[0,null,null,"Firma cliente:"]
[0]
[0]
[0]
[0,null,null,"N°. identificación:",null,null,null,null,null,null,null,null,null,null,null,null,null,null,null,null,null,null,null,null,null,null,null,null,null,null,null,null,null,null,null,null,null,null,null,null,null,null,null,null,null,null,null,null,null,null,null,null,"Índice derecho"]
[0]
[0]
[1,null,"USO EXCLUSIVO DEL BANCO/FIDUCIARIA"]
[1]
[{"$f":"IF(OR(AND(VinculacionClienteNuevo=\"Sí\",ActualizacionDatos=\"No\"),AND(VinculacionClienteNuevo=\"Sí\",ActualizacionDatos=\"Sí\"),AND(VinculacionClienteNuevo=\"Sí\",ActualizacionDatos=\"\"))=TRUE(),1,0)","v":0},null,"ENTREVISTA O VISITA/CONCEPTO"]
[0]
[0,null,"Resultado entrevista o visita/concepto cliente"]
[0]
[0]
[0]
[0]
[0]
[0]
[0]
[0]
[0]
[0]
[0,null,"Fecha resultado",null,null,null,null,null,null,null,null,null,null,null,null,null,null,null,"Nombres y apellidos (quien entrevistas y vincula)",null,null,null,null,null,null,null,null,null,null,null,null,null,null,null,null,null,null,null,null,null,null,null,null,null,null,null,null,null,null,null,null,null,null,null,null,null,null,null,null,null,null,null,null,null,null,null,null,null,null,null,null,null,null,null,null,null,null,null,null,null,null,null,null,null,null,null,null,"N°. cédula",null,null,null,null,null,null,null,null,null,null,null,null,null,"Nombre segmento de banca"]
[0]
[0,null,"Hora",null,null,null,null,null,null,null,null,null,null,null,null,null,null,null,"Nombres y apellidos (quien verifica información comercial)",null,null,null,null,null,null,null,null,null,null,null,null,null,null,null,null,null,null,null,null,null,null,null,null,null,null,null,null,null,null,null,null,null,null,null,null,null,null,null,null,null,null,null,null,null,null,null,null,null,null,null,null,null,null,null,null,null,null,null,null,null,null,null,null,null,null,null,null,"N°. cédula",null,null,null,null,null,null,null,null,null,null,null,null,null,"N°. biometría"]
[0]
[0]
[{"$f":"IF(OR(CuentaActivaBasica=\"Sí\",CuentaActivaCreditoRotativo=\"Sí\",CuentaActivaPrestamoPersonal=\"Sí\",CuentaAhorros=\"Sí\",CuentaCorriente=\"Sí\",PortafolioAval=\"Sí\",CuentaCorrienteColombianosExt=\"Sí\")=TRUE(),1,0)","v":0},null,"APERTURA DE CUENTAS DE AHORROS Y CUENTAS CORRIENTES"]
[0]
[0,null,null,null,"Programa de mercadeo:"]
[0]
[0,null,null,null,"Firma Gerente/Ejecutivo que autoriza:",null,null,null,null,null,null,null,null,null,null,null,null,null,null,null,null,null,null,null,null,null,null,null,null,null,null,null,null,null,null,null,null,null,null,null,null,null,null,null,null,null,null,"Firma Gerente/Ejecutivo que revisa apertura:"]
[0]
[0]
[0]
[0]
[0,null,null,null,"Código:",null,null,null,null,null,null,null,null,null,null,null,null,null,null,null,null,null,null,null,null,null,null,null,null,null,null,null,null,null,null,null,null,null,null,null,null,null,null,null,null,null,null,"Código:"]
[0]
[{"$f":"IF(PresentacionCliente=\"Sí\",1,0)","v":0},null,"PRESENTACIÓN DEL CLIENTE (COMPRA DE CARTERA)"]
[0]
[0,null,null,null,null,null,null,null,null,null,"¿Solicitante secundario?:"]
[0]
[0,null,null,null,null,null,null,null,null,null,"Tipo identificación",null,null,null,null,null,null,null,null,null,null,null,null,null,null,null,null,null,null,null,"N°. identificación",null,null,null,null,null,null,null,null,null,null,null,null,null,"Nombres y apellidos"]
[0]
[0]
[0,null,null,null,null,null,null,null,null,null,"N°. obligación",null,null,null,null,null,null,null,null,null,null,null,null,null,null,null,null,null,null,null,null,"Entidad",null,null,null,null,null,null,null,null,null,null,null,null,null,null,null,null,null,null,null,null,"Valor inicial",null,null,null,null,null,null,null,null,null,null,null,null,null,null,null,null,null,null,null,null,"Saldo a recoger",null,null,null,null,null,null,null,null,null,null,null,null,null,null,null,null,null,null,null,null,"Cuotas actuales"]
[0]
[0]
[0]
[0]
[0]
[0,null,null,null,null,null,null,null,null,null,"Totales:",null,null,null,null,null,null,null,null,null,null,null,null,null,null,null,null,null,null,null,null,null,null,null,null,null,null,null,null,null,null,null,null,null,null,null,null,null,null,null,null,null,{"$f":"SUM($BA$1167:$BU$1171)","v":0},null,null,null,null,null,null,null,null,null,null,null,null,null,null,null,null,null,null,null,null,{"$f":"SUM($BV$1167:$CP$1171)","v":0},null,null,null,null,null,null,null,null,null,null,null,null,null,null,null,null,null,null,null,null,{"$f":"SUM($CQ$1167:$DK$1171)","v":0}]
[0]
[0,null,"Observaciones generales"]
[0]
[0]
[0]
[0]
[0]
[0]
[0]
[0]
[0]
[0]
[0]
[0,null,"¿Presenta algún nivel de endeudamiento con el Banco de Occidente en donde firma como codeudor?:",null,null,null,null,null,null,null,null,null,null,null,null,null,null,null,null,null,null,null,null,null,null,null,null,null,null,null,null,null,null,null,null,null,null,null,null,null,null,null,null,null,null,null,null,null,null,null,null,null,null,null,null,null,null,null,null,null,null,null,null,null,null,null,null,"Si es cliente independiente, ¿presenta variaciones financieras significativas?:"]
[0,null,"En caso afirmativo, anexar fotocopia de la carta de aprobación del nivel de endeudamiento."]
[0]
[{"$f":"IF(VarFinIndependientes=\"Sí\",1,0)","v":0},null,"VARIACIONES FINANCIERAS COMPRA DE CARTERA (CLIENTES INDEPENDIENTES)"]
[0]
[0,null,null,null,null,null,null,null,null,null,null,null,null,null,null,null,null,null,null,null,null,null,null,null,null,null,"Solicitante principal",null,null,null,null,null,null,null,null,null,null,null,null,null,null,null,null,null,null,null,null,null,null,null,null,null,null,null,null,null,null,null,null,null,null,null,null,null,null,null,null,null,null,null,null,null,null,null,"Solicitante secundario (si aplica)"]
[0,null,"Rubro",null,null,null,null,null,null,null,null,null,null,null,null,null,null,null,null,null,null,null,null,null,null,null,"Valor año actual",null,null,null,null,null,null,null,null,null,null,null,null,null,null,null,null,null,null,null,null,"Valor año anterior",null,null,null,null,null,null,null,null,null,null,null,null,null,null,null,null,null,null,null,null,"Var.",null,null,null,null,null,"Valor año actual",null,null,null,null,null,null,null,null,null,null,null,null,null,null,null,null,null,null,null,null,"Valor año anterior",null,null,null,null,null,null,null,null,null,null,null,null,null,null,null,null,null,null,null,"Var."]
[0,null,"Total activos (bienes, títulos valor...)",null,null,null,null,null,null,null,null,null,null,null,null,null,null,null,null,null,null,null,null,null,null,null,{"$f":"IF($CT$208=\"\",\"\",$CT$208)","v":""},null,null,null,null,null,null,null,null,null,null,null,null,null,null,null,null,null,null,null,null,null,null,null,null,null,null,null,null,null,null,null,null,null,null,null,null,null,null,null,null,null,{"$f":"IFERROR((AV1193/AA1193)-1,\"\")","v":""},null,null,null,null,null,null,null,null,null,null,null,null,null,null,null,null,null,null,null,null,null,null,null,null,null,null,null,null,null,null,null,null,null,null,null,null,null,null,null,null,null,null,null,null,null,null,{"$f":"IFERROR((CR1193/BW1193)-1,\"\")","v":""}]
[0,null,"Total pasivos (deudas)",null,null,null,null,null,null,null,null,null,null,null,null,null,null,null,null,null,null,null,null,null,null,null,{"$f":"IF($CT$210=\"\",\"\",$CT$210)","v":""},null,null,null,null,null,null,null,null,null,null,null,null,null,null,null,null,null,null,null,null,null,null,null,null,null,null,null,null,null,null,null,null,null,null,null,null,null,null,null,null,null,"",null,null,null,null,null,null,null,null,null,null,null,null,null,null,null,null,null,null,null,null,null,null,null,null,null,null,null,null,null,null,null,null,null,null,null,null,null,null,null,null,null,null,null,null,null,null,""]
[0,null,"Ingresos/ventas mensuales",null,null,null,null,null,null,null,null,null,null,null,null,null,null,null,null,null,null,null,null,null,null,null,{"$f":"IF($C$208=\"\",\"\",$C$208)","v":""},null,null,null,null,null,null,null,null,null,null,null,null,null,null,null,null,null,null,null,null,null,null,null,null,null,null,null,null,null,null,null,null,null,null,null,null,null,null,null,null,null,"",null,null,null,null,null,null,null,null,null,null,null,null,null,null,null,null,null,null,null,null,null,null,null,null,null,null,null,null,null,null,null,null,null,null,null,null,null,null,null,null,null,null,null,null,null,null,""]
[0,null,"Otros ingresos mensuales",null,null,null,null,null,null,null,null,null,null,null,null,null,null,null,null,null,null,null,null,null,null,null,{"$f":"IF($C$210=\"\",\"\",$C$210)","v":""},null,null,null,null,null,null,null,null,null,null,null,null,null,null,null,null,null,null,null,null,null,null,null,null,null,null,null,null,null,null,null,null,null,null,null,null,null,null,null,null,null,"",null,null,null,null,null,null,null,null,null,null,null,null,null,null,null,null,null,null,null,null,null,null,null,null,null,null,null,null,null,null,null,null,null,null,null,null,null,null,null,null,null,null,null,null,null,null,""]
[0,null,"Egresos mensuales (costos y gastos)",null,null,null,null,null,null,null,null,null,null,null,null,null,null,null,null,null,null,null,null,null,null,null,{"$f":"IF($C$212=\"\",\"\",$C$212)","v":""},null,null,null,null,null,null,null,null,null,null,null,null,null,null,null,null,null,null,null,null,null,null,null,null,null,null,null,null,null,null,null,null,null,null,null,null,null,null,null,null,null,"",null,null,null,null,null,null,null,null,null,null,null,null,null,null,null,null,null,null,null,null,null,null,null,null,null,null,null,null,null,null,null,null,null,null,null,null,null,null,null,null,null,null,null,null,null,null,""]
[0,null,"Margen de rentabilidad operacional",null,null,null,null,null,null,null,null,null,null,null,null,null,null,null,null,null,null,null,null,null,null,null,{"$f":"IF($CT$210=\"\",\"\",$CT$210)","v":""},null,null,null,null,null,null,null,null,null,null,null,null,null,null,null,null,null,null,null,null,null,null,null,null,null,null,null,null,null,null,null,null,null,null,null,null,null,null,null,null,null,"",null,null,null,null,null,null,null,null,null,null,null,null,null,null,null,null,null,null,null,null,null,null,null,null,null,null,null,null,null,null,null,null,null,null,null,null,null,null,null,null,null,null,null,null,null,null,""]
[0]
[0,null,"Justificación de variaciones financieras significativas"]
[0]
[0]
[0]
[0]
[0]
[0]
[0]
[0]
[0]
[0]
[0]
[1]
[1]
[1]
[1]
[1]
[1]
[1]
[1]
[1]
[0]
[0]
[0]
[0]
[0]
[0]
[0]
[0]
[0]
[0]
[0]
[0]
[0]
[0]
[1]
[0,null,"Cargos PEP",null,null,null,null,null,null,null,null,null,null,null,null,null,null,null,null,null,null,null,null,null,null,null,null,"Tipos PEP",null,null,null,null,null,null,null,null,null,null,null,null,"Boolean",null,null,null,null,null,null,null,"Tipo identificación",null,null,null,null,null,null,null,null,null,null,null,null,null,null,null,null,null,null,null,null,null,null,null,"Franquicia",null,null,null,null,null,null,null,null,null,null,null,null,null,null,null,null,null,null,null,null,null,null,null,null,"Fondo de inversión","#1","#2","#3"]
[0,null,"Alcalde",null,null,null,null,null,null,null,null,null,null,null,null,null,null,null,null,null,null,null,null,null,null,null,null,"No PEP",null,null,null,null,null,null,null,null,null,null,null,null,"Sí",null,null,null,null,null,null,null,"CC",null,null,null,null,null,null,null,null,null,null,null,null,null,null,null,null,null,null,null,null,null,null,null,"MasterCard- Credencial Joven",null,null,null,null,null,null,null,null,null,null,null,null,null,null,null,null,null,null,null,null,null,null,null,null,"Occirenta",1,0,0]
[0,null,"Auditor General de la Nación",null,null,null,null,null,null,null,null,null,null,null,null,null,null,null,null,null,null,null,null,null,null,null,null,"PEP Nacional",null,null,null,null,null,null,null,null,null,null,null,null,"No",null,null,null,null,null,null,null,"CE",null,null,null,null,null,null,null,null,null,null,null,null,null,null,null,null,null,null,null,null,null,null,null,"MasterCard- Credencial Clásica",null,null,null,null,null,null,null,null,null,null,null,null,null,null,null,null,null,null,null,null,null,null,null,null,"Avanza Renta Fija",1,0,7]
[0,null,"Autorizador del Gasto Público",null,null,null,null,null,null,null,null,null,null,null,null,null,null,null,null,null,null,null,null,null,null,null,null,"PEP Extranjero",null,null,null,null,null,null,null,null,null,null,null,null,null,null,null,null,null,null,null,null,"TI",null,null,null,null,null,null,null,null,null,null,null,null,null,null,null,null,null,null,null,null,null,null,null,"MasterCard- Credencial Gold",null,null,null,null,null,null,null,null,null,null,null,null,null,null,null,null,null,null,null,null,null,null,null,null,"Occitesoros",1,1,0]
[0,null,"Codirector Banco República",null,null,null,null,null,null,null,null,null,null,null,null,null,null,null,null,null,null,null,null,null,null,null,null,null,null,null,null,null,null,null,null,null,null,null,null,null,null,null,null,null,null,null,null,null,"Pasaporte",null,null,null,null,null,null,null,null,null,null,null,null,null,null,null,null,null,null,null,null,null,null,null,"MasterCard- Credencial Platinum",null,null,null,null,null,null,null,null,null,null,null,null,null,null,null,null,null,null,null,null,null,null,null,null,"Renta Fija Dinámica",1,0,3]
[0,null,"Comisionado Nal Servicio Civil",null,null,null,null,null,null,null,null,null,null,null,null,null,null,null,null,null,null,null,null,null,null,null,null,null,null,null,null,null,null,null,null,null,null,null,null,null,null,null,null,null,null,null,null,null,"Registro civil",null,null,null,null,null,null,null,null,null,null,null,null,null,null,null,null,null,null,null,null,null,null,null,"MasterCard- Credencial Black",null,null,null,null,null,null,null,null,null,null,null,null,null,null,null,null,null,null,null,null,null,null,null,null,"Renta Fija Recurrente",1,1,2]
[0,null,"Concejal",null,null,null,null,null,null,null,null,null,null,null,null,null,null,null,null,null,null,null,null,null,null,null,null,null,null,null,null,null,null,null,null,null,null,null,null,null,null,null,null,null,null,null,null,null,"Carné diplomático",null,null,null,null,null,null,null,null,null,null,null,null,null,null,null,null,null,null,null,null,null,null,null,"Visa- Credencial Clásica",null,null,null,null,null,null,null,null,null,null,null,null,null,null,null,null,null,null,null,null,null,null,null,null,"Balanceado Internacional",1,0,4]
[0,null,"Consejero Dpto Administrativo",null,null,null,null,null,null,null,null,null,null,null,null,null,null,null,null,null,null,null,null,null,null,null,null,null,null,null,null,null,null,null,null,null,null,null,null,null,null,null,null,null,null,null,null,null,"Permiso de protección temporal",null,null,null,null,null,null,null,null,null,null,null,null,null,null,null,null,null,null,null,null,null,null,null,"Visa- Credencial Gold",null,null,null,null,null,null,null,null,null,null,null,null,null,null,null,null,null,null,null,null,null,null,null,null,"Meta Planeada",1,0,5]
[0,null,"Contador General de la Nación",null,null,null,null,null,null,null,null,null,null,null,null,null,null,null,null,null,null,null,null,null,null,null,null,null,null,null,null,null,null,null,null,null,null,null,null,null,null,null,null,null,null,null,null,null,null,null,null,null,null,null,null,null,null,null,null,null,null,null,null,null,null,null,null,null,null,null,null,null,"Visa- Credencial Platinum",null,null,null,null,null,null,null,null,null,null,null,null,null,null,null,null,null,null,null,null,null,null,null,null,"Meta Estratégica",1,0,9]
[0,null,"Contralor delegado",null,null,null,null,null,null,null,null,null,null,null,null,null,null,null,null,null,null,null,null,null,null,null,null,null,null,null,null,null,null,null,null,null,null,null,null,null,null,null,null,null,null,null,null,null,null,null,null,null,null,null,null,null,null,null,null,null,null,null,null,null,null,null,null,null,null,null,null,null,"Visa- Credencial Infinite",null,null,null,null,null,null,null,null,null,null,null,null,null,null,null,null,null,null,null,null,null,null,null,null,"Meta Decidida",1,1,1]
[0,null,"Contralor Gral de la República",null,null,null,null,null,null,null,null,null,null,null,null,null,null,null,null,null,null,null,null,null,null,null,null,null,null,null,null,null,null,null,null,null,null,null,null,null,null,null,null,null,null,null,null,null,null,null,null,null,null,null,null,null,null,null,null,null,null,null,null,null,null,null,null,null,null,null,null,null,"Visa- Credencial Mascotas"]
[0,null,"Contralor Territorial",null,null,null,null,null,null,null,null,null,null,null,null,null,null,null,null,null,null,null,null,null,null,null,null,null,null,null,null,null,null,null,null,null,null,null,null,null,null,null,null,null,null,null,null,null,null,null,null,null,null,null,null,null,null,null,null,null,null,null,null,null,null,null,null,null,null,null,null,null,"Visa- Credencial Free"]
[0,null,"Curador Urbano",null,null,null,null,null,null,null,null,null,null,null,null,null,null,null,null,null,null,null,null,null,null,null,null,null,null,null,null,null,null,null,null,null,null,null,null,null,null,null,null,null,null,null,null,null,null,null,null,null,null,null,null,null,null,null,null,null,null,null,null,null,null,null,null,null,null,null,null,null,"Unicef -Marca Compartida"]
[0,null,"Defensor del Pueblo",null,null,null,null,null,null,null,null,null,null,null,null,null,null,null,null,null,null,null,null,null,null,null,null,null,null,null,null,null,null,null,null,null,null,null,null,null,null,null,null,null,null,null,null,null,null,null,null,null,null,null,null,null,null,null,null,null,null,null,null,null,null,null,null,null,null,null,null,null,"LATAMPASS Clásica "]
[0,null,"Defensor Delegado",null,null,null,null,null,null,null,null,null,null,null,null,null,null,null,null,null,null,null,null,null,null,null,null,null,null,null,null,null,null,null,null,null,null,null,null,null,null,null,null,null,null,null,null,null,null,null,null,null,null,null,null,null,null,null,null,null,null,null,null,null,null,null,null,null,null,null,null,null,"LATAMPASS Oro"]
[0,null,"Delegado Fiscalía Gral Nación",null,null,null,null,null,null,null,null,null,null,null,null,null,null,null,null,null,null,null,null,null,null,null,null,null,null,null,null,null,null,null,null,null,null,null,null,null,null,null,null,null,null,null,null,null,null,null,null,null,null,null,null,null,null,null,null,null,null,null,null,null,null,null,null,null,null,null,null,null,"LATAMPASS Platinum"]
[0,null,"Diputado",null,null,null,null,null,null,null,null,null,null,null,null,null,null,null,null,null,null,null,null,null,null,null,null,null,null,null,null,null,null,null,null,null,null,null,null,null,null,null,null,null,null,null,null,null,null,null,null,null,null,null,null,null,null,null,null,null,null,null,null,null,null,null,null,null,null,null,null,null,"LATAMPASS Signature"]
[0,null,"Director Administrativo",null,null,null,null,null,null,null,null,null,null,null,null,null,null,null,null,null,null,null,null,null,null,null,null,null,null,null,null,null,null,null,null,null,null,null,null,null,null,null,null,null,null,null,null,null,null,null,null,null,null,null,null,null,null,null,null,null,null,null,null,null,null,null,null,null,null,null,null,null,"LATAMPASS Priority Pass"]
[0,null,"Dir Empresas Pub Servicios ESP",null,null,null,null,null,null,null,null,null,null,null,null,null,null,null,null,null,null,null,null,null,null,null,null,null,null,null,null,null,null,null,null,null,null,null,null,null,null,null,null,null,null,null,null,null,null,null,null,null,null,null,null,null,null,null,null,null,null,null,null,null,null,null,null,null,null,null,null,null,"Centro Comercial Santa Fé"]
[0,null,"Dir Financiero EICE "]
[0,null,"Dir Financiero ESE"]
[0,null,"Embajador"]
[0,null,"Fideicomitente con Administración de Recursos Públicos"]
[0,null,"Fiscal General de la Nación"]
[0,null,"General de Fuerzas Militares"]
[0,null,"General Policia Nacional"]
[0,null,"Gerente EICE "]
[0,null,"Gerente  ESP"]
[0,null,"Gerente ESE"]
[0,null,"Gerente UAE"]
[0,null,"Gobernador"]
[0,null,"Inspector de Policía "]
[0,null,"Juez de la República"]
[0,null,"Mag Aux Altas Cortes"]
[0,null,"Magistrado de Altas Cortes"]
[0,null,"Mag Consejo Nal Electoral"]
[0,null,"Magistrado de Tribunales"]
[0,null,"Ministro"]
[0,null,"Notario"]
[0,null,"Oficial de Fuerzas Militares"]
[0,null,"Oficial de Policia Nacional"]
[0,null,"Ordenador del Gasto"]
[0,null,"Presidente de la República"]
[0,null,"Presidente General"]
[0,null,"Procurador Delegado"]
[0,null,"Procurador Gral de la Nación"]
[0,null,"Registrador Delegado"]
[0,null,"Registrador Nal Estado Civil"]
[0,null,"Representante a la Cámara"]
[0,null,"Rep Legal Partido/Mov Político"]
[0,null,"Secr. comisión Constitucional"]
[0,null,"Secretario General de Alcaldía"]
[0,null,"Secr. Gral Consejo Municipal"]
[0,null,"Secretario General ESP"]
[0,null,"Secretario General ESE"]
[0,null,"Secretario Gral Gobernación"]
[0,null,"Secretario Gral Ministerio"]
[0,null,"Secretario General UAE"]
[0,null,"Senador"]
[0,null,"Subdirector Administrativo"]
[0,null,"Suboficial Policía Nal"]
[0,null,"Subsecretario de Estado"]
[0,null,"Superintendente"]
[0,null,"Superintendente Delegado"]
[0,null,"Tesorero de Alcaldía"]
[0,null,"Tesorero de Consejo Municipal"]
[0,null,"Tesorero Dpto Administrativo"]
[0,null,"Tesorero EICE"]
[0,null,"Tesorero ESP"]
[0,null,"Tesorero ESE"]
[0,null,"Tesorero de Gobernación"]
[0,null,"Vicecontralor Gral de la República"]
[0,null,"Vicedefensor del Pueblo"]
[0,null,"ViceFiscal Gral de la Nación"]
[0,null,"Viceministro"]
[0,null,"Vicepresidente de la República"]
[0,null,"Viceprocurador Gral Nación"]
[1]
[1]
[1]
[1]
[1]
[1]
[1]
[1]
[1]
[1]
[1]
[1]
[1]
[1]
[1]
[1]
[1]
[1]
[1]
[1]
[1]
[1]
[1]
[1]
[1]
[1]
[1]
[1]
[1]
[1]
[1]
[1]
[1]
[1]
[1]
[1]
[1]
[1]
[1]
[1]
[1]
[1]
[1]
[1]
[1]
[1]
[1]
[1]
[1]
[1]
[1]
[1]
[1]
[1]
[1]
[1]
[1]
[1]
[1]
[1]
[1]
[1]
[1]
[1]
[1]
[1]
[1]
[1]
[1]
[1]
[1]
[1]
[1]
[1]
[1]
[1]
[1]
[1]
[1]
[1]
[1]
[1]
[1]
[1]
[1]
[1]
[1]
[1]
[1]
[1]
[1]
[1]
[1]
[1]
[1]
[1]
[1]
[1]
[1]
[1]
[1]
[1]
[1]
[1]
[1]
[1]
[1]
[1]
[1]
[1]
[1]
[1]
[1]
[1]
[1]
[1]
[1]
[1]
[1]
[1]
[1]
[1]
[1]
[1]
[1]
[1]
[1]
[1]
[1]
[1]
[1]
[1]
[1]
[1]
[1]
[1]
[1]
[1]
[1]
[1]
[1]
[1]
[1]
[1]
[1]
[1]
[1]
[1]
[1]
[1]
[1]
[1]
[1]
[1]
[1]
[1]
[1]
[1]
[1]
[1]
[1]
[1]
[1]
[1]
[1]
[1]
[1]
[1]
[1]
[1]
[1]
[1]
[1]
[1]
[1]
[1]
[1]
[1]
[1]
[1]
[1]
[1]
[1]
[1]
[1]
[1]
[1]
[1]
[1]
[1]

{"sheet":"FVE - Cliente","index":1,"n_rows":656,"n_cols":113,"rows_kept":656,"cut":false,"hidden":false,"merged":[[15,44,16,68],[15,10,16,13],[15,14,16,17],[15,18,16,25],[25,1,26,60],[27,1,28,60],[545,100,546,119],[547,1,548,16],[547,17,548,85],[547,86,548,99],[547,100,548,119],[549,1,550,16],[549,17,550,85],[549,86,550,99],[549,100,550,119],[533,1,542,119],[543,1,544,16],[543,17,544,85],[543,86,544,99],[543,100,544,119],[545,1,546,4],[545,5,546,8],[545,9,546,16],[545,17,546,85],[545,86,546,99],[521,2,522,12],[521,13,522,26],[521,51,522,61],[525,1,526,119],[528,1,529,119],[531,1,532,119],[414,28,415,75],[414,76,415,89],[414,90,415,119],[417,1,418,119],[420,1,511,119],[514,2,515,9],[414,2,415,3],[414,4,415,9],[414,11,415,12],[414,13,415,18],[414,19,415,20],[414,21,415,27],[404,1,405,14],[404,15,405,119],[406,1,407,14],[406,15,407,119],[409,1,410,119],[412,1,413,27],[412,28,413,75],[412,76,413,89],[412,90,413,119],[397,1,398,119],[400,1,401,51],[400,52,401,99],[400,100,401,119],[402,2,403,3],[402,4,403,28],[402,29,403,30],[402,31,403,42],[402,52,403,99],[402,100,403,119],[386,1,387,24],[386,25,387,48],[389,1,390,119],[392,36,393,59],[392,60,393,83],[394,36,395,59],[394,60,395,83],[382,1,383,24],[382,25,383,48],[382,49,383,72],[382,73,383,96],[382,97,383,118],[384,1,385,24],[384,25,385,48],[377,101,378,104],[377,105,378,118],[380,1,381,24],[380,25,381,48],[380,49,381,72],[380,73,381,96],[380,97,381,118],[377,64,378,71],[377,72,378,73],[377,74,378,84],[377,85,378,86],[377,87,378,98],[377,99,378,100],[377,1,378,39],[377,42,378,43],[377,44,378,51],[377,52,378,53],[377,54,378,61],[377,62,378,63],[369,1,370,24],[369,55,370,119],[372,1,373,119],[375,1,376,22],[375,23,376,24],[375,25,376,26],[375,27,376,28],[375,29,376,31],[365,1,366,24],[365,25,366,95],[365,96,366,119],[367,1,368,24],[367,25,370,45],[367,55,368,119],[368,46,369,47],[368,48,369,49],[368,50,369,51],[368,52,369,54],[361,1,362,24],[361,25,362,95],[361,96,362,119],[363,1,364,24],[363,25,364,95],[363,96,364,119],[353,1,354,47],[353,48,354,71],[353,72,354,95],[353,96,354,119],[356,1,357,119],[359,1,360,24],[359,25,360,95],[359,96,360,119],[349,60,350,78],[349,92,350,105],[349,106,350,119],[351,1,352,47],[351,48,352,71],[351,72,352,95],[351,96,352,119],[349,25,350,31],[349,33,350,34],[349,35,350,42],[349,44,350,45],[349,46,350,56],[349,58,350,59],[347,106,348,119],[349,2,350,3],[349,4,350,7],[349,8,350,9],[349,10,350,12],[349,13,350,14],[349,15,350,17],[349,18,350,19],[349,20,350,22],[349,23,350,24],[345,78,346,83],[345,84,346,85],[345,86,346,92],[345,93,346,94],[345,95,346,102],[347,1,348,91],[347,92,348,105],[345,39,346,48],[345,49,346,50],[345,51,346,58],[345,59,346,60],[345,61,346,75],[345,76,346,77],[341,1,342,105],[341,106,342,119],[343,1,344,119],[345,2,346,3],[345,4,346,13],[345,14,346,15],[345,16,346,22],[345,23,346,24],[345,25,346,36],[345,37,346,38],[333,1,334,65],[333,66,334,96],[333,97,334,110],[333,111,334,119],[336,1,337,119],[339,1,340,105],[339,106,340,119],[329,47,330,48],[329,49,330,52],[329,53,330,66],[329,96,330,119],[331,1,332,65],[331,66,332,96],[331,97,332,110],[331,111,332,119],[327,1,328,95],[327,96,328,119],[329,2,330,3],[329,4,330,6],[329,8,330,9],[329,10,330,15],[329,17,330,18],[329,19,330,32],[329,34,330,35],[329,36,330,46],[317,75,318,119],[320,1,321,119],[323,1,324,16],[323,17,324,91],[323,92,324,119],[325,1,326,4],[325,5,326,8],[325,9,326,16],[325,17,326,91],[325,92,326,119],[317,43,318,46],[317,47,318,50],[317,51,318,58],[317,59,318,62],[317,63,318,66],[317,67,318,74],[317,2,318,3],[317,4,318,9],[317,10,318,11],[317,12,318,20],[317,21,318,22],[317,23,318,32],[315,1,316,42],[315,43,316,58],[315,59,316,74],[315,75,316,119],[309,54,310,64],[309,66,310,67],[309,68,310,86],[309,106,310,119],[311,15,312,41],[311,42,312,68],[311,69,312,95],[311,96,312,119],[309,28,310,30],[309,31,310,32],[309,33,310,39],[309,41,310,42],[309,43,310,50],[309,52,310,53],[304,75,305,119],[307,1,308,14],[307,15,308,105],[307,106,308,119],[309,1,314,14],[309,16,310,17],[309,18,310,20],[309,21,310,22],[309,23,310,25],[309,26,310,27],[304,43,305,46],[304,47,305,50],[304,51,305,58],[304,59,305,62],[304,63,305,66],[304,67,305,74],[304,2,305,3],[304,4,305,9],[304,10,305,11],[304,12,305,20],[304,21,305,22],[304,23,305,32],[313,15,314,41],[313,42,314,68],[313,69,314,95],[313,96,314,119],[302,1,303,42],[302,43,303,58],[302,59,303,74],[302,75,303,119],[296,54,297,64],[296,66,297,67],[296,68,297,86],[296,106,297,119],[298,15,299,41],[298,42,299,68],[298,69,299,95],[298,96,299,119],[296,28,297,30],[296,31,297,32],[296,33,297,39],[296,41,297,42],[296,43,297,50],[296,52,297,53],[291,75,292,119],[294,1,295,14],[294,15,295,105],[294,106,295,119],[296,1,301,14],[296,16,297,17],[296,18,297,20],[296,21,297,22],[296,23,297,25],[296,26,297,27],[291,43,292,46],[291,47,292,50],[291,51,292,58],[291,59,292,62],[291,63,292,66],[291,67,292,74],[291,2,292,3],[291,4,292,9],[291,10,292,11],[291,12,292,20],[291,21,292,22],[291,23,292,32],[300,15,301,41],[300,42,301,68],[300,69,301,95],[300,96,301,119],[289,1,290,42],[289,43,290,58],[289,59,290,74],[289,75,290,119],[283,54,284,64],[283,66,284,67],[283,68,284,86],[283,106,284,119],[285,15,286,41],[285,42,286,68],[285,69,286,95],[285,96,286,119],[283,28,284,30],[283,31,284,32],[283,33,284,39],[283,41,284,42],[283,43,284,50],[283,52,284,53],[278,75,279,119],[281,1,282,14],[281,15,282,105],[281,106,282,119],[283,1,288,14],[283,16,284,17],[283,18,284,20],[283,21,284,22],[283,23,284,25],[283,26,284,27],[278,43,279,46],[278,47,279,50],[278,51,279,58],[278,59,279,62],[278,63,279,66],[278,67,279,74],[278,2,279,3],[278,4,279,9],[278,10,279,11],[278,12,279,20],[278,21,279,22],[278,23,279,32],[287,15,288,41],[287,42,288,68],[287,69,288,95],[287,96,288,119],[276,1,277,42],[276,43,277,58],[276,59,277,74],[276,75,277,119],[270,54,271,64],[270,66,271,67],[270,68,271,86],[270,106,271,119],[272,15,273,41],[272,42,273,68],[272,69,273,95],[272,96,273,119],[270,28,271,30],[270,31,271,32],[270,33,271,39],[270,41,271,42],[270,43,271,50],[270,52,271,53],[265,75,266,119],[268,1,269,14],[268,15,269,105],[268,106,269,119],[270,1,275,14],[270,16,271,17],[270,18,271,20],[270,21,271,22],[270,23,271,25],[270,26,271,27],[265,43,266,46],[265,47,266,50],[265,51,266,58],[265,59,266,62],[265,63,266,66],[265,67,266,74],[265,2,266,3],[265,4,266,9],[265,10,266,11],[265,12,266,20],[265,21,266,22],[265,23,266,32],[274,15,275,41],[274,42,275,68],[274,69,275,95],[274,96,275,119],[263,1,264,42],[263,43,264,58],[263,59,264,74],[263,75,264,119],[257,54,258,64],[257,66,258,67],[257,68,258,86],[257,106,258,119],[259,15,260,41],[259,42,260,68],[259,69,260,95],[259,96,260,119],[257,28,258,30],[257,31,258,32],[257,33,258,39],[257,41,258,42],[257,43,258,50],[257,52,258,53],[252,75,253,119],[255,1,256,14],[255,15,256,105],[255,106,256,119],[257,1,262,14],[257,16,258,17],[257,18,258,20],[257,21,258,22],[257,23,258,25],[257,26,258,27],[252,43,253,46],[252,47,253,50],[252,51,253,58],[252,59,253,62],[252,63,253,66],[252,67,253,74],[252,2,253,3],[252,4,253,9],[252,10,253,11],[252,12,253,20],[252,21,253,22],[252,23,253,32],[261,15,262,41],[261,42,262,68],[261,69,262,95],[261,96,262,119],[250,1,251,42],[250,43,251,58],[250,59,251,74],[250,75,251,119],[244,54,245,64],[244,66,245,67],[244,68,245,86],[244,106,245,119],[246,15,247,41],[246,42,247,68],[246,69,247,95],[246,96,247,119],[244,28,245,30],[244,31,245,32],[244,33,245,39],[244,41,245,42],[244,43,245,50],[244,52,245,53],[239,75,240,119],[242,1,243,14],[242,15,243,105],[242,106,243,119],[244,1,249,14],[244,16,245,17],[244,18,245,20],[244,21,245,22],[244,23,245,25],[244,26,245,27],[239,43,240,46],[239,47,240,50],[239,51,240,58],[239,59,240,62],[239,63,240,66],[239,67,240,74],[239,2,240,3],[239,4,240,9],[239,10,240,11],[239,12,240,20],[239,21,240,22],[239,23,240,32],[248,15,249,41],[248,42,249,68],[248,69,249,95],[248,96,249,119],[237,1,238,42],[237,43,238,58],[237,59,238,74],[237,75,238,119],[231,54,232,64],[231,66,232,67],[231,68,232,86],[231,106,232,119],[233,15,234,41],[233,42,234,68],[233,69,234,95],[233,96,234,119],[231,28,232,30],[231,31,232,32],[231,33,232,39],[231,41,232,42],[231,43,232,50],[231,52,232,53],[226,75,227,119],[229,1,230,14],[229,15,230,105],[229,106,230,119],[231,1,236,14],[231,16,232,17],[231,18,232,20],[231,21,232,22],[231,23,232,25],[231,26,232,27],[226,43,227,46],[226,47,227,50],[226,51,227,58],[226,59,227,62],[226,63,227,66],[226,67,227,74],[226,2,227,3],[226,4,227,9],[226,10,227,11],[226,12,227,20],[226,21,227,22],[226,23,227,32],[235,15,236,41],[235,42,236,68],[235,69,236,95],[235,96,236,119],[224,1,225,42],[224,43,225,58],[224,59,225,74],[224,75,225,119],[218,54,219,64],[218,66,219,67],[218,68,219,86],[218,106,219,119],[220,15,221,41],[220,42,221,68],[220,69,221,95],[220,96,221,119],[218,28,219,30],[218,31,219,32],[218,33,219,39],[218,41,219,42],[218,43,219,50],[218,52,219,53],[213,75,214,119],[216,1,217,14],[216,15,217,105],[216,106,217,119],[218,1,223,14],[218,16,219,17],[218,18,219,20],[218,21,219,22],[218,23,219,25],[218,26,219,27],[213,43,214,46],[213,47,214,50],[213,51,214,58],[213,59,214,62],[213,63,214,66],[213,67,214,74],[213,2,214,3],[213,4,214,9],[213,10,214,11],[213,12,214,20],[213,21,214,22],[213,23,214,32],[222,15,223,41],[222,42,223,68],[222,69,223,95],[222,96,223,119],[211,1,212,42],[211,43,212,58],[211,59,212,74],[211,75,212,119],[205,54,206,64],[205,66,206,67],[205,68,206,86],[205,106,206,119],[207,15,208,41],[207,42,208,68],[207,69,208,95],[207,96,208,119],[205,28,206,30],[205,31,206,32],[205,33,206,39],[205,41,206,42],[205,43,206,50],[205,52,206,53],[200,75,201,119],[203,1,204,14],[203,15,204,105],[203,106,204,119],[205,1,210,14],[205,16,206,17],[205,18,206,20],[205,21,206,22],[205,23,206,25],[205,26,206,27],[200,43,201,46],[200,47,201,50],[200,51,201,58],[200,59,201,62],[200,63,201,66],[200,67,201,74],[200,2,201,3],[200,4,201,9],[200,10,201,11],[200,12,201,20],[200,21,201,22],[200,23,201,32],[209,15,210,41],[209,42,210,68],[209,69,210,95],[209,96,210,119],[198,1,199,42],[198,43,199,58],[198,59,199,74],[198,75,199,119],[192,54,193,64],[192,66,193,67],[192,68,193,86],[192,106,193,119],[194,15,195,41],[194,42,195,68],[194,69,195,95],[194,96,195,119],[192,28,193,30],[192,31,193,32],[192,33,193,39],[192,41,193,42],[192,43,193,50],[192,52,193,53],[187,75,188,119],[190,1,191,14],[190,15,191,105],[190,106,191,119],[192,1,197,14],[192,16,193,17],[192,18,193,20],[192,21,193,22],[192,23,193,25],[192,26,193,27],[187,43,188,46],[187,47,188,50],[187,51,188,58],[187,59,188,62],[187,63,188,66],[187,67,188,74],[187,2,188,3],[187,4,188,9],[187,10,188,11],[187,12,188,20],[187,21,188,22],[187,23,188,32],[196,15,197,41],[196,42,197,68],[196,69,197,95],[196,96,197,119],[185,1,186,42],[185,43,186,58],[185,59,186,74],[185,75,186,119],[179,54,180,64],[179,66,180,67],[179,68,180,86],[179,106,180,119],[181,15,182,41],[181,42,182,68],[181,69,182,95],[181,96,182,119],[179,28,180,30],[179,31,180,32],[179,33,180,39],[179,41,180,42],[179,43,180,50],[179,52,180,53],[174,75,175,119],[177,1,178,14],[177,15,178,105],[177,106,178,119],[179,1,184,14],[179,16,180,17],[179,18,180,20],[179,21,180,22],[179,23,180,25],[179,26,180,27],[174,43,175,46],[174,47,175,50],[174,51,175,58],[174,59,175,62],[174,63,175,66],[174,67,175,74],[174,2,175,3],[174,4,175,9],[174,10,175,11],[174,12,175,20],[174,21,175,22],[174,23,175,32],[183,15,184,41],[183,42,184,68],[183,69,184,95],[183,96,184,119],[172,1,173,42],[172,43,173,58],[172,59,173,74],[172,75,173,119],[166,54,167,64],[166,66,167,67],[166,68,167,86],[166,106,167,119],[168,15,169,41],[168,42,169,68],[168,69,169,95],[168,96,169,119],[166,28,167,30],[166,31,167,32],[166,33,167,39],[166,41,167,42],[166,43,167,50],[166,52,167,53],[161,75,162,119],[164,1,165,14],[164,15,165,105],[164,106,165,119],[166,1,171,14],[166,16,167,17],[166,18,167,20],[166,21,167,22],[166,23,167,25],[166,26,167,27],[161,43,162,46],[161,47,162,50],[161,51,162,58],[161,59,162,62],[161,63,162,66],[161,67,162,74],[161,2,162,3],[161,4,162,9],[161,10,162,11],[161,12,162,20],[161,21,162,22],[161,23,162,32],[170,15,171,41],[170,42,171,68],[170,69,171,95],[170,96,171,119],[159,1,160,42],[159,43,160,58],[159,59,160,74],[159,75,160,119],[153,54,154,64],[153,66,154,67],[153,68,154,86],[153,106,154,119],[155,15,156,41],[155,42,156,68],[155,69,156,95],[155,96,156,119],[153,28,154,30],[153,31,154,32],[153,33,154,39],[153,41,154,42],[153,43,154,50],[153,52,154,53],[148,75,149,119],[151,1,152,14],[151,15,152,105],[151,106,152,119],[153,1,158,14],[153,16,154,17],[153,18,154,20],[153,21,154,22],[153,23,154,25],[153,26,154,27],[148,43,149,46],[148,47,149,50],[148,51,149,58],[148,59,149,62],[148,63,149,66],[148,67,149,74],[148,2,149,3],[148,4,149,9],[148,10,149,11],[148,12,149,20],[148,21,149,22],[148,23,149,32],[157,15,158,41],[157,42,158,68],[157,69,158,95],[157,96,158,119],[146,1,147,42],[146,43,147,58],[146,59,147,74],[146,75,147,119],[140,54,141,64],[140,66,141,67],[140,68,141,86],[140,106,141,119],[142,15,143,41],[142,42,143,68],[142,69,143,95],[142,96,143,119],[140,28,141,30],[140,31,141,32],[140,33,141,39],[140,41,141,42],[140,43,141,50],[140,52,141,53],[135,75,136,119],[138,1,139,14],[138,15,139,105],[138,106,139,119],[140,1,145,14],[140,16,141,17],[140,18,141,20],[140,21,141,22],[140,23,141,25],[140,26,141,27],[135,43,136,46],[135,47,136,50],[135,51,136,58],[135,59,136,62],[135,63,136,66],[135,67,136,74],[135,2,136,3],[135,4,136,9],[135,10,136,11],[135,12,136,20],[135,21,136,22],[135,23,136,32],[144,15,145,41],[144,42,145,68],[144,69,145,95],[144,96,145,119],[133,1,134,42],[133,43,134,58],[133,59,134,74],[133,75,134,119],[127,54,128,64],[127,66,128,67],[127,68,128,86],[127,106,128,119],[129,15,130,41],[129,42,130,68],[129,69,130,95],[129,96,130,119],[127,28,128,30],[127,31,128,32],[127,33,128,39],[127,41,128,42],[127,43,128,50],[127,52,128,53],[122,75,123,119],[125,1,126,14],[125,15,126,105],[125,106,126,119],[127,1,132,14],[127,16,128,17],[127,18,128,20],[127,21,128,22],[127,23,128,25],[127,26,128,27],[122,43,123,46],[122,47,123,50],[122,51,123,58],[122,59,123,62],[122,63,123,66],[122,67,123,74],[122,2,123,3],[122,4,123,9],[122,10,123,11],[122,12,123,20],[122,21,123,22],[122,23,123,32],[131,15,132,41],[131,42,132,68],[131,69,132,95],[131,96,132,119],[120,1,121,42],[120,43,121,58],[120,59,121,74],[120,75,121,119],[114,54,115,64],[114,66,115,67],[114,68,115,86],[114,106,115,119],[116,15,117,41],[116,42,117,68],[116,69,117,95],[116,96,117,119],[114,28,115,30],[114,31,115,32],[114,33,115,39],[114,41,115,42],[114,43,115,50],[114,52,115,53],[109,75,110,119],[112,1,113,14],[112,15,113,105],[112,106,113,119],[114,1,119,14],[114,16,115,17],[114,18,115,20],[114,21,115,22],[114,23,115,25],[114,26,115,27],[109,43,110,46],[109,47,110,50],[109,51,110,58],[109,59,110,62],[109,63,110,66],[109,67,110,74],[109,2,110,3],[109,4,110,9],[109,10,110,11],[109,12,110,20],[109,21,110,22],[109,23,110,32],[118,15,119,41],[118,42,119,68],[118,69,119,95],[118,96,119,119],[105,42,106,68],[105,69,106,95],[105,96,106,119],[107,1,108,42],[107,43,108,58],[107,59,108,74],[107,75,108,119],[101,54,102,64],[101,66,102,67],[101,68,102,86],[101,106,102,119],[103,15,104,41],[103,42,104,68],[103,69,104,95],[103,96,104,119],[101,28,102,30],[101,31,102,32],[101,33,102,39],[101,41,102,42],[101,43,102,50],[101,52,102,53],[101,1,106,14],[101,16,102,17],[101,18,102,20],[101,21,102,22],[101,23,102,25],[101,26,102,27],[105,15,106,41],[91,1,92,119],[93,1,94,119],[96,1,97,119],[99,1,100,14],[99,15,100,105],[99,106,100,119],[85,75,86,119],[87,1,88,24],[88,26,89,80],[88,81,89,82],[88,83,89,84],[88,85,89,86],[88,87,89,89],[89,1,90,24],[85,43,86,46],[85,47,86,50],[85,51,86,58],[85,59,86,62],[85,63,86,66],[85,67,86,74],[85,2,86,3],[85,4,86,9],[85,10,86,11],[85,12,86,20],[85,21,86,22],[85,23,86,32],[74,1,75,119],[77,1,78,84],[77,85,78,86],[77,88,78,89],[80,1,81,119],[83,1,84,42],[83,43,84,58],[83,59,84,74],[83,75,84,119],[66,64,67,65],[66,66,67,68],[67,72,68,95],[67,96,68,119],[68,1,71,56],[69,72,70,95],[69,96,70,119],[71,72,72,95],[71,96,72,119],[62,1,63,119],[65,72,66,95],[65,96,66,119],[66,1,67,58]],"merged_total":1155,"flags":["merged_cut"]}
["FTO-MIS-37 Formato unificado de vinculación: Persona Natural"]
[]
[]
[]
["Última modificación: 10/12/2024"]
[]
[null,null,null,null,null,null,null,null,null,null,null,null,null,null,null,null,null,null,null,null,null,null,null,null,null,null,null,null,null,null,null,null,null,null,null,null,null,null,null,null,null,null,null,null,"FUERZA DE VENTAS EXTERNA"]
[]
[]
[]
[null,"SOLICITUD DE VINCULACIÓN DE CLIENTE"]
[]
[]
[null,"Cod. oficina",null,null,null,null,null,null,null,null,"Fecha solicitud",null,null,null,null,null,null,null,null,null,null,null,null,null,null,null,"Solicitante",null,null,null,null,null,null,null,null,null,null,null,null,null,null,null,null,null,"Ir a solicitud de vinculación de producto:"]
[]
[null,null,null,null,null,null,null,null,null,null,"dd",null,null,null,"mm",null,null,null,"aaaa",null,null,null,null,null,null,null,null,null,null,"Cliente",null,null,null,null,null,null,null,"Codeudor",null,null,null,null,null,null,"No soy fuerza de ventas externa:"]
[]
[]
[null,"DATOS PERSONALES BÁSICOS"]
[]
[]
[null,"Tipo identificación",null,null,null,null,null,null,null,null,null,null,null,null,null,null,null,null,null,null,null,null,null,null,null,null,null,null,null,null,null,null,null,null,null,null,null,null,null,null,null,null,null,null,null,null,null,null,null,null,null,null,null,null,null,null,null,null,null,null,null,null,null,null,null,null,null,null,null,null,null,null,null,null,null,null,null,null,null,null,null,null,null,null,null,null,null,null,null,null,"N°. identificación",null,null,null,null,null,null,null,null,null,null,null,null,null,"Fecha expedición"]
[]
[null,null,null,null,"CC",null,null,null,null,"CE",null,null,null,null,"TI",null,null,null,null,"Pasaporte",null,null,null,null,null,null,null,null,null,"Registro civil",null,null,null,null,null,null,null,null,null,null,"Carné diplomático",null,null,null,null,null,null,null,null,null,null,null,null,null,"Permiso de protección temporal",null,null,null,null,null,null,null,null,null,null,null,null,null,null,null,null,null,null,null,null,null,null,null,null,null,null,null,null,null,null,null,null,null,null,null,null,null,null,null,null,null,null,null,null,null,null,null,null,null,"dd",null,null,null,"mm",null,null,null,"aaaa"]
[]
[null,"Nombres cliente",null,null,null,null,null,null,null,null,null,null,null,null,null,null,null,null,null,null,null,null,null,null,null,null,null,null,null,null,null,null,null,null,null,null,null,null,null,null,null,null,null,null,null,null,null,null,null,null,null,null,null,null,null,null,null,null,null,null,null,"Primer apellido",null,null,null,null,null,null,null,null,null,null,null,null,null,null,null,null,null,null,null,null,null,null,null,null,null,null,null,null,null,"Segundo apellido (si aplica)"]
[]
[]
[]
[]
[null,"DATOS PERSONALES COMPLEMENTARIOS"]
[]
[]
[null,"Lugar expedición identificación",null,null,null,null,null,null,null,null,null,null,null,null,null,null,null,null,null,null,null,null,null,null,null,"Fecha nacimiento",null,null,null,null,null,null,null,null,null,null,null,null,null,null,null,"País nacimiento",null,null,null,null,null,null,null,null,null,null,null,null,null,null,null,null,null,null,null,null,null,null,null,null,null,"Departamento nacimiento",null,null,null,null,null,null,null,null,null,null,null,null,null,null,null,null,null,null,null,null,null,null,null,null,null,"Ciudad nacimiento"]
[]
[null,null,null,null,null,null,null,null,null,null,null,null,null,null,null,null,null,null,null,null,null,null,null,null,null,"dd",null,null,null,"mm",null,null,null,"aaaa"]
[]
[null,"Nacionalidad 1",null,null,null,null,null,null,null,null,null,null,null,null,null,null,null,null,null,null,null,null,null,null,null,"Nacionalidad 2 (si aplica)",null,null,null,null,null,null,null,null,null,null,null,null,null,null,null,null,null,null,null,null,null,null,null,"Género",null,null,null,null,null,null,null,null,null,null,"Estado civil"]
[]
[null,null,null,null,null,null,null,null,null,null,null,null,null,null,null,null,null,null,null,null,null,null,null,null,null,null,null,null,null,null,null,null,null,null,null,null,null,null,null,null,null,null,null,null,null,null,null,null,null,null,null,null,"M",null,null,null,null,"F",null,null,null,null,null,"Soltero",null,null,null,null,null,null,null,"Casado",null,null,null,null,null,null,null,"Unión libre",null,null,null,null,null,null,null,null,null,"Separado",null,null,null,null,null,null,null,null,null,"Divorciado",null,null,null,null,null,null,null,null,null,"Viudo"]
[]
[null,"Ocupación"]
[]
[null,null,null,null,"Empleado privado",null,null,null,null,null,null,null,null,null,null,null,null,null,"Empleado público",null,null,null,null,null,null,null,null,null,null,null,null,null,"Empleado con negocio",null,null,null,null,null,null,null,null,null,null,null,null,null,null,null,null,"Rentista de capital",null,null,null,null,null,null,null,null,null,null,null,null,null,"Pensionado",null,null,null,null,null,null,null,null,null,"Independiente",null,null,null,null,null,null,null,null,null,null,null,"Estudiante",null,null,null,null,null,null,null,null,null,"Hogar"]
[]
[null,"Nivel estudios",null,null,null,null,null,null,null,null,null,null,null,null,null,null,null,null,null,null,null,null,null,null,null,null,null,null,null,null,null,null,null,null,null,null,null,null,null,null,null,null,null,null,null,null,null,null,null,null,null,null,null,null,null,null,null,null,null,null,null,null,null,null,null,null,null,null,null,null,null,null,null,null,null,null,null,null,"Profesión",null,null,null,null,null,null,null,null,null,null,null,null,null,null,null,null,null,null,null,null,null,null,null,"Personas a cargo (si aplica)"]
[]
[null,null,null,null,"Primaria",null,null,null,null,null,null,null,"Secundaria",null,null,null,null,null,null,null,null,null,"Técnico",null,null,null,null,null,null,null,"Profesional",null,null,null,null,null,null,null,null,null,"Especialización",null,null,null,null,null,null,null,null,null,null,null,"Maestría",null,null,null,null,null,null,null,"Doctorado",null,null,null,null,null,null,null,null,null,null,null,null,null,null,null,null,null,null,null,null,null,null,null,null,null,null,null,null,null,null,null,null,null,null,null,null,null,null,null,null,null,"##"]
[]
[null,"Dirección residencia (especificar conjunto/edificio, N°. apto./casa)",null,null,null,null,null,null,null,null,null,null,null,null,null,null,null,null,null,null,null,null,null,null,null,null,null,null,null,null,null,null,null,null,null,null,null,null,null,null,null,null,null,null,null,null,"País residencia",null,null,null,null,null,null,null,null,null,null,null,null,null,null,null,null,null,null,null,null,null,null,null,"Departamento residencia",null,null,null,null,null,null,null,null,null,null,null,null,null,null,null,null,null,null,null,null,null,null,null,"Ciudad residencia"]
[]
[]
[]
[null,"Correo electrónico (Dato seguro aplica en cuentas tradicionales)",null,null,null,null,null,null,null,null,null,null,null,null,null,null,null,null,null,null,null,null,null,null,null,null,null,null,null,null,null,null,null,null,null,null,null,null,null,null,null,null,null,null,null,null,null,null,null,null,null,null,null,null,null,null,null,null,null,null,null,null,null,null,null,null,null,null,null,null,null,null,null,null,null,null,null,null,null,null,null,"Celular (Dato seguro aplica en cuentas tradicionales)",null,null,null,null,null,null,null,null,null,null,null,null,null,null,null,null,null,null,null,null,null,null,null,null,"Teléfono residencia"]
[]
[null,null,null,null,null,null,null,null,null,null,null,null,null,null,null,null,null,null,null,null,null,null,null,null,null,null,null,null,null,null,null,null,null,null,null,null,null,null,null,null,null,null,null,null,null,null,null,null,null,null,null,null,null,null,null,null,null,null,null,null,null,null,null,null,null,null,null,null,null,null,"Dato seguro",null,null,null,null,null,null,null,null,null,null,null,null,null,null,null,null,null,null,null,null,null,null,null,null,"Dato seguro"]
[]
[null,"Tipo vivienda",null,null,null,null,null,null,null,null,null,null,null,null,null,null,null,null,null,null,null,null,null,null,null,null,"Discapacidad(es) (si aplica)"]
[]
[null,null,null,null,"Propia",null,null,null,null,null,null,"Familiar",null,null,null,null,null,null,null,"Arrendada",null,null,null,null,null,null,null,null,null,"Auditiva",null,null,null,null,null,null,null,"Cognitiva",null,null,null,null,null,null,null,null,"Motriz",null,null,null,null,null,null,"Psicosocial",null,null,null,null,null,null,null,null,null,"Sordo-ceguera",null,null,null,null,null,null,null,null,null,null,null,"Visual",null,null,null,null,null,null,"Voz y habla",null,null,null,null,null,null,null,null,null,"Otra:"]
[]
[]
[null,"FATCA/CRS"]
[]
[]
[null,null,null,null,null,null,null,null,null,null,null,null,null,null,null,null,null,null,null,null,null,null,null,null,null,null,null,null,null,null,null,null,null,null,null,null,null,null,null,null,null,null,null,null,null,null,null,null,null,null,null,null,null,null,null,null,null,null,null,null,null,null,null,null,null,null,null,null,null,null,null,null,"País residencia fiscal 1",null,null,null,null,null,null,null,null,null,null,null,null,null,null,null,null,null,null,null,null,null,null,null,"País residencia fiscal 2 (si aplica)"]
[null,"¿Es responsable de pago de impuestos o residente fiscal en EEUU (U.S. Person) u otro país diferente de Colombia?:",null,null,null,null,null,null,null,null,null,null,null,null,null,null,null,null,null,null,null,null,null,null,null,null,null,null,null,null,null,null,null,null,null,null,null,null,null,null,null,null,null,null,null,null,null,null,null,null,null,null,null,null,null,null,null,null,null,null,null,null,"Sí",null,null,null,"No"]
[]
[null,"*U.S. PERSON es una definición que incluye ciudadanos y residentes de los Estados Unidos (poseedores de una Green Card de los Estados Unidos o que cumplen el requisito de presencia sustancial en los Estados Unidos mayor a 183 días durante los últimos tres años)."]
[null,null,null,null,null,null,null,null,null,null,null,null,null,null,null,null,null,null,null,null,null,null,null,null,null,null,null,null,null,null,null,null,null,null,null,null,null,null,null,null,null,null,null,null,null,null,null,null,null,null,null,null,null,null,null,null,null,null,null,null,null,null,null,null,null,null,null,null,null,null,null,null,"N°. identificación tributaria",null,null,null,null,null,null,null,null,null,null,null,null,null,null,null,null,null,null,null,null,null,null,null,"N°. identificación tributaria (si aplica)"]
[]
[]
[]
[]
[null,"PERSONA POLÍTICAMENTE EXPUESTA (PEP)"]
[]
[]
[null,"¿Es una Persona Expuesta Políticamente (PEP) o tiene vínculo conyugal, familiar o asociado con personas que detenten la condición de PEP o administra recursos del Estado?:",null,null,null,null,null,null,null,null,null,null,null,null,null,null,null,null,null,null,null,null,null,null,null,null,null,null,null,null,null,null,null,null,null,null,null,null,null,null,null,null,null,null,null,null,null,null,null,null,null,null,null,null,null,null,null,null,null,null,null,null,null,null,null,null,null,null,null,null,null,null,null,null,null,null,null,null,null,null,null,null,null,null,null,"Sí"]
[]
[]
[null,"DATOS COMPLEMENTARIOS PEP"]
[]
[]
[null,"Tipo PEP",null,null,null,null,null,null,null,null,null,null,null,null,null,null,null,null,null,null,null,null,null,null,null,null,null,null,null,null,null,null,null,null,null,null,null,null,null,null,null,null,null,"Fecha posesión",null,null,null,null,null,null,null,null,null,null,null,null,null,null,null,"Fecha vigencia",null,null,null,null,null,null,null,null,null,null,null,null,null,null,null,"Cargo"]
[]
[null,null,null,null,"No PEP",null,null,null,null,null,null,null,"PEP nacional",null,null,null,null,null,null,null,null,null,null,"PEP extranjero",null,null,null,null,null,null,null,null,null,null,null,null,null,null,null,null,null,null,null,"dd",null,null,null,"mm",null,null,null,"aaaa",null,null,null,null,null,null,null,"dd",null,null,null,"mm",null,null,null,"aaaa"]
[]
[null,"Tipo de relación"]
[null,null,null,null,null,null,null,null,null,null,null,null,null,null,null,null,null,null,null,null,null,null,null,null,null,null,"¿Existen cuentas financieras en algún país extranjero en las que tengo derecho o poder de firma o de otra índole?:",null,null,null,null,null,null,null,null,null,null,null,null,null,null,null,null,null,null,null,null,null,null,null,null,null,null,null,null,null,null,null,null,null,null,null,null,null,null,null,null,null,null,null,null,null,null,null,null,null,null,null,null,null,null,null,null,"Sí",null,null,null,"No"]
[]
[]
[null,"Nombres e identificación de las personas jurídicas o naturales, patrimonios autónomos o fiducias conforme lo dispuesto en el artículo 2.1.4.2.3. del Decreto 1081 de 2015"]
[]
[]
[]
[]
[null,"FAMILIARES PEP"]
[]
[]
[null,"Parentesco",null,null,null,null,null,null,null,null,null,null,null,null,null,"Tipo identificación",null,null,null,null,null,null,null,null,null,null,null,null,null,null,null,null,null,null,null,null,null,null,null,null,null,null,null,null,null,null,null,null,null,null,null,null,null,null,null,null,null,null,null,null,null,null,null,null,null,null,null,null,null,null,null,null,null,null,null,null,null,null,null,null,null,null,null,null,null,null,null,null,null,null,null,null,null,null,null,null,null,null,null,null,null,null,null,null,null,null,"N°. identificación"]
[]
[null,"Persona con la que se tiene sociedad conyugal, de hecho, o de derecho",null,null,null,null,null,null,null,null,null,null,null,null,null,null,null,null,"CC",null,null,null,null,"CE",null,null,null,null,"TI",null,null,null,null,"Pasaporte",null,null,null,null,null,null,null,null,null,"Registro civil",null,null,null,null,null,null,null,null,null,null,"Carné diplomático",null,null,null,null,null,null,null,null,null,null,null,null,null,"Permiso de protección temporal"]
[]
[null,null,null,null,null,null,null,null,null,null,null,null,null,null,null,"Primer nombre",null,null,null,null,null,null,null,null,null,null,null,null,null,null,null,null,null,null,null,null,null,null,null,null,null,null,"Segundo nombre (si aplica)",null,null,null,null,null,null,null,null,null,null,null,null,null,null,null,null,null,null,null,null,null,null,null,null,null,null,"Primer apellido",null,null,null,null,null,null,null,null,null,null,null,null,null,null,null,null,null,null,null,null,null,null,null,null,null,null,"Segundo apellido (si aplica)"]
[]
[]
[]
[null,"Tipo PEP",null,null,null,null,null,null,null,null,null,null,null,null,null,null,null,null,null,null,null,null,null,null,null,null,null,null,null,null,null,null,null,null,null,null,null,null,null,null,null,null,null,"Fecha posesión",null,null,null,null,null,null,null,null,null,null,null,null,null,null,null,"Fecha vigencia",null,null,null,null,null,null,null,null,null,null,null,null,null,null,null,"Cargo"]
[]
[null,null,null,null,"No PEP",null,null,null,null,null,null,null,"PEP nacional",null,null,null,null,null,null,null,null,null,null,"PEP extranjero",null,null,null,null,null,null,null,null,null,null,null,null,null,null,null,null,null,null,null,"dd",null,null,null,"mm",null,null,null,"aaaa",null,null,null,null,null,null,null,"dd",null,null,null,"mm",null,null,null,"aaaa"]
[]
[]
[null,"Parentesco",null,null,null,null,null,null,null,null,null,null,null,null,null,"Tipo identificación",null,null,null,null,null,null,null,null,null,null,null,null,null,null,null,null,null,null,null,null,null,null,null,null,null,null,null,null,null,null,null,null,null,null,null,null,null,null,null,null,null,null,null,null,null,null,null,null,null,null,null,null,null,null,null,null,null,null,null,null,null,null,null,null,null,null,null,null,null,null,null,null,null,null,null,null,null,null,null,null,null,null,null,null,null,null,null,null,null,null,"N°. identificación"]
[]
[null,"Padre",null,null,null,null,null,null,null,null,null,null,null,null,null,null,null,null,"CC",null,null,null,null,"CE",null,null,null,null,"TI",null,null,null,null,"Pasaporte",null,null,null,null,null,null,null,null,null,"Registro civil",null,null,null,null,null,null,null,null,null,null,"Carné diplomático",null,null,null,null,null,null,null,null,null,null,null,null,null,"Permiso de protección temporal"]
[]
[null,null,null,null,null,null,null,null,null,null,null,null,null,null,null,"Primer nombre",null,null,null,null,null,null,null,null,null,null,null,null,null,null,null,null,null,null,null,null,null,null,null,null,null,null,"Segundo nombre (si aplica)",null,null,null,null,null,null,null,null,null,null,null,null,null,null,null,null,null,null,null,null,null,null,null,null,null,null,"Primer apellido",null,null,null,null,null,null,null,null,null,null,null,null,null,null,null,null,null,null,null,null,null,null,null,null,null,null,"Segundo apellido (si aplica)"]
[]
[]
[]
[null,"Tipo PEP",null,null,null,null,null,null,null,null,null,null,null,null,null,null,null,null,null,null,null,null,null,null,null,null,null,null,null,null,null,null,null,null,null,null,null,null,null,null,null,null,null,"Fecha posesión",null,null,null,null,null,null,null,null,null,null,null,null,null,null,null,"Fecha vigencia",null,null,null,null,null,null,null,null,null,null,null,null,null,null,null,"Cargo"]
[]
[null,null,null,null,"No PEP",null,null,null,null,null,null,null,"PEP nacional",null,null,null,null,null,null,null,null,null,null,"PEP extranjero",null,null,null,null,null,null,null,null,null,null,null,null,null,null,null,null,null,null,null,"dd",null,null,null,"mm",null,null,null,"aaaa",null,null,null,null,null,null,null,"dd",null,null,null,"mm",null,null,null,"aaaa"]
[]
[]
[null,"Parentesco",null,null,null,null,null,null,null,null,null,null,null,null,null,"Tipo identificación",null,null,null,null,null,null,null,null,null,null,null,null,null,null,null,null,null,null,null,null,null,null,null,null,null,null,null,null,null,null,null,null,null,null,null,null,null,null,null,null,null,null,null,null,null,null,null,null,null,null,null,null,null,null,null,null,null,null,null,null,null,null,null,null,null,null,null,null,null,null,null,null,null,null,null,null,null,null,null,null,null,null,null,null,null,null,null,null,null,null,"N°. identificación"]
[]
[null,"Madre",null,null,null,null,null,null,null,null,null,null,null,null,null,null,null,null,"CC",null,null,null,null,"CE",null,null,null,null,"TI",null,null,null,null,"Pasaporte",null,null,null,null,null,null,null,null,null,"Registro civil",null,null,null,null,null,null,null,null,null,null,"Carné diplomático",null,null,null,null,null,null,null,null,null,null,null,null,null,"Permiso de protección temporal"]
[]
[null,null,null,null,null,null,null,null,null,null,null,null,null,null,null,"Primer nombre",null,null,null,null,null,null,null,null,null,null,null,null,null,null,null,null,null,null,null,null,null,null,null,null,null,null,"Segundo nombre (si aplica)",null,null,null,null,null,null,null,null,null,null,null,null,null,null,null,null,null,null,null,null,null,null,null,null,null,null,"Primer apellido",null,null,null,null,null,null,null,null,null,null,null,null,null,null,null,null,null,null,null,null,null,null,null,null,null,null,"Segundo apellido (si aplica)"]
[]
[]
[]
[null,"Tipo PEP",null,null,null,null,null,null,null,null,null,null,null,null,null,null,null,null,null,null,null,null,null,null,null,null,null,null,null,null,null,null,null,null,null,null,null,null,null,null,null,null,null,"Fecha posesión",null,null,null,null,null,null,null,null,null,null,null,null,null,null,null,"Fecha vigencia",null,null,null,null,null,null,null,null,null,null,null,null,null,null,null,"Cargo"]
[]
[null,null,null,null,"No PEP",null,null,null,null,null,null,null,"PEP nacional",null,null,null,null,null,null,null,null,null,null,"PEP extranjero",null,null,null,null,null,null,null,null,null,null,null,null,null,null,null,null,null,null,null,"dd",null,null,null,"mm",null,null,null,"aaaa",null,null,null,null,null,null,null,"dd",null,null,null,"mm",null,null,null,"aaaa"]
[]
[]
[null,"Parentesco",null,null,null,null,null,null,null,null,null,null,null,null,null,"Tipo identificación",null,null,null,null,null,null,null,null,null,null,null,null,null,null,null,null,null,null,null,null,null,null,null,null,null,null,null,null,null,null,null,null,null,null,null,null,null,null,null,null,null,null,null,null,null,null,null,null,null,null,null,null,null,null,null,null,null,null,null,null,null,null,null,null,null,null,null,null,null,null,null,null,null,null,null,null,null,null,null,null,null,null,null,null,null,null,null,null,null,null,"N°. identificación"]
[]
[null,"Hijo",null,null,null,null,null,null,null,null,null,null,null,null,null,null,null,null,"CC",null,null,null,null,"CE",null,null,null,null,"TI",null,null,null,null,"Pasaporte",null,null,null,null,null,null,null,null,null,"Registro civil",null,null,null,null,null,null,null,null,null,null,"Carné diplomático",null,null,null,null,null,null,null,null,null,null,null,null,null,"Permiso de protección temporal"]
[]
[null,null,null,null,null,null,null,null,null,null,null,null,null,null,null,"Primer nombre",null,null,null,null,null,null,null,null,null,null,null,null,null,null,null,null,null,null,null,null,null,null,null,null,null,null,"Segundo nombre (si aplica)",null,null,null,null,null,null,null,null,null,null,null,null,null,null,null,null,null,null,null,null,null,null,null,null,null,null,"Primer apellido",null,null,null,null,null,null,null,null,null,null,null,null,null,null,null,null,null,null,null,null,null,null,null,null,null,null,"Segundo apellido (si aplica)"]
[]
[]
[]
[null,"Tipo PEP",null,null,null,null,null,null,null,null,null,null,null,null,null,null,null,null,null,null,null,null,null,null,null,null,null,null,null,null,null,null,null,null,null,null,null,null,null,null,null,null,null,"Fecha posesión",null,null,null,null,null,null,null,null,null,null,null,null,null,null,null,"Fecha vigencia",null,null,null,null,null,null,null,null,null,null,null,null,null,null,null,"Cargo"]
[]
[null,null,null,null,"No PEP",null,null,null,null,null,null,null,"PEP nacional",null,null,null,null,null,null,null,null,null,null,"PEP extranjero",null,null,null,null,null,null,null,null,null,null,null,null,null,null,null,null,null,null,null,"dd",null,null,null,"mm",null,null,null,"aaaa",null,null,null,null,null,null,null,"dd",null,null,null,"mm",null,null,null,"aaaa"]
[]
[]
[null,"Parentesco",null,null,null,null,null,null,null,null,null,null,null,null,null,"Tipo identificación",null,null,null,null,null,null,null,null,null,null,null,null,null,null,null,null,null,null,null,null,null,null,null,null,null,null,null,null,null,null,null,null,null,null,null,null,null,null,null,null,null,null,null,null,null,null,null,null,null,null,null,null,null,null,null,null,null,null,null,null,null,null,null,null,null,null,null,null,null,null,null,null,null,null,null,null,null,null,null,null,null,null,null,null,null,null,null,null,null,null,"N°. identificación"]
[]
[null,"Hijo",null,null,null,null,null,null,null,null,null,null,null,null,null,null,null,null,"CC",null,null,null,null,"CE",null,null,null,null,"TI",null,null,null,null,"Pasaporte",null,null,null,null,null,null,null,null,null,"Registro civil",null,null,null,null,null,null,null,null,null,null,"Carné diplomático",null,null,null,null,null,null,null,null,null,null,null,null,null,"Permiso de protección temporal"]
[]
[null,null,null,null,null,null,null,null,null,null,null,null,null,null,null,"Primer nombre",null,null,null,null,null,null,null,null,null,null,null,null,null,null,null,null,null,null,null,null,null,null,null,null,null,null,"Segundo nombre (si aplica)",null,null,null,null,null,null,null,null,null,null,null,null,null,null,null,null,null,null,null,null,null,null,null,null,null,null,"Primer apellido",null,null,null,null,null,null,null,null,null,null,null,null,null,null,null,null,null,null,null,null,null,null,null,null,null,null,"Segundo apellido (si aplica)"]
[]
[]
[]
[null,"Tipo PEP",null,null,null,null,null,null,null,null,null,null,null,null,null,null,null,null,null,null,null,null,null,null,null,null,null,null,null,null,null,null,null,null,null,null,null,null,null,null,null,null,null,"Fecha posesión",null,null,null,null,null,null,null,null,null,null,null,null,null,null,null,"Fecha vigencia",null,null,null,null,null,null,null,null,null,null,null,null,null,null,null,"Cargo"]
[]
[null,null,null,null,"No PEP",null,null,null,null,null,null,null,"PEP nacional",null,null,null,null,null,null,null,null,null,null,"PEP extranjero",null,null,null,null,null,null,null,null,null,null,null,null,null,null,null,null,null,null,null,"dd",null,null,null,"mm",null,null,null,"aaaa",null,null,null,null,null,null,null,"dd",null,null,null,"mm",null,null,null,"aaaa"]
[]
[]
[null,"Parentesco",null,null,null,null,null,null,null,null,null,null,null,null,null,"Tipo identificación",null,null,null,null,null,null,null,null,null,null,null,null,null,null,null,null,null,null,null,null,null,null,null,null,null,null,null,null,null,null,null,null,null,null,null,null,null,null,null,null,null,null,null,null,null,null,null,null,null,null,null,null,null,null,null,null,null,null,null,null,null,null,null,null,null,null,null,null,null,null,null,null,null,null,null,null,null,null,null,null,null,null,null,null,null,null,null,null,null,null,"N°. identificación"]
[]
[null,"Hija",null,null,null,null,null,null,null,null,null,null,null,null,null,null,null,null,"CC",null,null,null,null,"CE",null,null,null,null,"TI",null,null,null,null,"Pasaporte",null,null,null,null,null,null,null,null,null,"Registro civil",null,null,null,null,null,null,null,null,null,null,"Carné diplomático",null,null,null,null,null,null,null,null,null,null,null,null,null,"Permiso de protección temporal"]
[]
[null,null,null,null,null,null,null,null,null,null,null,null,null,null,null,"Primer nombre",null,null,null,null,null,null,null,null,null,null,null,null,null,null,null,null,null,null,null,null,null,null,null,null,null,null,"Segundo nombre (si aplica)",null,null,null,null,null,null,null,null,null,null,null,null,null,null,null,null,null,null,null,null,null,null,null,null,null,null,"Primer apellido",null,null,null,null,null,null,null,null,null,null,null,null,null,null,null,null,null,null,null,null,null,null,null,null,null,null,"Segundo apellido (si aplica)"]
[]
[]
[]
[null,"Tipo PEP",null,null,null,null,null,null,null,null,null,null,null,null,null,null,null,null,null,null,null,null,null,null,null,null,null,null,null,null,null,null,null,null,null,null,null,null,null,null,null,null,null,"Fecha posesión",null,null,null,null,null,null,null,null,null,null,null,null,null,null,null,"Fecha vigencia",null,null,null,null,null,null,null,null,null,null,null,null,null,null,null,"Cargo"]
[]
[null,null,null,null,"No PEP",null,null,null,null,null,null,null,"PEP nacional",null,null,null,null,null,null,null,null,null,null,"PEP extranjero",null,null,null,null,null,null,null,null,null,null,null,null,null,null,null,null,null,null,null,"dd",null,null,null,"mm",null,null,null,"aaaa",null,null,null,null,null,null,null,"dd",null,null,null,"mm",null,null,null,"aaaa"]
[]
[]
[null,"Parentesco",null,null,null,null,null,null,null,null,null,null,null,null,null,"Tipo identificación",null,null,null,null,null,null,null,null,null,null,null,null,null,null,null,null,null,null,null,null,null,null,null,null,null,null,null,null,null,null,null,null,null,null,null,null,null,null,null,null,null,null,null,null,null,null,null,null,null,null,null,null,null,null,null,null,null,null,null,null,null,null,null,null,null,null,null,null,null,null,null,null,null,null,null,null,null,null,null,null,null,null,null,null,null,null,null,null,null,null,"N°. identificación"]
[]
[null,"Hija",null,null,null,null,null,null,null,null,null,null,null,null,null,null,null,null,"CC",null,null,null,null,"CE",null,null,null,null,"TI",null,null,null,null,"Pasaporte",null,null,null,null,null,null,null,null,null,"Registro civil",null,null,null,null,null,null,null,null,null,null,"Carné diplomático",null,null,null,null,null,null,null,null,null,null,null,null,null,"Permiso de protección temporal"]
[]
[null,null,null,null,null,null,null,null,null,null,null,null,null,null,null,"Primer nombre",null,null,null,null,null,null,null,null,null,null,null,null,null,null,null,null,null,null,null,null,null,null,null,null,null,null,"Segundo nombre (si aplica)",null,null,null,null,null,null,null,null,null,null,null,null,null,null,null,null,null,null,null,null,null,null,null,null,null,null,"Primer apellido",null,null,null,null,null,null,null,null,null,null,null,null,null,null,null,null,null,null,null,null,null,null,null,null,null,null,"Segundo apellido (si aplica)"]
[]
[]
[]
[null,"Tipo PEP",null,null,null,null,null,null,null,null,null,null,null,null,null,null,null,null,null,null,null,null,null,null,null,null,null,null,null,null,null,null,null,null,null,null,null,null,null,null,null,null,null,"Fecha posesión",null,null,null,null,null,null,null,null,null,null,null,null,null,null,null,"Fecha vigencia",null,null,null,null,null,null,null,null,null,null,null,null,null,null,null,"Cargo"]
[]
[null,null,null,null,"No PEP",null,null,null,null,null,null,null,"PEP nacional",null,null,null,null,null,null,null,null,null,null,"PEP extranjero",null,null,null,null,null,null,null,null,null,null,null,null,null,null,null,null,null,null,null,"dd",null,null,null,"mm",null,null,null,"aaaa",null,null,null,null,null,null,null,"dd",null,null,null,"mm",null,null,null,"aaaa"]
[]
[]
[null,"Parentesco",null,null,null,null,null,null,null,null,null,null,null,null,null,"Tipo identificación",null,null,null,null,null,null,null,null,null,null,null,null,null,null,null,null,null,null,null,null,null,null,null,null,null,null,null,null,null,null,null,null,null,null,null,null,null,null,null,null,null,null,null,null,null,null,null,null,null,null,null,null,null,null,null,null,null,null,null,null,null,null,null,null,null,null,null,null,null,null,null,null,null,null,null,null,null,null,null,null,null,null,null,null,null,null,null,null,null,null,"N°. identificación"]
[]
[null,"Hermano",null,null,null,null,null,null,null,null,null,null,null,null,null,null,null,null,"CC",null,null,null,null,"CE",null,null,null,null,"TI",null,null,null,null,"Pasaporte",null,null,null,null,null,null,null,null,null,"Registro civil",null,null,null,null,null,null,null,null,null,null,"Carné diplomático",null,null,null,null,null,null,null,null,null,null,null,null,null,"Permiso de protección temporal"]
[]
[null,null,null,null,null,null,null,null,null,null,null,null,null,null,null,"Primer nombre",null,null,null,null,null,null,null,null,null,null,null,null,null,null,null,null,null,null,null,null,null,null,null,null,null,null,"Segundo nombre (si aplica)",null,null,null,null,null,null,null,null,null,null,null,null,null,null,null,null,null,null,null,null,null,null,null,null,null,null,"Primer apellido",null,null,null,null,null,null,null,null,null,null,null,null,null,null,null,null,null,null,null,null,null,null,null,null,null,null,"Segundo apellido (si aplica)"]
[]
[]
[]
[null,"Tipo PEP",null,null,null,null,null,null,null,null,null,null,null,null,null,null,null,null,null,null,null,null,null,null,null,null,null,null,null,null,null,null,null,null,null,null,null,null,null,null,null,null,null,"Fecha posesión",null,null,null,null,null,null,null,null,null,null,null,null,null,null,null,"Fecha vigencia",null,null,null,null,null,null,null,null,null,null,null,null,null,null,null,"Cargo"]
[]
[null,null,null,null,"No PEP",null,null,null,null,null,null,null,"PEP nacional",null,null,null,null,null,null,null,null,null,null,"PEP extranjero",null,null,null,null,null,null,null,null,null,null,null,null,null,null,null,null,null,null,null,"dd",null,null,null,"mm",null,null,null,"aaaa",null,null,null,null,null,null,null,"dd",null,null,null,"mm",null,null,null,"aaaa"]
[]
[]
[null,"Parentesco",null,null,null,null,null,null,null,null,null,null,null,null,null,"Tipo identificación",null,null,null,null,null,null,null,null,null,null,null,null,null,null,null,null,null,null,null,null,null,null,null,null,null,null,null,null,null,null,null,null,null,null,null,null,null,null,null,null,null,null,null,null,null,null,null,null,null,null,null,null,null,null,null,null,null,null,null,null,null,null,null,null,null,null,null,null,null,null,null,null,null,null,null,null,null,null,null,null,null,null,null,null,null,null,null,null,null,null,"N°. identificación"]
[]
[null,"Hermano",null,null,null,null,null,null,null,null,null,null,null,null,null,null,null,null,"CC",null,null,null,null,"CE",null,null,null,null,"TI",null,null,null,null,"Pasaporte",null,null,null,null,null,null,null,null,null,"Registro civil",null,null,null,null,null,null,null,null,null,null,"Carné diplomático",null,null,null,null,null,null,null,null,null,null,null,null,null,"Permiso de protección temporal"]
[]
[null,null,null,null,null,null,null,null,null,null,null,null,null,null,null,"Primer nombre",null,null,null,null,null,null,null,null,null,null,null,null,null,null,null,null,null,null,null,null,null,null,null,null,null,null,"Segundo nombre (si aplica)",null,null,null,null,null,null,null,null,null,null,null,null,null,null,null,null,null,null,null,null,null,null,null,null,null,null,"Primer apellido",null,null,null,null,null,null,null,null,null,null,null,null,null,null,null,null,null,null,null,null,null,null,null,null,null,null,"Segundo apellido (si aplica)"]
[]
[]
[]
[null,"Tipo PEP",null,null,null,null,null,null,null,null,null,null,null,null,null,null,null,null,null,null,null,null,null,null,null,null,null,null,null,null,null,null,null,null,null,null,null,null,null,null,null,null,null,"Fecha posesión",null,null,null,null,null,null,null,null,null,null,null,null,null,null,null,"Fecha vigencia",null,null,null,null,null,null,null,null,null,null,null,null,null,null,null,"Cargo"]
[]
[null,null,null,null,"No PEP",null,null,null,null,null,null,null,"PEP nacional",null,null,null,null,null,null,null,null,null,null,"PEP extranjero",null,null,null,null,null,null,null,null,null,null,null,null,null,null,null,null,null,null,null,"dd",null,null,null,"mm",null,null,null,"aaaa",null,null,null,null,null,null,null,"dd",null,null,null,"mm",null,null,null,"aaaa"]
[]
[]
[null,"Parentesco",null,null,null,null,null,null,null,null,null,null,null,null,null,"Tipo identificación",null,null,null,null,null,null,null,null,null,null,null,null,null,null,null,null,null,null,null,null,null,null,null,null,null,null,null,null,null,null,null,null,null,null,null,null,null,null,null,null,null,null,null,null,null,null,null,null,null,null,null,null,null,null,null,null,null,null,null,null,null,null,null,null,null,null,null,null,null,null,null,null,null,null,null,null,null,null,null,null,null,null,null,null,null,null,null,null,null,null,"N°. identificación"]
[]
[null,"Hermana",null,null,null,null,null,null,null,null,null,null,null,null,null,null,null,null,"CC",null,null,null,null,"CE",null,null,null,null,"TI",null,null,null,null,"Pasaporte",null,null,null,null,null,null,null,null,null,"Registro civil",null,null,null,null,null,null,null,null,null,null,"Carné diplomático",null,null,null,null,null,null,null,null,null,null,null,null,null,"Permiso de protección temporal"]
[]
[null,null,null,null,null,null,null,null,null,null,null,null,null,null,null,"Primer nombre",null,null,null,null,null,null,null,null,null,null,null,null,null,null,null,null,null,null,null,null,null,null,null,null,null,null,"Segundo nombre (si aplica)",null,null,null,null,null,null,null,null,null,null,null,null,null,null,null,null,null,null,null,null,null,null,null,null,null,null,"Primer apellido",null,null,null,null,null,null,null,null,null,null,null,null,null,null,null,null,null,null,null,null,null,null,null,null,null,null,"Segundo apellido (si aplica)"]
[]
[]
[]
[null,"Tipo PEP",null,null,null,null,null,null,null,null,null,null,null,null,null,null,null,null,null,null,null,null,null,null,null,null,null,null,null,null,null,null,null,null,null,null,null,null,null,null,null,null,null,"Fecha posesión",null,null,null,null,null,null,null,null,null,null,null,null,null,null,null,"Fecha vigencia",null,null,null,null,null,null,null,null,null,null,null,null,null,null,null,"Cargo"]
[]
[null,null,null,null,"No PEP",null,null,null,null,null,null,null,"PEP nacional",null,null,null,null,null,null,null,null,null,null,"PEP extranjero",null,null,null,null,null,null,null,null,null,null,null,null,null,null,null,null,null,null,null,"dd",null,null,null,"mm",null,null,null,"aaaa",null,null,null,null,null,null,null,"dd",null,null,null,"mm",null,null,null,"aaaa"]
[]
[]
[null,"Parentesco",null,null,null,null,null,null,null,null,null,null,null,null,null,"Tipo identificación",null,null,null,null,null,null,null,null,null,null,null,null,null,null,null,null,null,null,null,null,null,null,null,null,null,null,null,null,null,null,null,null,null,null,null,null,null,null,null,null,null,null,null,null,null,null,null,null,null,null,null,null,null,null,null,null,null,null,null,null,null,null,null,null,null,null,null,null,null,null,null,null,null,null,null,null,null,null,null,null,null,null,null,null,null,null,null,null,null,null,"N°. identificación"]
[]
[null,"Hermana",null,null,null,null,null,null,null,null,null,null,null,null,null,null,null,null,"CC",null,null,null,null,"CE",null,null,null,null,"TI",null,null,null,null,"Pasaporte",null,null,null,null,null,null,null,null,null,"Registro civil",null,null,null,null,null,null,null,null,null,null,"Carné diplomático",null,null,null,null,null,null,null,null,null,null,null,null,null,"Permiso de protección temporal"]
[]
[null,null,null,null,null,null,null,null,null,null,null,null,null,null,null,"Primer nombre",null,null,null,null,null,null,null,null,null,null,null,null,null,null,null,null,null,null,null,null,null,null,null,null,null,null,"Segundo nombre (si aplica)",null,null,null,null,null,null,null,null,null,null,null,null,null,null,null,null,null,null,null,null,null,null,null,null,null,null,"Primer apellido",null,null,null,null,null,null,null,null,null,null,null,null,null,null,null,null,null,null,null,null,null,null,null,null,null,null,"Segundo apellido (si aplica)"]
[]
[]
[]
[null,"Tipo PEP",null,null,null,null,null,null,null,null,null,null,null,null,null,null,null,null,null,null,null,null,null,null,null,null,null,null,null,null,null,null,null,null,null,null,null,null,null,null,null,null,null,"Fecha posesión",null,null,null,null,null,null,null,null,null,null,null,null,null,null,null,"Fecha vigencia",null,null,null,null,null,null,null,null,null,null,null,null,null,null,null,"Cargo"]
[]
[null,null,null,null,"No PEP",null,null,null,null,null,null,null,"PEP nacional",null,null,null,null,null,null,null,null,null,null,"PEP extranjero",null,null,null,null,null,null,null,null,null,null,null,null,null,null,null,null,null,null,null,"dd",null,null,null,"mm",null,null,null,"aaaa",null,null,null,null,null,null,null,"dd",null,null,null,"mm",null,null,null,"aaaa"]
[]
[]
[null,"Parentesco",null,null,null,null,null,null,null,null,null,null,null,null,null,"Tipo identificación",null,null,null,null,null,null,null,null,null,null,null,null,null,null,null,null,null,null,null,null,null,null,null,null,null,null,null,null,null,null,null,null,null,null,null,null,null,null,null,null,null,null,null,null,null,null,null,null,null,null,null,null,null,null,null,null,null,null,null,null,null,null,null,null,null,null,null,null,null,null,null,null,null,null,null,null,null,null,null,null,null,null,null,null,null,null,null,null,null,null,"N°. identificación"]
[]
[null,"Abuelo paterno",null,null,null,null,null,null,null,null,null,null,null,null,null,null,null,null,"CC",null,null,null,null,"CE",null,null,null,null,"TI",null,null,null,null,"Pasaporte",null,null,null,null,null,null,null,null,null,"Registro civil",null,null,null,null,null,null,null,null,null,null,"Carné diplomático",null,null,null,null,null,null,null,null,null,null,null,null,null,"Permiso de protección temporal"]
[]
[null,null,null,null,null,null,null,null,null,null,null,null,null,null,null,"Primer nombre",null,null,null,null,null,null,null,null,null,null,null,null,null,null,null,null,null,null,null,null,null,null,null,null,null,null,"Segundo nombre (si aplica)",null,null,null,null,null,null,null,null,null,null,null,null,null,null,null,null,null,null,null,null,null,null,null,null,null,null,"Primer apellido",null,null,null,null,null,null,null,null,null,null,null,null,null,null,null,null,null,null,null,null,null,null,null,null,null,null,"Segundo apellido (si aplica)"]
[]
[]
[]
[null,"Tipo PEP",null,null,null,null,null,null,null,null,null,null,null,null,null,null,null,null,null,null,null,null,null,null,null,null,null,null,null,null,null,null,null,null,null,null,null,null,null,null,null,null,null,"Fecha posesión",null,null,null,null,null,null,null,null,null,null,null,null,null,null,null,"Fecha vigencia",null,null,null,null,null,null,null,null,null,null,null,null,null,null,null,"Cargo"]
[]
[null,null,null,null,"No PEP",null,null,null,null,null,null,null,"PEP nacional",null,null,null,null,null,null,null,null,null,null,"PEP extranjero",null,null,null,null,null,null,null,null,null,null,null,null,null,null,null,null,null,null,null,"dd",null,null,null,"mm",null,null,null,"aaaa",null,null,null,null,null,null,null,"dd",null,null,null,"mm",null,null,null,"aaaa"]
[]
[]
[null,"Parentesco",null,null,null,null,null,null,null,null,null,null,null,null,null,"Tipo identificación",null,null,null,null,null,null,null,null,null,null,null,null,null,null,null,null,null,null,null,null,null,null,null,null,null,null,null,null,null,null,null,null,null,null,null,null,null,null,null,null,null,null,null,null,null,null,null,null,null,null,null,null,null,null,null,null,null,null,null,null,null,null,null,null,null,null,null,null,null,null,null,null,null,null,null,null,null,null,null,null,null,null,null,null,null,null,null,null,null,null,"N°. identificación"]
[]
[null,"Abuela paterna",null,null,null,null,null,null,null,null,null,null,null,null,null,null,null,null,"CC",null,null,null,null,"CE",null,null,null,null,"TI",null,null,null,null,"Pasaporte",null,null,null,null,null,null,null,null,null,"Registro civil",null,null,null,null,null,null,null,null,null,null,"Carné diplomático",null,null,null,null,null,null,null,null,null,null,null,null,null,"Permiso de protección temporal"]
[]
[null,null,null,null,null,null,null,null,null,null,null,null,null,null,null,"Primer nombre",null,null,null,null,null,null,null,null,null,null,null,null,null,null,null,null,null,null,null,null,null,null,null,null,null,null,"Segundo nombre (si aplica)",null,null,null,null,null,null,null,null,null,null,null,null,null,null,null,null,null,null,null,null,null,null,null,null,null,null,"Primer apellido",null,null,null,null,null,null,null,null,null,null,null,null,null,null,null,null,null,null,null,null,null,null,null,null,null,null,"Segundo apellido (si aplica)"]
[]
[]
[]
[null,"Tipo PEP",null,null,null,null,null,null,null,null,null,null,null,null,null,null,null,null,null,null,null,null,null,null,null,null,null,null,null,null,null,null,null,null,null,null,null,null,null,null,null,null,null,"Fecha posesión",null,null,null,null,null,null,null,null,null,null,null,null,null,null,null,"Fecha vigencia",null,null,null,null,null,null,null,null,null,null,null,null,null,null,null,"Cargo"]
[]
[null,null,null,null,"No PEP",null,null,null,null,null,null,null,"PEP nacional",null,null,null,null,null,null,null,null,null,null,"PEP extranjero",null,null,null,null,null,null,null,null,null,null,null,null,null,null,null,null,null,null,null,"dd",null,null,null,"mm",null,null,null,"aaaa",null,null,null,null,null,null,null,"dd",null,null,null,"mm",null,null,null,"aaaa"]
[]
[]
[null,"Parentesco",null,null,null,null,null,null,null,null,null,null,null,null,null,"Tipo identificación",null,null,null,null,null,null,null,null,null,null,null,null,null,null,null,null,null,null,null,null,null,null,null,null,null,null,null,null,null,null,null,null,null,null,null,null,null,null,null,null,null,null,null,null,null,null,null,null,null,null,null,null,null,null,null,null,null,null,null,null,null,null,null,null,null,null,null,null,null,null,null,null,null,null,null,null,null,null,null,null,null,null,null,null,null,null,null,null,null,null,"N°. identificación"]
[]
[null,"Abuelo materno",null,null,null,null,null,null,null,null,null,null,null,null,null,null,null,null,"CC",null,null,null,null,"CE",null,null,null,null,"TI",null,null,null,null,"Pasaporte",null,null,null,null,null,null,null,null,null,"Registro civil",null,null,null,null,null,null,null,null,null,null,"Carné diplomático",null,null,null,null,null,null,null,null,null,null,null,null,null,"Permiso de protección temporal"]
[]
[null,null,null,null,null,null,null,null,null,null,null,null,null,null,null,"Primer nombre",null,null,null,null,null,null,null,null,null,null,null,null,null,null,null,null,null,null,null,null,null,null,null,null,null,null,"Segundo nombre (si aplica)",null,null,null,null,null,null,null,null,null,null,null,null,null,null,null,null,null,null,null,null,null,null,null,null,null,null,"Primer apellido",null,null,null,null,null,null,null,null,null,null,null,null,null,null,null,null,null,null,null,null,null,null,null,null,null,null,"Segundo apellido (si aplica)"]
[]
[]
[]
[null,"Tipo PEP",null,null,null,null,null,null,null,null,null,null,null,null,null,null,null,null,null,null,null,null,null,null,null,null,null,null,null,null,null,null,null,null,null,null,null,null,null,null,null,null,null,"Fecha posesión",null,null,null,null,null,null,null,null,null,null,null,null,null,null,null,"Fecha vigencia",null,null,null,null,null,null,null,null,null,null,null,null,null,null,null,"Cargo"]
[]
[null,null,null,null,"No PEP",null,null,null,null,null,null,null,"PEP nacional",null,null,null,null,null,null,null,null,null,null,"PEP extranjero",null,null,null,null,null,null,null,null,null,null,null,null,null,null,null,null,null,null,null,"dd",null,null,null,"mm",null,null,null,"aaaa",null,null,null,null,null,null,null,"dd",null,null,null,"mm",null,null,null,"aaaa"]
[]
[]
[null,"Parentesco",null,null,null,null,null,null,null,null,null,null,null,null,null,"Tipo identificación",null,null,null,null,null,null,null,null,null,null,null,null,null,null,null,null,null,null,null,null,null,null,null,null,null,null,null,null,null,null,null,null,null,null,null,null,null,null,null,null,null,null,null,null,null,null,null,null,null,null,null,null,null,null,null,null,null,null,null,null,null,null,null,null,null,null,null,null,null,null,null,null,null,null,null,null,null,null,null,null,null,null,null,null,null,null,null,null,null,null,"N°. identificación"]
[]
[null,"Abuela materna",null,null,null,null,null,null,null,null,null,null,null,null,null,null,null,null,"CC",null,null,null,null,"CE",null,null,null,null,"TI",null,null,null,null,"Pasaporte",null,null,null,null,null,null,null,null,null,"Registro civil",null,null,null,null,null,null,null,null,null,null,"Carné diplomático",null,null,null,null,null,null,null,null,null,null,null,null,null,"Permiso de protección temporal"]
[]
[null,null,null,null,null,null,null,null,null,null,null,null,null,null,null,"Primer nombre",null,null,null,null,null,null,null,null,null,null,null,null,null,null,null,null,null,null,null,null,null,null,null,null,null,null,"Segundo nombre (si aplica)",null,null,null,null,null,null,null,null,null,null,null,null,null,null,null,null,null,null,null,null,null,null,null,null,null,null,"Primer apellido",null,null,null,null,null,null,null,null,null,null,null,null,null,null,null,null,null,null,null,null,null,null,null,null,null,null,"Segundo apellido (si aplica)"]
[]
[]
[]
[null,"Tipo PEP",null,null,null,null,null,null,null,null,null,null,null,null,null,null,null,null,null,null,null,null,null,null,null,null,null,null,null,null,null,null,null,null,null,null,null,null,null,null,null,null,null,"Fecha posesión",null,null,null,null,null,null,null,null,null,null,null,null,null,null,null,"Fecha vigencia",null,null,null,null,null,null,null,null,null,null,null,null,null,null,null,"Cargo"]
[]
[null,null,null,null,"No PEP",null,null,null,null,null,null,null,"PEP nacional",null,null,null,null,null,null,null,null,null,null,"PEP extranjero",null,null,null,null,null,null,null,null,null,null,null,null,null,null,null,null,null,null,null,"dd",null,null,null,"mm",null,null,null,"aaaa",null,null,null,null,null,null,null,"dd",null,null,null,"mm",null,null,null,"aaaa"]
[]
[]
[null,"Parentesco",null,null,null,null,null,null,null,null,null,null,null,null,null,"Tipo identificación",null,null,null,null,null,null,null,null,null,null,null,null,null,null,null,null,null,null,null,null,null,null,null,null,null,null,null,null,null,null,null,null,null,null,null,null,null,null,null,null,null,null,null,null,null,null,null,null,null,null,null,null,null,null,null,null,null,null,null,null,null,null,null,null,null,null,null,null,null,null,null,null,null,null,null,null,null,null,null,null,null,null,null,null,null,null,null,null,null,null,"N°. identificación"]
[]
[null,"Suegro",null,null,null,null,null,null,null,null,null,null,null,null,null,null,null,null,"CC",null,null,null,null,"CE",null,null,null,null,"TI",null,null,null,null,"Pasaporte",null,null,null,null,null,null,null,null,null,"Registro civil",null,null,null,null,null,null,null,null,null,null,"Carné diplomático",null,null,null,null,null,null,null,null,null,null,null,null,null,"Permiso de protección temporal"]
[]
[null,null,null,null,null,null,null,null,null,null,null,null,null,null,null,"Primer nombre",null,null,null,null,null,null,null,null,null,null,null,null,null,null,null,null,null,null,null,null,null,null,null,null,null,null,"Segundo nombre (si aplica)",null,null,null,null,null,null,null,null,null,null,null,null,null,null,null,null,null,null,null,null,null,null,null,null,null,null,"Primer apellido",null,null,null,null,null,null,null,null,null,null,null,null,null,null,null,null,null,null,null,null,null,null,null,null,null,null,"Segundo apellido (si aplica)"]
[]
[]
[]
[null,"Tipo PEP",null,null,null,null,null,null,null,null,null,null,null,null,null,null,null,null,null,null,null,null,null,null,null,null,null,null,null,null,null,null,null,null,null,null,null,null,null,null,null,null,null,"Fecha posesión",null,null,null,null,null,null,null,null,null,null,null,null,null,null,null,"Fecha vigencia",null,null,null,null,null,null,null,null,null,null,null,null,null,null,null,"Cargo"]
[]
[null,null,null,null,"No PEP",null,null,null,null,null,null,null,"PEP nacional",null,null,null,null,null,null,null,null,null,null,"PEP extranjero",null,null,null,null,null,null,null,null,null,null,null,null,null,null,null,null,null,null,null,"dd",null,null,null,"mm",null,null,null,"aaaa",null,null,null,null,null,null,null,"dd",null,null,null,"mm",null,null,null,"aaaa"]
[]
[]
[null,"Parentesco",null,null,null,null,null,null,null,null,null,null,null,null,null,"Tipo identificación",null,null,null,null,null,null,null,null,null,null,null,null,null,null,null,null,null,null,null,null,null,null,null,null,null,null,null,null,null,null,null,null,null,null,null,null,null,null,null,null,null,null,null,null,null,null,null,null,null,null,null,null,null,null,null,null,null,null,null,null,null,null,null,null,null,null,null,null,null,null,null,null,null,null,null,null,null,null,null,null,null,null,null,null,null,null,null,null,null,null,"N°. identificación"]
[]
[null,"Suegra",null,null,null,null,null,null,null,null,null,null,null,null,null,null,null,null,"CC",null,null,null,null,"CE",null,null,null,null,"TI",null,null,null,null,"Pasaporte",null,null,null,null,null,null,null,null,null,"Registro civil",null,null,null,null,null,null,null,null,null,null,"Carné diplomático",null,null,null,null,null,null,null,null,null,null,null,null,null,"Permiso de protección temporal"]
[]
[null,null,null,null,null,null,null,null,null,null,null,null,null,null,null,"Primer nombre",null,null,null,null,null,null,null,null,null,null,null,null,null,null,null,null,null,null,null,null,null,null,null,null,null,null,"Segundo nombre (si aplica)",null,null,null,null,null,null,null,null,null,null,null,null,null,null,null,null,null,null,null,null,null,null,null,null,null,null,"Primer apellido",null,null,null,null,null,null,null,null,null,null,null,null,null,null,null,null,null,null,null,null,null,null,null,null,null,null,"Segundo apellido (si aplica)"]
[]
[]
[]
[null,"Tipo PEP",null,null,null,null,null,null,null,null,null,null,null,null,null,null,null,null,null,null,null,null,null,null,null,null,null,null,null,null,null,null,null,null,null,null,null,null,null,null,null,null,null,"Fecha posesión",null,null,null,null,null,null,null,null,null,null,null,null,null,null,null,"Fecha vigencia",null,null,null,null,null,null,null,null,null,null,null,null,null,null,null,"Cargo"]
[]
[null,null,null,null,"No PEP",null,null,null,null,null,null,null,"PEP nacional",null,null,null,null,null,null,null,null,null,null,"PEP extranjero",null,null,null,null,null,null,null,null,null,null,null,null,null,null,null,null,null,null,null,"dd",null,null,null,"mm",null,null,null,"aaaa",null,null,null,null,null,null,null,"dd",null,null,null,"mm",null,null,null,"aaaa"]
[]
[]
[null,"DATOS LABORALES"]
[]
[]
[null,"Fecha ingreso",null,null,null,null,null,null,null,null,null,null,null,null,null,null,null,"Nombre empleador",null,null,null,null,null,null,null,null,null,null,null,null,null,null,null,null,null,null,null,null,null,null,null,null,null,null,null,null,null,null,null,null,null,null,null,null,null,null,null,null,null,null,null,null,null,null,null,null,null,null,null,null,null,null,null,null,null,null,null,null,null,null,null,null,null,null,null,null,null,null,null,null,null,null,"Cargo"]
[]
[null,"dd",null,null,null,"mm",null,null,null,"aaaa"]
[]
[null,"Tipo vinculación/contrato",null,null,null,null,null,null,null,null,null,null,null,null,null,null,null,null,null,null,null,null,null,null,null,null,null,null,null,null,null,null,null,null,null,null,null,null,null,null,null,null,null,null,null,null,null,null,null,null,null,null,null,null,null,null,null,null,null,null,null,null,null,null,null,null,null,null,null,null,null,null,null,null,null,null,null,null,null,null,null,null,null,null,null,null,null,null,null,null,null,null,null,null,null,null,"Salario"]
[]
[null,null,null,null,"Fijo",null,null,null,null,null,"Indefinido",null,null,null,null,null,null,null,null,"Prestación de servicios",null,null,null,null,null,null,null,null,null,null,null,null,null,null,null,null,"Labor contratada",null,null,null,null,null,null,null,null,null,null,null,null,"Otro:"]
[]
[null,"Dirección empresa/oficina (especificar N°. de local u oficina, barrio) ",null,null,null,null,null,null,null,null,null,null,null,null,null,null,null,null,null,null,null,null,null,null,null,null,null,null,null,null,null,null,null,null,null,null,null,null,null,null,null,null,null,null,null,null,null,null,null,null,null,null,null,null,null,null,null,null,null,null,null,null,null,null,null,null,"Ciudad, departamento, país",null,null,null,null,null,null,null,null,null,null,null,null,null,null,null,null,null,null,null,null,null,null,null,null,null,null,null,null,null,null,"Teléfono",null,null,null,null,null,null,null,null,null,null,null,null,null,"Extensión"]
[]
[]
[]
[]
[null,"ESTABLECIMIENTO DE COMERCIO PERSONA NATURAL"]
[]
[]
[null,"Nombre comercial y N°. mercantil",null,null,null,null,null,null,null,null,null,null,null,null,null,null,null,null,null,null,null,null,null,null,null,null,null,null,null,null,null,null,null,null,null,null,null,null,null,null,null,null,null,null,null,null,null,null,null,null,null,null,null,null,null,null,null,null,null,null,null,null,null,null,null,null,null,null,null,null,null,null,null,null,null,null,null,null,null,null,null,null,null,null,null,null,null,null,null,null,null,null,null,null,null,null,null,null,null,null,null,null,null,null,null,null,"Código CIIU"]
[]
[]
[]
[null,"Actividad económica"]
[]
[null,null,null,null,"Agroprecuario",null,null,null,null,null,null,null,null,null,null,null,"Comercio",null,null,null,null,null,null,null,null,"Comunicaciones",null,null,null,null,null,null,null,null,null,null,null,null,null,"Construcción",null,null,null,null,null,null,null,null,null,null,null,"Financiero",null,null,null,null,null,null,null,null,null,"Insdustrial/Producción",null,null,null,null,null,null,null,null,null,null,null,null,null,null,null,null,"Minero",null,null,null,null,null,null,null,"Servicios",null,null,null,null,null,null,null,null,"Transporte"]
[]
[null,"Tipo identificación",null,null,null,null,null,null,null,null,null,null,null,null,null,null,null,null,null,null,null,null,null,null,null,null,null,null,null,null,null,null,null,null,null,null,null,null,null,null,null,null,null,null,null,null,null,null,null,null,null,null,null,null,null,null,null,null,null,null,null,null,null,null,null,null,null,null,null,null,null,null,null,null,null,null,null,null,null,null,null,null,null,null,null,null,null,null,null,null,null,null,"N°. identificación",null,null,null,null,null,null,null,null,null,null,null,null,null,"Teléfono"]
[]
[null,null,null,null,"RUT",null,null,null,null,null,"CC",null,null,null,null,"CE",null,null,null,null,"TI",null,null,null,null,"Pasaporte",null,null,null,null,null,null,null,null,null,"Registro civil",null,null,null,null,null,null,null,null,null,null,"Carné diplomático",null,null,null,null,null,null,null,null,null,null,null,null,null,"Permiso de protección temporal"]
[]
[null,"Dirección (especificar N°. de local u oficina, barrio) ",null,null,null,null,null,null,null,null,null,null,null,null,null,null,null,null,null,null,null,null,null,null,null,null,null,null,null,null,null,null,null,null,null,null,null,null,null,null,null,null,null,null,null,null,null,null,"País",null,null,null,null,null,null,null,null,null,null,null,null,null,null,null,null,null,null,null,null,null,null,null,"Departamento",null,null,null,null,null,null,null,null,null,null,null,null,null,null,null,null,null,null,null,null,null,null,null,"Ciudad"]
[]
[]
[]
[]
[null,"DATOS FINANCIEROS EN PESOS"]
[]
[]
[null,"Ingresos/ventas mensuales",null,null,null,null,null,null,null,null,null,null,null,null,null,null,null,null,null,null,null,null,null,null,null,"Descricpión origen de fondos (detalle ocupación, oficio, profesión, actividad, etc.)",null,null,null,null,null,null,null,null,null,null,null,null,null,null,null,null,null,null,null,null,null,null,null,null,null,null,null,null,null,null,null,null,null,null,null,null,null,null,null,null,null,null,null,null,null,null,null,null,null,null,null,null,null,null,null,null,null,null,null,null,null,null,null,null,null,null,null,null,null,null,"Total activos (bienes, títulos valor...)"]
[]
[]
[]
[null,"Otros ingresos mensuales",null,null,null,null,null,null,null,null,null,null,null,null,null,null,null,null,null,null,null,null,null,null,null,"Descricpión de otros ingresos",null,null,null,null,null,null,null,null,null,null,null,null,null,null,null,null,null,null,null,null,null,null,null,null,null,null,null,null,null,null,null,null,null,null,null,null,null,null,null,null,null,null,null,null,null,null,null,null,null,null,null,null,null,null,null,null,null,null,null,null,null,null,null,null,null,null,null,null,null,null,"Total pasivos (deudas)"]
[]
[]
[]
[null,"Egresos mensuales",null,null,null,null,null,null,null,null,null,null,null,null,null,null,null,null,null,null,null,null,null,null,null,"¿Tiene productos de fiducia?:",null,null,null,null,null,null,null,null,null,null,null,null,null,null,null,null,null,null,null,null,null,null,null,null,null,null,null,null,null,"Descripción clase recursos e identificación bien entregado (fiducia)"]
[null,null,null,null,null,null,null,null,null,null,null,null,null,null,null,null,null,null,null,null,null,null,null,null,null,null,null,null,null,null,null,null,null,null,null,null,null,null,null,null,null,null,null,null,null,null,null,null,"Sí",null,null,null,"No"]
[]
[]
[]
[null,"NEGOCIOS INTERNACIONALES"]
[]
[]
[null,"¿Realiza negocios internacionales?:",null,null,null,null,null,null,null,null,null,null,null,null,null,null,null,null,null,null,null,null,null,null,null,"Sí",null,null,null,"No"]
[]
[null,"Tipo de negocio u operaciones en Moneda Extranjera que normalmente realiza:",null,null,null,null,null,null,null,null,null,null,null,null,null,null,null,null,null,null,null,null,null,null,null,null,null,null,null,null,null,null,null,null,null,null,null,null,null,null,null,null,null,null,"Exportación",null,null,null,null,null,null,null,null,null,"Importación",null,null,null,null,null,null,null,null,null,"Inversiones",null,null,null,null,null,null,null,null,null,"Pago de servicio",null,null,null,null,null,null,null,null,null,null,null,null,"Préstamos en M.E.",null,null,null,null,null,null,null,null,null,null,null,null,null,"Otro:"]
[]
[]
[null,"Tipo producto financiero",null,null,null,null,null,null,null,null,null,null,null,null,null,null,null,null,null,null,null,null,null,null,null,"Entidad producto",null,null,null,null,null,null,null,null,null,null,null,null,null,null,null,null,null,null,null,null,null,null,null,"Número producto",null,null,null,null,null,null,null,null,null,null,null,null,null,null,null,null,null,null,null,null,null,null,null,"Moneda producto",null,null,null,null,null,null,null,null,null,null,null,null,null,null,null,null,null,null,null,null,null,null,null,"Monto/saldo actual M.E."]
[]
[]
[]
[null,"País producto",null,null,null,null,null,null,null,null,null,null,null,null,null,null,null,null,null,null,null,null,null,null,null,"Ciudad producto"]
[]
[]
[]
[]
[null,"NIVEL ESTIMADO DE TRANSACCIONALIDAD DEL CLIENTE"]
[]
[]
[null,null,null,null,null,null,null,null,null,null,null,null,null,null,null,null,null,null,null,null,null,null,null,null,null,null,null,null,null,null,null,null,null,null,null,null,"Retiros mensuales (débitos)",null,null,null,null,null,null,null,null,null,null,null,null,null,null,null,null,null,null,null,null,null,null,null,"Depósitos mensuales (créditos)"]
[]
[]
[]
[]
[null,"RELACIONADOS PERSONA NATURAL"]
[]
[]
[null,"Tipo de relación",null,null,null,null,null,null,null,null,null,null,null,null,null,null,null,null,null,null,null,null,null,null,null,null,null,null,null,null,null,null,null,null,null,null,null,null,null,null,null,null,null,null,null,null,null,null,null,null,null,null,"Nombres y apellidos",null,null,null,null,null,null,null,null,null,null,null,null,null,null,null,null,null,null,null,null,null,null,null,null,null,null,null,null,null,null,null,null,null,null,null,null,null,null,null,null,null,null,null,null,null,null,null,"Tipo identificación"]
[]
[null,null,null,null,"Sociedad conyugal, de hecho o derecho",null,null,null,null,null,null,null,null,null,null,null,null,null,null,null,null,null,null,null,null,null,null,null,null,null,null,"Tutor o apoderado"]
[]
[null,"N°. identificación",null,null,null,null,null,null,null,null,null,null,null,null,null,"Dato de contacto (celular, correo electrónico, dirección…)"]
[]
[]
[]
[]
[null,"REFERENCIA"]
[]
[]
[null,"Tipo de referencia",null,null,null,null,null,null,null,null,null,null,null,null,null,null,null,null,null,null,null,null,null,null,null,null,null,null,"Nombres y apellidos",null,null,null,null,null,null,null,null,null,null,null,null,null,null,null,null,null,null,null,null,null,null,null,null,null,null,null,null,null,null,null,null,null,null,null,null,null,null,null,null,null,null,null,null,null,null,null,"Teléfono",null,null,null,null,null,null,null,null,null,null,null,null,null,"Ciudad, departamento, país"]
[]
[null,null,null,null,"Personal",null,null,null,null,null,null,null,null,"Familiar",null,null,null,null,null,null,null,"Comercial"]
[]
[]
[null,"AUTORIZACIONES Y DECLARACIONES"]
[]
[]
[null,{"$cut":{"chars":20976,"head":"De acuerdo con lo establecido por la ley y sus reglamentos, la Superintendencia Financiera de Colombia y demás autoridades pertinentes declaro que:\n1. SUMINISTRO Y ACTUALIZACIÓN DE LA INFORMACIÓN. EL CLIENTE se obliga con EL BANCO DE OCCIDENTE / FIDUCIARIA DE OCCIDENTE S.A. (en adelante “LAS ENTIDADES”) a entregar información veraz y verificable y a actualizar su información personal, comercial y financiera, por lo menos una (1) vez al año, o cada vez que así lo soliciten LAS ENTIDADES, suministrando la totalidad de los soportes documentales exigidos. El incumplimiento de esta obligación, faculta a LAS ENTIDADES para terminar de manera inmediata y unilateral cualquier tipo de relación que tenga con EL CLIENTE.\n2. DECLARACIONES DE ORIGEN DE FONDOS Y/O BIENES. Yo, identificado con el nombre y documento de identidad expedidos en el lugar y fecha establecidos, tal como lo he diligenciado en este documento, obrando en nombre propio, de manera voluntaria y dando certeza que todo lo aquí consignado es cierto, realizo la siguiente declaración de origen de fondos y/o bienes al LAS ENTIDADES., con el propósito de dar cumplimiento a las disposiciones legales: A. El origen de los dineros que deposito en mi cuenta y demás operaciones que tramito a través de LAS ENTIDADES, proceden del giro ordinario de actividades lícitas.B. No admitiré que terceros efectúen depósitos en mis cuentas con fondos provenientes de actividades ilícitas contempladas en el Código Penal Colombiano o en cualquier norma que lo modifique o adicione, ni efectuaré transacciones destinadas a tales actividades o a favor de personas relacionadas con las mismas.C. Autorizo saldar las cuentas y depósitos que mantenga en esta institución, en el caso de infracción de cualquiera de los numerales contenidos en este documento, eximiendo a la Entidad de toda responsabilidad que se derive por información errónea, falsa e inexacta que hubiere proporcionado.\n3. AUTORIZACIÓN PARA LA CONSULTA, REPORTE Y PROCESAMIENTO DE DATOS PERSONALES CREDITICIOS, FINANCIEROS, COMERCIALES, DE SERVICIOS Y DE TERCEROS PAISES A LOS OPERADORES DE INFORMACIÓN Y A CUALQUIER OTRA ENTIDAD PÚBLICA O PRIVADA QUE HAGA SUS VECES. En mi calidad de titular de información, actuando libre y voluntariamente, autorizo de manera expresa e irrevocable a LAS ENTIDADES, o a quien represente sus derechos, a consultar, solicitar, suministrar reportar, procesar y divulgar toda la información que se refiera a mi comportamiento crediticio, financiero, comercial, de servicios y de terceros países de la misma naturaleza, a los operadores de información o a cualquier otra entidad pública o privada que administre o maneje bases de datos. Igualmente, autorizo irrevocablemente a LAS ENTIDADES a compartir con las filiales del Banco la información aquí suministrada así como los documentos aportados, cuando las mismas los soliciten para vinculación a sus productos. Conozco que el alcance de esta autorización implica que el comportamiento frente a mis obligaciones será registrado con el objeto de suministrar información suficiente y adecuada al mercado sobre el estado de mis obligaciones financieras, comerciales, crediticias, de servicios y la proveniente de terceros países de la misma naturaleza. En consecuencia, quienes se encuentren afiliados y/o tengan acceso a los operadores de información  o a cualquier otra entidad pública o privada que administre o maneje bases de datos podrán conocer esta información, de conformidad con la legislación y jurisprudencia aplicable. La información podrá ser igualmente utilizada para efectos estadísticos, evaluación de riesgo, y gestión de cobranza. Mis derechos y obligaciones así como la permanencia de mi información en las bases de datos corresponden a lo determinado por el ordenamiento jurídico aplicable del cual, por ser de carácter público, estoy enterado.\nEn caso de que, en el futuro, el autorizado y sus filiales  en este documento efectúe(n), a favor de un tercero, una venta de cartera o una cesión a cualquier título de las obligaciones y/o productos a mi cargo, los efectos de la presen"}}]
[]
[]
[]
[]
[]
[]
[]
[]
[]
[]
[]
[]
[]
[]
[]
[]
[]
[]
[]
[]
[]
[]
[]
[]
[]
[]
[]
[]
[]
[]
[]
[]
[]
[]
[]
[]
[]
[]
[]
[]
[]
[]
[]
[]
[]
[]
[]
[]
[]
[]
[]
[]
[]
[]
[]
[]
[]
[]
[]
[]
[]
[]
[]
[]
[]
[]
[]
[]
[]
[]
[]
[]
[]
[]
[]
[]
[]
[]
[]
[]
[]
[]
[]
[]
[]
[]
[]
[]
[]
[]
[]
[]
[]
[null,null,"Firma cliente:"]
[]
[]
[]
[]
[]
[]
[null,null,"N°. identificación:",null,null,null,null,null,null,null,null,null,null,null,null,null,null,null,null,null,null,null,null,null,null,null,null,null,null,null,null,null,null,null,null,null,null,null,null,null,null,null,null,null,null,null,null,null,null,null,null,"Índice derecho"]
[]
[]
[]
[null,"USO EXCLUSIVO DEL BANCO/FIDUCIARIA"]
[]
[]
[null,"ENTREVISTA O VISITA/CONCEPTO"]
[]
[]
[null,"Resultado entrevista o visita/concepto cliente"]
[]
[]
[]
[]
[]
[]
[]
[]
[]
[]
[]
[null,"Fecha resultado",null,null,null,null,null,null,null,null,null,null,null,null,null,null,null,"Nombres y apellidos (quien entrevistas y vincula)",null,null,null,null,null,null,null,null,null,null,null,null,null,null,null,null,null,null,null,null,null,null,null,null,null,null,null,null,null,null,null,null,null,null,null,null,null,null,null,null,null,null,null,null,null,null,null,null,null,null,null,null,null,null,null,null,null,null,null,null,null,null,null,null,null,null,null,null,"N°. cédula",null,null,null,null,null,null,null,null,null,null,null,null,null,"Nombre segmento de banca"]
[]
[null,"dd",null,null,null,"mm",null,null,null,"aaaa"]
[]
[null,"Hora",null,null,null,null,null,null,null,null,null,null,null,null,null,null,null,"Nombres y apellidos (quien verifica información comercial)",null,null,null,null,null,null,null,null,null,null,null,null,null,null,null,null,null,null,null,null,null,null,null,null,null,null,null,null,null,null,null,null,null,null,null,null,null,null,null,null,null,null,null,null,null,null,null,null,null,null,null,null,null,null,null,null,null,null,null,null,null,null,null,null,null,null,null,null,"N°. cédula",null,null,null,null,null,null,null,null,null,null,null,null,null,"N°. biometría"]
[]
[null,"hh:mm AM/PM"]
[]
[]
[]
[]
[]
[]
[]
[]
[]
[]
[]
[]
[]
[]
[]
[]
[]
[]
[]
[]
[]
[]
[]
[]
[]
[]
[]
[]
[]
[null,"Cargos PEP",null,null,null,null,null,null,null,null,null,null,null,null,null,null,null,null,null,null,null,null,null,null,null,null,"Tipos PEP",null,null,null,null,null,null,null,null,null,null,null,null,"Boolean",null,null,null,null,null,null,null,"Tipo identificación",null,null,null,null,null,null,null,null,null,null,null,null,null,null,null,null,null,null,null,null,null,null,null,"Franquicia",null,null,null,null,null,null,null,null,null,null,null,null,null,null,null,null,null,null,null,null,null,null,null,null,"Fondo de inversión","#1","#2","#3"]
[null,"Alcalde",null,null,null,null,null,null,null,null,null,null,null,null,null,null,null,null,null,null,null,null,null,null,null,null,"No PEP",null,null,null,null,null,null,null,null,null,null,null,null,"Sí",null,null,null,null,null,null,null,"CC",null,null,null,null,null,null,null,null,null,null,null,null,null,null,null,null,null,null,null,null,null,null,null,"MasterCard- Credencial Joven",null,null,null,null,null,null,null,null,null,null,null,null,null,null,null,null,null,null,null,null,null,null,null,null,"Occirenta",1,0,0]
[null,"Auditor General de la Nación",null,null,null,null,null,null,null,null,null,null,null,null,null,null,null,null,null,null,null,null,null,null,null,null,"PEP Nacional",null,null,null,null,null,null,null,null,null,null,null,null,"No",null,null,null,null,null,null,null,"CE",null,null,null,null,null,null,null,null,null,null,null,null,null,null,null,null,null,null,null,null,null,null,null,"MasterCard- Credencial Clásica",null,null,null,null,null,null,null,null,null,null,null,null,null,null,null,null,null,null,null,null,null,null,null,null,"Avanza Renta Fija",1,0,7]
[null,"Autorizador del Gasto Público",null,null,null,null,null,null,null,null,null,null,null,null,null,null,null,null,null,null,null,null,null,null,null,null,"PEP Extranjero",null,null,null,null,null,null,null,null,null,null,null,null,null,null,null,null,null,null,null,null,"TI",null,null,null,null,null,null,null,null,null,null,null,null,null,null,null,null,null,null,null,null,null,null,null,"MasterCard- Credencial Gold",null,null,null,null,null,null,null,null,null,null,null,null,null,null,null,null,null,null,null,null,null,null,null,null,"Occitesoros",1,1,0]
[null,"Codirector Banco República",null,null,null,null,null,null,null,null,null,null,null,null,null,null,null,null,null,null,null,null,null,null,null,null,null,null,null,null,null,null,null,null,null,null,null,null,null,null,null,null,null,null,null,null,null,"Pasaporte",null,null,null,null,null,null,null,null,null,null,null,null,null,null,null,null,null,null,null,null,null,null,null,"MasterCard- Credencial Platinum",null,null,null,null,null,null,null,null,null,null,null,null,null,null,null,null,null,null,null,null,null,null,null,null,"Renta Fija Dinámica",1,0,3]
[null,"Comisionado Nal Servicio Civil",null,null,null,null,null,null,null,null,null,null,null,null,null,null,null,null,null,null,null,null,null,null,null,null,null,null,null,null,null,null,null,null,null,null,null,null,null,null,null,null,null,null,null,null,null,"Registro civil",null,null,null,null,null,null,null,null,null,null,null,null,null,null,null,null,null,null,null,null,null,null,null,"MasterCard- Credencial Black",null,null,null,null,null,null,null,null,null,null,null,null,null,null,null,null,null,null,null,null,null,null,null,null,"Renta Fija Recurrente",1,1,2]
[null,"Concejal",null,null,null,null,null,null,null,null,null,null,null,null,null,null,null,null,null,null,null,null,null,null,null,null,null,null,null,null,null,null,null,null,null,null,null,null,null,null,null,null,null,null,null,null,null,"Carné diplomático",null,null,null,null,null,null,null,null,null,null,null,null,null,null,null,null,null,null,null,null,null,null,null,"Visa- Credencial Clásica",null,null,null,null,null,null,null,null,null,null,null,null,null,null,null,null,null,null,null,null,null,null,null,null,"Balanceado Internacional",1,0,4]
[null,"Consejero Dpto Administrativo",null,null,null,null,null,null,null,null,null,null,null,null,null,null,null,null,null,null,null,null,null,null,null,null,null,null,null,null,null,null,null,null,null,null,null,null,null,null,null,null,null,null,null,null,null,"Permiso de protección temporal",null,null,null,null,null,null,null,null,null,null,null,null,null,null,null,null,null,null,null,null,null,null,null,"Visa- Credencial Gold",null,null,null,null,null,null,null,null,null,null,null,null,null,null,null,null,null,null,null,null,null,null,null,null,"Meta Planeada",1,0,5]
[null,"Contador General de la Nación",null,null,null,null,null,null,null,null,null,null,null,null,null,null,null,null,null,null,null,null,null,null,null,null,null,null,null,null,null,null,null,null,null,null,null,null,null,null,null,null,null,null,null,null,null,null,null,null,null,null,null,null,null,null,null,null,null,null,null,null,null,null,null,null,null,null,null,null,null,"Visa- Credencial Platinum",null,null,null,null,null,null,null,null,null,null,null,null,null,null,null,null,null,null,null,null,null,null,null,null,"Meta Estratégica",1,0,9]
[null,"Contralor delegado",null,null,null,null,null,null,null,null,null,null,null,null,null,null,null,null,null,null,null,null,null,null,null,null,null,null,null,null,null,null,null,null,null,null,null,null,null,null,null,null,null,null,null,null,null,null,null,null,null,null,null,null,null,null,null,null,null,null,null,null,null,null,null,null,null,null,null,null,null,"Visa- Credencial Infinite",null,null,null,null,null,null,null,null,null,null,null,null,null,null,null,null,null,null,null,null,null,null,null,null,"Meta Decidida",1,1,1]
[null,"Contralor Gral de la República",null,null,null,null,null,null,null,null,null,null,null,null,null,null,null,null,null,null,null,null,null,null,null,null,null,null,null,null,null,null,null,null,null,null,null,null,null,null,null,null,null,null,null,null,null,null,null,null,null,null,null,null,null,null,null,null,null,null,null,null,null,null,null,null,null,null,null,null,null,"Visa- Credencial Mascotas"]
[null,"Contralor Territorial",null,null,null,null,null,null,null,null,null,null,null,null,null,null,null,null,null,null,null,null,null,null,null,null,null,null,null,null,null,null,null,null,null,null,null,null,null,null,null,null,null,null,null,null,null,null,null,null,null,null,null,null,null,null,null,null,null,null,null,null,null,null,null,null,null,null,null,null,null,"Visa- Credencial Free"]
[null,"Curador Urbano",null,null,null,null,null,null,null,null,null,null,null,null,null,null,null,null,null,null,null,null,null,null,null,null,null,null,null,null,null,null,null,null,null,null,null,null,null,null,null,null,null,null,null,null,null,null,null,null,null,null,null,null,null,null,null,null,null,null,null,null,null,null,null,null,null,null,null,null,null,"Unicef -Marca Compartida"]
[null,"Defensor del Pueblo",null,null,null,null,null,null,null,null,null,null,null,null,null,null,null,null,null,null,null,null,null,null,null,null,null,null,null,null,null,null,null,null,null,null,null,null,null,null,null,null,null,null,null,null,null,null,null,null,null,null,null,null,null,null,null,null,null,null,null,null,null,null,null,null,null,null,null,null,null,"LATAMPASS Clásica "]
[null,"Defensor Delegado",null,null,null,null,null,null,null,null,null,null,null,null,null,null,null,null,null,null,null,null,null,null,null,null,null,null,null,null,null,null,null,null,null,null,null,null,null,null,null,null,null,null,null,null,null,null,null,null,null,null,null,null,null,null,null,null,null,null,null,null,null,null,null,null,null,null,null,null,null,"LATAMPASS Oro"]
[null,"Delegado Fiscalía Gral Nación",null,null,null,null,null,null,null,null,null,null,null,null,null,null,null,null,null,null,null,null,null,null,null,null,null,null,null,null,null,null,null,null,null,null,null,null,null,null,null,null,null,null,null,null,null,null,null,null,null,null,null,null,null,null,null,null,null,null,null,null,null,null,null,null,null,null,null,null,null,"LATAMPASS Platinum"]
[null,"Diputado",null,null,null,null,null,null,null,null,null,null,null,null,null,null,null,null,null,null,null,null,null,null,null,null,null,null,null,null,null,null,null,null,null,null,null,null,null,null,null,null,null,null,null,null,null,null,null,null,null,null,null,null,null,null,null,null,null,null,null,null,null,null,null,null,null,null,null,null,null,"LATAMPASS Signature"]
[null,"Director Administrativo",null,null,null,null,null,null,null,null,null,null,null,null,null,null,null,null,null,null,null,null,null,null,null,null,null,null,null,null,null,null,null,null,null,null,null,null,null,null,null,null,null,null,null,null,null,null,null,null,null,null,null,null,null,null,null,null,null,null,null,null,null,null,null,null,null,null,null,null,null,"LATAMPASS Priority Pass"]
[null,"Dir Empresas Pub Servicios ESP",null,null,null,null,null,null,null,null,null,null,null,null,null,null,null,null,null,null,null,null,null,null,null,null,null,null,null,null,null,null,null,null,null,null,null,null,null,null,null,null,null,null,null,null,null,null,null,null,null,null,null,null,null,null,null,null,null,null,null,null,null,null,null,null,null,null,null,null,null,"Centro Comercial Santa Fé"]
[null,"Dir Financiero EICE "]
[null,"Dir Financiero ESE"]
[null,"Embajador"]
[null,"Fideicomitente con Administración de Recursos Públicos"]
[null,"Fiscal General de la Nación"]
[null,"General de Fuerzas Militares"]
[null,"General Policia Nacional"]
[null,"Gerente EICE "]
[null,"Gerente  ESP"]
[null,"Gerente ESE"]
[null,"Gerente UAE"]
[null,"Gobernador"]
[null,"Inspector de Policía "]
[null,"Juez de la República"]
[null,"Mag Aux Altas Cortes"]
[null,"Magistrado de Altas Cortes"]
[null,"Mag Consejo Nal Electoral"]
[null,"Magistrado de Tribunales"]
[null,"Ministro"]
[null,"Notario"]
[null,"Oficial de Fuerzas Militares"]
[null,"Oficial de Policia Nacional"]
[null,"Ordenador del Gasto"]
[null,"Presidente de la República"]
[null,"Presidente General"]
[null,"Procurador Delegado"]
[null,"Procurador Gral de la Nación"]
[null,"Registrador Delegado"]
[null,"Registrador Nal Estado Civil"]
[null,"Representante a la Cámara"]
[null,"Rep Legal Partido/Mov Político"]
[null,"Secr. comisión Constitucional"]
[null,"Secretario General de Alcaldía"]
[null,"Secr. Gral Consejo Municipal"]
[null,"Secretario General ESP"]
[null,"Secretario General ESE"]
[null,"Secretario Gral Gobernación"]
[null,"Secretario Gral Ministerio"]
[null,"Secretario General UAE"]
[null,"Senador"]
[null,"Subdirector Administrativo"]
[null,"Suboficial Policía Nal"]
[null,"Subsecretario de Estado"]
[null,"Superintendente"]
[null,"Superintendente Delegado"]
[null,"Tesorero de Alcaldía"]
[null,"Tesorero de Consejo Municipal"]
[null,"Tesorero Dpto Administrativo"]
[null,"Tesorero EICE"]
[null,"Tesorero ESP"]
[null,"Tesorero ESE"]
[null,"Tesorero de Gobernación"]
[null,"Vicecontralor Gral de la República"]
[null,"Vicedefensor del Pueblo"]
[null,"ViceFiscal Gral de la Nación"]
[null,"Viceministro"]
[null,"Vicepresidente de la República"]
[null,"Viceprocurador Gral Nación"]

{"sheet":"FVE - Producto","index":2,"n_rows":441,"n_cols":113,"rows_kept":441,"cut":false,"hidden":false,"merged":[[23,9,24,11],[23,12,24,13],[23,14,24,16],[310,1,311,119],[313,1,314,119],[316,1,317,119],[318,1,327,119],[328,1,329,16],[328,17,329,85],[328,86,329,99],[328,100,329,119],[180,1,292,119],[293,1,296,119],[299,2,300,9],[306,2,307,12],[306,13,307,26],[306,51,307,61],[171,1,172,81],[173,1,174,10],[173,11,174,15],[173,16,174,30],[173,31,174,51],[177,1,178,119],[161,1,164,119],[334,1,335,16],[334,17,335,85],[334,86,335,99],[334,100,335,119],[330,1,331,4],[330,5,331,8],[330,9,331,16],[330,17,331,85],[330,86,331,99],[330,100,331,119],[332,1,333,16],[332,17,333,85],[332,86,333,99],[332,100,333,119],[166,1,167,119],[169,1,170,16],[169,17,170,19],[169,20,170,21],[169,23,170,25],[169,26,170,27],[103,1,127,119],[129,1,130,119],[132,1,142,119],[144,1,145,119],[147,1,156,119],[158,1,159,119],[98,89,99,119],[100,1,101,14],[100,15,101,27],[100,28,101,41],[100,42,101,62],[100,63,101,68],[100,69,101,88],[100,89,101,119],[98,1,99,14],[98,15,99,27],[98,28,99,41],[98,42,99,62],[98,63,99,68],[98,69,99,88],[94,89,95,119],[96,1,97,14],[96,15,97,27],[96,28,97,41],[96,42,97,62],[96,63,97,68],[96,69,97,88],[96,89,97,119],[94,1,95,14],[94,15,95,27],[94,28,95,41],[94,42,95,62],[94,63,95,68],[94,69,95,88],[90,89,91,119],[92,1,93,14],[92,15,93,27],[92,28,93,41],[92,42,93,62],[92,63,93,68],[92,69,93,88],[92,89,93,119],[90,1,91,14],[90,15,91,27],[90,28,91,41],[90,42,91,62],[90,63,91,68],[90,69,91,88],[82,1,83,119],[85,1,86,46],[88,1,89,14],[88,15,89,27],[88,28,89,41],[88,42,89,62],[88,63,89,68],[88,69,89,88],[88,89,89,119],[74,50,75,51],[74,52,75,59],[76,50,77,51],[76,52,77,74],[78,50,79,51],[78,52,79,55],[78,56,79,74],[70,50,71,51],[70,52,71,57],[68,99,69,100],[68,101,69,113],[70,2,71,3],[70,4,71,14],[70,21,71,30],[70,33,71,34],[70,35,71,47],[68,2,69,3],[68,4,69,15],[68,21,69,30],[68,33,69,34],[68,35,69,46],[68,50,69,51],[71,77,72,78],[71,79,72,93],[72,33,73,34],[72,35,73,44],[72,50,73,51],[72,52,73,58],[68,52,69,54],[68,77,69,78],[68,79,69,95],[66,50,67,51],[66,52,67,56],[66,77,67,78],[66,79,67,97],[66,99,67,100],[66,101,67,115],[66,2,67,3],[66,4,67,14],[66,19,67,20],[66,21,67,24],[66,33,67,34],[66,35,67,46],[56,1,57,119],[59,1,60,31],[59,32,60,75],[59,76,60,119],[61,76,62,119],[62,2,63,3],[62,4,63,14],[62,19,63,30],[62,33,63,34],[62,35,63,46],[62,50,63,62],[63,76,64,119],[64,2,65,3],[64,4,65,15],[64,19,65,20],[64,21,65,26],[64,33,65,34],[64,35,65,46],[64,50,65,65],[51,97,52,119],[53,1,54,11],[53,12,54,31],[53,32,54,51],[53,52,54,65],[53,66,54,79],[53,80,54,96],[53,97,54,119],[51,1,52,11],[51,12,52,31],[51,32,52,51],[51,52,52,65],[51,66,52,79],[51,80,52,96],[47,97,48,119],[49,1,50,11],[49,12,50,31],[49,32,50,51],[49,52,50,65],[49,66,50,79],[49,80,50,96],[49,97,50,119],[47,1,48,11],[47,12,48,31],[47,32,48,51],[47,52,48,65],[47,66,48,79],[47,80,48,96],[43,1,44,11],[43,12,44,56],[43,57,44,79],[43,80,44,96],[43,97,44,119],[45,1,46,11],[45,12,46,56],[45,57,46,79],[45,80,46,96],[45,97,46,119],[39,1,40,11],[39,12,40,56],[39,57,40,79],[39,80,40,96],[39,97,40,119],[41,1,42,11],[41,12,42,56],[41,57,42,79],[41,80,42,96],[41,97,42,119],[33,1,34,2],[33,3,34,13],[33,15,34,16],[33,17,34,34],[36,1,37,119],[15,1,16,9],[15,27,16,28],[15,29,16,33],[15,35,16,36],[15,37,16,43],[15,44,16,68],[15,10,16,13],[15,14,16,17],[15,18,16,25],[18,1,19,119],[21,1,22,89],[21,90,22,103],[21,104,22,119],[25,1,26,60],[25,61,26,90],[25,91,26,119],[27,1,28,60],[27,61,28,90],[27,91,28,119],[0,0,3,120],[4,0,5,120],[6,44,7,76],[10,1,11,119],[13,1,14,9],[13,10,14,25],[13,26,14,43],[13,44,14,68],[30,1,31,22],[23,52,24,53],[23,54,24,72],[23,90,24,103],[23,104,24,107],[23,108,24,111],[23,112,24,119],[23,17,24,18],[23,19,24,25],[23,27,24,28],[23,29,24,36],[23,38,24,39],[23,40,24,50],[23,2,24,3],[23,4,24,6],[23,7,24,8]]}
["FTO-MIS-37 Formato unificado de vinculación: Persona Natural"]
[]
[]
[]
["Última modificación: 10/12/2024"]
[]
[null,null,null,null,null,null,null,null,null,null,null,null,null,null,null,null,null,null,null,null,null,null,null,null,null,null,null,null,null,null,null,null,null,null,null,null,null,null,null,null,null,null,null,null,"FUERZA DE VENTAS EXTERNA"]
[]
[]
[]
[null,"SOLICITUD DE VINCULACIÓN DE PRODUCTO"]
[]
[]
[null,"Cod. oficina",null,null,null,null,null,null,null,null,"Fecha solicitud",null,null,null,null,null,null,null,null,null,null,null,null,null,null,null,"Solicitante",null,null,null,null,null,null,null,null,null,null,null,null,null,null,null,null,null,"Ir a solicitud de vinculación de cliente:"]
[]
[null,null,null,null,null,null,null,null,null,null,"dd",null,null,null,"mm",null,null,null,"aaaa",null,null,null,null,null,null,null,null,null,null,"Cliente",null,null,null,null,null,null,null,"Codeudor",null,null,null,null,null,null,"No soy fuerza de ventas externa:"]
[]
[]
[null,"DATOS PERSONALES BÁSICOS"]
[]
[]
[null,"Tipo identificación",null,null,null,null,null,null,null,null,null,null,null,null,null,null,null,null,null,null,null,null,null,null,null,null,null,null,null,null,null,null,null,null,null,null,null,null,null,null,null,null,null,null,null,null,null,null,null,null,null,null,null,null,null,null,null,null,null,null,null,null,null,null,null,null,null,null,null,null,null,null,null,null,null,null,null,null,null,null,null,null,null,null,null,null,null,null,null,null,"N°. identificación",null,null,null,null,null,null,null,null,null,null,null,null,null,"Fecha expedición"]
[]
[null,null,null,null,"CC",null,null,null,null,"CE",null,null,null,null,"TI",null,null,null,null,"Pasaporte",null,null,null,null,null,null,null,null,null,"Registro civil",null,null,null,null,null,null,null,null,null,null,"Carné diplomático",null,null,null,null,null,null,null,null,null,null,null,null,null,"Permiso de protección temporal",null,null,null,null,null,null,null,null,null,null,null,null,null,null,null,null,null,null,null,null,null,null,null,null,null,null,null,null,null,null,null,null,null,null,null,null,null,null,null,null,null,null,null,null,null,null,null,null,null,"dd",null,null,null,"mm",null,null,null,"aaaa"]
[]
[null,"Nombres cliente",null,null,null,null,null,null,null,null,null,null,null,null,null,null,null,null,null,null,null,null,null,null,null,null,null,null,null,null,null,null,null,null,null,null,null,null,null,null,null,null,null,null,null,null,null,null,null,null,null,null,null,null,null,null,null,null,null,null,null,"Primer apellido",null,null,null,null,null,null,null,null,null,null,null,null,null,null,null,null,null,null,null,null,null,null,null,null,null,null,null,null,null,"Segundo apellido (si aplica)"]
[]
[]
[]
[]
[null,"PRODUCTOS/MODALIDADES"]
[]
[]
[null,null,null,"Tarjeta de Crédito",null,null,null,null,null,null,null,null,null,null,null,null,null,"Tarjeta de Crédito Amparada"]
[]
[]
[null,"DETALLE DE ACTIVOS"]
[]
[]
[null,"Tipo inmueble",null,null,null,null,null,null,null,null,null,null,"Dirección",null,null,null,null,null,null,null,null,null,null,null,null,null,null,null,null,null,null,null,null,null,null,null,null,null,null,null,null,null,null,null,null,null,null,null,null,null,null,null,null,null,null,null,null,"Ciudad/Departamento",null,null,null,null,null,null,null,null,null,null,null,null,null,null,null,null,null,null,null,null,null,null,"Hipotecado a",null,null,null,null,null,null,null,null,null,null,null,null,null,null,null,null,"Valor comercial"]
[]
[]
[]
[null,"Tipo inmueble",null,null,null,null,null,null,null,null,null,null,"Dirección",null,null,null,null,null,null,null,null,null,null,null,null,null,null,null,null,null,null,null,null,null,null,null,null,null,null,null,null,null,null,null,null,null,null,null,null,null,null,null,null,null,null,null,null,"Ciudad/Departamento",null,null,null,null,null,null,null,null,null,null,null,null,null,null,null,null,null,null,null,null,null,null,"Hipotecado a",null,null,null,null,null,null,null,null,null,null,null,null,null,null,null,null,"Valor comercial"]
[]
[]
[]
[null,"Tipo vehículo",null,null,null,null,null,null,null,null,null,null,"Marca",null,null,null,null,null,null,null,null,null,null,null,null,null,null,null,null,null,null,null,"Línea",null,null,null,null,null,null,null,null,null,null,null,null,null,null,null,null,null,null,null,"Modelo",null,null,null,null,null,null,null,null,null,null,null,null,null,"Placa",null,null,null,null,null,null,null,null,null,null,null,null,null,"Pignorado a",null,null,null,null,null,null,null,null,null,null,null,null,null,null,null,null,"Valor comercial"]
[]
[]
[]
[null,"Tipo vehículo",null,null,null,null,null,null,null,null,null,null,"Marca",null,null,null,null,null,null,null,null,null,null,null,null,null,null,null,null,null,null,null,"Línea",null,null,null,null,null,null,null,null,null,null,null,null,null,null,null,null,null,null,null,"Modelo",null,null,null,null,null,null,null,null,null,null,null,null,null,"Placa",null,null,null,null,null,null,null,null,null,null,null,null,null,"Pignorado a",null,null,null,null,null,null,null,null,null,null,null,null,null,null,null,null,"Valor comercial"]
[]
[]
[]
[]
[null,"TARJETA DE CRÉDITO"]
[]
[]
[null,"Mastercard",null,null,null,null,null,null,null,null,null,null,null,null,null,null,null,null,null,null,null,null,null,null,null,null,null,null,null,null,null,null,"Visa",null,null,null,null,null,null,null,null,null,null,null,null,null,null,null,null,null,null,null,null,null,null,null,null,null,null,null,null,null,null,null,null,null,null,null,null,null,null,null,null,null,null,null,"Dirección entrega tarjeta(s)"]
[]
[]
[null,null,null,null,"Credencial Joven",null,null,null,null,null,null,null,null,null,null,null,null,null,null,"Marca compartida:",null,null,null,null,null,null,null,null,null,null,null,null,null,null,null,"Credencial Clásica",null,null,null,null,null,null,null,null,null,null,null,null,null,null,"Marcas compartidas:"]
[null,null,null,null,null,null,null,null,null,null,null,null,null,null,null,null,null,null,null,null,null,null,null,null,null,null,null,null,null,null,null,null,null,null,null,null,null,null,null,null,null,null,null,null,null,null,null,null,null,null,null,null,null,null,null,null,null,null,null,null,null,null,null,null,null,null,null,null,null,null,null,null,null,null,null,null,"Fecha de pago"]
[null,null,null,null,"Credencial Clásica",null,null,null,null,null,null,null,null,null,null,null,null,null,null,null,null,"UNICEF",null,null,null,null,null,null,null,null,null,null,null,null,null,"Credencial Gold",null,null,null,null,null,null,null,null,null,null,null,null,null,null,"Credencial LATAMPASS:"]
[]
[null,null,null,null,"Credencial Gold",null,null,null,null,null,null,null,null,null,null,null,null,null,null,null,null,"Otra:",null,null,null,null,null,null,null,null,null,null,null,null,null,"Credencial Platinum",null,null,null,null,null,null,null,null,null,null,null,null,null,null,null,null,"Clásica",null,null,null,null,null,null,null,null,null,null,null,null,null,null,null,null,null,null,null,null,null,null,null,null,null,null,"Mastercard a mediados de mes",null,null,null,null,null,null,null,null,null,null,null,null,null,null,null,null,null,null,null,null,null,"Visa a mediados de mes"]
[]
[null,null,null,null,"Credencial Platinum",null,null,null,null,null,null,null,null,null,null,null,null,null,null,null,null,null,null,null,null,null,null,null,null,null,null,null,null,null,null,"Credencial Infinite",null,null,null,null,null,null,null,null,null,null,null,null,null,null,null,null,"Oro",null,null,null,null,null,null,null,null,null,null,null,null,null,null,null,null,null,null,null,null,null,null,null,null,null,null,"Mastercard a finales de mes",null,null,null,null,null,null,null,null,null,null,null,null,null,null,null,null,null,null,null,null,null,"Visa a finales de mes"]
[]
[null,null,null,null,"Credencial Black",null,null,null,null,null,null,null,null,null,null,null,null,null,null,null,null,null,null,null,null,null,null,null,null,null,null,null,null,null,null,"Credencial Mascotas",null,null,null,null,null,null,null,null,null,null,null,null,null,null,null,null,"Platinum"]
[null,null,null,null,null,null,null,null,null,null,null,null,null,null,null,null,null,null,null,null,null,null,null,null,null,null,null,null,null,null,null,null,null,null,null,null,null,null,null,null,null,null,null,null,null,null,null,null,null,null,null,null,null,null,null,null,null,null,null,null,null,null,null,null,null,null,null,null,null,null,null,null,null,null,null,null,null,null,null,"¿Codeudor sin plástico?:"]
[null,null,null,null,null,null,null,null,null,null,null,null,null,null,null,null,null,null,null,null,null,null,null,null,null,null,null,null,null,null,null,null,null,null,null,"Credencial Free",null,null,null,null,null,null,null,null,null,null,null,null,null,null,null,null,"Signature"]
[]
[null,null,null,null,null,null,null,null,null,null,null,null,null,null,null,null,null,null,null,null,null,null,null,null,null,null,null,null,null,null,null,null,null,null,null,null,null,null,null,null,null,null,null,null,null,null,null,null,null,null,null,null,"Priority Pass"]
[]
[null,null,null,null,null,null,null,null,null,null,null,null,null,null,null,null,null,null,null,null,null,null,null,null,null,null,null,null,null,null,null,null,null,null,null,null,null,null,null,null,null,null,null,null,null,null,null,null,null,null,null,null,"Credencial Centro Comercial Santafé"]
[]
[null,null,null,null,null,null,null,null,null,null,null,null,null,null,null,null,null,null,null,null,null,null,null,null,null,null,null,null,null,null,null,null,null,null,null,null,null,null,null,null,null,null,null,null,null,null,null,null,null,null,null,null,"Otra:"]
[]
[]
[]
[null,"TARJETA DE CRÉDITO AMPARADA"]
[]
[]
[null,"Realizar traslado de cupo de mi(s) tarjeta(s) de crédito para amparado(s) así:"]
[]
[]
[null,"N°. tarjeta crédito",null,null,null,null,null,null,null,null,null,null,null,null,null,"Tipo identificación",null,null,null,null,null,null,null,null,null,null,null,null,"N°. identificación",null,null,null,null,null,null,null,null,null,null,null,null,null,"Por valor:",null,null,null,null,null,null,null,null,null,null,null,null,null,null,null,null,null,null,null,null,"Unificar",null,null,null,null,null,"Franquicia deseada",null,null,null,null,null,null,null,null,null,null,null,null,null,null,null,null,null,null,null,"Dirección lugar entrega"]
[]
[null,"N°. del titular"]
[]
[null,"N°. del titular"]
[]
[null,"N°. del titular"]
[]
[null,"N°. del titular"]
[]
[null,"N°. del titular"]
[]
[null,"N°. del titular"]
[]
[]
[null,"DECLARACIONES:\nAl firmar el presente documento confirmo que he comprendido y/o he recibido la siguiente información:\n- Declaro(mos) que he(mos) recibido y entendido y por lo tanto aceptamos; el prospecto, el reglamento, la información del defensor del consumidor financiero y la información del código de ética y conducta, así como, las medidas de seguridad a tener en cuenta cuando realice operaciones a través de los canales dispuestos para el efecto por la Fiduciaria de Occidente S.A..\n- El inversionista podrá designar una o varias personas para que manejen o dispongan de los recursos invertidos en los FIC (co-titulares). Si la designación se realiza bajo la conjunción “Y” la disposición de los recursos requerirá del consenso del inversionista y todos los co-titulares. Si la designación se realiza bajo la conjunción “O” el manejo y disposición de los recursos de la inversión podrá provenir del inversionista o cualquiera de sus co-titulares. \n- Para todos los efectos legales, los co-titulares no se encuentran vinculados al FIC ni son clientes o usuarios de la FIDUCIARIA DE OCCIDENTE S.A. Todas los derechos y obligaciones aplicables derivados de la inversión en los FIC serán cumplidos por la FIDUCIARIA DE OCCIDENTE S.A. exclusivamente frente al inversionista, sin perjuicio de la autorización otorgada a los co-titulares de disponer o manejar los recursos invertidos. \n- La FIDUCIARIA DE OCCIDENTE S.A. ha celebrado con el BANCO DE OCCIDENTE S.A. un contrato de uso de red con el objetivo de que éste realice una labor de distribución de ciertos productos de la fiduciaria. En virtud de lo anterior, el BANCO DE OCCIDENTE S.A. sólo se responsabiliza por el cumplimiento de la labor de distribución de los productos en los términos establecidos en el contrato de uso de red y la normativa aplicable. El consumidor financiero se vincula como cliente a la FIDUCIARIA DE OCCIDENTE S.A. y, en ese sentido, cualquier queja, recamo o sugerencia debe ser dirigido a dicha entidad. Con respecto a los recursos que el BANCO DE OCCIDENTE S.A. recibirá en desarrollo del contrato de uso de red señalado, la ley no contempla el amparo del seguro de depósito.\n- Los datos de teléfono celular y correo electrónico registrados en la sección de Datos Personales de la Solicitud de Vinculación Persona Natural pueden ser utilizados como mecanismo de autenticación segura al momento de realizar las transacciones a través de los canales digitales que disponga la fiduciaria.\n- Que el listado de las entidades financieras donde los fondos de inversión colectiva tienen cuentas recaudadoras se pueden consultar en la página web de la Fiduciaria www.fiduoccidente.com.co, ícono de Información al Consumidor Financiero sección de Información Relevante para Operar los FICS o en su defecto solicitar la impresión de los mismos en la Oficina; por lo cual declaro conocer que cualquier retiro o aporte que realice desde o hacia una cuenta en una entidad bancaria donde el fondo no tenga convenio, será gravado con el GMF, el cual deberá ser asumido en su totalidad por el titular de la inversión.\n- Los procesos, medios y horarios de las operaciones, la generación del GMF por retiro en efectivo y cheque, y demás información de los productos y servicios de la Fiduciaria de Occidente la cual puede ser consultada en la página web de la Fiduciaria www.fiduoccidente.com.co, ícono de Información al Consumidor Financiero sección de Información Relevante para Operar los FICS."]
[]
[]
[]
[]
[]
[]
[]
[]
[]
[]
[]
[]
[]
[]
[]
[]
[]
[]
[]
[]
[]
[]
[]
[]
[]
[null,"AUTORIZACIÓN PARA REPORTAR DATOS COMERCIALES MARCAS COMPARTIDAS (TARJETA DE CRÉDITO)"]
[]
[]
[null,"En calidad de titular de mi información personal, actuando libre y voluntariamente, autorizo de manera expresa e irrevocable al BANCO DE OCCIDENTE S.A o a quien represente sus derechos a suministrar, reportar, procesar y divulgar a la empresa encargada del programa de Fidelización del cual hace parte la Tarjeta de Marca Compartida, lo concerniente a mi información personal y datos de contacto, así como mi información de carácter comercial, financiero, crediticio y de servicios, con el fin de que se me pueda ofrecer la debida diligencia en la inscripción y presentación del producto del Programa de Fidelización de la marca, en especial aquello correspondiente a los beneficios, ofertas, estados de cuenta y todo aquello relacionado con el mercadeo y la publicidad. Igualmente, autorizo recibir por cualquier medio la información concerniente al producto Tarjeta de Crédito y del Aliado. Mis derechos y mis obligaciones así como la permanencia de mi información en las bases de datos corresponden a lo determinado por el otorgamiento jurídico aplicable del cual, por ser de carácter público, estoy enterado.\nLa información sobre el Programa de Fidelización puede ser consultada y se encuentra disponible en las páginas web de los Aliados. La información, términos y condiciones contenidos en la página web de los Aliados, así como la calidad, cumplimiento y entrega de sus beneficios y/o productos son de responsabilidad única y exclusiva del Aliado y no del Banco de Occidente.    "]
[]
[]
[]
[]
[]
[]
[]
[]
[]
[]
[]
[null,"INFORMACIÓN ADICIONAL (TARJETA DE CRÉDITO)"]
[]
[]
[null,"En caso de ser aprobada (s) su (s) Tarjeta (s) de Crédito Credencial, se otorgará la siguiente exoneración: Un (1) año de exoneración de cuota de manejo para Tarjeta Portafolio Estándar, Semimasiva o Marcas Compartidas Visa o Mastercard, seis(6) meses de exoneración de  cuota de manejo para  Tarjeta Mastercard Joven y Tarjeta Visa Centro Comercial Santafé y Exoneración Permanente (Sin Cuota de Manejo) para la Tarjeta Free de la Franquicia Visa. El único cargo que se verá reflejado es el Seguro Vida Deudor por valor de $2.280 el cual NO es exonerable (ajustable con cada renovación de Póliza). Valor que se verá reflejado de forma mensual para todas las tarjetas. Una vez finalizado el periodo de exoneración de la cuota de manejo, el cobro  total (cuota de manejo más seguro) se efectuará de  forma mensual anticipada según el producto aprobado. En caso de adquirir la dualidad (Mastercard y Visa Tradicional), la exoneración de cuota de manejo será permanente en solo uno de los dos productos, siempre y cuando las dos tarjetas se encuentren vigentes, el único cargo que se verá reflejado corresponde al Seguro Vida Deudor y su cobro será mensual anticipado. Para mayor información consultar  en  la página www.bancodeoccidente.com.co - Para Personas - Sección Tarjeta de Crédito Credencial. Tasas y Tarifas."]
[]
[]
[]
[]
[]
[]
[]
[]
[]
[]
[null,"AUTORIZACIÓN GUÍAS DE USO (SOLO PRODUCTOS DEL BANCO)"]
[]
[]
[null,"Con la firma del presente documento, manifiesto haber sido informado de la existencia de (las) guías de uso del(los) producto(s) y servicios solicitado(s), las cuales contienen los términos, condiciones y explicaciones de los productos, por considerarla de suma importancia para la seguridad y manejo adecuado del producto, las cuales puedo consultar y/o descargar si es el caso en la página www.bancodeoccidente.com.co; o en su defecto solicitar la impresión de los mismos en la Oficina o Credicentro."]
[]
[]
[]
[]
[null,"ACEPTACIÓN VALOR TOTAL UNIFICADO (VTU)"]
[]
[]
[null,"Aplica la entrega del VTU:",null,null,null,null,null,null,null,null,null,null,null,null,null,null,null,"Sí",null,null,null,null,null,"No"]
[]
[null,"Con la firma del presente documento, manifiesto haber sido informado del cálculo del Valor Total Unificado (VTU), el cual corresponde a:"]
[]
[null,"Una TIR % de:",null,null,null,null,null,null,null,null,null,null,null,null,null,null,"y un valor en pesos de:"]
[]
[]
[]
[null,"CONTRATO DE APERTURA Y UTILIZACIÓN DE LA TARJETA DE CRÉDITO CREDENCIAL DE USO LOCAL E INTERNACIONAL"]
[]
[]
[null,{"$cut":{"chars":25147,"head":"Quien suscribe el presente documento, identificado como aparece al pie de su firma, quien en adelante y para los efectos del Contrato que se concluya, se denominará el Tarjetahabiente, formula oferta comercial de contrato de apertura y utilización de la Tarjeta de Crédito Credencial de uso local e internacional, emitida por El Banco, establecimiento bancario legalmente constituido, quien en adelante y para los efectos del contrato que se concluya, se denominará El Banco, bajo las siguientes cláusulas:\nCláusula primera. La entrega de la tarjeta Credencial de uso local e internacional se hará en consideración a las condiciones personales del Tarjetahabiente, por ello, es personal e intransferible y en consecuencia este no la podrá ceder a ningún título ni hacerse sustituir por terceros en el ejercicio de los derechos que el contrato le confiere, salvo lo señalado en el parágrafo de la presente cláusula. La tarjeta de crédito Credencial de uso local e internacional es de propiedad de El Banco y El Tarjetahabiente se obliga a custodiarla con la mayor diligencia y cuidado y a devolverla o a no utilizarla en el momento en que El Banco lo solicite.\nParágrafo. En caso de solicitar la renovación del plástico, El Tarjetahabiente podrá solicitar y autorizar bajo su responsabilidad ante El Banco la entrega de su tarjeta a un tercero, para lo cual El Tarjetahabiente deberá otorgar un poder especial, que cumpla con las condiciones establecidas por El Banco, entre las cuales se encuentra la obligación de definir y expresar claramente en tal documento las facultades adicionales que le concede al tercero para el recibo de su tarjeta, tales como firmas de pagaré, recepción de claves y/o solicitud de activación.\nCláusula segunda. El Tarjetahabiente, mediante la exhibición de su tarjeta y su plena identificación, podrá firmar comprobantes de venta o facturas cambiarias correspondientes al valor de los bienes o servicios que obtenga en cualquiera de los establecimientos afiliados a El Banco, que operan en el país y en el extranjero, a las redes Visa o MasterCard Internacional, según el tipo de tarjeta, hasta por el monto máximo que El Banco en forma de cupo le autorice, tanto en moneda legal como en moneda extranjera. El Tarjetahabiente también podrá obtener dinero y cambio de cheques personales por dinero en efectivo, en cualquiera de las oficinas de El Banco, sus corresponsales o establecimientos que El Banco indique, hasta por la cantidad que este o Visa o MasterCard, según sea el caso, le asigne, pagando el valor que El Banco haya señalado para el momento de utilizar estos servicios. Los valores así utilizados, deberán ser reembolsados a la presentación del estado de cuenta respectivo. Igualmente, El Tarjetahabiente podrá efectuar compras de bienes o servicios telefónicamente, por Internet o cualquier otro medio electrónico, suministrando al establecimiento autorizado por El Banco la información que se detalla en la cláusula cuarta de esta oferta.\nParágrafo. Habrá de entenderse que en todos estos casos, pero particularmente en el caso de compras telefónicas, por Internet o cualquier otro medio electrónico, El Tarjetahabiente efectuará las transacciones con suma diligencia y cuidado, en consecuencia entiende y acepta el riesgo derivado de la operación, así como de la entrega de la información señalada en la cláusula cuarta.\nCláusula tercera. El Tarjetahabiente no podrá sobrepasar en ningún caso el cupo de crédito asignado por El Banco, tanto en moneda legal como en moneda extranjera y en caso que lo hiciere, habrá lugar a la cancelación de la tarjeta y a exigir por parte de El Banco, previo informe al tarjetahabiente dentro del término mínimo legal establecido para ello, el pago inmediato de las sumas pendientes, sin perjuicio de las acciones legales pertinentes.\nCláusula cuarta. El Tarjetahabiente, para pagar bienes o servicios, solicitar cambio de cheques o avances en efectivo, al amparo de la tarjeta Credencial de uso local e internacional, deberá presentarla personalmente, firmar con tinta cada uno de los comprobantes respectivos, pre"}}]
[]
[]
[]
[]
[]
[]
[]
[]
[]
[]
[]
[]
[]
[]
[]
[]
[]
[]
[]
[]
[]
[]
[]
[]
[]
[]
[]
[]
[]
[]
[]
[]
[]
[]
[]
[]
[]
[]
[]
[]
[]
[]
[]
[]
[]
[]
[]
[]
[]
[]
[]
[]
[]
[]
[]
[]
[]
[]
[]
[]
[]
[]
[]
[]
[]
[]
[]
[]
[]
[]
[]
[]
[]
[]
[]
[]
[]
[]
[]
[]
[]
[]
[]
[]
[]
[]
[]
[]
[]
[]
[]
[]
[]
[]
[]
[]
[]
[]
[]
[]
[]
[]
[]
[]
[]
[]
[]
[]
[]
[]
[]
[]
[null,"En señal de aceptación del (los) contrato(s) y autorizaciones del(los) siguiente(s) producto(s); así como de haber leído y entendido sus términos, condiciones y explicaciones por considerarla de suma importancia para la seguridad y manejo adecuado del producto (en especial pero sin limitarse a los que se encuentran en caracteres resaltados), los cuales puedo consultar y descargar si es el caso en la página www.bancodeoccidente.com.co; o en su defecto solicitar la impresión de los mismos en Oficina. Se firma el presente documento: "]
[]
[]
[]
[]
[]
[null,null,"Firma cliente:"]
[]
[]
[]
[]
[]
[]
[null,null,"N°. identificación:",null,null,null,null,null,null,null,null,null,null,null,null,null,null,null,null,null,null,null,null,null,null,null,null,null,null,null,null,null,null,null,null,null,null,null,null,null,null,null,null,null,null,null,null,null,null,null,null,"Índice derecho"]
[]
[]
[]
[null,"USO EXCLUSIVO DEL BANCO/FIDUCIARIA"]
[]
[]
[null,"ENTREVISTA O VISITA/CONCEPTO"]
[]
[]
[null,"Resultado entrevista o visita/concepto cliente"]
[]
[]
[]
[]
[]
[]
[]
[]
[]
[]
[]
[null,"Fecha resultado",null,null,null,null,null,null,null,null,null,null,null,null,null,null,null,"Nombres y apellidos (quien entrevistas y vincula)",null,null,null,null,null,null,null,null,null,null,null,null,null,null,null,null,null,null,null,null,null,null,null,null,null,null,null,null,null,null,null,null,null,null,null,null,null,null,null,null,null,null,null,null,null,null,null,null,null,null,null,null,null,null,null,null,null,null,null,null,null,null,null,null,null,null,null,null,"N°. cédula",null,null,null,null,null,null,null,null,null,null,null,null,null,"Nombre segmento de banca"]
[]
[null,"dd",null,null,null,"mm",null,null,null,"aaaa"]
[]
[null,"Hora",null,null,null,null,null,null,null,null,null,null,null,null,null,null,null,"Nombres y apellidos (quien verifica información comercial)",null,null,null,null,null,null,null,null,null,null,null,null,null,null,null,null,null,null,null,null,null,null,null,null,null,null,null,null,null,null,null,null,null,null,null,null,null,null,null,null,null,null,null,null,null,null,null,null,null,null,null,null,null,null,null,null,null,null,null,null,null,null,null,null,null,null,null,null,"N°. cédula",null,null,null,null,null,null,null,null,null,null,null,null,null,"N°. biometría"]
[]
[null,"hh:mm AM/PM"]
[]
[]
[]
[]
[]
[]
[]
[]
[]
[]
[]
[]
[]
[]
[]
[]
[]
[]
[]
[]
[]
[]
[]
[]
[]
[]
[]
[]
[]
[null,"Cargos PEP",null,null,null,null,null,null,null,null,null,null,null,null,null,null,null,null,null,null,null,null,null,null,null,null,"Tipos PEP",null,null,null,null,null,null,null,null,null,null,null,null,"Boolean",null,null,null,null,null,null,null,"Tipo identificación",null,null,null,null,null,null,null,null,null,null,null,null,null,null,null,null,null,null,null,null,null,null,null,"Franquicia",null,null,null,null,null,null,null,null,null,null,null,null,null,null,null,null,null,null,null,null,null,null,null,null,"Fondo de inversión","#1","#2","#3"]
[null,"Alcalde",null,null,null,null,null,null,null,null,null,null,null,null,null,null,null,null,null,null,null,null,null,null,null,null,"No PEP",null,null,null,null,null,null,null,null,null,null,null,null,"Sí",null,null,null,null,null,null,null,"CC",null,null,null,null,null,null,null,null,null,null,null,null,null,null,null,null,null,null,null,null,null,null,null,"MasterCard- Credencial Joven",null,null,null,null,null,null,null,null,null,null,null,null,null,null,null,null,null,null,null,null,null,null,null,null,"Occirenta",1,0,0]
[null,"Auditor General de la Nación",null,null,null,null,null,null,null,null,null,null,null,null,null,null,null,null,null,null,null,null,null,null,null,null,"PEP Nacional",null,null,null,null,null,null,null,null,null,null,null,null,"No",null,null,null,null,null,null,null,"CE",null,null,null,null,null,null,null,null,null,null,null,null,null,null,null,null,null,null,null,null,null,null,null,"MasterCard- Credencial Clásica",null,null,null,null,null,null,null,null,null,null,null,null,null,null,null,null,null,null,null,null,null,null,null,null,"Avanza Renta Fija",1,0,7]
[null,"Autorizador del Gasto Público",null,null,null,null,null,null,null,null,null,null,null,null,null,null,null,null,null,null,null,null,null,null,null,null,"PEP Extranjero",null,null,null,null,null,null,null,null,null,null,null,null,null,null,null,null,null,null,null,null,"TI",null,null,null,null,null,null,null,null,null,null,null,null,null,null,null,null,null,null,null,null,null,null,null,"MasterCard- Credencial Gold",null,null,null,null,null,null,null,null,null,null,null,null,null,null,null,null,null,null,null,null,null,null,null,null,"Occitesoros",1,1,0]
[null,"Codirector Banco República",null,null,null,null,null,null,null,null,null,null,null,null,null,null,null,null,null,null,null,null,null,null,null,null,null,null,null,null,null,null,null,null,null,null,null,null,null,null,null,null,null,null,null,null,null,"Pasaporte",null,null,null,null,null,null,null,null,null,null,null,null,null,null,null,null,null,null,null,null,null,null,null,"MasterCard- Credencial Platinum",null,null,null,null,null,null,null,null,null,null,null,null,null,null,null,null,null,null,null,null,null,null,null,null,"Renta Fija Dinámica",1,0,3]
[null,"Comisionado Nal Servicio Civil",null,null,null,null,null,null,null,null,null,null,null,null,null,null,null,null,null,null,null,null,null,null,null,null,null,null,null,null,null,null,null,null,null,null,null,null,null,null,null,null,null,null,null,null,null,"Registro civil",null,null,null,null,null,null,null,null,null,null,null,null,null,null,null,null,null,null,null,null,null,null,null,"MasterCard- Credencial Black",null,null,null,null,null,null,null,null,null,null,null,null,null,null,null,null,null,null,null,null,null,null,null,null,"Renta Fija Recurrente",1,1,2]
[null,"Concejal",null,null,null,null,null,null,null,null,null,null,null,null,null,null,null,null,null,null,null,null,null,null,null,null,null,null,null,null,null,null,null,null,null,null,null,null,null,null,null,null,null,null,null,null,null,"Carné diplomático",null,null,null,null,null,null,null,null,null,null,null,null,null,null,null,null,null,null,null,null,null,null,null,"Visa- Credencial Clásica",null,null,null,null,null,null,null,null,null,null,null,null,null,null,null,null,null,null,null,null,null,null,null,null,"Balanceado Internacional",1,0,4]
[null,"Consejero Dpto Administrativo",null,null,null,null,null,null,null,null,null,null,null,null,null,null,null,null,null,null,null,null,null,null,null,null,null,null,null,null,null,null,null,null,null,null,null,null,null,null,null,null,null,null,null,null,null,"Permiso de protección temporal",null,null,null,null,null,null,null,null,null,null,null,null,null,null,null,null,null,null,null,null,null,null,null,"Visa- Credencial Gold",null,null,null,null,null,null,null,null,null,null,null,null,null,null,null,null,null,null,null,null,null,null,null,null,"Meta Planeada",1,0,5]
[null,"Contador General de la Nación",null,null,null,null,null,null,null,null,null,null,null,null,null,null,null,null,null,null,null,null,null,null,null,null,null,null,null,null,null,null,null,null,null,null,null,null,null,null,null,null,null,null,null,null,null,null,null,null,null,null,null,null,null,null,null,null,null,null,null,null,null,null,null,null,null,null,null,null,null,"Visa- Credencial Platinum",null,null,null,null,null,null,null,null,null,null,null,null,null,null,null,null,null,null,null,null,null,null,null,null,"Meta Estratégica",1,0,9]
[null,"Contralor delegado",null,null,null,null,null,null,null,null,null,null,null,null,null,null,null,null,null,null,null,null,null,null,null,null,null,null,null,null,null,null,null,null,null,null,null,null,null,null,null,null,null,null,null,null,null,null,null,null,null,null,null,null,null,null,null,null,null,null,null,null,null,null,null,null,null,null,null,null,null,"Visa- Credencial Infinite",null,null,null,null,null,null,null,null,null,null,null,null,null,null,null,null,null,null,null,null,null,null,null,null,"Meta Decidida",1,1,1]
[null,"Contralor Gral de la República",null,null,null,null,null,null,null,null,null,null,null,null,null,null,null,null,null,null,null,null,null,null,null,null,null,null,null,null,null,null,null,null,null,null,null,null,null,null,null,null,null,null,null,null,null,null,null,null,null,null,null,null,null,null,null,null,null,null,null,null,null,null,null,null,null,null,null,null,null,"Visa- Credencial Mascotas"]
[null,"Contralor Territorial",null,null,null,null,null,null,null,null,null,null,null,null,null,null,null,null,null,null,null,null,null,null,null,null,null,null,null,null,null,null,null,null,null,null,null,null,null,null,null,null,null,null,null,null,null,null,null,null,null,null,null,null,null,null,null,null,null,null,null,null,null,null,null,null,null,null,null,null,null,"Visa- Credencial Free"]
[null,"Curador Urbano",null,null,null,null,null,null,null,null,null,null,null,null,null,null,null,null,null,null,null,null,null,null,null,null,null,null,null,null,null,null,null,null,null,null,null,null,null,null,null,null,null,null,null,null,null,null,null,null,null,null,null,null,null,null,null,null,null,null,null,null,null,null,null,null,null,null,null,null,null,"Unicef -Marca Compartida"]
[null,"Defensor del Pueblo",null,null,null,null,null,null,null,null,null,null,null,null,null,null,null,null,null,null,null,null,null,null,null,null,null,null,null,null,null,null,null,null,null,null,null,null,null,null,null,null,null,null,null,null,null,null,null,null,null,null,null,null,null,null,null,null,null,null,null,null,null,null,null,null,null,null,null,null,null,"LATAMPASS Clásica "]
[null,"Defensor Delegado",null,null,null,null,null,null,null,null,null,null,null,null,null,null,null,null,null,null,null,null,null,null,null,null,null,null,null,null,null,null,null,null,null,null,null,null,null,null,null,null,null,null,null,null,null,null,null,null,null,null,null,null,null,null,null,null,null,null,null,null,null,null,null,null,null,null,null,null,null,"LATAMPASS Oro"]
[null,"Delegado Fiscalía Gral Nación",null,null,null,null,null,null,null,null,null,null,null,null,null,null,null,null,null,null,null,null,null,null,null,null,null,null,null,null,null,null,null,null,null,null,null,null,null,null,null,null,null,null,null,null,null,null,null,null,null,null,null,null,null,null,null,null,null,null,null,null,null,null,null,null,null,null,null,null,null,"LATAMPASS Platinum"]
[null,"Diputado",null,null,null,null,null,null,null,null,null,null,null,null,null,null,null,null,null,null,null,null,null,null,null,null,null,null,null,null,null,null,null,null,null,null,null,null,null,null,null,null,null,null,null,null,null,null,null,null,null,null,null,null,null,null,null,null,null,null,null,null,null,null,null,null,null,null,null,null,null,"LATAMPASS Signature"]
[null,"Director Administrativo",null,null,null,null,null,null,null,null,null,null,null,null,null,null,null,null,null,null,null,null,null,null,null,null,null,null,null,null,null,null,null,null,null,null,null,null,null,null,null,null,null,null,null,null,null,null,null,null,null,null,null,null,null,null,null,null,null,null,null,null,null,null,null,null,null,null,null,null,null,"LATAMPASS Priority Pass"]
[null,"Dir Empresas Pub Servicios ESP",null,null,null,null,null,null,null,null,null,null,null,null,null,null,null,null,null,null,null,null,null,null,null,null,null,null,null,null,null,null,null,null,null,null,null,null,null,null,null,null,null,null,null,null,null,null,null,null,null,null,null,null,null,null,null,null,null,null,null,null,null,null,null,null,null,null,null,null,null,"Centro Comercial Santa Fé"]
[null,"Dir Financiero EICE "]
[null,"Dir Financiero ESE"]
[null,"Embajador"]
[null,"Fideicomitente con Administración de Recursos Públicos"]
[null,"Fiscal General de la Nación"]
[null,"General de Fuerzas Militares"]
[null,"General Policia Nacional"]
[null,"Gerente EICE "]
[null,"Gerente  ESP"]
[null,"Gerente ESE"]
[null,"Gerente UAE"]
[null,"Gobernador"]
[null,"Inspector de Policía "]
[null,"Juez de la República"]
[null,"Mag Aux Altas Cortes"]
[null,"Magistrado de Altas Cortes"]
[null,"Mag Consejo Nal Electoral"]
[null,"Magistrado de Tribunales"]
[null,"Ministro"]
[null,"Notario"]
[null,"Oficial de Fuerzas Militares"]
[null,"Oficial de Policia Nacional"]
[null,"Ordenador del Gasto"]
[null,"Presidente de la República"]
[null,"Presidente General"]
[null,"Procurador Delegado"]
[null,"Procurador Gral de la Nación"]
[null,"Registrador Delegado"]
[null,"Registrador Nal Estado Civil"]
[null,"Representante a la Cámara"]
[null,"Rep Legal Partido/Mov Político"]
[null,"Secr. comisión Constitucional"]
[null,"Secretario General de Alcaldía"]
[null,"Secr. Gral Consejo Municipal"]
[null,"Secretario General ESP"]
[null,"Secretario General ESE"]
[null,"Secretario Gral Gobernación"]
[null,"Secretario Gral Ministerio"]
[null,"Secretario General UAE"]
[null,"Senador"]
[null,"Subdirector Administrativo"]
[null,"Suboficial Policía Nal"]
[null,"Subsecretario de Estado"]
[null,"Superintendente"]
[null,"Superintendente Delegado"]
[null,"Tesorero de Alcaldía"]
[null,"Tesorero de Consejo Municipal"]
[null,"Tesorero Dpto Administrativo"]
[null,"Tesorero EICE"]
[null,"Tesorero ESP"]
[null,"Tesorero ESE"]
[null,"Tesorero de Gobernación"]
[null,"Vicecontralor Gral de la República"]
[null,"Vicedefensor del Pueblo"]
[null,"ViceFiscal Gral de la Nación"]
[null,"Viceministro"]
[null,"Vicepresidente de la República"]
[null,"Viceprocurador Gral Nación"]